Workbook

Sheet Info
D1: -1 | E1: 0 | F1: 1 | G1: 2 | H1: 3 | I1: 4 | J1: 5 | K1: 6 | L1: 7 | M1: 8 | N1: 9 | O1: 10 | P1: 11 | Q1: 12 | R1: 13 | S1: 14 | T1: 15 | Y1: =IF(OR(Z3="",Z4=""),"※ 市町村（左側）から順に選択してください","") -> ※ 市町村（左側）から順に選択してください | AD1: ｖ | AK1: v
V2: 表示行 | W2: 旧市町村数 | X2: 市町村行 | Y2: 参照シート、セル | Z2: check | AA2: 表示名 | AD2: 表示行 | AE2: 集落数 | AF2: 旧市町村行 | AG2: 参照シート | AH2: check | AK2: 表示行 | AL2: 集落数 | AM2: 旧市町村行 | AN2: 参照シート | AO2: check
D3: 県名 | G3: 市町村名 | J3: 旧市町村名 | V3: =IF(M4="",-1,IFERROR(MATCH(M4,OFFSET(集落2010,1,0,ROWS(集落2010),1),0)-1,3000))+AF3 -> 5 | W3: =COUNTIF('2010年'!B:B,Info!G4)-1 -> -1 | X3: =IF(G4="",6,MATCH(G4,'2010年'!B:B,0)) -> 6 | Y3: '2010年'!$A$1 | Z3: =OFFSET(INDIRECT(Y3),V3,1)&OFFSET(INDIRECT(Y3),V3,2)&OFFSET(INDIRECT(Y3),V3,3) ->  | AA3: =IF(OR(ISERROR(G4),ISERROR(J4),ISERROR(M4)),"表示できません",IF(G4&J4&M4="",D4,IF(M4<>"",M4,IF(J4<>"",IF($G$4=$J$4,"（旧）","")&$J$4,IF(J4<>"",J4,G4))))) -> 群馬県 | AD3: =IF(M4="",-1,IFERROR(MATCH(M4,OFFSET(集落2010,1,0,ROWS(集落2010),1),0)-1,999))+AF3 -> 5 | AE3: =COUNTIF('2010年'!C:C,Info!J4)-1 -> 1046229 | AF3: =IF(J4="",X3,MATCH(J4,'2010年'!C:C,0)) -> 6 | AG3: '2010年'!$A$1 | AH3: =OFFSET(INDIRECT(AG3),AD3,1)&OFFSET(INDIRECT(AG3),AD3,2)&OFFSET(INDIRECT(AG3),AD3,3) ->  | AI3: =IF(OR(ISERROR(AJ3),ISERROR(AL3)),"表示できません",IF(V4<>"",V4,IF(R4<>"",IF($G$4=$J$4,"（旧）","")&$J$4,IF(O4<>"",O4,L4)))) -> 5 | AK3: =IF(M4="",-1,IFERROR(MATCH(M4,OFFSET(集落2010,1,0,ROWS(集落2010),1),0)-1,999))+AM3 -> 5 | AL3: =COUNTIF('2010年'!C:C,Info!J4)-1 -> 1046229 | AM3: =IF(J4="",X3,MATCH(J4,'2010年'!C:C,0)) -> 6 | AN3: '2010年'!$A$1 | AO3: =OFFSET(INDIRECT(AN3),AK3,1)&OFFSET(INDIRECT(AN3),AK3,2)&OFFSET(INDIRECT(AN3),AK3,3) ->  | AP3: =IF(OR(ISERROR(AQ3),ISERROR(AS3)),"表示できません",IF(AC4<>"",AC4,IF(Y4<>"",IF($G$4=$J$4,"（旧）","")&$J$4,IF(V4<>"",V4,S4)))) -> （旧）
D4: 群馬県 | V4: =IF(M4="",-1,IFERROR(MATCH(M4,OFFSET(集落2015,1,0,ROWS(集落2015),1),0)-1,3000))+AF4 -> 5 | W4: =COUNTIF('2015年'!B:B,Info!G4)-1 -> -1 | X4: =IF(G4="",6,MATCH(G4,'2015年'!B:B,0)) -> 6 | Y4: '2015年'!$A$1 | Z4: =OFFSET(INDIRECT(Y4),V4,1)&OFFSET(INDIRECT(Y4),V4,2)&OFFSET(INDIRECT(Y4),V4,3) ->  | AD4: =IF(M4="",-1,IFERROR(MATCH(M4,OFFSET(集落2015,1,0,ROWS(集落2015),1),0)-1,999))+AF4 -> 5 | AE4: =COUNTIF('2015年'!C:C,Info!J4)-1 -> 1046229 | AF4: =IF(J4="",X3,MATCH(J4,'2015年'!C:C,0)) -> 6 | AG4: '2015年'!$A$1 | AH4: =OFFSET(INDIRECT(AG4),AD4,1)&OFFSET(INDIRECT(AG4),AD4,2)&OFFSET(INDIRECT(AG4),AD4,3) ->  | AK4: =IF(M4="",-1,IFERROR(MATCH(M4,OFFSET(集落2015,1,0,ROWS(集落2015),1),0)-1,999))+AM4 -> 5 | AL4: =COUNTIF('2015年'!C:C,Info!J4)-1 -> 1046229 | AM4: =IF(J4="",X4,MATCH(J4,'2010年'!C:C,0)) -> 6 | AN4: '2015年'!$A$1 | AO4: =OFFSET(INDIRECT(AN4),AK4,1)&OFFSET(INDIRECT(AN4),AK4,2)&OFFSET(INDIRECT(AN4),AK4,3) -> 
C6: ="総農家数" -> 総農家数 | G6: =IFERROR("◎ "&W11&IF(LEFT(R8,1)="県","の総農家に占める割合は "&TEXT(G13,"0.0")&"% で、"&D4&"（"&TEXT(G14,"0.0")&"%） "&X13,"は "&TEXT(G12,"#,###戸 で ")&W13&"、"&"総農家の "&TEXT(G13,"0.0")&"% を占める"),"") -> ◎ 販売農家は 25,520戸 で 6,394戸（20.0%） 減少、総農家の 51.0% を占める
K7: 単位：戸 | L7: 《主副業別割合》
F8: 総農家 | L8: =" "&IF(AND(LEFT(R8,1)<>"県",G4=""),D4,IF(LEFT(R8,1)="県",D12,$AA$3)) -> 群馬県 | R8: 前回との比較
G9: 販売 農家 | K9: 自給的農家 | R9: ="外円："&IF(AND(LEFT(R8,1)="県",G4=""),D4,IF(LEFT(R8,1)="県",$AA$3,"2015年"))&CHAR(10)&"内円："&IF(LEFT(R8,1)="県",$D$4,"2010年") -> 外円：2015年 内円：2010年
H10: 主業 農家 | I10: 準主業 農家 | J10: 副業的 農家 | V10: 列番号 | W10: 概要 | Y10: 凡例 | AC10: 内円
D11: 2010年 | F11: =IFERROR(OFFSET(INDIRECT($Y$3),$V$3,$V11+E$1),"nc") -> 57,252 | G11: =IFERROR(OFFSET(INDIRECT($Y$3),$V$3,$V11+F$1),"nc") -> 31,914 | H11: =IFERROR(OFFSET(INDIRECT($Y$3),$V$3,$V11+G$1),"nc") -> 8,530 | I11: =IFERROR(OFFSET(INDIRECT($Y$3),$V$3,$V11+I$1),"nc") -> 4,959 | J11: =IFERROR(OFFSET(INDIRECT($Y$3),$V$3,$V11+K$1),"nc") -> 18,425 | K11: =IFERROR(OFFSET(INDIRECT($Y$3),$V$3,$V11+L$1),"nc") -> 25,338 | V11: =CELL("col",'2010年'!E6)-1 -> 4 | W11: 販売農家 | X11: 対県 | Y11: 主業農家 | Z11: 準主業農家 | AA11: 副業的農家 | AB11: 自給的農家 | AC11: =IF(LEFT(R8,1)="県",2,-1) -> -1
D12: 2015年 | F12: =IFERROR(OFFSET(INDIRECT($Y$4),$V$4,$V12+E$1),"nc") -> 50,084 | G12: =IFERROR(OFFSET(INDIRECT($Y$4),$V$4,$V12+F$1),"nc") -> 25,520 | H12: =IFERROR(OFFSET(INDIRECT($Y$4),$V$4,$V12+G$1),"nc") -> 6,876 | I12: =IFERROR(OFFSET(INDIRECT($Y$4),$V$4,$V12+I$1),"nc") -> 3,348 | J12: =IFERROR(OFFSET(INDIRECT($Y$4),$V$4,$V12+K$1),"nc") -> 15,296 | K12: =IFERROR(OFFSET(INDIRECT($Y$4),$V$4,$V12+L$1),"nc") -> 24,564 | V12: =CELL("col",'2015年'!E6)-1 -> 4 | W12: =G12/G11-1 -> -0.2003509432 | X12: =G13-G14 -> 0.0
E13: 構成比(%) | F13: =IF(OR(AND(ISTEXT($F12),$F12<>"X",$F12<>"-"),AND(ISTEXT(F12),F12<>"X",F12<>"-")),"nc",IF(OR($F12="X",F12="X"),"X",IF(ROUND(SUM($F12),0)=0,"nc",SUM(F12)/$F12%))) -> 100.0 | G13: =IF(OR(AND(ISTEXT($F12),$F12<>"X",$F12<>"-"),AND(ISTEXT(G12),G12<>"X",G12<>"-")),"nc",IF(OR($F12="X",G12="X"),"X",IF(ROUND(SUM($F12),0)=0,"nc",SUM(G12)/$F12%))) -> 51.0 | H13: 13.7 | I13: 6.7 | J13: 30.5 | K13: 49.0 | W13: =IF(W12=0,"変化なし",TEXT(ABS(G12-G11),"#,##0")&"戸（"&TEXT(ABS(W12),"0.0%")&"） "&IF(W12>0,"増加","減少")) -> 6,394戸（20.0%） 減少 | X13: =IF(X12=0,"と同率である","を"&TEXT(ABS(X12),"#,##0.0")&"ポイント "&IF(X12>0,"上回る","下回る")) -> と同率である
E14: 県計 構成比(%) | F14: 100.0 | G14: =IFERROR(OFFSET(INDIRECT($Y$4),5,$V$12+F1)/OFFSET(INDIRECT($Y$4),5,V12)*100,"nc") -> 51.0 | H14: =IFERROR(OFFSET(INDIRECT($Y$4),5,$V$12+G1)/OFFSET(INDIRECT($Y$4),5,V12)*100,"nc") -> 13.7 | I14: =IFERROR(OFFSET(INDIRECT($Y$4),5,$V$12+I1)/OFFSET(INDIRECT($Y$4),5,V12)*100,"nc") -> 6.7 | J14: =IFERROR(OFFSET(INDIRECT($Y$4),5,$V$12+K1)/OFFSET(INDIRECT($Y$4),5,V12)*100,"nc") -> 30.5 | K14: =IFERROR(OFFSET(INDIRECT($Y$4),5,$V$12+L1)/OFFSET(INDIRECT($Y$4),5,V12)*100,"nc") -> 49.0
D15: =IFERROR("《参考》"&G4&"の総農家数の全国順位："&TEXT(OFFSET(#REF!,MATCH(Info!G4,#REF!,0),0),"#,##0")&"位","") -> 
C18: 基幹的農業従事者数
D19: =IFERROR(IF(RIGHT(C18,4)="ください","","◎ "&C18&"は "&TEXT(F23,"#,##0人 で ")&W24&IFERROR("、平均年齢 "&TEXT(S23,"0.0歳は")&IF(LEFT(R28,1)="県","県平均","2010年")&X24,"")),"") -> ◎ 基幹的農業従事者数は 37,917人 で 7,387人（16.3%） 減少、平均年齢 66.8歳は2010年を 0.8歳上回る
S20: 単位：人
F21: 計 | G21: 15～39歳 | H21: 40～44 | I21: 45～49 | J21: 50～54 | K21: 55～59 | L21: 60～64 | M21: 65～69 | N21: 70～74 | O21: 75～79 | P21: 80～84 | Q21: 85歳以上 | R21: 65歳以上 | S21: 平均 年齢 （歳） | V21: 列番号 | W21: 概要 | Y21: 縦棒 左 | Z21: 縦棒 右 | AA21: 凡例
D22: 2010年 | F22: =IFERROR(OFFSET(INDIRECT($Y$3),$V$3,V23-1),"nc") -> 45,304 | G22: =IFERROR(IF(COUNTIF(OFFSET(INDIRECT($Y$3),$V$3,V23,1,5),"@")>0,"@",IF(COUNTIF(OFFSET(INDIRECT($Y$3),$V$3,V23,1,5),"X")>0,"X",SUM(OFFSET(INDIRECT($Y$3),$V$3,V23,1,5)))),"nc") -> 2,307 | H22: =IFERROR(OFFSET(INDIRECT($Y$3),$V$3,$V23+J$1),"nc") -> 1,101 | I22: =IFERROR(OFFSET(INDIRECT($Y$3),$V$3,$V23+K$1),"nc") -> 1,615 | J22: 2,709 | K22: 4,514 | L22: 5,728 | M22: 6,190 | N22: 7,573 | O22: 7,481 | P22: 4,678 | Q22: 1,408 | R22: =IF(COUNTIF(M22:Q22,"@"),"@",(IF(COUNTIF(M22:Q22,"X"),"X",SUM(M22:Q22)))) -> 27,330 | S22: =IFERROR(OFFSET(INDIRECT($Y$3),$V$3,V23+15),"nc") -> 66.0 | V22: =IF(C18="農業従事者数",1,IF(C18="農業就業人口",2,IF(C18="基幹的農業従事者数",3,ERROR.TYPE(5)))) -> 3 | W22: 人数 | X22: 平均年齢 | Y22: =IF(LEFT(R28,1)="県",3,-1) -> -1 | Z22: =IF(LEFT(R28,1)="県",1,0) -> 0 | AA22: =IF(LEFT(R28,1)="県",$D$4,$D22) -> 2010年
D23: 2015年 | F23: =IFERROR(OFFSET(INDIRECT($Y$4),$V$4,$V24-1),"nc") -> 37,917 | G23: =IFERROR(IF(COUNTIF(OFFSET(INDIRECT($Y$4),$V$4,$V24,1,5),"X")>0,"X",SUM(OFFSET(INDIRECT($Y$4),$V$4,$V24,1,5))),"nc") -> 2,099 | H23: =IFERROR(OFFSET(INDIRECT($Y$4),$V$4,$V24+5),"nc") -> 980 | I23: =IFERROR(OFFSET(INDIRECT($Y$4),$V$4,$V24+6),"nc") -> 1,130 | J23: =IFERROR(OFFSET(INDIRECT($Y$4),$V$4,$V24+7),"nc") -> 1,635 | K23: =IFERROR(OFFSET(INDIRECT($Y$4),$V$4,$V24+8),"nc") -> 2,851 | L23: =IFERROR(OFFSET(INDIRECT($Y$4),$V$4,$V24+9),"nc") -> 5,244 | M23: =IFERROR(OFFSET(INDIRECT($Y$4),$V$4,$V24+10),"nc") -> 6,177 | N23: =IFERROR(OFFSET(INDIRECT($Y$4),$V$4,$V24+11),"nc") -> 5,751 | O23: =IFERROR(OFFSET(INDIRECT($Y$4),$V$4,$V24+12),"nc") -> 5,757 | P23: =IFERROR(OFFSET(INDIRECT($Y$4),$V$4,$V24+13),"nc") -> 4,260 | Q23: =IFERROR(OFFSET(INDIRECT($Y$4),$V$4,$V24+14),"nc") -> 2,033 | R23: =IF(COUNTIF(M23:Q23,"X"),"X",SUM(M23:Q23)) -> 23,978 | S23: =IFERROR(OFFSET(INDIRECT($Y$4),$V$4,$V24+15),"nc") -> 66.8 | V23: =IFERROR(CHOOSE(V22,CELL("col",'2010年'!N6),CELL("col",'2010年'!AG6),CELL("col",'2010年'!AZ6))-1,555) -> 51 | W23: =F23/F22-1 -> -0.163054035 | X23: =S23-IF(LEFT(R28,1)="県",S26,S22) -> 0.8 | AA23: =IF(AND(LEFT(R28,1)="県",G4=""),D4,IF(LEFT(R28,1)="県",AA3,D23)) -> 2015年
E24: 構成比(%) | F24: =IF(OR(AND(ISTEXT($F23),$F23<>"X",$F23<>"-"),AND(ISTEXT(F23),F23<>"X",F23<>"-")),"nc",IF(OR($F23="X",F23="X"),"X",IF(ROUND(SUM($F23),0)=0,"nc",SUM(F23)/$F23%))) -> 100.0 | G24: 5.5 | H24: 2.6 | I24: 3.0 | J24: 4.3 | K24: 7.5 | L24: 13.8 | M24: 16.3 | N24: 15.2 | O24: 15.2 | P24: 11.2 | Q24: 5.4 | R24: 63.2 | V24: =IFERROR(CHOOSE(V22,CELL("col",'2015年'!N6),CELL("col",'2015年'!AG6),CELL("col",'2015年'!AZ6))-1,555) -> 51 | W24: =IF(W23=0,"変化なし",TEXT(ABS(F23-F22),"#,##0人")&"（"&TEXT(ABS(W23),"0.0%")&"） "&IF(W23>0,"増加","減少")) -> 7,387人（16.3%） 減少 | X24: =IF(X23=0,"と同じである","を "&TEXT(ABS(X23),"0.0歳")&IF(X23>0,"上回る","下回る")) -> を 0.8歳上回る
E25: 2015年 | F25: =IFERROR(OFFSET(INDIRECT($Y$4),5,V24-1),"nc") -> 37,917 | G25: =IFERROR(SUM(OFFSET(INDIRECT($Y$4),5,V24,1,5)),"nc") -> 2,099 | H25: =IFERROR(OFFSET(INDIRECT($Y$4),5,V24+5),"nc") -> 980 | I25: =IFERROR(OFFSET(INDIRECT($Y$4),5,V24+6),"nc") -> 1,130 | J25: =IFERROR(OFFSET(INDIRECT($Y$4),5,V24+7),"nc") -> 1,635 | K25: =IFERROR(OFFSET(INDIRECT($Y$4),5,V24+8),"nc") -> 2,851 | L25: =IFERROR(OFFSET(INDIRECT($Y$4),5,V24+9),"nc") -> 5,244 | M25: =IFERROR(OFFSET(INDIRECT($Y$4),5,V24+10),"nc") -> 6,177 | N25: =IFERROR(OFFSET(INDIRECT($Y$4),5,V24+11),"nc") -> 5,751 | O25: =IFERROR(OFFSET(INDIRECT($Y$4),5,V24+12),"nc") -> 5,757 | P25: =IFERROR(OFFSET(INDIRECT($Y$4),5,V24+13),"nc") -> 4,260 | Q25: =IFERROR(OFFSET(INDIRECT($Y$4),5,V24+14),"nc") -> 2,033 | R25: =SUM(M25:Q25) -> 23,978
E26: 県計 構成比(%) | F26: 100.0 | G26: =IFERROR(ROUND(G25/$F25*100,1),"nc") -> 5.5 | H26: =IFERROR(ROUND(H25/$F25*100,1),"nc") -> 2.6 | I26: 3.0 | J26: 4.3 | K26: 7.5 | L26: 13.8 | M26: 16.3 | N26: 15.2 | O26: 15.2 | P26: 11.2 | Q26: 5.4 | R26: 63.2 | S26: =IFERROR(OFFSET(INDIRECT($Y$4),5,V24+15),"nc") -> 66.8
D27: =IF(LEFT(R28,1)="県","（％）","（人）") -> （人） | G27: ="《年齢階層別"&C18&IF(LEFT(R28,1)="県","割合","")&"》 "&IF(AND(LEFT(R28,1)<>"県",G4=""),D4,IF(LEFT(R28,1)="県",D23,AA3)) -> 《年齢階層別基幹的農業従事者数》 群馬県
R28: 前回との比較
C41: 後継者がいる農家数（販売農家）
D42: =IFERROR(" ◎ 後継者がいる農家数の割合は "&TEXT(H51,"0.0")&"％（"&TEXT(H50,"#,##0")&"戸）で、"&IF(LEFT(Z48,1)="県","県平均の "&TEXT(H52,"0.0"),"2010年の "&TEXT(H48,"0.0"))&"％"&AB49,"") -> ◎ 後継者がいる農家数の割合は 39.1％（9,973戸）で、県平均の 39.1％と同率である
D43: =IFERROR(IF(LEFT(Z49,1)="県","県平均の "&TEXT(H52,"0.0")," 2010年の "&TEXT(H48,"0.0"))&"％"&AB47,"") -> 2010年の 53.0％ を 13.9ポイント 下回る
H44: 単位：戸 | J44: ="《後継者のいる農家数"&IF(LEFT(Z49,1)="県","割合","")&"》 "&IF(AND(LEFT(Z49,1)<>"県",G4=""),D4,IF(LEFT(Z49,1)="県","2015年",AA3)) -> 《後継者のいる農家数》 群馬県 | P44: ="《後継者のいる農家数"&IF(LEFT(Z48,1)="県","割合","")&"》 "&IF(AND(LEFT(Z48,1)<>"県",M4=""),J4,IF(LEFT(Z48,1)="県","2015年",AA3)) -> 《後継者のいる農家数割合》 2015年
H45: 計 | V45: 列番号 | W45: 2015年 | X45: 2010年 | Y45: 縦棒左 | Z45: 縦棒右 | AA45: 凡例 | AB45: 差
D46: 2010年 | E46: 農家数 | H46: =IFERROR(OFFSET(INDIRECT($Y$3),$V$3,X46-1),"nc") -> 31,914 | V46: 農家数 | W46: =CELL("col",'2015年'!BS6)-1 -> 70 | X46: =CELL("col",'2010年'!BS6)-1 -> 70 | Y46: 1 | Z46: 0 | AA46: =IF(LEFT(Z49,1)="県",$D$4,$D46) -> 2010年 | AB46: =H51-IF(LEFT(Z49,1)="県",H52,H48) -> -13.91326351599700
G47: 後継者がいる農家数 | H47: =IFERROR(OFFSET(INDIRECT(Y3),V3,X47-1),"nc") -> 16,912 | V47: 後継者有 | W47: =CELL("col",'2015年'!CI5)-1 -> 86 | X47: =CELL("col",'2010年'!CI5)-1 -> 86 | Y47: -4 | Z47: -1 | AA47: =IF(AND(LEFT(Z49,1)="県",G4=""),D4,IF(LEFT(Z49,1)="県",AA3,D49)) -> 2015年 | AB47: =IF(AB46=0,"と同率である"," を "&TEXT(ABS(AB46),"0.0")&"ポイント "&IF(AB46>0,"上回る","下回る")) -> を 13.9ポイント 下回る
G48: 割合(%) | H48: =IF(OR(AND(ISTEXT(H46),H46<>"X",H46<>"-"),AND(ISTEXT(H47),H47<>"X",H47<>"-")),"nc",IF(OR(H46="X",H47="X"),"X",IF(ROUND(SUM(H46),0)=0,"nc",SUM(H47)/H46%))) -> 53.0 | Z48: 県との比較 | AA48: =IF(LEFT(Z48,1)="県",$D$4,$D46) -> 群馬県 | AB48: =H51-IF(LEFT(Z48,1)="県",H52,H48) -> 0.00000000000000
D49: 2015年 | E49: 農家数 | H49: =IFERROR(OFFSET(INDIRECT($Y$4),$V$4,W46-1),"nc") -> 25,520 | Z49: 前回との比較 | AA49: =AA3 -> 群馬県 | AB49: =IF(AB48=0,"と同率である"," を "&TEXT(ABS(AB48),"0.0")&"ポイント "&IF(AB48>0,"上回る","下回る")) -> と同率である
G50: 後継者がいる農家数 | H50: =IFERROR(OFFSET(INDIRECT($Y$4),$V$4,$W47-1),"nc") -> 9,973
G51: 割合(%) | H51: =IF(OR(AND(ISTEXT(H49),H49<>"X",H49<>"-"),AND(ISTEXT(H50),H50<>"X",H50<>"-")),"nc",IF(OR(H49="X",H50="X"),"X",IF(ROUND(SUM(H49),0)=0,"nc",SUM(H50)/H49%))) -> 39.1
D52: 県計 | G52: 後継者がいる割合(%) | H52: =IFERROR(OFFSET(INDIRECT($Y$4),5,$W$47-1)/OFFSET(INDIRECT($Y$4),5,$W$46-1)*100,"nc") -> 39.1
D73: =IFERROR(" ◎ 一世代家族経営の割合は "&TEXT(G79/100,"0.0%")&"（"&TEXT(G78,"#,##0")&"戸）で、"&IF(LEFT(R75,1)="県","県平均の "&TEXT(G80/100,"0.0%"),"2010年の "&TEXT(G77/F77,"0.0%"))&W78,"") -> 
L74: 単位：戸
F75: 計 | G75: 一世代家族 経営 | J75: 二世代家族 経営 | L75: 三世代家族 経営 | R75: 前回との比較
H76: 一人家族経営 | I76: 夫婦家族経営 | K76: 親子家族経営 | V76: 列番号 | W76: 県、前回との差 | X76: グラフ用 | Y76: 一世代 | Z76: 二世代 | AA76: 三世代
D77: 2010年 | F77: =IFERROR(OFFSET(INDIRECT($Y$3),$V$3,$V77),"nc") -> nc | G77: =IFERROR(OFFSET(INDIRECT($Y$3),$V$3,$V$77+F1),"nc") -> nc | H77: nc | I77: nc | J77: nc | K77: nc | L77: nc | V77: =CELL("col",#REF!)-1 ->  | W77: =IF(LEFT(R75,1)="県",G79-G80,G79-G77/F77*100) ->  | X77: =IF(LEFT($R$75,1)="県",AA3,D77) -> 2010年 | Y77: =IF(LEFT($R$75,1)="県",G79,G77/F77*100) ->  | Z77: =IF(LEFT($R$75,1)="県",J79,J77/F77*100) ->  | AA77: =IF(LEFT($R$75,1)="県",L79,L77/F77*100) -> 
D78: 2015年 | F78: =IFERROR(OFFSET(INDIRECT($Y$4),$V$4,$V78),"nc") -> 0 | G78: =IFERROR(SUM(OFFSET(INDIRECT($Y$4),$V$4,$V$78+F1)),"nc") -> 0 | H78: 0 | I78: 0 | J78: 0 | K78: 0 | L78: 0 | V78: =CELL("col",'2015年'!CV6)-1 -> 99 | W78: =IF(W77=0," と同率である"," を "&TEXT(ABS(W77),"0.0")&"ポイント "&IF(W77>0,"上回る","下回る")) ->  | X78: =IF(LEFT($R$75,1)="県",D4,D78) -> 2015年 | Y78: =IF(LEFT($R$75,1)="県",G80,G79) -> nc | Z78: =IF(LEFT($R$75,1)="県",J80,J79) -> nc | AA78: =IF(LEFT($R$75,1)="県",L80,L79) -> nc
E79: 構成比(%) | F79: =IF(OR(AND(ISTEXT($F78),$F78<>"X",$F78<>"-"),AND(ISTEXT(F78),F78<>"X",F78<>"-")),"nc",IF(OR($F78="X",F78="X"),"X",IF(ROUND(SUM($F78),0)=0,"nc",SUM(F78)/$F78%))) -> nc | G79: nc | H79: nc | I79: nc | J79: nc | K79: nc | L79: nc
E80: 県計 構成比(%) | F80: 100.0 | G80: =IFERROR(OFFSET(INDIRECT($Y$4),5,$V$78+F1)/OFFSET(INDIRECT($Y$4),5,$V$78)%,"nc") -> nc | H80: nc | I80: nc | J80: nc | K80: nc | L80: nc
C84: 過去１年間の生活の主な状態別世帯員数（計）
D85: =IFERROR(" ◎ 「自営農業が主」の割合は "&TEXT(H91/100,"0.0%")&"（"&TEXT(H90,"#,###")&"戸）で、"&IF(LEFT(R87,1)="県"," 県平均"&"の "&TEXT(H93/100,"0.0%")&W90,"2010年の "&TEXT(H89/F89,"0.0%")&X90),"") -> ◎ 「自営農業が主」の割合は 45.1%（37,934戸）で、2010年の 39.7% を 5.4ポイント 上回る
M86: 単位：人 | N86: =" 《主な状態別世帯員数割合》 " -> 《主な状態別世帯員数割合》
F87: 計 | G87: 主に仕事 | K87: 主に 家事・育児 | L87: 学生 | M87: その他 | N87: =" "&IF(AND(LEFT(R87,1)<>"県",G4=""),D4,IF(LEFT(R87,1)="県",D90,AA3)) -> 群馬県 | R87: 前回との比較 | W87: 自営農業の増減 | Y87: 凡例用 | AE87: 内円
G88: 小計 | H88: 自営農業が主 | I88: 勤務が主 | J88: 農業以外の自営が主 | R88: ="外円："&IF(AND(LEFT(R87,1)="県",G4=""),D4,IF(LEFT(R87,1)="県",$AA$3,"2015年"))&CHAR(10)&"内円："&IF(LEFT(R87,1)="県",$D$4,"2010年") -> 外円：2015年 内円：2010年 | V88: 列番号 | W88: 県 | X88: 前回 | Y88: 自営農業 | Z88: 勤務 | AA88: 農業以外の自営 | AB88: 家事・育児 | AC88: 学生 | AD88: その他 | AE88: offset 行数
A89: 15 | D89: 2010年 | F89: =IFERROR(OFFSET(INDIRECT($Y$3),$V$3,$V95-1),"nc") -> 114,198 | G89: =IFERROR(OFFSET(INDIRECT($Y$3),$V$3,$V95),"nc") -> 82,688 | H89: =IFERROR(OFFSET(INDIRECT($Y$3),$V$3,$V95+1),"nc") -> 45,307 | I89: =IFERROR(OFFSET(INDIRECT($Y$3),$V$3,$V95+2),"nc") -> 34,292 | J89: =IFERROR(OFFSET(INDIRECT($Y$3),$V$3,$V95+3),"nc") -> 3,089 | K89: =IFERROR(OFFSET(INDIRECT($Y$3),$V$3,$V95+4),"nc") -> 10,821 | L89: =IFERROR(OFFSET(INDIRECT($Y$3),$V$3,$V95+5),"nc") -> 8,193 | M89: =IFERROR(OFFSET(INDIRECT($Y$3),$V$3,$V95+6),"nc") -> 12,496 | V89: =CELL("col",'2010年'!DC6)-1 -> 106 | W89: =H91-H93 -> 0.00 | X89: =H91-H89/F89*100 -> 5.380322031 | AE89: =IF(LEFT(R87,1)="県",2,-1) -> -1
D90: 2015年 | F90: =IFERROR(OFFSET(INDIRECT($Y$4),$V$4,$V96-1),"nc") -> 84,196 | G90: =IFERROR((OFFSET(INDIRECT($Y$4),$V$4,$V96)),"nc") -> 64,137 | H90: =IFERROR((OFFSET(INDIRECT($Y$4),$V$4,$V96+1)),"nc") -> 37,934 | I90: =IFERROR((OFFSET(INDIRECT($Y$4),$V$4,$V96+2)),"nc") -> 23,374 | J90: =IFERROR((OFFSET(INDIRECT($Y$4),$V$4,$V96+3)),"nc") -> 2,829 | K90: =IFERROR((OFFSET(INDIRECT($Y$4),$V$4,$V96+4)),"nc") -> 6,488 | L90: =IFERROR((OFFSET(INDIRECT($Y$4),$V$4,$V96+5)),"nc") -> 4,650 | M90: =IFERROR((OFFSET(INDIRECT($Y$4),$V$4,$V96+6)),"nc") -> 8,921 | V90: =CELL("col",'2015年'!DC6)-1 -> 106 | W90: =" "&IF(W89=0,"と同率である"," を "&TEXT(ABS(W89),"0.0")&"ポイント "&IF(W89>0,"上回る","下回る")) -> と同率である | X90: =IF(X89=0,"と同率である"," を "&TEXT(ABS(X89),"0.0")&"ポイント "&IF(X89>0,"上回る","下回る")) -> を 5.4ポイント 上回る
E91: 構成比(%) | F91: =IF(OR(AND(ISTEXT($F90),$F90<>"X",$F90<>"-"),AND(ISTEXT(F90),F90<>"X",F90<>"-")),"nc",IF(OR($F90="X",F90="X"),"X",IF(ROUND(SUM($F90),0)=0,"nc",SUM(F90)/$F90%))) -> 100.0 | G91: 76.2 | H91: 45.1 | I91: 27.8 | J91: 3.4 | K91: 7.7 | L91: 5.5 | M91: 10.6
E92: 県計 実数 | F92: =IFERROR(OFFSET(INDIRECT($Y$4),5,V96-1),"nc") -> 84,196 | G92: =IFERROR(OFFSET(INDIRECT($Y$4),5,$V$96),"nc") -> 64,137 | H92: =IFERROR(OFFSET(INDIRECT($Y$4),5,V96+1),"nc") -> 37,934 | I92: =IFERROR(OFFSET(INDIRECT($Y$4),5,V96+2),"nc") -> 23,374 | J92: =IFERROR(OFFSET(INDIRECT($Y$4),5,V96+3),"nc") -> 2,829 | K92: =IFERROR(OFFSET(INDIRECT($Y$4),5,V96+4),"nc") -> 6,488 | L92: =IFERROR(OFFSET(INDIRECT($Y$4),5,V96+5),"nc") -> 4,650 | M92: =IFERROR(OFFSET(INDIRECT($Y$4),5,V96+6),"nc") -> 8,921
E93: 県計 構成比(%) | F93: 100.0 | G93: =IFERROR(OFFSET(INDIRECT($Y$4),5,$V$96)/OFFSET(INDIRECT($Y$4),5,$V$96-1)*100,"nc") -> 76.2 | H93: =IFERROR(OFFSET(INDIRECT($Y$4),5,$V$96+F1)/OFFSET(INDIRECT($Y$4),5,$V$96-1)*100,"nc") -> 45.1 | I93: 27.8 | J93: 3.4 | K93: 7.7 | L93: 5.5 | M93: 10.6 | V93: 列番号 | W93: 概要 | Y93: 縦棒 左 | Z93: 縦棒 右 | AA93: 凡例
V94: =IF(C84="過去１年間の生活の主な状態別世帯員数（計）",1,IF(C84="過去１年間の生活の主な状態別世帯員数（男）",2,IF(C84="過去１年間の生活の主な状態別世帯員数（女）",3,ERROR.TYPE(5)))) -> 1 | W94: 人数 | X94: 平均年齢 | Y94: =IF(LEFT(R100,1)="県",3,-1) -> -1 | Z94: =IF(LEFT(R100,1)="県",1,0) -> 0 | AA94: =IF(LEFT(R100,1)="県",$D$4,$D94) -> 0
V95: =IFERROR(CHOOSE(V94,CELL("col",'2010年'!DD6),CELL("col",'2010年'!EG6),CELL("col",'2010年'!EO6))-1,555) -> 107 | W95: =F95/F94-1 ->  | X95: =S95-IF(LEFT(R100,1)="県",S98,S94) -> 0.0 | AA95: =IF(LEFT(R100,1)="県",AA75,D95) -> 0
V96: =IFERROR(CHOOSE(V94,CELL("col",'2015年'!DD6),CELL("col",'2015年'!EG6),CELL("col",'2015年'!EO6))-1,555) -> 107 | W96: =IF(W95=0,"変化なし",TEXT(ABS(F95-F94),"#,##0人")&"（"&TEXT(ABS(W95),"0.0%")&"） "&IF(W95>0,"増加","減少")) ->  | X96: =IF(X95=0,"と同じである","を "&TEXT(ABS(X95),"0.0歳")&IF(X95>0,"上回る","下回る")) -> と同じである
C98: 農産物販売金額１位の部門別農家数（販売のあった農家）
D99: =IFERROR(" ◎ "&AA105&"（"&TEXT(Z105,"0.0")&"%） が最も多く、次いで"&SUBSTITUTE(AA106&AA107,"」「","」、「")&"の順で、この"&DBCS(COUNTIF(AB103:AN103,"<4"))&"部門で全体の "&TEXT(Z104,"0.0")&"% を占める","") -> ◎ 「稲作」（35.3%） が最も多く、次いで「露地野菜」、「施設野菜」の順で、この３部門で全体の 76.2% を占める
S100: 単位：戸
F101: 計 | G101: 稲作 | H101: 麦類作 | I101: 雑穀・ いも類・ 豆類 | J101: 工芸農作物 | K101: 野菜類 | M101: 果樹類 | N101: 花き・ 花木 | O101: その他の作物 | P101: 酪農 | Q101: 肉用牛 | R101: 養豚 | S101: 養鶏
K102: 露地 | L102: 施設 | O102: その他の作物 | P102: 畜産 | V102: 列番号 | W102: offset行数 | Y102: 凡例 | Z102: 上位 | AB102: 稲作 | AC102: 麦類作 | AD102: 雑穀・ いも類・ 豆類 | AE102: 工芸 農作物 | AF102: 露地 野菜 | AG102: 施設 野菜 | AH102: 果樹類 | AI102: 花き・ 花木 | AJ102: その他 の作物 | AK102: 酪農 | AL102: 肉用牛 | AM102: 養豚 | AN102: 養鶏
D103: 2010年 | F103: =IFERROR(OFFSET(INDIRECT($Y$3),$V$3,$V103),"nc") -> 27,723 | G103: =IFERROR(OFFSET(INDIRECT($Y$3),$V$3,$V103+F$1),"nc") -> 10,267 | H103: 552 | I103: 361 | J103: 1,419 | K103: 6,847 | L103: 3,737 | M103: 1,820 | N103: 754 | O103: 383 | P103: =IFERROR(OFFSET(INDIRECT($Y$3),$V$3,$V103+O$1),"nc") -> 682 | Q103: =IFERROR(OFFSET(INDIRECT($Y$3),$V$3,$V103+P$1),"nc") -> 381 | R103: =IFERROR(OFFSET(INDIRECT($Y$3),$V$3,$V103+Q$1),"nc") -> 250 | S103: =IFERROR(OFFSET(INDIRECT($Y$3),$V$3,$V103+R$1),"nc") -> 79 | V103: =CELL("col",'2010年'!DK6)-1 -> 114 | W103: 縦棒左 | X103: 縦棒右 | Y103: =IF(LEFT(R108,1)="県",D4,D103) -> 2010年 | Z103: ３品目計 | AA103: 順位 | AB103: =IFERROR(RANK(G104,$G$104:$S$104,0),99) -> 1 | AC103: 8 | AD103: 11 | AE103: 5 | AF103: 2 | AG103: 3 | AH103: 4 | AI103: 6 | AJ103: 10 | AK103: 7 | AL103: 9 | AM103: 12 | AN103: 13
D104: 2015年 | F104: =IFERROR(OFFSET(INDIRECT($Y$4),$V$4,V104),"nc") -> 22,260 | G104: =IFERROR(OFFSET(INDIRECT($Y$4),$V$4,$V104+F1),"nc") -> 7,852 | H104: 369 | I104: 263 | J104: 1,030 | K104: 6,256 | L104: 2,854 | M104: 1,564 | N104: 604 | O104: 289 | P104: =IFERROR(OFFSET(INDIRECT($Y$4),$V$4,$V104+O1),"nc") -> 545 | Q104: =IFERROR(OFFSET(INDIRECT($Y$4),$V$4,$V104+P1),"nc") -> 320 | R104: =IFERROR(OFFSET(INDIRECT($Y$4),$V$4,$V104+Q1),"nc") -> 169 | S104: =IFERROR(OFFSET(INDIRECT($Y$4),$V$4,$V104+R1),"nc") -> 54 | V104: =CELL("col",'2015年'!DK6)-1 -> 114 | W104: =IF(LEFT(R108,1)="県",2,-1) -> -1 | X104: =IF(LEFT(R108,1)="県",1,0) -> 0 | Y104: =IF(AND(LEFT(R108,1)="県",G4=""),D4,IF(LEFT(R108,1)="県",AA3,D104)) -> 2015年 | Z104: =SUM(AB104:AN104) -> 76.19946092 | AA104: ％ | AB104: =IF(AB103<4,G104/$F$104%,0) -> 35.27403414 | AC104: =IF(AC103<4,H104/$F$104%,0) -> 0 | AD104: =IF(AD103<4,I104/$F$104%,0) -> 0 | AE104: 0 | AF104: 28.10422282 | AG104: 12.82120395 | AH104: 0 | AI104: 0 | AJ104: 0 | AK104: 0 | AL104: 0 | AM104: 0 | AN104: 0
E105: 構成比(%) | F105: =IF(OR(AND(ISTEXT($F104),$F104<>"X",$F104<>"-"),AND(ISTEXT(F104),F104<>"X",F104<>"-")),"nc",IF(OR($F104="X",F104="X"),"X",IF(ROUND(SUM($F104),0)=0,"nc",SUM(F104)/$F104%))) -> 100.0 | G105: 35.3 | H105: 1.7 | I105: 1.2 | J105: 4.6 | K105: 28.1 | L105: 12.8 | M105: 7.0 | N105: 2.7 | O105: 1.3 | P105: 2.4 | Q105: 1.4 | R105: 0.8 | S105: 0.2 | Y105: １位 | Z105: =SUMIF($AB$103:$AN$103,1,AB104:AN104) -> 35.27403414 | AA105: =SUBSTITUTE(AB105&AC105&AD105&AE105&AF105&AG105&AH105&AI105&AJ105&AK105&AL105&AM105&AN105,"」「","」と「") -> 「稲作」 | AB105: =IF(AB103=1,"「"&CLEAN(AB102)&"」","") -> 「稲作」
E106: 県計 構成比(%) | F106: 100.0 | G106: =IFERROR(IF(OFFSET(INDIRECT($Y$4),5,$V$104+F1)="-","-",ROUND(OFFSET(INDIRECT($Y$4),5,$V$104+F1)/OFFSET(INDIRECT($Y$4),5,$V$104)*100,1)),"nc") -> 35.3 | H106: =IFERROR(IF(OFFSET(INDIRECT($Y$4),5,$V$104+G1)="-","-",ROUND(OFFSET(INDIRECT($Y$4),5,$V$104+G1)/OFFSET(INDIRECT($Y$4),5,$V$104)*100,1)),"nc") -> 1.7 | I106: =IFERROR(IF(OFFSET(INDIRECT($Y$4),5,$V$104+H1)="-","-",ROUND(OFFSET(INDIRECT($Y$4),5,$V$104+H1)/OFFSET(INDIRECT($Y$4),5,$V$104)*100,1)),"nc") -> 1.2 | J106: =IFERROR(IF(OFFSET(INDIRECT($Y$4),5,$V$104+I1)="-","-",ROUND(OFFSET(INDIRECT($Y$4),5,$V$104+I1)/OFFSET(INDIRECT($Y$4),5,$V$104)*100,1)),"nc") -> 4.6 | K106: =IFERROR(IF(OFFSET(INDIRECT($Y$4),5,$V$104+J1)="-","-",ROUND(OFFSET(INDIRECT($Y$4),5,$V$104+J1)/OFFSET(INDIRECT($Y$4),5,$V$104)*100,1)),"nc") -> 28.1 | L106: 12.8 | M106: 7.0 | N106: 2.7 | O106: 1.3 | P106: =IFERROR(IF(OFFSET(INDIRECT($Y$4),5,$V$104+O1)="-","-",ROUND(OFFSET(INDIRECT($Y$4),5,$V$104+O1)/OFFSET(INDIRECT($Y$4),5,$V$104)*100,1)),"nc") -> 2.4 | Q106: =IFERROR(IF(OFFSET(INDIRECT($Y$4),5,$V$104+P1)="-","-",ROUND(OFFSET(INDIRECT($Y$4),5,$V$104+P1)/OFFSET(INDIRECT($Y$4),5,$V$104)*100,1)),"nc") -> 1.4 | R106: =IFERROR(IF(OFFSET(INDIRECT($Y$4),5,$V$104+Q1)="-","-",ROUND(OFFSET(INDIRECT($Y$4),5,$V$104+Q1)/OFFSET(INDIRECT($Y$4),5,$V$104)*100,1)),"nc") -> 0.8 | S106: =IFERROR(IF(OFFSET(INDIRECT($Y$4),5,$V$104+R1)="-","-",ROUND(OFFSET(INDIRECT($Y$4),5,$V$104+R1)/OFFSET(INDIRECT($Y$4),5,$V$104)*100,1)),"nc") -> 0.2 | Y106: ２位 | Z106: =SUMIF($AB$103:$AN$103,2,$AB$104:$AN$104) -> 28.10422282 | AA106: =SUBSTITUTE(AB106&AC106&AD106&AE106&AF106&AG106&AH106&AI106&AJ106&AK106&AL106&AM106&AN106,"」「","」と「") -> 「露地野菜」 | AB106: =IF(AB103=2,"「"&CLEAN(AB102)&"」","") ->  | AF106: 「露地野菜」
D107: =IF(LEFT(R108,1)="県","（％）","（戸）") -> （戸） | H107: ="《農産物販売金額１位の部門別農家数"&IF(LEFT(R108,1)="県","割合","")&"》 "&IF(AND(LEFT(R108,1)<>"県",G4=""),D4,IF(LEFT(R108,1)="県","2015年",AA3)) -> 《農産物販売金額１位の部門別農家数》 群馬県 | Y107: ３位 | Z107: =SUMIF($AB$103:$AN$103,3,$AB$104:$AN$104) -> 12.82120395 | AA107: =SUBSTITUTE(AB107&AC107&AD107&AE107&AF107&AG107&AH107&AI107&AJ107&AK107&AL107&AM107&AN107,"」「","」と「") -> 「施設野菜」 | AB107: =IF(AB103=3,"「"&CLEAN(AB102)&"」","") ->  | AG107: 「施設野菜」
R108: 前回との比較
C121: 経営耕地面積（販売農家） | I121: =IFERROR(" ◎ 経営耕地面積は "&IF(G126=G125,"変化なし",TEXT(ABS(G126-G125),"#,##0")&"ha（"&TEXT(ABS(G126/G125-1),"0.0%"&"） "))&IF(F126=F125,"",IF(G126<G125,"減少","増加"))&"、１戸当たりでは "&IF(X125=0,"変動無し",TEXT(ABS(X125),"0.00")&"ha "&IF(X125>0,"増加","減少")),"") -> ◎ 経営耕地面積は 4,870ha（10.9%) 減少、１戸当たりでは 0.16ha 増加
D122: =AA3 -> 群馬県 | K122: 単位：ha
F123: 経 営 耕 地 のある農家数 | G123: 経 営 耕 地 面 積 | K123: １戸当たり経営耕地面積
H124: 田 | I124: 畑 （樹園地を除く） | J124: 樹園地 | V124: 列番号 | W124: 凡例用 | X124: １戸当たり増減
D125: 2010年 | F125: =IFERROR(OFFSET(INDIRECT($Y$3),$V$3,V125),"nc") -> 31,829 | G125: =IFERROR(ROUND(OFFSET(INDIRECT($Y$3),$V$3,$V$125+F1)/100,0),OFFSET(INDIRECT($Y$3),$V$3,$V$125+F1)) -> 44,537 | H125: =IFERROR(ROUND(OFFSET(INDIRECT($Y$3),$V$3,$V$125+G1)/100,0),OFFSET(INDIRECT($Y$3),$V$3,$V$125+G1)) -> 18,713 | I125: =IFERROR(ROUND(OFFSET(INDIRECT($Y$3),$V$3,$V$125+H1)/100,0),OFFSET(INDIRECT($Y$3),$V$3,$V$125+H1)) -> 23,791 | J125: =IFERROR(ROUND(OFFSET(INDIRECT($Y$3),$V$3,$V$125+I1)/100,0),OFFSET(INDIRECT($Y$3),$V$3,$V$125+I1)) -> 2,033 | K125: =IF(OR(AND(ISTEXT($F125),$F125<>"X",$F125<>"-"),AND(ISTEXT(G125),G125<>"X",G125<>"-")),"nc",IF(OR($F125="X",G125="X"),"X",IF(ROUND(SUM($F125),0)=0,"nc",ROUND(SUM(G125)/$F125,2)))) -> 1.40 | V125: =CELL("col",'2010年'!EA6)-1 -> 130 | W125: 田 | X125: =K126-K125 -> 0.16
D126: 2015年 | F126: =IFERROR(OFFSET(INDIRECT($Y$4),$V$4,$V126),"nc") -> 25,360 | G126: =IFERROR(ROUND(OFFSET(INDIRECT($Y$4),$V$4,$V126+F1)/100,0),OFFSET(INDIRECT($Y$4),$V$4,$V126+F1)) -> 39,667 | H126: =IFERROR(ROUND(OFFSET(INDIRECT($Y$4),$V$4,$V126+G1)/100,0),OFFSET(INDIRECT($Y$4),$V$4,$V126+G1)) -> 16,422 | I126: =IFERROR(ROUND(OFFSET(INDIRECT($Y$4),$V$4,$V126+H1)/100,0),OFFSET(INDIRECT($Y$4),$V$4,$V126+H1)) -> 21,635 | J126: =IFERROR(ROUND(OFFSET(INDIRECT($Y$4),$V$4,$V126+I1)/100,0),OFFSET(INDIRECT($Y$4),$V$4,$V126+I1)) -> 1,611 | K126: =IF(OR(AND(ISTEXT($F126),$F126<>"X",$F126<>"-"),AND(ISTEXT(G126),G126<>"X",G126<>"-")),"nc",IF(OR($F126="X",G126="X"),"X",IF(ROUND(SUM($F126),0)=0,"nc",ROUND(SUM(G126)/$F126,2)))) -> 1.56 | V126: =CELL("col",'2015年'!EA6)-1 -> 130 | W126: 畑
E127: 構成比(%) | G127: =IF(OR(AND(ISTEXT($G126),$G126<>"X",$G126<>"-"),AND(ISTEXT(G126),G126<>"X",G126<>"-")),"nc",IF(OR($G126="X",G126="X"),"X",IF(ROUND(SUM($G126),0)=0,"nc",SUM(G126)/$G126%))) -> 100.0 | H127: =IF(OR(AND(ISTEXT($G126),$G126<>"X",$G126<>"-"),AND(ISTEXT(H126),H126<>"X",H126<>"-")),"nc",IF(OR($G126="X",H126="X"),"X",IF(ROUND(SUM($G126),0)=0,"nc",SUM(H126)/$G126%))) -> 41.4 | I127: 54.5 | J127: 4.1 | W127: 樹園地
E128: 県計 構成比(%) | G128: 100.0 | H128: =IFERROR(ROUND(OFFSET(INDIRECT($Y$4),5,$V$126+G1)/OFFSET(INDIRECT($Y$4),5,$V$126+1)*100,1),"nc") -> 41.4 | I128: =IFERROR(ROUND(OFFSET(INDIRECT($Y$4),5,$V$126+H1)/OFFSET(INDIRECT($Y$4),5,$V$126+1)*100,1),"nc") -> 54.5 | J128: =IFERROR(ROUND(OFFSET(INDIRECT($Y$4),5,$V$126+I1)/OFFSET(INDIRECT($Y$4),5,$V$126+1)*100,1),"nc") -> 4.1 | K128: =IFERROR(OFFSET(INDIRECT($Y$4),5,V126+1)/OFFSET(INDIRECT($Y$4),5,V126)/100,"nc") -> 1.56
D129: =IFERROR("《参考》"&G4&"の経営耕地面積の全国順位："&TEXT(OFFSET(#REF!,MATCH(Info!G4,#REF!,0),0),"#,##0")&"位","") -> 

Sheet 2010年 (hidden)
A1: 都道府県名（支庁名） | B1: 市区町村名 | C1: 旧市区町村名 | D1: 農業集落名 | E1: 総農家数 | M1: （７）年齢別の農業従事者数（自営農業に従事した世帯員数）男女計 | AC1: 農業従事者の平均年齢 | AF1: 年齢別の農業就業人口（自営農業に主として従事した世帯員数）男女計 | AV1: 農業就業人口 | AY1: （11）年齢別の基幹的農業従事者数（自営農業に主として従事した世帯員のうち仕事が主の世帯員数）男女計 | BO1: 基幹的農業従事者 平均年齢 | BR1: （２）年齢別の経営者数男女計 | CH1: ウ後継者がいる経営者 | CV1: 家族経営構成別農家数 | DC1: （６）過去１年間の生活の主な状態別世帯員数 | DH1: 男女計 | DK1: （４）農産物販売金額１位の部門別農家数 | EA1: （１）経営耕地の状況 | EF1: （６）過去１年間の生活の主な状態別世帯員数(男) | EN1: （６）過去１年間の生活の主な状態別世帯員数(女)
F2: 販売農家数 | L2: 自給的農家 | M2: 計 | N2: 15～19歳 | O2: 20～24 | P2: 25～29 | Q2: 30～34 | R2: 35～39 | S2: 40～44 | T2: 45～49 | U2: 50～54 | V2: 55～59 | W2: 60～64 | X2: 65～69 | Y2: 70～74 | Z2: 75～79 | AA2: 80～84 | AB2: 85歳以上 | AC2: 男女計 | AD2: 男 | AE2: 女 | AF2: 計 | AG2: 15～19歳 | AH2: 20～24 | AI2: 25～29 | AJ2: 30～34 | AK2: 35～39 | AL2: 40～44 | AM2: 45～49 | AN2: 50～54 | AO2: 55～59 | AP2: 60～64 | AQ2: 65～69 | AR2: 70～74 | AS2: 75～79 | AT2: 80～84 | AU2: 85歳以上 | AY2: 計 | AZ2: 15～19歳 | BA2: 20～24 | BB2: 25～29 | BC2: 30～34 | BD2: 35～39 | BE2: 40～44 | BF2: 45～49 | BG2: 50～54 | BH2: 55～59 | BI2: 60～64 | BJ2: 65～69 | BK2: 70～74 | BL2: 75～79 | BM2: 80～84 | BN2: 85歳以上 | BR2: 計 | BS2: 15～19歳 | BT2: 20～24 | BU2: 25～29 | BV2: 30～34 | BW2: 35～39 | BX2: 40～44 | BY2: 45～49 | BZ2: 50～54 | CA2: 55～59 | CB2: 60～64 | CC2: 65～69 | CD2: 70～74 | CE2: 75～79 | CF2: 80～84 | CG2: 85歳以上 | CH2: 計 | CI2: 30歳未満 | CJ2: 30～34 | CK2: 35～39 | CL2: 40～44 | CM2: 45～49 | CN2: 50～54 | CO2: 55～59 | CP2: 60～64 | CQ2: 65～69 | CR2: 70～74 | CS2: 75～79 | CT2: 80～84 | CU2: 85歳以上 | DD2: 主に仕事 | DN2: 雑穀・ | EA2: 経営耕地 のある 農家数 | EB2: 経営耕地 総面積 | EC2: 田 | ED2: 畑（樹園地を除く） | EE2: 樹園地 | EF2: 計 | EG2: 主に仕事 | EK2: 主に家事 ・育児 | EL2: 学生 | EM2: その他 | EN2: 計 | EO2: 主に仕事 | ES2: 主に家事 ・育児 | ET2: 学生 | EU2: その他
G3: 主業農家 | I3: 準主業農家 | K3: 副業的農家 | AV3: 男女計の 平均年齢 | AW3: 男の 平均年齢 | AX3: 女の 平均年齢 | BO3: 男女計 | BP3: 男 | BQ3: 女 | DC3: 計 | DD3: 小計 | DE3: 自営農業 が主 | DF3: 勤務が主 | DG3: 農業以外の | DH3: 主に家事 ・育児 | DI3: 学生 | DJ3: その他 | DK3: 計 | DL3: 稲作 | DM3: 麦類作 | DN3: いも類 | DO3: 工芸農作物 | DP3: 露地野菜 | DQ3: 施設野菜 | DR3: 果樹類 | DS3: 花き・花木 | DT3: その他の 作物 | DU3: 酪農 | DV3: 肉用牛 | DW3: 養豚 | DX3: 養鶏 | DY3: 養蚕 | DZ3: その他の 畜産 | EG3: 小計 | EH3: 自営農業 が主 | EI3: 勤務が主 | EJ3: 農業以外の 自営業が主 | EO3: 小計 | EP3: 自営農業 が主 | EQ3: 勤務が主 | ER3: 農業以外の 自営業が主
H4: 65歳未満の農業専従者がいる | J4: 65歳未満の農業専従者がいる | DG4: 自営業が主 | DN4: ・豆類
A6: 群馬県 | E6: 57,252 | F6: 31,914 | G6: 8,530 | H6: 7,835 | I6: 4,959 | J6: 1,945 | K6: 18,425 | L6: 25,338 | M6: 84,276 | N6: 1,117 | O6: 1,841 | P6: 2,281 | Q6: 2,528 | R6: 2,963 | S6: 3,784 | T6: 5,224 | U6: 7,567 | V6: 9,863 | W6: 9,669 | X6: 8,492 | Y6: 9,597 | Z6: 9,665 | AA6: 6,903 | AB6: 2,782 | AC6: 60.3 | AD6: 59.3 | AE6: 61.5 | AF6: 57,084 | AG6: 694 | AH6: 576 | AI6: 650 | AJ6: 886 | AK6: 1,122 | AL6: 1,396 | AM6: 1,887 | AN6: 3,064 | AO6: 5,108 | AP6: 6,656 | AQ6: 7,303 | AR6: 9,092 | AS6: 9,328 | AT6: 6,662 | AU6: 2,660 | AV6: 65.9 | AW6: 65.8 | AX6: 66.1 | AY6: 45,304 | AZ6: 19 | BA6: 215 | BB6: 515 | BC6: 689 | BD6: 869 | BE6: 1,101 | BF6: 1,615 | BG6: 2,709 | BH6: 4,514 | BI6: 5,728 | BJ6: 6,190 | BK6: 7,573 | BL6: 7,481 | BM6: 4,678 | BN6: 1,408 | BO6: 66.0 | BP6: 66.0 | BQ6: 66.1 | BR6: 31,914 | BS6: - | BT6: 7 | BU6: 28 | BV6: 74 | BW6: 254 | BX6: 697 | BY6: 1,397 | BZ6: 2,799 | CA6: 4,427 | CB6: 5,067 | CC6: 4,287 | CD6: 4,781 | CE6: 4,466 | CF6: 2,773 | CG6: 857 | CH6: 16,912 | CI6: 1 | CJ6: 3 | CK6: 14 | CL6: 127 | CM6: 437 | CN6: 1,173 | CO6: 2,158 | CP6: 2,619 | CQ6: 2,302 | CR6: 2,639 | CS6: 2,780 | CT6: 1,977 | CU6: 682 | DC6: 114,198 | DD6: 82,688 | DE6: 45,307 | DF6: 34,292 | DG6: 3,089 | DH6: 10,821 | DI6: 8,193 | DJ6: 12,496 | DK6: 27,723 | DL6: 10,267 | DM6: 552 | DN6: 361 | DO6: 1,419 | DP6: 6,847 | DQ6: 3,737 | DR6: 1,820 | DS6: 754 | DT6: 383 | DU6: 682 | DV6: 381 | DW6: 250 | DX6: 79 | DY6: 170 | DZ6: 21 | EA6: 31,829 | EB6: 4,453,698 | EC6: 1,871,297 | ED6: 2,379,079 | EE6: 203,322 | EF6: 57,432 | EG6: 47,978 | EH6: 25,964 | EI6: 19,920 | EJ6: 2,094 | EK6: 116 | EL6: 4,280 | EM6: 5,058 | EN6: 56,766 | EO6: 34,710 | EP6: 19,343 | EQ6: 14,372 | ER6: 995 | ES6: 10,705 | ET6: 3,913 | EU6: 7,438
A7: 群馬県 | B7: 前橋市 | E7: 7,652 | F7: 4,803 | G7: 1,112 | H7: 1,007 | I7: 908 | J7: 303 | K7: 2,783 | L7: 2,849 | M7: 12,803 | N7: 140 | O7: 265 | P7: 337 | Q7: 364 | R7: 419 | S7: 545 | T7: 800 | U7: 1,225 | V7: 1,604 | W7: 1,409 | X7: 1,219 | Y7: 1,451 | Z7: 1,415 | AA7: 1,158 | AB7: 452 | AC7: 60.7 | AD7: 59.5 | AE7: 62.1 | AF7: 8,354 | AG7: 78 | AH7: 81 | AI7: 95 | AJ7: 127 | AK7: 168 | AL7: 176 | AM7: 235 | AN7: 402 | AO7: 733 | AP7: 915 | AQ7: 1,021 | AR7: 1,371 | AS7: 1,377 | AT7: 1,128 | AU7: 447 | AV7: 66.9 | AW7: 66.6 | AX7: 67.1 | AY7: 6,817 | AZ7: 2 | BA7: 19 | BB7: 70 | BC7: 93 | BD7: 123 | BE7: 132 | BF7: 189 | BG7: 335 | BH7: 641 | BI7: 807 | BJ7: 905 | BK7: 1,230 | BL7: 1,176 | BM7: 834 | BN7: 261 | BO7: 67.4 | BP7: 67.3 | BQ7: 67.5 | BR7: 4,803 | BS7: - | BT7: 4 | BU7: 7 | BV7: 18 | BW7: 37 | BX7: 102 | BY7: 225 | BZ7: 423 | CA7: 741 | CB7: 736 | CC7: 616 | CD7: 704 | CE7: 632 | CF7: 426 | CG7: 132 | CH7: 3,061 | CI7: - | CJ7: 1 | CK7: 4 | CL7: 27 | CM7: 99 | CN7: 228 | CO7: 470 | CP7: 447 | CQ7: 406 | CR7: 449 | CS7: 478 | CT7: 339 | CU7: 113 | DC7: 17,798 | DD7: 13,253 | DE7: 6,817 | DF7: 5,903 | DG7: 533 | DH7: 1,409 | DI7: 1,324 | DJ7: 1,812 | DK7: 4,232 | DL7: 1,692 | DM7: 242 | DN7: 27 | DO7: 4 | DP7: 1,136 | DQ7: 386 | DR7: 140 | DS7: 161 | DT7: 31 | DU7: 190 | DV7: 81 | DW7: 86 | DX7: 15 | DY7: 40 | DZ7: 1 | EA7: 4,782 | EB7: 586,983 | EC7: 286,828 | ED7: 274,909 | EE7: 25,246 | EF7: 8,913 | EG7: 7,535 | EH7: 3,775 | EI7: 3,390 | EJ7: 370 | EK7: 9 | EL7: 692 | EM7: 677 | EN7: 8,885 | EO7: 5,718 | EP7: 3,042 | EQ7: 2,513 | ER7: 163 | ES7: 1,400 | ET7: 632 | EU7: 1,135
A8: 群馬県 | B8: 前橋市 | C8: 前橋市 | E8: 68 | F8: 39 | G8: 7 | H8: 6 | I8: 8 | J8: 3 | K8: 24 | L8: 29 | M8: 103 | N8: 1 | O8: 8 | P8: 1 | Q8: 1 | R8: 1 | S8: 2 | T8: 13 | U8: 7 | V8: 4 | W8: 10 | X8: 4 | Y8: 18 | Z8: 22 | AA8: 8 | AB8: 3 | AC8: 61.8 | AD8: 61.0 | AE8: 63.0 | AF8: 67 | AG8: 1 | AH8: 1 | AI8: - | AJ8: - | AK8: - | AL8: 2 | AM8: 6 | AN8: 2 | AO8: 1 | AP8: 6 | AQ8: 4 | AR8: 17 | AS8: 18 | AT8: 7 | AU8: 2 | AV8: 67.9 | AW8: 68.0 | AX8: 67.9 | AY8: 48 | AZ8: - | BA8: - | BB8: - | BC8: - | BD8: - | BE8: 1 | BF8: 4 | BG8: 1 | BH8: - | BI8: 4 | BJ8: 4 | BK8: 11 | BL8: 16 | BM8: 5 | BN8: 2 | BO8: 71.0 | BP8: 71.8 | BQ8: 69.4 | BR8: 39 | BS8: - | BT8: - | BU8: - | BV8: - | BW8: - | BX8: - | BY8: 1 | BZ8: 2 | CA8: 2 | CB8: 4 | CC8: 3 | CD8: 9 | CE8: 14 | CF8: 3 | CG8: 1 | CH8: 18 | CI8: - | CJ8: - | CK8: - | CL8: - | CM8: - | CN8: - | CO8: - | CP8: - | CQ8: 3 | CR8: 5 | CS8: 10 | CT8: - | CU8: - | DC8: 125 | DD8: 87 | DE8: 48 | DF8: 27 | DG8: 12 | DH8: 19 | DI8: 7 | DJ8: 12 | DK8: 32 | DL8: 23 | DM8: 3 | DN8: - | DO8: - | DP8: 2 | DQ8: 2 | DR8: - | DS8: - | DT8: 1 | DU8: - | DV8: 1 | DW8: - | DX8: - | DY8: - | DZ8: - | EA8: 38 | EB8: 3,040 | EC8: 2,411 | ED8: 579 | EE8: 50 | EF8: 65 | EG8: 57 | EH8: 32 | EI8: 17 | EJ8: 8 | EK8: - | EL8: 3 | EM8: 5 | EN8: 60 | EO8: 30 | EP8: 16 | EQ8: 10 | ER8: 4 | ES8: 19 | ET8: 4 | EU8: 7
A9: 群馬県 | B9: 前橋市 | C9: 前橋市 | D9: 岩神町他３町 | E9: 2 | F9: 2 | G9: x | H9: x | I9: x | J9: x | K9: x | L9: - | M9: x | N9: x | O9: x | P9: x | Q9: x | R9: x | S9: x | T9: x | U9: x | V9: x | W9: x | X9: x | Y9: x | Z9: x | AA9: x | AB9: x | AC9: 64.2 | AD9: 62.3 | AE9: 67.0 | AF9: x | AG9: x | AH9: x | AI9: x | AJ9: x | AK9: x | AL9: x | AM9: x | AN9: x | AO9: x | AP9: x | AQ9: x | AR9: x | AS9: x | AT9: x | AU9: x | AV9: 61.0 | AW9: … | AX9: 61.0 | AY9: x | AZ9: x | BA9: x | BB9: x | BC9: x | BD9: x | BE9: x | BF9: x | BG9: x | BH9: x | BI9: x | BJ9: x | BK9: x | BL9: x | BM9: x | BN9: x | BO9: … | BP9: … | BQ9: … | BR9: 2 | BS9: - | BT9: - | BU9: - | BV9: - | BW9: - | BX9: - | BY9: - | BZ9: - | CA9: - | CB9: 1 | CC9: - | CD9: - | CE9: 1 | CF9: - | CG9: - | CH9: 1 | CI9: - | CJ9: - | CK9: - | CL9: - | CM9: - | CN9: - | CO9: - | CP9: - | CQ9: - | CR9: - | CS9: 1 | CT9: - | CU9: - | DC9: 5 | DD9: 4 | DE9: - | DF9: 1 | DG9: 3 | DH9: 1 | DI9: - | DJ9: - | DK9: 1 | DL9: 1 | DM9: - | DN9: - | DO9: - | DP9: - | DQ9: - | DR9: - | DS9: - | DT9: - | DU9: - | DV9: - | DW9: - | DX9: - | DY9: - | DZ9: - | EA9: 2 | EB9: 103 | EC9: 103 | ED9: - | EE9: - | EF9: 3 | EG9: 3 | EH9: - | EI9: 1 | EJ9: 2 | EK9: - | EL9: - | EM9: - | EN9: 2 | EO9: 1 | EP9: - | EQ9: - | ER9: 1 | ES9: 1 | ET9: - | EU9: -
A10: 群馬県 | B10: 前橋市 | C10: 前橋市 | D10: 若宮町他１町 | E10: @ | F10: @ | G10: @ | H10: @ | I10: @ | J10: @ | K10: @ | L10: @ | M10: @ | N10: @ | O10: @ | P10: @ | Q10: @ | R10: @ | S10: @ | T10: @ | U10: @ | V10: @ | W10: @ | X10: @ | Y10: @ | Z10: @ | AA10: @ | AB10: @ | AC10: 70.5 | AD10: 70.0 | AE10: 71.0 | AF10: @ | AG10: @ | AH10: @ | AI10: @ | AJ10: @ | AK10: @ | AL10: @ | AM10: @ | AN10: @ | AO10: @ | AP10: @ | AQ10: @ | AR10: @ | AS10: @ | AT10: @ | AU10: @ | AV10: 70.5 | AW10: 70.0 | AX10: 71.0 | AY10: @ | AZ10: @ | BA10: @ | BB10: @ | BC10: @ | BD10: @ | BE10: @ | BF10: @ | BG10: @ | BH10: @ | BI10: @ | BJ10: @ | BK10: @ | BL10: @ | BM10: @ | BN10: @ | BO10: … | BP10: … | BQ10: … | BR10: 1 | BS10: - | BT10: - | BU10: - | BV10: - | BW10: - | BX10: - | BY10: - | BZ10: - | CA10: - | CB10: - | CC10: - | CD10: 1 | CE10: - | CF10: - | CG10: - | CH10: - | CI10: - | CJ10: - | CK10: - | CL10: - | CM10: - | CN10: - | CO10: - | CP10: - | CQ10: - | CR10: - | CS10: - | CT10: - | CU10: - | DC10: 2 | DD10: - | DE10: - | DF10: - | DG10: - | DH10: - | DI10: - | DJ10: 2 | DK10: 1 | DL10: 1 | DM10: - | DN10: - | DO10: - | DP10: - | DQ10: - | DR10: - | DS10: - | DT10: - | DU10: - | DV10: - | DW10: - | DX10: - | DY10: - | DZ10: - | EA10: 1 | EB10: 71 | EC10: 48 | ED10: 23 | EE10: - | EF10: 1 | EG10: - | EH10: - | EI10: - | EJ10: - | EK10: - | EL10: - | EM10: 1 | EN10: 1 | EO10: - | EP10: - | EQ10: - | ER10: - | ES10: - | ET10: - | EU10: 1
A11: 群馬県 | B11: 前橋市 | C11: 前橋市 | D11: 日吉町他１町 | E11: @ | F11: @ | G11: @ | H11: @ | I11: @ | J11: @ | K11: @ | L11: @ | M11: @ | N11: @ | O11: @ | P11: @ | Q11: @ | R11: @ | S11: @ | T11: @ | U11: @ | V11: @ | W11: @ | X11: @ | Y11: @ | Z11: @ | AA11: @ | AB11: @ | AC11: 68.3 | AD11: 65.7 | AE11: 76.0 | AF11: @ | AG11: @ | AH11: @ | AI11: @ | AJ11: @ | AK11: @ | AL11: @ | AM11: @ | AN11: @ | AO11: @ | AP11: @ | AQ11: @ | AR11: @ | AS11: @ | AT11: @ | AU11: @ | AV11: 76.0 | AW11: 76.0 | AX11: … | AY11: @ | AZ11: @ | BA11: @ | BB11: @ | BC11: @ | BD11: @ | BE11: @ | BF11: @ | BG11: @ | BH11: @ | BI11: @ | BJ11: @ | BK11: @ | BL11: @ | BM11: @ | BN11: @ | BO11: 76.0 | BP11: 76.0 | BQ11: … | BR11: 2 | BS11: - | BT11: - | BU11: - | BV11: - | BW11: - | BX11: - | BY11: - | BZ11: - | CA11: - | CB11: - | CC11: - | CD11: - | CE11: 2 | CF11: - | CG11: - | CH11: 2 | CI11: - | CJ11: - | CK11: - | CL11: - | CM11: - | CN11: - | CO11: - | CP11: - | CQ11: - | CR11: - | CS11: 2 | CT11: - | CU11: - | DC11: 6 | DD11: 4 | DE11: 2 | DF11: 1 | DG11: 1 | DH11: 1 | DI11: 1 | DJ11: - | DK11: 1 | DL11: 1 | DM11: - | DN11: - | DO11: - | DP11: - | DQ11: - | DR11: - | DS11: - | DT11: - | DU11: - | DV11: - | DW11: - | DX11: - | DY11: - | DZ11: - | EA11: 2 | EB11: 97 | EC11: 95 | ED11: 2 | EE11: - | EF11: 3 | EG11: 3 | EH11: 2 | EI11: 1 | EJ11: - | EK11: - | EL11: - | EM11: - | EN11: 3 | EO11: 1 | EP11: - | EQ11: - | ER11: 1 | ES11: 1 | ET11: 1 | EU11: -
A12: 群馬県 | B12: 前橋市 | C12: 前橋市 | D12: 朝日町他２町 | E12: 3 | F12: 2 | G12: x | H12: x | I12: x | J12: x | K12: x | L12: 1 | M12: x | N12: x | O12: x | P12: x | Q12: x | R12: x | S12: x | T12: x | U12: x | V12: x | W12: x | X12: x | Y12: x | Z12: x | AA12: x | AB12: x | AC12: 65.2 | AD12: 62.0 | AE12: 67.3 | AF12: x | AG12: x | AH12: x | AI12: x | AJ12: x | AK12: x | AL12: x | AM12: x | AN12: x | AO12: x | AP12: x | AQ12: x | AR12: x | AS12: x | AT12: x | AU12: x | AV12: 65.2 | AW12: 62.0 | AX12: 67.3 | AY12: x | AZ12: x | BA12: x | BB12: x | BC12: x | BD12: x | BE12: x | BF12: x | BG12: x | BH12: x | BI12: x | BJ12: x | BK12: x | BL12: x | BM12: x | BN12: x | BO12: 63.8 | BP12: 62.0 | BQ12: 65.5 | BR12: 2 | BS12: - | BT12: - | BU12: - | BV12: - | BW12: - | BX12: - | BY12: - | BZ12: 1 | CA12: - | CB12: - | CC12: - | CD12: 1 | CE12: - | CF12: - | CG12: - | CH12: - | CI12: - | CJ12: - | CK12: - | CL12: - | CM12: - | CN12: - | CO12: - | CP12: - | CQ12: - | CR12: - | CS12: - | CT12: - | CU12: - | DC12: 9 | DD12: 7 | DE12: 4 | DF12: 3 | DG12: - | DH12: - | DI12: 1 | DJ12: 1 | DK12: 2 | DL12: 1 | DM12: - | DN12: - | DO12: - | DP12: - | DQ12: - | DR12: - | DS12: - | DT12: 1 | DU12: - | DV12: - | DW12: - | DX12: - | DY12: - | DZ12: - | EA12: 1 | EB12: 140 | EC12: 125 | ED12: 15 | EE12: - | EF12: 2 | EG12: 2 | EH12: 2 | EI12: - | EJ12: - | EK12: - | EL12: - | EM12: - | EN12: 7 | EO12: 5 | EP12: 2 | EQ12: 3 | ER12: - | ES12: - | ET12: 1 | EU12: 1
A13: 群馬県 | B13: 前橋市 | C13: 前橋市 | D13: 文京町他１町 | E13: 9 | F13: 4 | G13: - | H13: - | I13: 2 | J13: 1 | K13: 2 | L13: 5 | M13: 11 | N13: - | O13: - | P13: 1 | Q13: - | R13: - | S13: - | T13: 1 | U13: - | V13: - | W13: 2 | X13: - | Y13: 2 | Z13: 4 | AA13: - | AB13: 1 | AC13: 65.8 | AD13: 63.1 | AE13: 70.5 | AF13: 6 | AG13: - | AH13: - | AI13: - | AJ13: - | AK13: - | AL13: - | AM13: - | AN13: - | AO13: - | AP13: 1 | AQ13: - | AR13: 2 | AS13: 3 | AT13: - | AU13: - | AV13: 71.5 | AW13: 74.0 | AX13: 69.0 | AY13: 3 | AZ13: - | BA13: - | BB13: - | BC13: - | BD13: - | BE13: - | BF13: - | BG13: - | BH13: - | BI13: - | BJ13: - | BK13: 1 | BL13: 2 | BM13: - | BN13: - | BO13: 74.0 | BP13: 74.0 | BQ13: … | BR13: 4 | BS13: - | BT13: - | BU13: - | BV13: - | BW13: - | BX13: - | BY13: - | BZ13: - | CA13: - | CB13: 1 | CC13: - | CD13: 1 | CE13: 2 | CF13: - | CG13: - | CH13: 3 | CI13: - | CJ13: - | CK13: - | CL13: - | CM13: - | CN13: - | CO13: - | CP13: - | CQ13: - | CR13: 1 | CS13: 2 | CT13: - | CU13: - | DC13: 11 | DD13: 6 | DE13: 3 | DF13: 3 | DG13: - | DH13: 4 | DI13: - | DJ13: 1 | DK13: 4 | DL13: 2 | DM13: 1 | DN13: - | DO13: - | DP13: 1 | DQ13: - | DR13: - | DS13: - | DT13: - | DU13: - | DV13: - | DW13: - | DX13: - | DY13: - | DZ13: - | EA13: 4 | EB13: 212 | EC13: 168 | ED13: 44 | EE13: - | EF13: 7 | EG13: 6 | EH13: 3 | EI13: 3 | EJ13: - | EK13: - | EL13: - | EM13: 1 | EN13: 4 | EO13: - | EP13: - | EQ13: - | ER13: - | ES13: 4 | ET13: - | EU13: -
A14: 群馬県 | B14: 前橋市 | C14: 前橋市 | D14: 天川町他１町 | E14: 7 | F14: 6 | G14: 1 | H14: - | I14: 1 | J14: 1 | K14: 4 | L14: 1 | M14: 23 | N14: 1 | O14: 5 | P14: - | Q14: - | R14: - | S14: - | T14: 4 | U14: 2 | V14: 1 | W14: - | X14: - | Y14: - | Z14: 7 | AA14: 3 | AB14: - | AC14: 55.2 | AD14: 50.5 | AE14: 62.4 | AF14: 11 | AG14: 1 | AH14: 1 | AI14: - | AJ14: - | AK14: - | AL14: - | AM14: 1 | AN14: - | AO14: - | AP14: - | AQ14: - | AR14: - | AS14: 6 | AT14: 2 | AU14: - | AV14: 64.6 | AW14: 58.8 | AX14: 71.6 | AY14: 7 | AZ14: - | BA14: - | BB14: - | BC14: - | BD14: - | BE14: - | BF14: - | BG14: - | BH14: - | BI14: - | BJ14: - | BK14: - | BL14: 6 | BM14: 1 | BN14: - | BO14: 77.6 | BP14: 78.3 | BQ14: 76.7 | BR14: 6 | BS14: - | BT14: - | BU14: - | BV14: - | BW14: - | BX14: - | BY14: - | BZ14: - | CA14: 1 | CB14: - | CC14: - | CD14: - | CE14: 3 | CF14: 2 | CG14: - | CH14: 2 | CI14: - | CJ14: - | CK14: - | CL14: - | CM14: - | CN14: - | CO14: - | CP14: - | CQ14: - | CR14: - | CS14: 2 | CT14: - | CU14: - | DC14: 27 | DD14: 18 | DE14: 7 | DF14: 7 | DG14: 4 | DH14: 2 | DI14: 4 | DJ14: 3 | DK14: 4 | DL14: 3 | DM14: - | DN14: - | DO14: - | DP14: - | DQ14: - | DR14: - | DS14: - | DT14: - | DU14: - | DV14: 1 | DW14: - | DX14: - | DY14: - | DZ14: - | EA14: 6 | EB14: 667 | EC14: 483 | ED14: 184 | EE14: - | EF14: 14 | EG14: 11 | EH14: 4 | EI14: 4 | EJ14: 3 | EK14: - | EL14: 3 | EM14: - | EN14: 13 | EO14: 7 | EP14: 3 | EQ14: 3 | ER14: 1 | ES14: 2 | ET14: 1 | EU14: 3
A15: 群馬県 | B15: 前橋市 | C15: 前橋市 | D15: 文京町他２町 | E15: 3 | F15: 3 | G15: - | H15: - | I15: - | J15: - | K15: 3 | L15: - | M15: 7 | N15: - | O15: - | P15: - | Q15: - | R15: - | S15: - | T15: - | U15: 1 | V15: 2 | W15: - | X15: - | Y15: - | Z15: 2 | AA15: 2 | AB15: - | AC15: 68.9 | AD15: 64.6 | AE15: 79.5 | AF15: 6 | AG15: - | AH15: - | AI15: - | AJ15: - | AK15: - | AL15: - | AM15: - | AN15: 1 | AO15: 1 | AP15: - | AQ15: - | AR15: - | AS15: 2 | AT15: 2 | AU15: - | AV15: 71.2 | AW15: 67.0 | AX15: 79.5 | AY15: 2 | AZ15: - | BA15: - | BB15: - | BC15: - | BD15: - | BE15: - | BF15: - | BG15: - | BH15: - | BI15: - | BJ15: - | BK15: - | BL15: 1 | BM15: 1 | BN15: - | BO15: 81.0 | BP15: 81.0 | BQ15: … | BR15: 3 | BS15: - | BT15: - | BU15: - | BV15: - | BW15: - | BX15: - | BY15: - | BZ15: - | CA15: 1 | CB15: - | CC15: - | CD15: - | CE15: 1 | CF15: 1 | CG15: - | CH15: - | CI15: - | CJ15: - | CK15: - | CL15: - | CM15: - | CN15: - | CO15: - | CP15: - | CQ15: - | CR15: - | CS15: - | CT15: - | CU15: - | DC15: 8 | DD15: 3 | DE15: 2 | DF15: 1 | DG15: - | DH15: 3 | DI15: - | DJ15: 2 | DK15: 2 | DL15: 2 | DM15: - | DN15: - | DO15: - | DP15: - | DQ15: - | DR15: - | DS15: - | DT15: - | DU15: - | DV15: - | DW15: - | DX15: - | DY15: - | DZ15: - | EA15: 3 | EB15: 101 | EC15: 85 | ED15: 16 | EE15: - | EF15: 5 | EG15: 3 | EH15: 2 | EI15: 1 | EJ15: - | EK15: - | EL15: - | EM15: 2 | EN15: 3 | EO15: - | EP15: - | EQ15: - | ER15: - | ES15: 3 | ET15: - | EU15: -
A16: 群馬県 | B16: 前橋市 | C16: 前橋市 | D16: 天川原 | E16: 13 | F16: 6 | G16: - | H16: - | I16: 2 | J16: - | K16: 4 | L16: 7 | M16: 12 | N16: - | O16: - | P16: - | Q16: 1 | R16: 1 | S16: - | T16: - | U16: - | V16: - | W16: 3 | X16: 2 | Y16: 3 | Z16: 2 | AA16: - | AB16: - | AC16: 63.8 | AD16: 67.3 | AE16: 59.0 | AF16: 9 | AG16: - | AH16: - | AI16: - | AJ16: - | AK16: - | AL16: - | AM16: - | AN16: - | AO16: - | AP16: 2 | AQ16: 2 | AR16: 3 | AS16: 2 | AT16: - | AU16: - | AV16: 69.9 | AW16: 73.6 | AX16: 65.3 | AY16: 8 | AZ16: - | BA16: - | BB16: - | BC16: - | BD16: - | BE16: - | BF16: - | BG16: - | BH16: - | BI16: 2 | BJ16: 2 | BK16: 2 | BL16: 2 | BM16: - | BN16: - | BO16: 69.9 | BP16: 73.6 | BQ16: 63.7 | BR16: 6 | BS16: - | BT16: - | BU16: - | BV16: - | BW16: - | BX16: - | BY16: - | BZ16: - | CA16: - | CB16: 1 | CC16: 1 | CD16: 2 | CE16: 2 | CF16: - | CG16: - | CH16: 2 | CI16: - | CJ16: - | CK16: - | CL16: - | CM16: - | CN16: - | CO16: - | CP16: - | CQ16: 1 | CR16: 1 | CS16: - | CT16: - | CU16: - | DC16: 13 | DD16: 11 | DE16: 8 | DF16: 2 | DG16: 1 | DH16: 1 | DI16: - | DJ16: 1 | DK16: 5 | DL16: 5 | DM16: - | DN16: - | DO16: - | DP16: - | DQ16: - | DR16: - | DS16: - | DT16: - | DU16: - | DV16: - | DW16: - | DX16: - | DY16: - | DZ16: - | EA16: 6 | EB16: 525 | EC16: 522 | ED16: 3 | EE16: - | EF16: 7 | EG16: 7 | EH16: 5 | EI16: 1 | EJ16: 1 | EK16: - | EL16: - | EM16: - | EN16: 6 | EO16: 4 | EP16: 3 | EQ16: 1 | ER16: - | ES16: 1 | ET16: - | EU16: 1
A17: 群馬県 | B17: 前橋市 | C17: 前橋市 | D17: 紅雲町他２町 | E17: - | F17: - | G17: - | H17: - | I17: - | J17: - | K17: - | L17: - | M17: - | N17: - | O17: - | P17: - | Q17: - | R17: - | S17: - | T17: - | U17: - | V17: - | W17: - | X17: - | Y17: - | Z17: - | AA17: - | AB17: - | AC17: … | AD17: … | AE17: … | AF17: - | AG17: - | AH17: - | AI17: - | AJ17: - | AK17: - | AL17: - | AM17: - | AN17: - | AO17: - | AP17: - | AQ17: - | AR17: - | AS17: - | AT17: - | AU17: - | AV17: … | AW17: … | AX17: … | AY17: - | AZ17: - | BA17: - | BB17: - | BC17: - | BD17: - | BE17: - | BF17: - | BG17: - | BH17: - | BI17: - | BJ17: - | BK17: - | BL17: - | BM17: - | BN17: - | BO17: … | BP17: … | BQ17: … | BR17: - | BS17: - | BT17: - | BU17: - | BV17: - | BW17: - | BX17: - | BY17: - | BZ17: - | CA17: - | CB17: - | CC17: - | CD17: - | CE17: - | CF17: - | CG17: - | CH17: - | CI17: - | CJ17: - | CK17: - | CL17: - | CM17: - | CN17: - | CO17: - | CP17: - | CQ17: - | CR17: - | CS17: - | CT17: - | CU17: - | DC17: - | DD17: - | DE17: - | DF17: - | DG17: - | DH17: - | DI17: - | DJ17: - | DK17: - | DL17: - | DM17: - | DN17: - | DO17: - | DP17: - | DQ17: - | DR17: - | DS17: - | DT17: - | DU17: - | DV17: - | DW17: - | DX17: - | DY17: - | DZ17: - | EA17: - | EB17: - | EC17: - | ED17: - | EE17: - | EF17: - | EG17: - | EH17: - | EI17: - | EJ17: - | EK17: - | EL17: - | EM17: - | EN17: - | EO17: - | EP17: - | EQ17: - | ER17: - | ES17: - | ET17: - | EU17: -
A18: 群馬県 | B18: 前橋市 | C18: 前橋市 | D18: 六供第一 | E18: @ | F18: @ | G18: @ | H18: @ | I18: @ | J18: @ | K18: @ | L18: @ | M18: @ | N18: @ | O18: @ | P18: @ | Q18: @ | R18: @ | S18: @ | T18: @ | U18: @ | V18: @ | W18: @ | X18: @ | Y18: @ | Z18: @ | AA18: @ | AB18: @ | AC18: 58.6 | AD18: 68.3 | AE18: 50.3 | AF18: @ | AG18: @ | AH18: @ | AI18: @ | AJ18: @ | AK18: @ | AL18: @ | AM18: @ | AN18: @ | AO18: @ | AP18: @ | AQ18: @ | AR18: @ | AS18: @ | AT18: @ | AU18: @ | AV18: 69.1 | AW18: 74.3 | AX18: 64.0 | AY18: @ | AZ18: @ | BA18: @ | BB18: @ | BC18: @ | BD18: @ | BE18: @ | BF18: @ | BG18: @ | BH18: @ | BI18: @ | BJ18: @ | BK18: @ | BL18: @ | BM18: @ | BN18: @ | BO18: 72.4 | BP18: 74.3 | BQ18: 70.0 | BR18: 3 | BS18: - | BT18: - | BU18: - | BV18: - | BW18: - | BX18: - | BY18: 1 | BZ18: 1 | CA18: - | CB18: - | CC18: - | CD18: - | CE18: - | CF18: - | CG18: 1 | CH18: - | CI18: - | CJ18: - | CK18: - | CL18: - | CM18: - | CN18: - | CO18: - | CP18: - | CQ18: - | CR18: - | CS18: - | CT18: - | CU18: - | DC18: 14 | DD18: 11 | DE18: 7 | DF18: 4 | DG18: - | DH18: 3 | DI18: - | DJ18: - | DK18: 3 | DL18: - | DM18: 2 | DN18: - | DO18: - | DP18: - | DQ18: 1 | DR18: - | DS18: - | DT18: - | DU18: - | DV18: - | DW18: - | DX18: - | DY18: - | DZ18: - | EA18: 3 | EB18: 362 | EC18: 247 | ED18: 65 | EE18: 50 | EF18: 6 | EG18: 6 | EH18: 4 | EI18: 2 | EJ18: - | EK18: - | EL18: - | EM18: - | EN18: 8 | EO18: 5 | EP18: 3 | EQ18: 2 | ER18: - | ES18: 3 | ET18: - | EU18: -
A19: 群馬県 | B19: 前橋市 | C19: 前橋市 | D19: 六供北西 | E19: 6 | F19: 3 | G19: - | H19: - | I19: - | J19: - | K19: 3 | L19: 3 | M19: 3 | N19: - | O19: - | P19: - | Q19: - | R19: - | S19: - | T19: - | U19: - | V19: - | W19: - | X19: - | Y19: 2 | Z19: 1 | AA19: - | AB19: - | AC19: 74.7 | AD19: 75.0 | AE19: 74.0 | AF19: 3 | AG19: - | AH19: - | AI19: - | AJ19: - | AK19: - | AL19: - | AM19: - | AN19: - | AO19: - | AP19: - | AQ19: - | AR19: 2 | AS19: 1 | AT19: - | AU19: - | AV19: 74.7 | AW19: 75.0 | AX19: 74.0 | AY19: 3 | AZ19: - | BA19: - | BB19: - | BC19: - | BD19: - | BE19: - | BF19: - | BG19: - | BH19: - | BI19: - | BJ19: - | BK19: 2 | BL19: 1 | BM19: - | BN19: - | BO19: 74.7 | BP19: 75.0 | BQ19: 74.0 | BR19: 3 | BS19: - | BT19: - | BU19: - | BV19: - | BW19: - | BX19: - | BY19: - | BZ19: - | CA19: - | CB19: - | CC19: 1 | CD19: 1 | CE19: 1 | CF19: - | CG19: - | CH19: 2 | CI19: - | CJ19: - | CK19: - | CL19: - | CM19: - | CN19: - | CO19: - | CP19: - | CQ19: 1 | CR19: - | CS19: 1 | CT19: - | CU19: - | DC19: 5 | DD19: 4 | DE19: 3 | DF19: 1 | DG19: - | DH19: 1 | DI19: - | DJ19: - | DK19: 2 | DL19: 2 | DM19: - | DN19: - | DO19: - | DP19: - | DQ19: - | DR19: - | DS19: - | DT19: - | DU19: - | DV19: - | DW19: - | DX19: - | DY19: - | DZ19: - | EA19: 3 | EB19: 412 | EC19: 272 | ED19: 140 | EE19: - | EF19: 3 | EG19: 3 | EH19: 2 | EI19: 1 | EJ19: - | EK19: - | EL19: - | EM19: - | EN19: 2 | EO19: 1 | EP19: 1 | EQ19: - | ER19: - | ES19: 1 | ET19: - | EU19: -
A20: 群馬県 | B20: 前橋市 | C20: 前橋市 | D20: 六供東南 | E20: @ | F20: @ | G20: @ | H20: @ | I20: @ | J20: @ | K20: @ | L20: @ | M20: @ | N20: @ | O20: @ | P20: @ | Q20: @ | R20: @ | S20: @ | T20: @ | U20: @ | V20: @ | W20: @ | X20: @ | Y20: @ | Z20: @ | AA20: @ | AB20: @ | AC20: 59.9 | AD20: 58.0 | AE20: 62.9 | AF20: @ | AG20: @ | AH20: @ | AI20: @ | AJ20: @ | AK20: @ | AL20: @ | AM20: @ | AN20: @ | AO20: @ | AP20: @ | AQ20: @ | AR20: @ | AS20: @ | AT20: @ | AU20: @ | AV20: 64.1 | AW20: 63.9 | AX20: 64.5 | AY20: @ | AZ20: @ | BA20: @ | BB20: @ | BC20: @ | BD20: @ | BE20: @ | BF20: @ | BG20: @ | BH20: @ | BI20: @ | BJ20: @ | BK20: @ | BL20: @ | BM20: @ | BN20: @ | BO20: 65.4 | BP20: 63.9 | BQ20: 68.5 | BR20: 7 | BS20: - | BT20: - | BU20: - | BV20: - | BW20: - | BX20: - | BY20: - | BZ20: - | CA20: - | CB20: 1 | CC20: 1 | CD20: 3 | CE20: 2 | CF20: - | CG20: - | CH20: 6 | CI20: - | CJ20: - | CK20: - | CL20: - | CM20: - | CN20: - | CO20: - | CP20: - | CQ20: 1 | CR20: 3 | CS20: 2 | CT20: - | CU20: - | DC20: 25 | DD20: 19 | DE20: 12 | DF20: 4 | DG20: 3 | DH20: 3 | DI20: 1 | DJ20: 2 | DK20: 7 | DL20: 5 | DM20: - | DN20: - | DO20: - | DP20: 1 | DQ20: 1 | DR20: - | DS20: - | DT20: - | DU20: - | DV20: - | DW20: - | DX20: - | DY20: - | DZ20: - | EA20: 7 | EB20: 350 | EC20: 263 | ED20: 87 | EE20: - | EF20: 14 | EG20: 13 | EH20: 8 | EI20: 3 | EJ20: 2 | EK20: - | EL20: - | EM20: 1 | EN20: 11 | EO20: 6 | EP20: 4 | EQ20: 1 | ER20: 1 | ES20: 3 | ET20: 1 | EU20: 1
A21: 群馬県 | B21: 前橋市 | C21: 前橋市 | D21: 南町 | E21: 4 | F21: - | G21: - | H21: - | I21: - | J21: - | K21: - | L21: 4 | M21: - | N21: - | O21: - | P21: - | Q21: - | R21: - | S21: - | T21: - | U21: - | V21: - | W21: - | X21: - | Y21: - | Z21: - | AA21: - | AB21: - | AC21: … | AD21: … | AE21: … | AF21: - | AG21: - | AH21: - | AI21: - | AJ21: - | AK21: - | AL21: - | AM21: - | AN21: - | AO21: - | AP21: - | AQ21: - | AR21: - | AS21: - | AT21: - | AU21: - | AV21: … | AW21: … | AX21: … | AY21: - | AZ21: - | BA21: - | BB21: - | BC21: - | BD21: - | BE21: - | BF21: - | BG21: - | BH21: - | BI21: - | BJ21: - | BK21: - | BL21: - | BM21: - | BN21: - | BO21: … | BP21: … | BQ21: … | BR21: - | BS21: - | BT21: - | BU21: - | BV21: - | BW21: - | BX21: - | BY21: - | BZ21: - | CA21: - | CB21: - | CC21: - | CD21: - | CE21: - | CF21: - | CG21: - | CH21: - | CI21: - | CJ21: - | CK21: - | CL21: - | CM21: - | CN21: - | CO21: - | CP21: - | CQ21: - | CR21: - | CS21: - | CT21: - | CU21: - | DC21: - | DD21: - | DE21: - | DF21: - | DG21: - | DH21: - | DI21: - | DJ21: - | DK21: - | DL21: - | DM21: - | DN21: - | DO21: - | DP21: - | DQ21: - | DR21: - | DS21: - | DT21: - | DU21: - | DV21: - | DW21: - | DX21: - | DY21: - | DZ21: - | EA21: - | EB21: - | EC21: - | ED21: - | EE21: - | EF21: - | EG21: - | EH21: - | EI21: - | EJ21: - | EK21: - | EL21: - | EM21: - | EN21: - | EO21: - | EP21: - | EQ21: - | ER21: - | ES21: - | ET21: - | EU21: -
A22: 群馬県 | B22: 前橋市 | C22: 前橋市 | D22: 平和町他６町 | E22: - | F22: - | G22: - | H22: - | I22: - | J22: - | K22: - | L22: - | M22: - | N22: - | O22: - | P22: - | Q22: - | R22: - | S22: - | T22: - | U22: - | V22: - | W22: - | X22: - | Y22: - | Z22: - | AA22: - | AB22: - | AC22: … | AD22: … | AE22: … | AF22: - | AG22: - | AH22: - | AI22: - | AJ22: - | AK22: - | AL22: - | AM22: - | AN22: - | AO22: - | AP22: - | AQ22: - | AR22: - | AS22: - | AT22: - | AU22: - | AV22: … | AW22: … | AX22: … | AY22: - | AZ22: - | BA22: - | BB22: - | BC22: - | BD22: - | BE22: - | BF22: - | BG22: - | BH22: - | BI22: - | BJ22: - | BK22: - | BL22: - | BM22: - | BN22: - | BO22: … | BP22: … | BQ22: … | BR22: - | BS22: - | BT22: - | BU22: - | BV22: - | BW22: - | BX22: - | BY22: - | BZ22: - | CA22: - | CB22: - | CC22: - | CD22: - | CE22: - | CF22: - | CG22: - | CH22: - | CI22: - | CJ22: - | CK22: - | CL22: - | CM22: - | CN22: - | CO22: - | CP22: - | CQ22: - | CR22: - | CS22: - | CT22: - | CU22: - | DC22: - | DD22: - | DE22: - | DF22: - | DG22: - | DH22: - | DI22: - | DJ22: - | DK22: - | DL22: - | DM22: - | DN22: - | DO22: - | DP22: - | DQ22: - | DR22: - | DS22: - | DT22: - | DU22: - | DV22: - | DW22: - | DX22: - | DY22: - | DZ22: - | EA22: - | EB22: - | EC22: - | ED22: - | EE22: - | EF22: - | EG22: - | EH22: - | EI22: - | EJ22: - | EK22: - | EL22: - | EM22: - | EN22: - | EO22: - | EP22: - | EQ22: - | ER22: - | ES22: - | ET22: - | EU22: -
A23: 群馬県 | B23: 前橋市 | C23: 上川渕村 | E23: 278 | F23: 212 | G23: 50 | H23: 41 | I23: 50 | J23: 10 | K23: 112 | L23: 66 | M23: 602 | N23: 8 | O23: 17 | P23: 20 | Q23: 17 | R23: 21 | S23: 26 | T23: 35 | U23: 53 | V23: 76 | W23: 72 | X23: 64 | Y23: 53 | Z23: 63 | AA23: 51 | AB23: 26 | AC23: 59.9 | AD23: 59.4 | AE23: 60.5 | AF23: 376 | AG23: 5 | AH23: 6 | AI23: 2 | AJ23: 7 | AK23: 9 | AL23: 6 | AM23: 7 | AN23: 18 | AO23: 39 | AP23: 37 | AQ23: 53 | AR23: 50 | AS23: 61 | AT23: 50 | AU23: 26 | AV23: 66.8 | AW23: 66.8 | AX23: 66.9 | AY23: 309 | AZ23: - | BA23: 3 | BB23: 2 | BC23: 6 | BD23: 7 | BE23: 4 | BF23: 6 | BG23: 16 | BH23: 33 | BI23: 34 | BJ23: 50 | BK23: 46 | BL23: 50 | BM23: 36 | BN23: 16 | BO23: 67.1 | BP23: 67.0 | BQ23: 67.3 | BR23: 212 | BS23: - | BT23: 1 | BU23: - | BV23: - | BW23: 2 | BX23: - | BY23: 9 | BZ23: 16 | CA23: 34 | CB23: 39 | CC23: 32 | CD23: 33 | CE23: 28 | CF23: 13 | CG23: 5 | CH23: 129 | CI23: - | CJ23: - | CK23: 1 | CL23: - | CM23: 3 | CN23: 8 | CO23: 19 | CP23: 24 | CQ23: 22 | CR23: 19 | CS23: 21 | CT23: 7 | CU23: 5 | DC23: 772 | DD23: 585 | DE23: 309 | DF23: 247 | DG23: 29 | DH23: 49 | DI23: 52 | DJ23: 86 | DK23: 205 | DL23: 115 | DM23: 22 | DN23: 1 | DO23: - | DP23: 10 | DQ23: 42 | DR23: - | DS23: 4 | DT23: - | DU23: 6 | DV23: 2 | DW23: 3 | DX23: - | DY23: - | DZ23: - | EA23: 212 | EB23: 28,844 | EC23: 23,339 | ED23: 5,397 | EE23: 108 | EF23: 383 | EG23: 325 | EH23: 166 | EI23: 141 | EJ23: 18 | EK23: - | EL23: 27 | EM23: 31 | EN23: 389 | EO23: 260 | EP23: 143 | EQ23: 106 | ER23: 11 | ES23: 49 | ET23: 25 | EU23: 55
A24: 群馬県 | B24: 前橋市 | C24: 上川渕村 | D24: 上佐鳥 | E24: 65 | F24: 53 | G24: 20 | H24: 20 | I24: 8 | J24: 1 | K24: 25 | L24: 12 | M24: 162 | N24: - | O24: 7 | P24: 4 | Q24: 7 | R24: 5 | S24: 3 | T24: 9 | U24: 16 | V24: 17 | W24: 18 | X24: 14 | Y24: 18 | Z24: 21 | AA24: 14 | AB24: 9 | AC24: 61.4 | AD24: 59.9 | AE24: 63.1 | AF24: 124 | AG24: - | AH24: 4 | AI24: - | AJ24: 5 | AK24: 3 | AL24: 2 | AM24: 4 | AN24: 9 | AO24: 13 | AP24: 10 | AQ24: 14 | AR24: 16 | AS24: 21 | AT24: 14 | AU24: 9 | AV24: 65.6 | AW24: 65.4 | AX24: 65.8 | AY24: 111 | AZ24: - | BA24: 3 | BB24: - | BC24: 4 | BD24: 3 | BE24: 2 | BF24: 3 | BG24: 9 | BH24: 11 | BI24: 10 | BJ24: 14 | BK24: 14 | BL24: 18 | BM24: 13 | BN24: 7 | BO24: 65.6 | BP24: 64.5 | BQ24: 66.7 | BR24: 53 | BS24: - | BT24: 1 | BU24: - | BV24: - | BW24: - | BX24: - | BY24: 1 | BZ24: 5 | CA24: 4 | CB24: 9 | CC24: 9 | CD24: 11 | CE24: 9 | CF24: 3 | CG24: 1 | CH24: 36 | CI24: - | CJ24: - | CK24: - | CL24: - | CM24: - | CN24: 3 | CO24: 3 | CP24: 6 | CQ24: 5 | CR24: 9 | CS24: 7 | CT24: 2 | CU24: 1 | DC24: 213 | DD24: 164 | DE24: 111 | DF24: 47 | DG24: 6 | DH24: 9 | DI24: 20 | DJ24: 20 | DK24: 52 | DL24: 20 | DM24: - | DN24: - | DO24: - | DP24: - | DQ24: 27 | DR24: - | DS24: 3 | DT24: - | DU24: 1 | DV24: 1 | DW24: - | DX24: - | DY24: - | DZ24: - | EA24: 53 | EB24: 7,268 | EC24: 5,805 | ED24: 1,442 | EE24: 21 | EF24: 105 | EG24: 86 | EH24: 56 | EI24: 26 | EJ24: 4 | EK24: - | EL24: 10 | EM24: 9 | EN24: 108 | EO24: 78 | EP24: 55 | EQ24: 21 | ER24: 2 | ES24: 9 | ET24: 10 | EU24: 11
A25: 群馬県 | B25: 前橋市 | C25: 上川渕村 | D25: ぬで島 | E25: 24 | F25: 15 | G25: 3 | H25: 3 | I25: 3 | J25: - | K25: 9 | L25: 9 | M25: 43 | N25: - | O25: 2 | P25: 2 | Q25: 1 | R25: - | S25: 3 | T25: 3 | U25: 1 | V25: 11 | W25: 4 | X25: 3 | Y25: 2 | Z25: 7 | AA25: 2 | AB25: 2 | AC25: 59.2 | AD25: 60.8 | AE25: 57.8 | AF25: 22 | AG25: - | AH25: - | AI25: - | AJ25: 1 | AK25: - | AL25: - | AM25: - | AN25: - | AO25: 5 | AP25: 1 | AQ25: 2 | AR25: 2 | AS25: 7 | AT25: 2 | AU25: 2 | AV25: 70.0 | AW25: 73.1 | AX25: 67.5 | AY25: 20 | AZ25: - | BA25: - | BB25: - | BC25: 1 | BD25: - | BE25: - | BF25: - | BG25: - | BH25: 5 | BI25: 1 | BJ25: 2 | BK25: 2 | BL25: 6 | BM25: 1 | BN25: 2 | BO25: 69.2 | BP25: 73.1 | BQ25: 65.2 | BR25: 15 | BS25: - | BT25: - | BU25: - | BV25: - | BW25: - | BX25: - | BY25: - | BZ25: 1 | CA25: 4 | CB25: 1 | CC25: 2 | CD25: 2 | CE25: 4 | CF25: - | CG25: 1 | CH25: 10 | CI25: - | CJ25: - | CK25: - | CL25: - | CM25: - | CN25: - | CO25: 2 | CP25: - | CQ25: 2 | CR25: 1 | CS25: 4 | CT25: - | CU25: 1 | DC25: 52 | DD25: 40 | DE25: 20 | DF25: 17 | DG25: 3 | DH25: 4 | DI25: 1 | DJ25: 7 | DK25: 15 | DL25: 8 | DM25: 4 | DN25: - | DO25: - | DP25: - | DQ25: 2 | DR25: - | DS25: 1 | DT25: - | DU25: - | DV25: - | DW25: - | DX25: - | DY25: - | DZ25: - | EA25: 15 | EB25: 1,845 | EC25: 1,503 | ED25: 342 | EE25: - | EF25: 23 | EG25: 22 | EH25: 10 | EI25: 9 | EJ25: 3 | EK25: - | EL25: - | EM25: 1 | EN25: 29 | EO25: 18 | EP25: 10 | EQ25: 8 | ER25: - | ES25: 4 | ET25: 1 | EU25: 6
A26: 群馬県 | B26: 前橋市 | C26: 上川渕村 | D26: 上朝倉 | E26: 34 | F26: 27 | G26: 6 | H26: 5 | I26: 6 | J26: 1 | K26: 15 | L26: 7 | M26: 70 | N26: 4 | O26: 2 | P26: 1 | Q26: 4 | R26: 1 | S26: 4 | T26: 5 | U26: 5 | V26: 8 | W26: 11 | X26: 7 | Y26: 5 | Z26: 6 | AA26: 6 | AB26: 1 | AC26: 56.9 | AD26: 55.0 | AE26: 59.5 | AF26: 41 | AG26: 3 | AH26: - | AI26: - | AJ26: 1 | AK26: - | AL26: 1 | AM26: - | AN26: 2 | AO26: 5 | AP26: 7 | AQ26: 5 | AR26: 4 | AS26: 6 | AT26: 6 | AU26: 1 | AV26: 63.9 | AW26: 60.9 | AX26: 67.7 | AY26: 31 | AZ26: - | BA26: - | BB26: - | BC26: 1 | BD26: - | BE26: - | BF26: - | BG26: 2 | BH26: 5 | BI26: 6 | BJ26: 5 | BK26: 3 | BL26: 4 | BM26: 4 | BN26: 1 | BO26: 66.7 | BP26: 66.3 | BQ26: 67.2 | BR26: 27 | BS26: - | BT26: - | BU26: - | BV26: - | BW26: - | BX26: - | BY26: 2 | BZ26: 1 | CA26: 4 | CB26: 6 | CC26: 3 | CD26: 5 | CE26: 3 | CF26: 2 | CG26: 1 | CH26: 11 | CI26: - | CJ26: - | CK26: - | CL26: - | CM26: 1 | CN26: - | CO26: 1 | CP26: 5 | CQ26: 2 | CR26: - | CS26: 1 | CT26: - | CU26: 1 | DC26: 85 | DD26: 66 | DE26: 31 | DF26: 32 | DG26: 3 | DH26: 5 | DI26: 2 | DJ26: 12 | DK26: 23 | DL26: 15 | DM26: - | DN26: - | DO26: - | DP26: - | DQ26: 8 | DR26: - | DS26: - | DT26: - | DU26: - | DV26: - | DW26: - | DX26: - | DY26: - | DZ26: - | EA26: 27 | EB26: 2,109 | EC26: 1,890 | ED26: 219 | EE26: - | EF26: 45 | EG26: 38 | EH26: 18 | EI26: 19 | EJ26: 1 | EK26: - | EL26: 2 | EM26: 5 | EN26: 40 | EO26: 28 | EP26: 13 | EQ26: 13 | ER26: 2 | ES26: 5 | ET26: - | EU26: 7
A27: 群馬県 | B27: 前橋市 | C27: 上川渕村 | D27: 下朝倉 | E27: 38 | F27: 29 | G27: 8 | H27: 8 | I27: 3 | J27: 1 | K27: 18 | L27: 9 | M27: 75 | N27: 2 | O27: 2 | P27: 2 | Q27: - | R27: 3 | S27: 7 | T27: 5 | U27: 5 | V27: 7 | W27: 10 | X27: 9 | Y27: 6 | Z27: 8 | AA27: 8 | AB27: 1 | AC27: 59.2 | AD27: 62.3 | AE27: 55.8 | AF27: 51 | AG27: 2 | AH27: 1 | AI27: 2 | AJ27: - | AK27: 2 | AL27: 1 | AM27: - | AN27: 2 | AO27: 2 | AP27: 9 | AQ27: 8 | AR27: 6 | AS27: 7 | AT27: 8 | AU27: 1 | AV27: 63.6 | AW27: 65.6 | AX27: 61.3 | AY27: 42 | AZ27: - | BA27: - | BB27: 2 | BC27: - | BD27: 1 | BE27: 1 | BF27: - | BG27: 2 | BH27: 2 | BI27: 8 | BJ27: 8 | BK27: 6 | BL27: 6 | BM27: 6 | BN27: - | BO27: 65.9 | BP27: 66.1 | BQ27: 65.6 | BR27: 29 | BS27: - | BT27: - | BU27: - | BV27: - | BW27: 1 | BX27: - | BY27: 1 | BZ27: 2 | CA27: 4 | CB27: 6 | CC27: 4 | CD27: 3 | CE27: 5 | CF27: 3 | CG27: - | CH27: 16 | CI27: - | CJ27: - | CK27: - | CL27: - | CM27: - | CN27: - | CO27: 2 | CP27: 4 | CQ27: 3 | CR27: 2 | CS27: 3 | CT27: 2 | CU27: - | DC27: 97 | DD27: 77 | DE27: 42 | DF27: 33 | DG27: 2 | DH27: 6 | DI27: 5 | DJ27: 9 | DK27: 28 | DL27: 15 | DM27: 1 | DN27: - | DO27: - | DP27: 4 | DQ27: 1 | DR27: - | DS27: - | DT27: - | DU27: 4 | DV27: - | DW27: 3 | DX27: - | DY27: - | DZ27: - | EA27: 29 | EB27: 5,468 | EC27: 4,047 | ED27: 1,412 | EE27: 9 | EF27: 48 | EG27: 42 | EH27: 23 | EI27: 18 | EJ27: 1 | EK27: - | EL27: 2 | EM27: 4 | EN27: 49 | EO27: 35 | EP27: 19 | EQ27: 15 | ER27: 1 | ES27: 6 | ET27: 3 | EU27: 5
A28: 群馬県 | B28: 前橋市 | C28: 上川渕村 | D28: 後閑 | E28: 63 | F28: 51 | G28: 8 | H28: 3 | I28: 12 | J28: 2 | K28: 31 | L28: 12 | M28: 134 | N28: - | O28: 1 | P28: 3 | Q28: 1 | R28: 7 | S28: 5 | T28: 7 | U28: 17 | V28: 14 | W28: 16 | X28: 20 | Y28: 14 | Z28: 15 | AA28: 9 | AB28: 5 | AC28: 61.8 | AD28: 60.3 | AE28: 63.5 | AF28: 75 | AG28: - | AH28: - | AI28: - | AJ28: - | AK28: 3 | AL28: 1 | AM28: 1 | AN28: 3 | AO28: 5 | AP28: 6 | AQ28: 15 | AR28: 14 | AS28: 14 | AT28: 8 | AU28: 5 | AV28: 69.5 | AW28: 70.3 | AX28: 68.8 | AY28: 61 | AZ28: - | BA28: - | BB28: - | BC28: - | BD28: 2 | BE28: - | BF28: 1 | BG28: 3 | BH28: 4 | BI28: 5 | BJ28: 13 | BK28: 14 | BL28: 10 | BM28: 6 | BN28: 3 | BO28: 69.3 | BP28: 70.1 | BQ28: 68.3 | BR28: 51 | BS28: - | BT28: - | BU28: - | BV28: - | BW28: 1 | BX28: - | BY28: 3 | BZ28: 5 | CA28: 8 | CB28: 8 | CC28: 8 | CD28: 9 | CE28: 4 | CF28: 3 | CG28: 2 | CH28: 30 | CI28: - | CJ28: - | CK28: 1 | CL28: - | CM28: 1 | CN28: 3 | CO28: 5 | CP28: 4 | CQ28: 6 | CR28: 4 | CS28: 3 | CT28: 1 | CU28: 2 | DC28: 181 | DD28: 134 | DE28: 61 | DF28: 67 | DG28: 6 | DH28: 12 | DI28: 13 | DJ28: 22 | DK28: 50 | DL28: 32 | DM28: 12 | DN28: - | DO28: - | DP28: - | DQ28: 4 | DR28: - | DS28: - | DT28: - | DU28: 1 | DV28: 1 | DW28: - | DX28: - | DY28: - | DZ28: - | EA28: 51 | EB28: 6,915 | EC28: 5,964 | ED28: 918 | EE28: 33 | EF28: 88 | EG28: 76 | EH28: 34 | EI28: 39 | EJ28: 3 | EK28: - | EL28: 6 | EM28: 6 | EN28: 93 | EO28: 58 | EP28: 27 | EQ28: 28 | ER28: 3 | ES28: 12 | ET28: 7 | EU28: 16
A29: 群馬県 | B29: 前橋市 | C29: 上川渕村 | D29: 下佐鳥 | E29: 30 | F29: 23 | G29: 2 | H29: 1 | I29: 12 | J29: 4 | K29: 9 | L29: 7 | M29: 73 | N29: 2 | O29: 3 | P29: 2 | Q29: 2 | R29: 2 | S29: 1 | T29: 4 | U29: 6 | V29: 12 | W29: 10 | X29: 5 | Y29: 4 | Z29: 4 | AA29: 10 | AB29: 6 | AC29: 60.2 | AD29: 58.6 | AE29: 61.9 | AF29: 41 | AG29: - | AH29: 1 | AI29: - | AJ29: - | AK29: - | AL29: - | AM29: 1 | AN29: 2 | AO29: 6 | AP29: 3 | AQ29: 4 | AR29: 4 | AS29: 4 | AT29: 10 | AU29: 6 | AV29: 70.8 | AW29: 70.4 | AX29: 71.0 | AY29: 25 | AZ29: - | BA29: - | BB29: - | BC29: - | BD29: - | BE29: - | BF29: 1 | BG29: - | BH29: 4 | BI29: 3 | BJ29: 3 | BK29: 3 | BL29: 4 | BM29: 5 | BN29: 2 | BO29: 70.8 | BP29: 69.7 | BQ29: 71.8 | BR29: 23 | BS29: - | BT29: - | BU29: - | BV29: - | BW29: - | BX29: - | BY29: 1 | BZ29: 2 | CA29: 4 | CB29: 8 | CC29: 2 | CD29: 2 | CE29: 2 | CF29: 2 | CG29: - | CH29: 13 | CI29: - | CJ29: - | CK29: - | CL29: - | CM29: 1 | CN29: 2 | CO29: - | CP29: 4 | CQ29: - | CR29: 2 | CS29: 2 | CT29: 2 | CU29: - | DC29: 91 | DD29: 60 | DE29: 25 | DF29: 30 | DG29: 5 | DH29: 9 | DI29: 10 | DJ29: 12 | DK29: 23 | DL29: 17 | DM29: 2 | DN29: 1 | DO29: - | DP29: 3 | DQ29: - | DR29: - | DS29: - | DT29: - | DU29: - | DV29: - | DW29: - | DX29: - | DY29: - | DZ29: - | EA29: 23 | EB29: 3,014 | EC29: 2,480 | ED29: 534 | EE29: - | EF29: 45 | EG29: 34 | EH29: 12 | EI29: 19 | EJ29: 3 | EK29: - | EL29: 6 | EM29: 5 | EN29: 46 | EO29: 26 | EP29: 13 | EQ29: 11 | ER29: 2 | ES29: 9 | ET29: 4 | EU29: 7
A30: 群馬県 | B30: 前橋市 | C30: 上川渕村 | D30: 宮地 | E30: 24 | F30: 14 | G30: 3 | H30: 1 | I30: 6 | J30: 1 | K30: 5 | L30: 10 | M30: 45 | N30: - | O30: - | P30: 6 | Q30: 2 | R30: 3 | S30: 3 | T30: 2 | U30: 3 | V30: 7 | W30: 3 | X30: 6 | Y30: 4 | Z30: 2 | AA30: 2 | AB30: 2 | AC30: 55.3 | AD30: 58.0 | AE30: 51.8 | AF30: 22 | AG30: - | AH30: - | AI30: - | AJ30: - | AK30: 1 | AL30: 1 | AM30: 1 | AN30: - | AO30: 3 | AP30: 1 | AQ30: 5 | AR30: 4 | AS30: 2 | AT30: 2 | AU30: 2 | AV30: 67.2 | AW30: 66.5 | AX30: 68.4 | AY30: 19 | AZ30: - | BA30: - | BB30: - | BC30: - | BD30: 1 | BE30: 1 | BF30: 1 | BG30: - | BH30: 2 | BI30: 1 | BJ30: 5 | BK30: 4 | BL30: 2 | BM30: 1 | BN30: 1 | BO30: 65.9 | BP30: 64.6 | BQ30: 68.7 | BR30: 14 | BS30: - | BT30: - | BU30: - | BV30: - | BW30: - | BX30: - | BY30: 1 | BZ30: - | CA30: 6 | CB30: 1 | CC30: 4 | CD30: 1 | CE30: 1 | CF30: - | CG30: - | CH30: 13 | CI30: - | CJ30: - | CK30: - | CL30: - | CM30: - | CN30: - | CO30: 6 | CP30: 1 | CQ30: 4 | CR30: 1 | CS30: 1 | CT30: - | CU30: - | DC30: 53 | DD30: 44 | DE30: 19 | DF30: 21 | DG30: 4 | DH30: 4 | DI30: 1 | DJ30: 4 | DK30: 14 | DL30: 8 | DM30: 3 | DN30: - | DO30: - | DP30: 3 | DQ30: - | DR30: - | DS30: - | DT30: - | DU30: - | DV30: - | DW30: - | DX30: - | DY30: - | DZ30: - | EA30: 14 | EB30: 2,225 | EC30: 1,650 | ED30: 530 | EE30: 45 | EF30: 29 | EG30: 27 | EH30: 13 | EI30: 11 | EJ30: 3 | EK30: - | EL30: 1 | EM30: 1 | EN30: 24 | EO30: 17 | EP30: 6 | EQ30: 10 | ER30: 1 | ES30: 4 | ET30: - | EU30: 3
A31: 群馬県 | B31: 前橋市 | C31: 下川渕村 | E31: 327 | F31: 182 | G31: 28 | H31: 22 | I31: 41 | J31: 5 | K31: 113 | L31: 145 | M31: 491 | N31: 6 | O31: 9 | P31: 18 | Q31: 12 | R31: 12 | S31: 21 | T31: 27 | U31: 51 | V31: 69 | W31: 59 | X31: 42 | Y31: 51 | Z31: 45 | AA31: 48 | AB31: 21 | AC31: 60.5 | AD31: 59.2 | AE31: 62.0 | AF31: 274 | AG31: 2 | AH31: 3 | AI31: - | AJ31: 3 | AK31: 3 | AL31: 3 | AM31: 4 | AN31: 8 | AO31: 20 | AP31: 33 | AQ31: 35 | AR31: 48 | AS31: 45 | AT31: 47 | AU31: 20 | AV31: 69.6 | AW31: 69.6 | AX31: 69.6 | AY31: 205 | AZ31: - | BA31: 1 | BB31: - | BC31: 2 | BD31: 1 | BE31: 1 | BF31: 3 | BG31: 6 | BH31: 19 | BI31: 25 | BJ31: 30 | BK31: 38 | BL31: 34 | BM31: 33 | BN31: 12 | BO31: 70.1 | BP31: 70.1 | BQ31: 70.1 | BR31: 182 | BS31: - | BT31: - | BU31: - | BV31: - | BW31: 1 | BX31: 2 | BY31: 6 | BZ31: 16 | CA31: 30 | CB31: 28 | CC31: 21 | CD31: 22 | CE31: 26 | CF31: 23 | CG31: 7 | CH31: 120 | CI31: - | CJ31: - | CK31: - | CL31: - | CM31: 2 | CN31: 8 | CO31: 19 | CP31: 13 | CQ31: 11 | CR31: 16 | CS31: 24 | CT31: 21 | CU31: 6 | DC31: 676 | DD31: 487 | DE31: 205 | DF31: 262 | DG31: 20 | DH31: 60 | DI31: 54 | DJ31: 75 | DK31: 164 | DL31: 90 | DM31: 47 | DN31: 3 | DO31: 1 | DP31: 5 | DQ31: 10 | DR31: 3 | DS31: 3 | DT31: 1 | DU31: - | DV31: 1 | DW31: - | DX31: - | DY31: - | DZ31: - | EA31: 182 | EB31: 23,247 | EC31: 17,386 | ED31: 5,693 | EE31: 168 | EF31: 329 | EG31: 281 | EH31: 121 | EI31: 148 | EJ31: 12 | EK31: - | EL31: 22 | EM31: 26 | EN31: 347 | EO31: 206 | EP31: 84 | EQ31: 114 | ER31: 8 | ES31: 60 | ET31: 32 | EU31: 49
A32: 群馬県 | B32: 前橋市 | C32: 下川渕村 | D32: 公田 | E32: 27 | F32: - | G32: - | H32: - | I32: - | J32: - | K32: - | L32: 27 | M32: - | N32: - | O32: - | P32: - | Q32: - | R32: - | S32: - | T32: - | U32: - | V32: - | W32: - | X32: - | Y32: - | Z32: - | AA32: - | AB32: - | AC32: … | AD32: … | AE32: … | AF32: - | AG32: - | AH32: - | AI32: - | AJ32: - | AK32: - | AL32: - | AM32: - | AN32: - | AO32: - | AP32: - | AQ32: - | AR32: - | AS32: - | AT32: - | AU32: - | AV32: … | AW32: … | AX32: … | AY32: - | AZ32: - | BA32: - | BB32: - | BC32: - | BD32: - | BE32: - | BF32: - | BG32: - | BH32: - | BI32: - | BJ32: - | BK32: - | BL32: - | BM32: - | BN32: - | BO32: … | BP32: … | BQ32: … | BR32: - | BS32: - | BT32: - | BU32: - | BV32: - | BW32: - | BX32: - | BY32: - | BZ32: - | CA32: - | CB32: - | CC32: - | CD32: - | CE32: - | CF32: - | CG32: - | CH32: - | CI32: - | CJ32: - | CK32: - | CL32: - | CM32: - | CN32: - | CO32: - | CP32: - | CQ32: - | CR32: - | CS32: - | CT32: - | CU32: - | DC32: - | DD32: - | DE32: - | DF32: - | DG32: - | DH32: - | DI32: - | DJ32: - | DK32: - | DL32: - | DM32: - | DN32: - | DO32: - | DP32: - | DQ32: - | DR32: - | DS32: - | DT32: - | DU32: - | DV32: - | DW32: - | DX32: - | DY32: - | DZ32: - | EA32: - | EB32: - | EC32: - | ED32: - | EE32: - | EF32: - | EG32: - | EH32: - | EI32: - | EJ32: - | EK32: - | EL32: - | EM32: - | EN32: - | EO32: - | EP32: - | EQ32: - | ER32: - | ES32: - | ET32: - | EU32: -
A33: 群馬県 | B33: 前橋市 | C33: 下川渕村 | D33: 横手 | E33: 37 | F33: 24 | G33: 6 | H33: 6 | I33: 3 | J33: - | K33: 15 | L33: 13 | M33: 61 | N33: 1 | O33: - | P33: - | Q33: 1 | R33: 3 | S33: 3 | T33: 2 | U33: 7 | V33: 3 | W33: 7 | X33: 9 | Y33: 11 | Z33: 5 | AA33: 6 | AB33: 3 | AC33: 63.7 | AD33: 64.7 | AE33: 62.6 | AF33: 41 | AG33: - | AH33: - | AI33: - | AJ33: - | AK33: 1 | AL33: - | AM33: - | AN33: 3 | AO33: - | AP33: 5 | AQ33: 7 | AR33: 11 | AS33: 5 | AT33: 6 | AU33: 3 | AV33: 71.2 | AW33: 73.0 | AX33: 69.3 | AY33: 35 | AZ33: - | BA33: - | BB33: - | BC33: - | BD33: - | BE33: - | BF33: - | BG33: 3 | BH33: - | BI33: 5 | BJ33: 7 | BK33: 10 | BL33: 4 | BM33: 4 | BN33: 2 | BO33: 70.9 | BP33: 72.2 | BQ33: 69.1 | BR33: 24 | BS33: - | BT33: - | BU33: - | BV33: - | BW33: 1 | BX33: - | BY33: - | BZ33: 2 | CA33: 1 | CB33: 2 | CC33: 4 | CD33: 5 | CE33: 3 | CF33: 5 | CG33: 1 | CH33: 12 | CI33: - | CJ33: - | CK33: - | CL33: - | CM33: - | CN33: - | CO33: - | CP33: 2 | CQ33: 1 | CR33: 3 | CS33: 3 | CT33: 3 | CU33: - | DC33: 79 | DD33: 61 | DE33: 35 | DF33: 26 | DG33: - | DH33: 9 | DI33: 3 | DJ33: 6 | DK33: 23 | DL33: 15 | DM33: 3 | DN33: - | DO33: - | DP33: - | DQ33: 5 | DR33: - | DS33: - | DT33: - | DU33: - | DV33: - | DW33: - | DX33: - | DY33: - | DZ33: - | EA33: 24 | EB33: 2,358 | EC33: 1,910 | ED33: 448 | EE33: - | EF33: 41 | EG33: 37 | EH33: 20 | EI33: 17 | EJ33: - | EK33: - | EL33: 1 | EM33: 3 | EN33: 38 | EO33: 24 | EP33: 15 | EQ33: 9 | ER33: - | ES33: 9 | ET33: 2 | EU33: 3
A34: 群馬県 | B34: 前橋市 | C34: 下川渕村 | D34: 竜門 | E34: 32 | F34: 24 | G34: 3 | H34: 3 | I34: 8 | J34: 1 | K34: 13 | L34: 8 | M34: 62 | N34: 2 | O34: - | P34: 2 | Q34: 2 | R34: - | S34: 4 | T34: 2 | U34: 6 | V34: 11 | W34: 6 | X34: 6 | Y34: 8 | Z34: 4 | AA34: 2 | AB34: 7 | AC34: 61.0 | AD34: 61.4 | AE34: 60.5 | AF34: 35 | AG34: 1 | AH34: - | AI34: - | AJ34: - | AK34: - | AL34: 1 | AM34: - | AN34: - | AO34: 5 | AP34: 4 | AQ34: 5 | AR34: 6 | AS34: 4 | AT34: 2 | AU34: 7 | AV34: 69.5 | AW34: 71.9 | AX34: 67.3 | AY34: 26 | AZ34: - | BA34: - | BB34: - | BC34: - | BD34: - | BE34: 1 | BF34: - | BG34: - | BH34: 5 | BI34: 2 | BJ34: 4 | BK34: 6 | BL34: 3 | BM34: 1 | BN34: 4 | BO34: 69.8 | BP34: 70.9 | BQ34: 68.6 | BR34: 24 | BS34: - | BT34: - | BU34: - | BV34: - | BW34: - | BX34: - | BY34: - | BZ34: 2 | CA34: 6 | CB34: 3 | CC34: 3 | CD34: 5 | CE34: 2 | CF34: 2 | CG34: 1 | CH34: 13 | CI34: - | CJ34: - | CK34: - | CL34: - | CM34: - | CN34: 1 | CO34: 3 | CP34: 1 | CQ34: - | CR34: 3 | CS34: 2 | CT34: 2 | CU34: 1 | DC34: 84 | DD34: 57 | DE34: 26 | DF34: 24 | DG34: 7 | DH34: 7 | DI34: 10 | DJ34: 10 | DK34: 18 | DL34: 10 | DM34: 5 | DN34: - | DO34: - | DP34: 1 | DQ34: 2 | DR34: - | DS34: - | DT34: - | DU34: - | DV34: - | DW34: - | DX34: - | DY34: - | DZ34: - | EA34: 24 | EB34: 6,026 | EC34: 4,855 | ED34: 1,171 | EE34: - | EF34: 37 | EG34: 31 | EH34: 14 | EI34: 13 | EJ34: 4 | EK34: - | EL34: 3 | EM34: 3 | EN34: 47 | EO34: 26 | EP34: 12 | EQ34: 11 | ER34: 3 | ES34: 7 | ET34: 7 | EU34: 7
A35: 群馬県 | B35: 前橋市 | C35: 下川渕村 | D35: 阿内宿 | E35: 15 | F35: 8 | G35: - | H35: - | I35: - | J35: - | K35: 8 | L35: 7 | M35: 17 | N35: - | O35: - | P35: 1 | Q35: - | R35: - | S35: 2 | T35: - | U35: - | V35: - | W35: 2 | X35: - | Y35: 6 | Z35: 3 | AA35: 3 | AB35: - | AC35: 66.8 | AD35: 62.7 | AE35: 72.7 | AF35: 14 | AG35: - | AH35: - | AI35: - | AJ35: - | AK35: - | AL35: - | AM35: - | AN35: - | AO35: - | AP35: 2 | AQ35: - | AR35: 6 | AS35: 3 | AT35: 3 | AU35: - | AV35: 73.2 | AW35: 73.7 | AX35: 72.7 | AY35: 6 | AZ35: - | BA35: - | BB35: - | BC35: - | BD35: - | BE35: - | BF35: - | BG35: - | BH35: - | BI35: 1 | BJ35: - | BK35: 3 | BL35: 1 | BM35: 1 | BN35: - | BO35: 72.2 | BP35: 72.2 | BQ35: … | BR35: 8 | BS35: - | BT35: - | BU35: - | BV35: - | BW35: - | BX35: - | BY35: - | BZ35: - | CA35: - | CB35: 1 | CC35: - | CD35: 3 | CE35: 2 | CF35: 2 | CG35: - | CH35: 6 | CI35: - | CJ35: - | CK35: - | CL35: - | CM35: - | CN35: - | CO35: - | CP35: - | CQ35: - | CR35: 3 | CS35: 1 | CT35: 2 | CU35: - | DC35: 28 | DD35: 15 | DE35: 6 | DF35: 8 | DG35: 1 | DH35: 8 | DI35: - | DJ35: 5 | DK35: 4 | DL35: 4 | DM35: - | DN35: - | DO35: - | DP35: - | DQ35: - | DR35: - | DS35: - | DT35: - | DU35: - | DV35: - | DW35: - | DX35: - | DY35: - | DZ35: - | EA35: 8 | EB35: 541 | EC35: 310 | ED35: 231 | EE35: - | EF35: 14 | EG35: 11 | EH35: 6 | EI35: 4 | EJ35: 1 | EK35: - | EL35: - | EM35: 3 | EN35: 14 | EO35: 4 | EP35: - | EQ35: 4 | ER35: - | ES35: 8 | ET35: - | EU35: 2
A36: 群馬県 | B36: 前橋市 | C36: 下川渕村 | D36: 寺家 | E36: 30 | F36: 17 | G36: 3 | H36: 3 | I36: 4 | J36: - | K36: 10 | L36: 13 | M36: 49 | N36: - | O36: 1 | P36: 3 | Q36: 1 | R36: 1 | S36: 5 | T36: 4 | U36: 4 | V36: 7 | W36: 4 | X36: 4 | Y36: 8 | Z36: 2 | AA36: 3 | AB36: 2 | AC36: 58.2 | AD36: 58.1 | AE36: 58.3 | AF36: 29 | AG36: - | AH36: 1 | AI36: - | AJ36: - | AK36: - | AL36: 1 | AM36: 1 | AN36: 1 | AO36: 3 | AP36: 3 | AQ36: 4 | AR36: 8 | AS36: 2 | AT36: 3 | AU36: 2 | AV36: 66.9 | AW36: 67.8 | AX36: 66.3 | AY36: 23 | AZ36: - | BA36: 1 | BB36: - | BC36: - | BD36: - | BE36: - | BF36: 1 | BG36: - | BH36: 3 | BI36: 2 | BJ36: 4 | BK36: 6 | BL36: 2 | BM36: 2 | BN36: 2 | BO36: 67.8 | BP36: 67.8 | BQ36: 67.8 | BR36: 17 | BS36: - | BT36: - | BU36: - | BV36: - | BW36: - | BX36: 1 | BY36: 2 | BZ36: 1 | CA36: 4 | CB36: 2 | CC36: 2 | CD36: 2 | CE36: 1 | CF36: 1 | CG36: 1 | CH36: 9 | CI36: - | CJ36: - | CK36: - | CL36: - | CM36: - | CN36: 1 | CO36: 3 | CP36: - | CQ36: 1 | CR36: 1 | CS36: 1 | CT36: 1 | CU36: 1 | DC36: 68 | DD36: 46 | DE36: 23 | DF36: 23 | DG36: - | DH36: 9 | DI36: 9 | DJ36: 4 | DK36: 16 | DL36: 12 | DM36: 1 | DN36: 1 | DO36: - | DP36: - | DQ36: 1 | DR36: - | DS36: - | DT36: 1 | DU36: - | DV36: - | DW36: - | DX36: - | DY36: - | DZ36: - | EA36: 17 | EB36: 1,342 | EC36: 889 | ED36: 453 | EE36: - | EF36: 31 | EG36: 26 | EH36: 13 | EI36: 13 | EJ36: - | EK36: - | EL36: 3 | EM36: 2 | EN36: 37 | EO36: 20 | EP36: 10 | EQ36: 10 | ER36: - | ES36: 9 | ET36: 6 | EU36: 2
A37: 群馬県 | B37: 前橋市 | C37: 下川渕村 | D37: 矢島 | E37: 21 | F37: 15 | G37: - | H37: - | I37: 2 | J37: - | K37: 13 | L37: 6 | M37: 40 | N37: - | O37: 1 | P37: 1 | Q37: - | R37: 2 | S37: 2 | T37: - | U37: 5 | V37: 8 | W37: 3 | X37: 4 | Y37: - | Z37: 4 | AA37: 7 | AB37: 3 | AC37: 63.2 | AD37: 63.1 | AE37: 63.3 | AF37: 15 | AG37: - | AH37: - | AI37: - | AJ37: - | AK37: - | AL37: - | AM37: - | AN37: - | AO37: 1 | AP37: - | AQ37: 2 | AR37: - | AS37: 4 | AT37: 6 | AU37: 2 | AV37: 78.3 | AW37: 77.4 | AX37: 79.4 | AY37: 9 | AZ37: - | BA37: - | BB37: - | BC37: - | BD37: - | BE37: - | BF37: - | BG37: - | BH37: - | BI37: - | BJ37: 2 | BK37: - | BL37: 2 | BM37: 5 | BN37: - | BO37: 78.4 | BP37: 79.0 | BQ37: 77.8 | BR37: 15 | BS37: - | BT37: - | BU37: - | BV37: - | BW37: - | BX37: 1 | BY37: - | BZ37: 2 | CA37: 3 | CB37: 2 | CC37: 2 | CD37: - | CE37: 2 | CF37: 2 | CG37: 1 | CH37: 10 | CI37: - | CJ37: - | CK37: - | CL37: - | CM37: - | CN37: 1 | CO37: 1 | CP37: 1 | CQ37: 2 | CR37: - | CS37: 2 | CT37: 2 | CU37: 1 | DC37: 60 | DD37: 42 | DE37: 9 | DF37: 30 | DG37: 3 | DH37: 4 | DI37: 2 | DJ37: 12 | DK37: 14 | DL37: 6 | DM37: 8 | DN37: - | DO37: - | DP37: - | DQ37: - | DR37: - | DS37: - | DT37: - | DU37: - | DV37: - | DW37: - | DX37: - | DY37: - | DZ37: - | EA37: 15 | EB37: 1,401 | EC37: 988 | ED37: 413 | EE37: - | EF37: 31 | EG37: 25 | EH37: 5 | EI37: 18 | EJ37: 2 | EK37: - | EL37: 2 | EM37: 4 | EN37: 29 | EO37: 17 | EP37: 4 | EQ37: 12 | ER37: 1 | ES37: 4 | ET37: - | EU37: 8
A38: 群馬県 | B38: 前橋市 | C38: 下川渕村 | D38: 鶴光路 | E38: 19 | F38: 6 | G38: 2 | H38: 2 | I38: - | J38: - | K38: 4 | L38: 13 | M38: 16 | N38: - | O38: - | P38: 1 | Q38: - | R38: - | S38: - | T38: 2 | U38: 1 | V38: 2 | W38: 1 | X38: 2 | Y38: 3 | Z38: 1 | AA38: 3 | AB38: - | AC38: 63.9 | AD38: 61.6 | AE38: 67.0 | AF38: 13 | AG38: - | AH38: - | AI38: - | AJ38: - | AK38: - | AL38: - | AM38: - | AN38: 1 | AO38: 2 | AP38: 1 | AQ38: 2 | AR38: 3 | AS38: 1 | AT38: 3 | AU38: - | AV38: 69.6 | AW38: 68.7 | AX38: 70.7 | AY38: 12 | AZ38: - | BA38: - | BB38: - | BC38: - | BD38: - | BE38: - | BF38: - | BG38: 1 | BH38: 2 | BI38: - | BJ38: 2 | BK38: 3 | BL38: 1 | BM38: 3 | BN38: - | BO38: 70.3 | BP38: 68.7 | BQ38: 72.4 | BR38: 6 | BS38: - | BT38: - | BU38: - | BV38: - | BW38: - | BX38: - | BY38: - | BZ38: - | CA38: 1 | CB38: - | CC38: 2 | CD38: 1 | CE38: 1 | CF38: 1 | CG38: - | CH38: 5 | CI38: - | CJ38: - | CK38: - | CL38: - | CM38: - | CN38: - | CO38: 1 | CP38: - | CQ38: 1 | CR38: 1 | CS38: 1 | CT38: 1 | CU38: - | DC38: 21 | DD38: 18 | DE38: 12 | DF38: 6 | DG38: - | DH38: 2 | DI38: 1 | DJ38: - | DK38: 6 | DL38: 4 | DM38: 1 | DN38: 1 | DO38: - | DP38: - | DQ38: - | DR38: - | DS38: - | DT38: - | DU38: - | DV38: - | DW38: - | DX38: - | DY38: - | DZ38: - | EA38: 6 | EB38: 1,017 | EC38: 675 | ED38: 327 | EE38: 15 | EF38: 10 | EG38: 10 | EH38: 7 | EI38: 3 | EJ38: - | EK38: - | EL38: - | EM38: - | EN38: 11 | EO38: 8 | EP38: 5 | EQ38: 3 | ER38: - | ES38: 2 | ET38: 1 | EU38: -
A39: 群馬県 | B39: 前橋市 | C39: 下川渕村 | D39: 新堀 | E39: 39 | F39: 6 | G39: 1 | H39: 1 | I39: 3 | J39: 1 | K39: 2 | L39: 33 | M39: 24 | N39: - | O39: - | P39: 3 | Q39: 2 | R39: 1 | S39: - | T39: - | U39: 4 | V39: 6 | W39: 1 | X39: - | Y39: - | Z39: - | AA39: 5 | AB39: 2 | AC39: 57.1 | AD39: 52.0 | AE39: 64.3 | AF39: 13 | AG39: - | AH39: - | AI39: - | AJ39: 1 | AK39: - | AL39: - | AM39: - | AN39: 1 | AO39: 3 | AP39: 1 | AQ39: - | AR39: - | AS39: - | AT39: 5 | AU39: 2 | AV39: 69.0 | AW39: 66.2 | AX39: 71.4 | AY39: 11 | AZ39: - | BA39: - | BB39: - | BC39: 1 | BD39: - | BE39: - | BF39: - | BG39: 1 | BH39: 3 | BI39: 1 | BJ39: - | BK39: - | BL39: - | BM39: 3 | BN39: 2 | BO39: 66.7 | BP39: 66.2 | BQ39: 67.4 | BR39: 6 | BS39: - | BT39: - | BU39: - | BV39: - | BW39: - | BX39: - | BY39: - | BZ39: 1 | CA39: 2 | CB39: - | CC39: - | CD39: - | CE39: - | CF39: 2 | CG39: 1 | CH39: 5 | CI39: - | CJ39: - | CK39: - | CL39: - | CM39: - | CN39: - | CO39: 2 | CP39: - | CQ39: - | CR39: - | CS39: - | CT39: 2 | CU39: 1 | DC39: 27 | DD39: 23 | DE39: 11 | DF39: 12 | DG39: - | DH39: - | DI39: 1 | DJ39: 3 | DK39: 5 | DL39: - | DM39: - | DN39: 1 | DO39: - | DP39: - | DQ39: 1 | DR39: 3 | DS39: - | DT39: - | DU39: - | DV39: - | DW39: - | DX39: - | DY39: - | DZ39: - | EA39: 6 | EB39: 451 | EC39: 114 | ED39: 204 | EE39: 133 | EF39: 16 | EG39: 14 | EH39: 6 | EI39: 8 | EJ39: - | EK39: - | EL39: 1 | EM39: 1 | EN39: 11 | EO39: 9 | EP39: 5 | EQ39: 4 | ER39: - | ES39: - | ET39: - | EU39: 2
A40: 群馬県 | B40: 前橋市 | C40: 下川渕村 | D40: 下阿内 | E40: 30 | F40: 27 | G40: 6 | H40: 3 | I40: 3 | J40: 1 | K40: 18 | L40: 3 | M40: 72 | N40: - | O40: 1 | P40: 4 | Q40: 1 | R40: 2 | S40: 1 | T40: 4 | U40: 8 | V40: 12 | W40: 7 | X40: 5 | Y40: 3 | Z40: 12 | AA40: 12 | AB40: - | AC40: 61.6 | AD40: 60.1 | AE40: 63.4 | AF40: 42 | AG40: - | AH40: - | AI40: - | AJ40: - | AK40: 1 | AL40: - | AM40: 1 | AN40: 1 | AO40: 4 | AP40: 5 | AQ40: 3 | AR40: 3 | AS40: 12 | AT40: 12 | AU40: - | AV40: 71.1 | AW40: 70.5 | AX40: 71.7 | AY40: 32 | AZ40: - | BA40: - | BB40: - | BC40: - | BD40: - | BE40: - | BF40: 1 | BG40: - | BH40: 4 | BI40: 3 | BJ40: 3 | BK40: 2 | BL40: 11 | BM40: 8 | BN40: - | BO40: 71.8 | BP40: 70.5 | BQ40: 74.3 | BR40: 27 | BS40: - | BT40: - | BU40: - | BV40: - | BW40: - | BX40: - | BY40: 2 | BZ40: 4 | CA40: 4 | CB40: 2 | CC40: 4 | CD40: 1 | CE40: 6 | CF40: 4 | CG40: - | CH40: 18 | CI40: - | CJ40: - | CK40: - | CL40: - | CM40: 1 | CN40: 1 | CO40: 3 | CP40: - | CQ40: 3 | CR40: 1 | CS40: 5 | CT40: 4 | CU40: - | DC40: 105 | DD40: 76 | DE40: 32 | DF40: 41 | DG40: 3 | DH40: 7 | DI40: 12 | DJ40: 10 | DK40: 25 | DL40: 9 | DM40: 13 | DN40: - | DO40: - | DP40: 1 | DQ40: - | DR40: - | DS40: 1 | DT40: - | DU40: - | DV40: 1 | DW40: - | DX40: - | DY40: - | DZ40: - | EA40: 27 | EB40: 3,369 | EC40: 2,326 | ED40: 1,040 | EE40: 3 | EF40: 46 | EG40: 42 | EH40: 21 | EI40: 20 | EJ40: 1 | EK40: - | EL40: 3 | EM40: 1 | EN40: 59 | EO40: 34 | EP40: 11 | EQ40: 21 | ER40: 2 | ES40: 7 | ET40: 9 | EU40: 9
A41: 群馬県 | B41: 前橋市 | C41: 下川渕村 | D41: 力丸 | E41: 54 | F41: 50 | G41: 5 | H41: 2 | I41: 16 | J41: 1 | K41: 29 | L41: 4 | M41: 136 | N41: 3 | O41: 6 | P41: 2 | Q41: 5 | R41: 2 | S41: 4 | T41: 11 | U41: 15 | V41: 18 | W41: 26 | X41: 10 | Y41: 11 | Z41: 14 | AA41: 5 | AB41: 4 | AC41: 57.8 | AD41: 55.6 | AE41: 60.4 | AF41: 63 | AG41: 1 | AH41: 2 | AI41: - | AJ41: 2 | AK41: - | AL41: 1 | AM41: 2 | AN41: 1 | AO41: - | AP41: 11 | AQ41: 10 | AR41: 10 | AS41: 14 | AT41: 5 | AU41: 4 | AV41: 66.6 | AW41: 64.9 | AX41: 68.1 | AY41: 43 | AZ41: - | BA41: - | BB41: - | BC41: 1 | BD41: - | BE41: - | BF41: 1 | BG41: 1 | BH41: - | BI41: 10 | BJ41: 6 | BK41: 8 | BL41: 10 | BM41: 4 | BN41: 2 | BO41: 69.3 | BP41: 69.2 | BQ41: 69.5 | BR41: 50 | BS41: - | BT41: - | BU41: - | BV41: - | BW41: - | BX41: - | BY41: 1 | BZ41: 3 | CA41: 9 | CB41: 15 | CC41: 3 | CD41: 5 | CE41: 9 | CF41: 3 | CG41: 2 | CH41: 39 | CI41: - | CJ41: - | CK41: - | CL41: - | CM41: 1 | CN41: 3 | CO41: 6 | CP41: 9 | CQ41: 2 | CR41: 4 | CS41: 9 | CT41: 3 | CU41: 2 | DC41: 186 | DD41: 136 | DE41: 43 | DF41: 88 | DG41: 5 | DH41: 12 | DI41: 14 | DJ41: 24 | DK41: 48 | DL41: 28 | DM41: 16 | DN41: - | DO41: 1 | DP41: 1 | DQ41: - | DR41: - | DS41: 2 | DT41: - | DU41: - | DV41: - | DW41: - | DX41: - | DY41: - | DZ41: - | EA41: 50 | EB41: 5,541 | EC41: 4,363 | ED41: 1,178 | EE41: - | EF41: 93 | EG41: 77 | EH41: 25 | EI41: 49 | EJ41: 3 | EK41: - | EL41: 8 | EM41: 8 | EN41: 93 | EO41: 59 | EP41: 18 | EQ41: 39 | ER41: 2 | ES41: 12 | ET41: 6 | EU41: 16
A42: 群馬県 | B42: 前橋市 | C42: 下川渕村 | D42: 徳丸 | E42: 11 | F42: 3 | G42: x | H42: x | I42: x | J42: x | K42: x | L42: 8 | M42: x | N42: x | O42: x | P42: x | Q42: x | R42: x | S42: x | T42: x | U42: x | V42: x | W42: x | X42: x | Y42: x | Z42: x | AA42: x | AB42: x | AC42: 61.3 | AD42: 54.8 | AE42: 69.5 | AF42: x | AG42: x | AH42: x | AI42: x | AJ42: x | AK42: x | AL42: x | AM42: x | AN42: x | AO42: x | AP42: x | AQ42: x | AR42: x | AS42: x | AT42: x | AU42: x | AV42: 70.0 | AW42: 71.0 | AX42: 69.5 | AY42: x | AZ42: x | BA42: x | BB42: x | BC42: x | BD42: x | BE42: x | BF42: x | BG42: x | BH42: x | BI42: x | BJ42: x | BK42: x | BL42: x | BM42: x | BN42: x | BO42: 69.2 | BP42: 71.0 | BQ42: 68.0 | BR42: 3 | BS42: - | BT42: - | BU42: - | BV42: - | BW42: - | BX42: - | BY42: 1 | BZ42: - | CA42: - | CB42: 1 | CC42: - | CD42: - | CE42: - | CF42: 1 | CG42: - | CH42: 1 | CI42: - | CJ42: - | CK42: - | CL42: - | CM42: - | CN42: - | CO42: - | CP42: - | CQ42: - | CR42: - | CS42: - | CT42: 1 | CU42: - | DC42: 9 | DD42: 8 | DE42: 5 | DF42: 2 | DG42: 1 | DH42: 1 | DI42: - | DJ42: - | DK42: 3 | DL42: 1 | DM42: - | DN42: - | DO42: - | DP42: 1 | DQ42: 1 | DR42: - | DS42: - | DT42: - | DU42: - | DV42: - | DW42: - | DX42: - | DY42: - | DZ42: - | EA42: 3 | EB42: 1,130 | EC42: 927 | ED42: 186 | EE42: 17 | EF42: 5 | EG42: 5 | EH42: 2 | EI42: 2 | EJ42: 1 | EK42: - | EL42: - | EM42: - | EN42: 4 | EO42: 3 | EP42: 3 | EQ42: - | ER42: - | ES42: 1 | ET42: - | EU42: -
A43: 群馬県 | B43: 前橋市 | C43: 下川渕村 | D43: 房丸 | E43: 12 | F43: 2 | G43: x | H43: x | I43: x | J43: x | K43: x | L43: 10 | M43: x | N43: x | O43: x | P43: x | Q43: x | R43: x | S43: x | T43: x | U43: x | V43: x | W43: x | X43: x | Y43: x | Z43: x | AA43: x | AB43: x | AC43: 54.0 | AD43: 52.3 | AE43: 56.5 | AF43: x | AG43: x | AH43: x | AI43: x | AJ43: x | AK43: x | AL43: x | AM43: x | AN43: x | AO43: x | AP43: x | AQ43: x | AR43: x | AS43: x | AT43: x | AU43: x | AV43: 56.0 | AW43: 51.5 | AX43: 65.0 | AY43: x | AZ43: x | BA43: x | BB43: x | BC43: x | BD43: x | BE43: x | BF43: x | BG43: x | BH43: x | BI43: x | BJ43: x | BK43: x | BL43: x | BM43: x | BN43: x | BO43: 56.0 | BP43: 51.5 | BQ43: 65.0 | BR43: 2 | BS43: - | BT43: - | BU43: - | BV43: - | BW43: - | BX43: - | BY43: - | BZ43: 1 | CA43: - | CB43: - | CC43: 1 | CD43: - | CE43: - | CF43: - | CG43: - | CH43: 2 | CI43: - | CJ43: - | CK43: - | CL43: - | CM43: - | CN43: 1 | CO43: - | CP43: - | CQ43: 1 | CR43: - | CS43: - | CT43: - | CU43: - | DC43: 9 | DD43: 5 | DE43: 3 | DF43: 2 | DG43: - | DH43: 1 | DI43: 2 | DJ43: 1 | DK43: 2 | DL43: 1 | DM43: - | DN43: - | DO43: - | DP43: 1 | DQ43: - | DR43: - | DS43: - | DT43: - | DU43: - | DV43: - | DW43: - | DX43: - | DY43: - | DZ43: - | EA43: 2 | EB43: 71 | EC43: 29 | ED43: 42 | EE43: - | EF43: 5 | EG43: 3 | EH43: 2 | EI43: 1 | EJ43: - | EK43: - | EL43: 1 | EM43: 1 | EN43: 4 | EO43: 2 | EP43: 1 | EQ43: 1 | ER43: - | ES43: 1 | ET43: 1 | EU43: -
A44: 群馬県 | B44: 前橋市 | C44: 南橘村 | E44: 375 | F44: 166 | G44: 33 | H44: 30 | I44: 18 | J44: 5 | K44: 115 | L44: 209 | M44: 381 | N44: 1 | O44: 3 | P44: 6 | Q44: 6 | R44: 8 | S44: 11 | T44: 22 | U44: 24 | V44: 44 | W44: 42 | X44: 40 | Y44: 64 | Z44: 45 | AA44: 48 | AB44: 17 | AC44: 65.1 | AD44: 63.4 | AE44: 67.0 | AF44: 281 | AG44: - | AH44: 1 | AI44: 2 | AJ44: - | AK44: 3 | AL44: 3 | AM44: 8 | AN44: 11 | AO44: 23 | AP44: 31 | AQ44: 32 | AR44: 59 | AS44: 44 | AT44: 47 | AU44: 17 | AV44: 69.9 | AW44: 70.3 | AX44: 69.5 | AY44: 222 | AZ44: - | BA44: - | BB44: 1 | BC44: - | BD44: 2 | BE44: 3 | BF44: 7 | BG44: 7 | BH44: 17 | BI44: 26 | BJ44: 28 | BK44: 47 | BL44: 39 | BM44: 34 | BN44: 11 | BO44: 69.9 | BP44: 71.2 | BQ44: 68.3 | BR44: 166 | BS44: - | BT44: - | BU44: - | BV44: - | BW44: - | BX44: 2 | BY44: 7 | BZ44: 8 | CA44: 15 | CB44: 23 | CC44: 19 | CD44: 36 | CE44: 26 | CF44: 23 | CG44: 7 | CH44: 95 | CI44: - | CJ44: - | CK44: - | CL44: 1 | CM44: 3 | CN44: 4 | CO44: 11 | CP44: 13 | CQ44: 10 | CR44: 21 | CS44: 16 | CT44: 13 | CU44: 3 | DC44: 546 | DD44: 402 | DE44: 222 | DF44: 165 | DG44: 15 | DH44: 49 | DI44: 40 | DJ44: 55 | DK44: 134 | DL44: 34 | DM44: - | DN44: - | DO44: - | DP44: 78 | DQ44: 6 | DR44: 3 | DS44: 4 | DT44: - | DU44: 3 | DV44: - | DW44: 3 | DX44: 3 | DY44: - | DZ44: - | EA44: 164 | EB44: 14,646 | EC44: 5,791 | ED44: 8,599 | EE44: 256 | EF44: 276 | EG44: 235 | EH44: 124 | EI44: 103 | EJ44: 8 | EK44: 1 | EL44: 21 | EM44: 19 | EN44: 270 | EO44: 167 | EP44: 98 | EQ44: 62 | ER44: 7 | ES44: 48 | ET44: 19 | EU44: 36
A45: 群馬県 | B45: 前橋市 | C45: 南橘村 | D45: 上細井 | E45: 100 | F45: 50 | G45: 11 | H45: 9 | I45: 4 | J45: - | K45: 35 | L45: 50 | M45: 109 | N45: - | O45: - | P45: 1 | Q45: 1 | R45: 1 | S45: 3 | T45: 6 | U45: 7 | V45: 10 | W45: 13 | X45: 11 | Y45: 24 | Z45: 13 | AA45: 16 | AB45: 3 | AC45: 67.0 | AD45: 65.9 | AE45: 68.2 | AF45: 84 | AG45: - | AH45: - | AI45: - | AJ45: - | AK45: - | AL45: 1 | AM45: 1 | AN45: 3 | AO45: 5 | AP45: 10 | AQ45: 10 | AR45: 22 | AS45: 13 | AT45: 16 | AU45: 3 | AV45: 71.3 | AW45: 71.9 | AX45: 70.9 | AY45: 72 | AZ45: - | BA45: - | BB45: - | BC45: - | BD45: - | BE45: 1 | BF45: 1 | BG45: 3 | BH45: 4 | BI45: 9 | BJ45: 10 | BK45: 19 | BL45: 13 | BM45: 9 | BN45: 3 | BO45: 70.5 | BP45: 72.3 | BQ45: 68.8 | BR45: 50 | BS45: - | BT45: - | BU45: - | BV45: - | BW45: - | BX45: 1 | BY45: 1 | BZ45: 2 | CA45: 2 | CB45: 9 | CC45: 7 | CD45: 12 | CE45: 8 | CF45: 7 | CG45: 1 | CH45: 23 | CI45: - | CJ45: - | CK45: - | CL45: 1 | CM45: - | CN45: 1 | CO45: 1 | CP45: 3 | CQ45: 2 | CR45: 8 | CS45: 5 | CT45: 2 | CU45: - | DC45: 167 | DD45: 129 | DE45: 72 | DF45: 55 | DG45: 2 | DH45: 9 | DI45: 18 | DJ45: 11 | DK45: 37 | DL45: - | DM45: - | DN45: - | DO45: - | DP45: 33 | DQ45: 2 | DR45: - | DS45: 1 | DT45: - | DU45: - | DV45: - | DW45: 1 | DX45: - | DY45: - | DZ45: - | EA45: 50 | EB45: 4,284 | EC45: 1,023 | ED45: 3,244 | EE45: 17 | EF45: 82 | EG45: 70 | EH45: 36 | EI45: 33 | EJ45: 1 | EK45: 1 | EL45: 9 | EM45: 2 | EN45: 85 | EO45: 59 | EP45: 36 | EQ45: 22 | ER45: 1 | ES45: 8 | ET45: 9 | EU45: 9
A46: 群馬県 | B46: 前橋市 | C46: 南橘村 | D46: 下細井 | E46: 19 | F46: 6 | G46: 3 | H46: 2 | I46: - | J46: - | K46: 3 | L46: 13 | M46: 14 | N46: - | O46: - | P46: - | Q46: - | R46: - | S46: - | T46: 1 | U46: - | V46: 5 | W46: 2 | X46: 1 | Y46: - | Z46: 2 | AA46: 1 | AB46: 2 | AC46: 66.8 | AD46: 65.9 | AE46: 68.4 | AF46: 9 | AG46: - | AH46: - | AI46: - | AJ46: - | AK46: - | AL46: - | AM46: 1 | AN46: - | AO46: 1 | AP46: 2 | AQ46: 1 | AR46: - | AS46: 1 | AT46: 1 | AU46: 2 | AV46: 69.9 | AW46: 68.7 | AX46: 74.0 | AY46: 6 | AZ46: - | BA46: - | BB46: - | BC46: - | BD46: - | BE46: - | BF46: 1 | BG46: - | BH46: 1 | BI46: 2 | BJ46: - | BK46: - | BL46: - | BM46: 1 | BN46: 1 | BO46: 65.3 | BP46: 66.8 | BQ46: 58.0 | BR46: 6 | BS46: - | BT46: - | BU46: - | BV46: - | BW46: - | BX46: - | BY46: - | BZ46: - | CA46: - | CB46: 2 | CC46: 1 | CD46: - | CE46: 1 | CF46: 1 | CG46: 1 | CH46: 2 | CI46: - | CJ46: - | CK46: - | CL46: - | CM46: - | CN46: - | CO46: - | CP46: 1 | CQ46: - | CR46: - | CS46: 1 | CT46: - | CU46: - | DC46: 18 | DD46: 11 | DE46: 6 | DF46: 4 | DG46: 1 | DH46: 2 | DI46: - | DJ46: 5 | DK46: 5 | DL46: 2 | DM46: - | DN46: - | DO46: - | DP46: - | DQ46: 1 | DR46: - | DS46: - | DT46: - | DU46: - | DV46: - | DW46: - | DX46: 2 | DY46: - | DZ46: - | EA46: 5 | EB46: 229 | EC46: 179 | ED46: 50 | EE46: - | EF46: 9 | EG46: 6 | EH46: 5 | EI46: 1 | EJ46: - | EK46: - | EL46: - | EM46: 3 | EN46: 9 | EO46: 5 | EP46: 1 | EQ46: 3 | ER46: 1 | ES46: 2 | ET46: - | EU46: 2
A47: 群馬県 | B47: 前橋市 | C47: 南橘村 | D47: 北代田 | E47: 26 | F47: 10 | G47: 1 | H47: 1 | I47: - | J47: - | K47: 9 | L47: 16 | M47: 24 | N47: - | O47: - | P47: - | Q47: - | R47: - | S47: - | T47: 1 | U47: - | V47: 4 | W47: - | X47: 4 | Y47: 7 | Z47: 2 | AA47: 4 | AB47: 2 | AC47: 71.2 | AD47: 73.3 | AE47: 69.4 | AF47: 17 | AG47: - | AH47: - | AI47: - | AJ47: - | AK47: - | AL47: - | AM47: - | AN47: - | AO47: 2 | AP47: - | AQ47: 3 | AR47: 5 | AS47: 2 | AT47: 3 | AU47: 2 | AV47: 73.9 | AW47: 75.8 | AX47: 72.3 | AY47: 15 | AZ47: - | BA47: - | BB47: - | BC47: - | BD47: - | BE47: - | BF47: - | BG47: - | BH47: 2 | BI47: - | BJ47: 2 | BK47: 4 | BL47: 2 | BM47: 3 | BN47: 2 | BO47: 74.4 | BP47: 75.8 | BQ47: 72.9 | BR47: 10 | BS47: - | BT47: - | BU47: - | BV47: - | BW47: - | BX47: - | BY47: - | BZ47: - | CA47: 1 | CB47: - | CC47: - | CD47: 5 | CE47: 2 | CF47: 1 | CG47: 1 | CH47: 6 | CI47: - | CJ47: - | CK47: - | CL47: - | CM47: - | CN47: - | CO47: 1 | CP47: - | CQ47: - | CR47: 3 | CS47: 1 | CT47: 1 | CU47: - | DC47: 27 | DD47: 23 | DE47: 15 | DF47: 6 | DG47: 2 | DH47: 4 | DI47: - | DJ47: - | DK47: 7 | DL47: 2 | DM47: - | DN47: - | DO47: - | DP47: 3 | DQ47: - | DR47: - | DS47: 2 | DT47: - | DU47: - | DV47: - | DW47: - | DX47: - | DY47: - | DZ47: - | EA47: 10 | EB47: 615 | EC47: 352 | ED47: 246 | EE47: 17 | EF47: 14 | EG47: 14 | EH47: 8 | EI47: 5 | EJ47: 1 | EK47: - | EL47: - | EM47: - | EN47: 13 | EO47: 9 | EP47: 7 | EQ47: 1 | ER47: 1 | ES47: 4 | ET47: - | EU47: -
A48: 群馬県 | B48: 前橋市 | C48: 南橘村 | D48: 下小出 | E48: 10 | F48: 1 | G48: x | H48: x | I48: x | J48: x | K48: x | L48: 9 | M48: x | N48: x | O48: x | P48: x | Q48: x | R48: x | S48: x | T48: x | U48: x | V48: x | W48: x | X48: x | Y48: x | Z48: x | AA48: x | AB48: x | AC48: 49.0 | AD48: 49.0 | AE48: … | AF48: x | AG48: x | AH48: x | AI48: x | AJ48: x | AK48: x | AL48: x | AM48: x | AN48: x | AO48: x | AP48: x | AQ48: x | AR48: x | AS48: x | AT48: x | AU48: x | AV48: … | AW48: … | AX48: … | AY48: x | AZ48: x | BA48: x | BB48: x | BC48: x | BD48: x | BE48: x | BF48: x | BG48: x | BH48: x | BI48: x | BJ48: x | BK48: x | BL48: x | BM48: x | BN48: x | BO48: … | BP48: … | BQ48: … | BR48: 1 | BS48: - | BT48: - | BU48: - | BV48: - | BW48: - | BX48: - | BY48: 1 | BZ48: - | CA48: - | CB48: - | CC48: - | CD48: - | CE48: - | CF48: - | CG48: - | CH48: - | CI48: - | CJ48: - | CK48: - | CL48: - | CM48: - | CN48: - | CO48: - | CP48: - | CQ48: - | CR48: - | CS48: - | CT48: - | CU48: - | DC48: 3 | DD48: 1 | DE48: - | DF48: - | DG48: 1 | DH48: 1 | DI48: - | DJ48: 1 | DK48: 1 | DL48: 1 | DM48: - | DN48: - | DO48: - | DP48: - | DQ48: - | DR48: - | DS48: - | DT48: - | DU48: - | DV48: - | DW48: - | DX48: - | DY48: - | DZ48: - | EA48: 1 | EB48: 52 | EC48: 52 | ED48: - | EE48: - | EF48: 2 | EG48: 1 | EH48: - | EI48: - | EJ48: 1 | EK48: - | EL48: - | EM48: 1 | EN48: 1 | EO48: - | EP48: - | EQ48: - | ER48: - | ES48: 1 | ET48: - | EU48: -
A49: 群馬県 | B49: 前橋市 | C49: 南橘村 | D49: 竜蔵寺 | E49: 19 | F49: 8 | G49: 2 | H49: 2 | I49: 1 | J49: - | K49: 5 | L49: 11 | M49: 19 | N49: - | O49: - | P49: - | Q49: 1 | R49: - | S49: 1 | T49: 1 | U49: - | V49: 6 | W49: - | X49: 5 | Y49: - | Z49: 4 | AA49: 1 | AB49: - | AC49: 62.6 | AD49: 62.4 | AE49: 62.8 | AF49: 14 | AG49: - | AH49: - | AI49: - | AJ49: - | AK49: - | AL49: - | AM49: - | AN49: - | AO49: 4 | AP49: - | AQ49: 5 | AR49: - | AS49: 4 | AT49: 1 | AU49: - | AV49: 67.9 | AW49: 69.9 | AX49: 66.0 | AY49: 13 | AZ49: - | BA49: - | BB49: - | BC49: - | BD49: - | BE49: - | BF49: - | BG49: - | BH49: 3 | BI49: - | BJ49: 5 | BK49: - | BL49: 4 | BM49: 1 | BN49: - | BO49: 68.9 | BP49: 69.9 | BQ49: 67.8 | BR49: 8 | BS49: - | BT49: - | BU49: - | BV49: - | BW49: - | BX49: - | BY49: - | BZ49: - | CA49: 3 | CB49: - | CC49: 2 | CD49: - | CE49: 2 | CF49: 1 | CG49: - | CH49: 5 | CI49: - | CJ49: - | CK49: - | CL49: - | CM49: - | CN49: - | CO49: 3 | CP49: - | CQ49: 1 | CR49: - | CS49: - | CT49: 1 | CU49: - | DC49: 25 | DD49: 22 | DE49: 13 | DF49: 9 | DG49: - | DH49: 1 | DI49: 2 | DJ49: - | DK49: 8 | DL49: 1 | DM49: - | DN49: - | DO49: - | DP49: 6 | DQ49: - | DR49: 1 | DS49: - | DT49: - | DU49: - | DV49: - | DW49: - | DX49: - | DY49: - | DZ49: - | EA49: 8 | EB49: 812 | EC49: 283 | ED49: 519 | EE49: 10 | EF49: 13 | EG49: 12 | EH49: 7 | EI49: 5 | EJ49: - | EK49: - | EL49: 1 | EM49: - | EN49: 12 | EO49: 10 | EP49: 6 | EQ49: 4 | ER49: - | ES49: 1 | ET49: 1 | EU49: -
A50: 群馬県 | B50: 前橋市 | C50: 南橘村 | D50: 青柳 | E50: 35 | F50: 14 | G50: - | H50: - | I50: 1 | J50: 1 | K50: 13 | L50: 21 | M50: 36 | N50: - | O50: - | P50: 1 | Q50: 2 | R50: 2 | S50: 1 | T50: 1 | U50: 2 | V50: 3 | W50: 4 | X50: 3 | Y50: 5 | Z50: 3 | AA50: 7 | AB50: 2 | AC50: 64.8 | AD50: 61.0 | AE50: 70.1 | AF50: 21 | AG50: - | AH50: - | AI50: - | AJ50: - | AK50: - | AL50: - | AM50: - | AN50: - | AO50: 1 | AP50: 2 | AQ50: 1 | AR50: 5 | AS50: 3 | AT50: 7 | AU50: 2 | AV50: 76.4 | AW50: 80.8 | AX50: 73.2 | AY50: 15 | AZ50: - | BA50: - | BB50: - | BC50: - | BD50: - | BE50: - | BF50: - | BG50: - | BH50: - | BI50: 1 | BJ50: 1 | BK50: 5 | BL50: 2 | BM50: 4 | BN50: 2 | BO50: 77.0 | BP50: 80.4 | BQ50: 73.1 | BR50: 14 | BS50: - | BT50: - | BU50: - | BV50: - | BW50: - | BX50: - | BY50: - | BZ50: 1 | CA50: - | CB50: 1 | CC50: 1 | CD50: 3 | CE50: 2 | CF50: 3 | CG50: 3 | CH50: 10 | CI50: - | CJ50: - | CK50: - | CL50: - | CM50: - | CN50: 1 | CO50: - | CP50: 1 | CQ50: 1 | CR50: 1 | CS50: 1 | CT50: 2 | CU50: 3 | DC50: 45 | DD50: 30 | DE50: 15 | DF50: 11 | DG50: 4 | DH50: 4 | DI50: 4 | DJ50: 7 | DK50: 9 | DL50: 5 | DM50: - | DN50: - | DO50: - | DP50: 4 | DQ50: - | DR50: - | DS50: - | DT50: - | DU50: - | DV50: - | DW50: - | DX50: - | DY50: - | DZ50: - | EA50: 14 | EB50: 701 | EC50: 438 | ED50: 263 | EE50: - | EF50: 26 | EG50: 20 | EH50: 8 | EI50: 10 | EJ50: 2 | EK50: - | EL50: 3 | EM50: 3 | EN50: 19 | EO50: 10 | EP50: 7 | EQ50: 1 | ER50: 2 | ES50: 4 | ET50: 1 | EU50: 4
A51: 群馬県 | B51: 前橋市 | C51: 南橘村 | D51: 日輪寺 | E51: 17 | F51: 6 | G51: 1 | H51: 1 | I51: 1 | J51: - | K51: 4 | L51: 11 | M51: 13 | N51: 1 | O51: - | P51: - | Q51: - | R51: - | S51: - | T51: - | U51: 1 | V51: 2 | W51: 1 | X51: 2 | Y51: 4 | Z51: 1 | AA51: 1 | AB51: - | AC51: 63.8 | AD51: 61.0 | AE51: 67.2 | AF51: 9 | AG51: - | AH51: - | AI51: - | AJ51: - | AK51: - | AL51: - | AM51: - | AN51: 1 | AO51: 1 | AP51: 1 | AQ51: 1 | AR51: 3 | AS51: 1 | AT51: 1 | AU51: - | AV51: 68.8 | AW51: 71.0 | AX51: 67.0 | AY51: 8 | AZ51: - | BA51: - | BB51: - | BC51: - | BD51: - | BE51: - | BF51: - | BG51: - | BH51: 1 | BI51: 1 | BJ51: 1 | BK51: 3 | BL51: 1 | BM51: 1 | BN51: - | BO51: 70.9 | BP51: 71.0 | BQ51: 70.8 | BR51: 6 | BS51: - | BT51: - | BU51: - | BV51: - | BW51: - | BX51: - | BY51: - | BZ51: - | CA51: 2 | CB51: - | CC51: - | CD51: 3 | CE51: - | CF51: 1 | CG51: - | CH51: 4 | CI51: - | CJ51: - | CK51: - | CL51: - | CM51: - | CN51: - | CO51: - | CP51: - | CQ51: - | CR51: 3 | CS51: - | CT51: 1 | CU51: - | DC51: 20 | DD51: 14 | DE51: 8 | DF51: 3 | DG51: 3 | DH51: 2 | DI51: 3 | DJ51: 1 | DK51: 6 | DL51: 3 | DM51: - | DN51: - | DO51: - | DP51: 2 | DQ51: 1 | DR51: - | DS51: - | DT51: - | DU51: - | DV51: - | DW51: - | DX51: - | DY51: - | DZ51: - | EA51: 6 | EB51: 529 | EC51: 307 | ED51: 222 | EE51: - | EF51: 9 | EG51: 7 | EH51: 4 | EI51: 2 | EJ51: 1 | EK51: - | EL51: 2 | EM51: - | EN51: 11 | EO51: 7 | EP51: 4 | EQ51: 1 | ER51: 2 | ES51: 2 | ET51: 1 | EU51: 1
A52: 群馬県 | B52: 前橋市 | C52: 南橘村 | D52: 川端 | E52: 14 | F52: 7 | G52: 2 | H52: 2 | I52: - | J52: - | K52: 5 | L52: 7 | M52: 18 | N52: - | O52: - | P52: 2 | Q52: 1 | R52: - | S52: - | T52: - | U52: 3 | V52: 2 | W52: 3 | X52: 2 | Y52: - | Z52: 5 | AA52: - | AB52: - | AC52: 58.6 | AD52: 58.9 | AE52: 58.3 | AF52: 12 | AG52: - | AH52: - | AI52: - | AJ52: - | AK52: - | AL52: - | AM52: - | AN52: 2 | AO52: 1 | AP52: 2 | AQ52: 2 | AR52: - | AS52: 5 | AT52: - | AU52: - | AV52: 67.2 | AW52: 70.2 | AX52: 64.2 | AY52: 10 | AZ52: - | BA52: - | BB52: - | BC52: - | BD52: - | BE52: - | BF52: - | BG52: - | BH52: 1 | BI52: 2 | BJ52: 2 | BK52: - | BL52: 5 | BM52: - | BN52: - | BO52: 70.2 | BP52: 70.2 | BQ52: 70.3 | BR52: 7 | BS52: - | BT52: - | BU52: - | BV52: - | BW52: - | BX52: - | BY52: - | BZ52: - | CA52: 1 | CB52: 2 | CC52: 1 | CD52: - | CE52: 3 | CF52: - | CG52: - | CH52: 5 | CI52: - | CJ52: - | CK52: - | CL52: - | CM52: - | CN52: - | CO52: - | CP52: 2 | CQ52: 1 | CR52: - | CS52: 2 | CT52: - | CU52: - | DC52: 25 | DD52: 19 | DE52: 10 | DF52: 8 | DG52: 1 | DH52: 3 | DI52: - | DJ52: 3 | DK52: 7 | DL52: 1 | DM52: - | DN52: - | DO52: - | DP52: 6 | DQ52: - | DR52: - | DS52: - | DT52: - | DU52: - | DV52: - | DW52: - | DX52: - | DY52: - | DZ52: - | EA52: 7 | EB52: 934 | EC52: 500 | ED52: 434 | EE52: - | EF52: 12 | EG52: 11 | EH52: 6 | EI52: 4 | EJ52: 1 | EK52: - | EL52: - | EM52: 1 | EN52: 13 | EO52: 8 | EP52: 4 | EQ52: 4 | ER52: - | ES52: 3 | ET52: - | EU52: 2
A53: 群馬県 | B53: 前橋市 | C53: 南橘村 | D53: 田口 | E53: 61 | F53: 36 | G53: 7 | H53: 7 | I53: 6 | J53: 3 | K53: 23 | L53: 25 | M53: 78 | N53: - | O53: 2 | P53: 1 | Q53: 1 | R53: 1 | S53: 3 | T53: 9 | U53: 6 | V53: 5 | W53: 9 | X53: 6 | Y53: 12 | Z53: 10 | AA53: 8 | AB53: 5 | AC53: 63.6 | AD53: 62.4 | AE53: 64.9 | AF53: 61 | AG53: - | AH53: 1 | AI53: 1 | AJ53: - | AK53: - | AL53: 1 | AM53: 5 | AN53: 2 | AO53: 3 | AP53: 8 | AQ53: 5 | AR53: 12 | AS53: 10 | AT53: 8 | AU53: 5 | AV53: 67.9 | AW53: 67.7 | AX53: 68.1 | AY53: 47 | AZ53: - | BA53: - | BB53: - | BC53: - | BD53: - | BE53: 1 | BF53: 4 | BG53: 2 | BH53: 3 | BI53: 5 | BJ53: 4 | BK53: 9 | BL53: 10 | BM53: 7 | BN53: 2 | BO53: 68.7 | BP53: 70.8 | BQ53: 66.0 | BR53: 36 | BS53: - | BT53: - | BU53: - | BV53: - | BW53: - | BX53: - | BY53: 4 | BZ53: 3 | CA53: 3 | CB53: 5 | CC53: 3 | CD53: 6 | CE53: 6 | CF53: 5 | CG53: 1 | CH53: 22 | CI53: - | CJ53: - | CK53: - | CL53: - | CM53: 3 | CN53: 1 | CO53: 3 | CP53: 3 | CQ53: 2 | CR53: 3 | CS53: 4 | CT53: 3 | CU53: - | DC53: 115 | DD53: 83 | DE53: 47 | DF53: 36 | DG53: - | DH53: 10 | DI53: 7 | DJ53: 15 | DK53: 28 | DL53: 4 | DM53: - | DN53: - | DO53: - | DP53: 17 | DQ53: 2 | DR53: 2 | DS53: 1 | DT53: - | DU53: 1 | DV53: - | DW53: 1 | DX53: - | DY53: - | DZ53: - | EA53: 36 | EB53: 4,409 | EC53: 1,739 | ED53: 2,472 | EE53: 198 | EF53: 60 | EG53: 50 | EH53: 26 | EI53: 24 | EJ53: - | EK53: - | EL53: 4 | EM53: 6 | EN53: 55 | EO53: 33 | EP53: 21 | EQ53: 12 | ER53: - | ES53: 10 | ET53: 3 | EU53: 9
A54: 群馬県 | B54: 前橋市 | C54: 南橘村 | D54: 関根 | E54: 35 | F54: 22 | G54: 5 | H54: 5 | I54: 5 | J54: 1 | K54: 12 | L54: 13 | M54: 56 | N54: - | O54: 1 | P54: 1 | Q54: - | R54: 3 | S54: 3 | T54: 2 | U54: 5 | V54: 7 | W54: 7 | X54: 6 | Y54: 7 | Z54: 3 | AA54: 8 | AB54: 3 | AC54: 63.0 | AD54: 60.0 | AE54: 67.1 | AF54: 42 | AG54: - | AH54: - | AI54: 1 | AJ54: - | AK54: 2 | AL54: 1 | AM54: 1 | AN54: 3 | AO54: 5 | AP54: 4 | AQ54: 4 | AR54: 7 | AS54: 3 | AT54: 8 | AU54: 3 | AV54: 66.5 | AW54: 65.6 | AX54: 67.4 | AY54: 28 | AZ54: - | BA54: - | BB54: 1 | BC54: - | BD54: 2 | BE54: 1 | BF54: 1 | BG54: 2 | BH54: 2 | BI54: 4 | BJ54: 3 | BK54: 4 | BL54: 1 | BM54: 6 | BN54: 1 | BO54: 64.1 | BP54: 64.5 | BQ54: 63.2 | BR54: 22 | BS54: - | BT54: - | BU54: - | BV54: - | BW54: - | BX54: 1 | BY54: 1 | BZ54: 2 | CA54: 3 | CB54: 3 | CC54: 4 | CD54: 4 | CE54: 2 | CF54: 2 | CG54: - | CH54: 16 | CI54: - | CJ54: - | CK54: - | CL54: - | CM54: - | CN54: 1 | CO54: 3 | CP54: 3 | CQ54: 3 | CR54: 2 | CS54: 2 | CT54: 2 | CU54: - | DC54: 87 | DD54: 60 | DE54: 28 | DF54: 31 | DG54: 1 | DH54: 11 | DI54: 6 | DJ54: 10 | DK54: 21 | DL54: 12 | DM54: - | DN54: - | DO54: - | DP54: 6 | DQ54: - | DR54: - | DS54: - | DT54: - | DU54: 1 | DV54: - | DW54: 1 | DX54: 1 | DY54: - | DZ54: - | EA54: 21 | EB54: 1,632 | EC54: 765 | ED54: 853 | EE54: 14 | EF54: 42 | EG54: 38 | EH54: 19 | EI54: 18 | EJ54: 1 | EK54: - | EL54: 2 | EM54: 2 | EN54: 45 | EO54: 22 | EP54: 9 | EQ54: 13 | ER54: - | ES54: 11 | ET54: 4 | EU54: 8
A55: 群馬県 | B55: 前橋市 | C55: 南橘村 | D55: 荒牧 | E55: 16 | F55: 1 | G55: x | H55: x | I55: x | J55: x | K55: x | L55: 15 | M55: x | N55: x | O55: x | P55: x | Q55: x | R55: x | S55: x | T55: x | U55: x | V55: x | W55: x | X55: x | Y55: x | Z55: x | AA55: x | AB55: x | AC55: 74.3 | AD55: 72.0 | AE55: 79.0 | AF55: x | AG55: x | AH55: x | AI55: x | AJ55: x | AK55: x | AL55: x | AM55: x | AN55: x | AO55: x | AP55: x | AQ55: x | AR55: x | AS55: x | AT55: x | AU55: x | AV55: 81.0 | AW55: 83.0 | AX55: 79.0 | AY55: x | AZ55: x | BA55: x | BB55: x | BC55: x | BD55: x | BE55: x | BF55: x | BG55: x | BH55: x | BI55: x | BJ55: x | BK55: x | BL55: x | BM55: x | BN55: x | BO55: 81.0 | BP55: 83.0 | BQ55: 79.0 | BR55: 1 | BS55: - | BT55: - | BU55: - | BV55: - | BW55: - | BX55: - | BY55: - | BZ55: - | CA55: - | CB55: - | CC55: - | CD55: - | CE55: - | CF55: 1 | CG55: - | CH55: 1 | CI55: - | CJ55: - | CK55: - | CL55: - | CM55: - | CN55: - | CO55: - | CP55: - | CQ55: - | CR55: - | CS55: - | CT55: 1 | CU55: - | DC55: 4 | DD55: 4 | DE55: 2 | DF55: 2 | DG55: - | DH55: - | DI55: - | DJ55: - | DK55: 1 | DL55: - | DM55: - | DN55: - | DO55: - | DP55: 1 | DQ55: - | DR55: - | DS55: - | DT55: - | DU55: - | DV55: - | DW55: - | DX55: - | DY55: - | DZ55: - | EA55: 1 | EB55: 87 | EC55: 34 | ED55: 53 | EE55: - | EF55: 2 | EG55: 2 | EH55: 1 | EI55: 1 | EJ55: - | EK55: - | EL55: - | EM55: - | EN55: 2 | EO55: 2 | EP55: 1 | EQ55: 1 | ER55: - | ES55: - | ET55: - | EU55: -
A56: 群馬県 | B56: 前橋市 | C56: 南橘村 | D56: 上小出 | E56: 17 | F56: 3 | G56: - | H56: - | I56: - | J56: - | K56: 3 | L56: 14 | M56: 6 | N56: - | O56: - | P56: - | Q56: - | R56: 1 | S56: - | T56: - | U56: - | V56: - | W56: - | X56: - | Y56: 3 | Z56: 1 | AA56: 1 | AB56: - | AC56: 68.8 | AD56: 63.7 | AE56: 74.0 | AF56: 6 | AG56: - | AH56: - | AI56: - | AJ56: - | AK56: 1 | AL56: - | AM56: - | AN56: - | AO56: - | AP56: - | AQ56: - | AR56: 3 | AS56: 1 | AT56: 1 | AU56: - | AV56: 68.8 | AW56: 63.7 | AX56: 74.0 | AY56: 3 | AZ56: - | BA56: - | BB56: - | BC56: - | BD56: - | BE56: - | BF56: - | BG56: - | BH56: - | BI56: - | BJ56: - | BK56: 2 | BL56: - | BM56: 1 | BN56: - | BO56: 75.3 | BP56: 77.5 | BQ56: 71.0 | BR56: 3 | BS56: - | BT56: - | BU56: - | BV56: - | BW56: - | BX56: - | BY56: - | BZ56: - | CA56: - | CB56: - | CC56: - | CD56: 2 | CE56: - | CF56: 1 | CG56: - | CH56: - | CI56: - | CJ56: - | CK56: - | CL56: - | CM56: - | CN56: - | CO56: - | CP56: - | CQ56: - | CR56: - | CS56: - | CT56: - | CU56: - | DC56: 6 | DD56: 3 | DE56: 3 | DF56: - | DG56: - | DH56: 2 | DI56: - | DJ56: 1 | DK56: 2 | DL56: 2 | DM56: - | DN56: - | DO56: - | DP56: - | DQ56: - | DR56: - | DS56: - | DT56: - | DU56: - | DV56: - | DW56: - | DX56: - | DY56: - | DZ56: - | EA56: 3 | EB56: 145 | EC56: 52 | ED56: 93 | EE56: - | EF56: 3 | EG56: 2 | EH56: 2 | EI56: - | EJ56: - | EK56: - | EL56: - | EM56: 1 | EN56: 3 | EO56: 1 | EP56: 1 | EQ56: - | ER56: - | ES56: 2 | ET56: - | EU56: -
A57: 群馬県 | B57: 前橋市 | C57: 南橘村 | D57: 川原 | E57: 6 | F57: 2 | G57: x | H57: x | I57: x | J57: x | K57: x | L57: 4 | M57: x | N57: x | O57: x | P57: x | Q57: x | R57: x | S57: x | T57: x | U57: x | V57: x | W57: x | X57: x | Y57: x | Z57: x | AA57: x | AB57: x | AC57: 67.5 | AD57: 68.5 | AE57: 66.5 | AF57: x | AG57: x | AH57: x | AI57: x | AJ57: x | AK57: x | AL57: x | AM57: x | AN57: x | AO57: x | AP57: x | AQ57: x | AR57: x | AS57: x | AT57: x | AU57: x | AV57: 67.5 | AW57: 68.5 | AX57: 66.5 | AY57: x | AZ57: x | BA57: x | BB57: x | BC57: x | BD57: x | BE57: x | BF57: x | BG57: x | BH57: x | BI57: x | BJ57: x | BK57: x | BL57: x | BM57: x | BN57: x | BO57: 66.0 | BP57: 68.5 | BQ57: 61.0 | BR57: 2 | BS57: - | BT57: - | BU57: - | BV57: - | BW57: - | BX57: - | BY57: - | BZ57: - | CA57: - | CB57: 1 | CC57: - | CD57: 1 | CE57: - | CF57: - | CG57: - | CH57: 1 | CI57: - | CJ57: - | CK57: - | CL57: - | CM57: - | CN57: - | CO57: - | CP57: - | CQ57: - | CR57: 1 | CS57: - | CT57: - | CU57: - | DC57: 4 | DD57: 3 | DE57: 3 | DF57: - | DG57: - | DH57: - | DI57: - | DJ57: 1 | DK57: 2 | DL57: 1 | DM57: - | DN57: - | DO57: - | DP57: - | DQ57: - | DR57: - | DS57: - | DT57: - | DU57: 1 | DV57: - | DW57: - | DX57: - | DY57: - | DZ57: - | EA57: 2 | EB57: 217 | EC57: 67 | ED57: 150 | EE57: - | EF57: 2 | EG57: 2 | EH57: 2 | EI57: - | EJ57: - | EK57: - | EL57: - | EM57: - | EN57: 2 | EO57: 1 | EP57: 1 | EQ57: - | ER57: - | ES57: - | ET57: - | EU57: 1
A58: 群馬県 | B58: 前橋市 | C58: 芳賀村 | E58: 560 | F58: 340 | G58: 90 | H58: 85 | I58: 62 | J58: 26 | K58: 188 | L58: 220 | M58: 851 | N58: 7 | O58: 12 | P58: 22 | Q58: 19 | R58: 29 | S58: 27 | T58: 48 | U58: 84 | V58: 117 | W58: 92 | X58: 105 | Y58: 97 | Z58: 87 | AA58: 75 | AB58: 30 | AC58: 61.5 | AD58: 59.8 | AE58: 63.4 | AF58: 579 | AG58: 4 | AH58: 3 | AI58: 4 | AJ58: 7 | AK58: 11 | AL58: 10 | AM58: 21 | AN58: 29 | AO58: 62 | AP58: 59 | AQ58: 87 | AR58: 92 | AS58: 86 | AT58: 74 | AU58: 30 | AV58: 66.9 | AW58: 66.4 | AX58: 67.5 | AY58: 511 | AZ58: - | BA58: 1 | BB58: 3 | BC58: 6 | BD58: 10 | BE58: 6 | BF58: 20 | BG58: 25 | BH58: 60 | BI58: 53 | BJ58: 79 | BK58: 87 | BL58: 81 | BM58: 60 | BN58: 20 | BO58: 67.2 | BP58: 67.0 | BQ58: 67.5 | BR58: 340 | BS58: - | BT58: - | BU58: - | BV58: 1 | BW58: 2 | BX58: - | BY58: 17 | BZ58: 29 | CA58: 62 | CB58: 44 | CC58: 65 | CD58: 52 | CE58: 42 | CF58: 18 | CG58: 8 | CH58: 230 | CI58: - | CJ58: - | CK58: - | CL58: - | CM58: 9 | CN58: 21 | CO58: 42 | CP58: 25 | CQ58: 46 | CR58: 35 | CS58: 28 | CT58: 17 | CU58: 7 | DC58: 1,201 | DD58: 933 | DE58: 511 | DF58: 381 | DG58: 41 | DH58: 68 | DI58: 80 | DJ58: 120 | DK58: 296 | DL58: 79 | DM58: 1 | DN58: 1 | DO58: 1 | DP58: 111 | DQ58: 17 | DR58: 5 | DS58: 49 | DT58: 1 | DU58: 16 | DV58: 7 | DW58: 2 | DX58: 1 | DY58: 5 | DZ58: - | EA58: 340 | EB58: 37,475 | EC58: 11,229 | ED58: 19,839 | EE58: 6,407 | EF58: 601 | EG58: 525 | EH58: 273 | EI58: 224 | EJ58: 28 | EK58: - | EL58: 43 | EM58: 33 | EN58: 600 | EO58: 408 | EP58: 238 | EQ58: 157 | ER58: 13 | ES58: 68 | ET58: 37 | EU58: 87
A59: 群馬県 | B59: 前橋市 | C59: 芳賀村 | D59: 勝沢 | E59: 59 | F59: 24 | G59: 7 | H59: 6 | I59: 3 | J59: 1 | K59: 14 | L59: 35 | M59: 59 | N59: - | O59: 1 | P59: 1 | Q59: - | R59: 3 | S59: - | T59: 6 | U59: 5 | V59: 11 | W59: 4 | X59: 8 | Y59: 5 | Z59: 5 | AA59: 7 | AB59: 3 | AC59: 62.4 | AD59: 61.7 | AE59: 63.3 | AF59: 41 | AG59: - | AH59: - | AI59: - | AJ59: - | AK59: 2 | AL59: - | AM59: 2 | AN59: - | AO59: 9 | AP59: 2 | AQ59: 6 | AR59: 5 | AS59: 5 | AT59: 7 | AU59: 3 | AV59: 67.9 | AW59: 71.2 | AX59: 65.0 | AY59: 39 | AZ59: - | BA59: - | BB59: - | BC59: - | BD59: 2 | BE59: - | BF59: 1 | BG59: - | BH59: 9 | BI59: 2 | BJ59: 6 | BK59: 5 | BL59: 5 | BM59: 6 | BN59: 3 | BO59: 68.1 | BP59: 71.2 | BQ59: 65.1 | BR59: 24 | BS59: - | BT59: - | BU59: - | BV59: - | BW59: - | BX59: - | BY59: 1 | BZ59: 2 | CA59: 6 | CB59: 1 | CC59: 6 | CD59: 2 | CE59: 3 | CF59: 2 | CG59: 1 | CH59: 20 | CI59: - | CJ59: - | CK59: - | CL59: - | CM59: 1 | CN59: 2 | CO59: 4 | CP59: 1 | CQ59: 4 | CR59: 2 | CS59: 3 | CT59: 2 | CU59: 1 | DC59: 86 | DD59: 64 | DE59: 39 | DF59: 25 | DG59: - | DH59: 3 | DI59: 10 | DJ59: 9 | DK59: 21 | DL59: 7 | DM59: - | DN59: - | DO59: - | DP59: 11 | DQ59: 1 | DR59: - | DS59: 1 | DT59: - | DU59: - | DV59: 1 | DW59: - | DX59: - | DY59: - | DZ59: - | EA59: 24 | EB59: 2,453 | EC59: 972 | ED59: 1,481 | EE59: - | EF59: 39 | EG59: 34 | EH59: 19 | EI59: 15 | EJ59: - | EK59: - | EL59: 4 | EM59: 1 | EN59: 47 | EO59: 30 | EP59: 20 | EQ59: 10 | ER59: - | ES59: 3 | ET59: 6 | EU59: 8
A60: 群馬県 | B60: 前橋市 | C60: 芳賀村 | D60: 小神明 | E60: 25 | F60: 16 | G60: 3 | H60: 2 | I60: 3 | J60: - | K60: 10 | L60: 9 | M60: 47 | N60: 2 | O60: - | P60: 3 | Q60: 1 | R60: 1 | S60: 2 | T60: 4 | U60: 6 | V60: 7 | W60: 2 | X60: 2 | Y60: 5 | Z60: 8 | AA60: 3 | AB60: 1 | AC60: 58.6 | AD60: 56.3 | AE60: 61.6 | AF60: 23 | AG60: - | AH60: - | AI60: - | AJ60: - | AK60: - | AL60: 1 | AM60: - | AN60: 1 | AO60: 3 | AP60: - | AQ60: 2 | AR60: 4 | AS60: 8 | AT60: 3 | AU60: 1 | AV60: 71.8 | AW60: 71.1 | AX60: 72.5 | AY60: 17 | AZ60: - | BA60: - | BB60: - | BC60: - | BD60: - | BE60: - | BF60: - | BG60: 1 | BH60: 3 | BI60: - | BJ60: 1 | BK60: 4 | BL60: 7 | BM60: 1 | BN60: - | BO60: 71.1 | BP60: 71.1 | BQ60: 71.0 | BR60: 16 | BS60: - | BT60: - | BU60: - | BV60: - | BW60: - | BX60: - | BY60: 3 | BZ60: 1 | CA60: 4 | CB60: 1 | CC60: - | CD60: 3 | CE60: 4 | CF60: - | CG60: - | CH60: 9 | CI60: - | CJ60: - | CK60: - | CL60: - | CM60: - | CN60: 1 | CO60: 3 | CP60: - | CQ60: - | CR60: 1 | CS60: 4 | CT60: - | CU60: - | DC60: 59 | DD60: 42 | DE60: 17 | DF60: 23 | DG60: 2 | DH60: 6 | DI60: 2 | DJ60: 9 | DK60: 15 | DL60: 5 | DM60: - | DN60: - | DO60: - | DP60: 8 | DQ60: 2 | DR60: - | DS60: - | DT60: - | DU60: - | DV60: - | DW60: - | DX60: - | DY60: - | DZ60: - | EA60: 16 | EB60: 1,455 | EC60: 653 | ED60: 802 | EE60: - | EF60: 30 | EG60: 26 | EH60: 12 | EI60: 12 | EJ60: 2 | EK60: - | EL60: 2 | EM60: 2 | EN60: 29 | EO60: 16 | EP60: 5 | EQ60: 11 | ER60: - | ES60: 6 | ET60: - | EU60: 7
A61: 群馬県 | B61: 前橋市 | C61: 芳賀村 | D61: 端気 | E61: 30 | F61: 21 | G61: 3 | H61: 3 | I61: 6 | J61: 1 | K61: 12 | L61: 9 | M61: 58 | N61: 1 | O61: 1 | P61: 1 | Q61: 1 | R61: 4 | S61: 4 | T61: 1 | U61: 7 | V61: 8 | W61: 4 | X61: 7 | Y61: 4 | Z61: 9 | AA61: 4 | AB61: 2 | AC61: 59.9 | AD61: 60.7 | AE61: 59.1 | AF61: 34 | AG61: 1 | AH61: - | AI61: - | AJ61: - | AK61: - | AL61: 3 | AM61: - | AN61: 1 | AO61: 3 | AP61: 1 | AQ61: 6 | AR61: 4 | AS61: 9 | AT61: 4 | AU61: 2 | AV61: 67.6 | AW61: 67.4 | AX61: 67.9 | AY61: 27 | AZ61: - | BA61: - | BB61: - | BC61: - | BD61: - | BE61: 2 | BF61: - | BG61: - | BH61: 3 | BI61: - | BJ61: 6 | BK61: 4 | BL61: 8 | BM61: 4 | BN61: - | BO61: 69.7 | BP61: 69.2 | BQ61: 70.3 | BR61: 21 | BS61: - | BT61: - | BU61: - | BV61: - | BW61: - | BX61: - | BY61: 1 | BZ61: 1 | CA61: 5 | CB61: 2 | CC61: 4 | CD61: 2 | CE61: 4 | CF61: 1 | CG61: 1 | CH61: 14 | CI61: - | CJ61: - | CK61: - | CL61: - | CM61: - | CN61: - | CO61: 3 | CP61: 1 | CQ61: 4 | CR61: 1 | CS61: 3 | CT61: 1 | CU61: 1 | DC61: 73 | DD61: 58 | DE61: 27 | DF61: 23 | DG61: 8 | DH61: 4 | DI61: 4 | DJ61: 7 | DK61: 21 | DL61: 12 | DM61: - | DN61: - | DO61: - | DP61: 4 | DQ61: 3 | DR61: - | DS61: - | DT61: - | DU61: - | DV61: - | DW61: 1 | DX61: - | DY61: 1 | DZ61: - | EA61: 21 | EB61: 1,351 | EC61: 843 | ED61: 438 | EE61: 70 | EF61: 35 | EG61: 29 | EH61: 14 | EI61: 11 | EJ61: 4 | EK61: - | EL61: 3 | EM61: 3 | EN61: 38 | EO61: 29 | EP61: 13 | EQ61: 12 | ER61: 4 | ES61: 4 | ET61: 1 | EU61: 4
A62: 群馬県 | B62: 前橋市 | C62: 芳賀村 | D62: 五代 | E62: 60 | F62: 33 | G62: 8 | H62: 7 | I62: 8 | J62: 2 | K62: 17 | L62: 27 | M62: 85 | N62: - | O62: 1 | P62: 4 | Q62: - | R62: 3 | S62: 2 | T62: 2 | U62: 8 | V62: 15 | W62: 9 | X62: 12 | Y62: 13 | Z62: 4 | AA62: 9 | AB62: 3 | AC62: 62.2 | AD62: 60.8 | AE62: 63.9 | AF62: 59 | AG62: - | AH62: - | AI62: - | AJ62: - | AK62: 1 | AL62: 1 | AM62: 2 | AN62: 3 | AO62: 8 | AP62: 6 | AQ62: 10 | AR62: 12 | AS62: 4 | AT62: 9 | AU62: 3 | AV62: 67.8 | AW62: 68.1 | AX62: 67.5 | AY62: 57 | AZ62: - | BA62: - | BB62: - | BC62: - | BD62: 1 | BE62: 1 | BF62: 2 | BG62: 2 | BH62: 7 | BI62: 6 | BJ62: 10 | BK62: 12 | BL62: 4 | BM62: 9 | BN62: 3 | BO62: 68.2 | BP62: 68.1 | BQ62: 68.3 | BR62: 33 | BS62: - | BT62: - | BU62: - | BV62: - | BW62: - | BX62: - | BY62: 1 | BZ62: 2 | CA62: 5 | CB62: 5 | CC62: 6 | CD62: 8 | CE62: 2 | CF62: 3 | CG62: 1 | CH62: 21 | CI62: - | CJ62: - | CK62: - | CL62: - | CM62: 1 | CN62: 1 | CO62: 3 | CP62: 3 | CQ62: 3 | CR62: 6 | CS62: - | CT62: 3 | CU62: 1 | DC62: 109 | DD62: 94 | DE62: 57 | DF62: 33 | DG62: 4 | DH62: 3 | DI62: 6 | DJ62: 6 | DK62: 33 | DL62: 12 | DM62: - | DN62: - | DO62: - | DP62: 12 | DQ62: 5 | DR62: - | DS62: 2 | DT62: - | DU62: 1 | DV62: 1 | DW62: - | DX62: - | DY62: - | DZ62: - | EA62: 33 | EB62: 2,835 | EC62: 1,371 | ED62: 1,464 | EE62: - | EF62: 47 | EG62: 45 | EH62: 28 | EI62: 15 | EJ62: 2 | EK62: - | EL62: 2 | EM62: - | EN62: 62 | EO62: 49 | EP62: 29 | EQ62: 18 | ER62: 2 | ES62: 3 | ET62: 4 | EU62: 6
A63: 群馬県 | B63: 前橋市 | C63: 芳賀村 | D63: 鳥取 | E63: 30 | F63: 6 | G63: 3 | H63: 3 | I63: 1 | J63: - | K63: 2 | L63: 24 | M63: 21 | N63: - | O63: - | P63: 1 | Q63: 2 | R63: 1 | S63: 2 | T63: 1 | U63: 1 | V63: 4 | W63: 3 | X63: - | Y63: 4 | Z63: - | AA63: - | AB63: 2 | AC63: 56.6 | AD63: 51.3 | AE63: 62.5 | AF63: 15 | AG63: - | AH63: - | AI63: - | AJ63: 2 | AK63: 1 | AL63: - | AM63: - | AN63: 1 | AO63: 2 | AP63: 3 | AQ63: - | AR63: 4 | AS63: - | AT63: - | AU63: 2 | AV63: 60.8 | AW63: 55.9 | AX63: 66.4 | AY63: 13 | AZ63: - | BA63: - | BB63: - | BC63: 1 | BD63: 1 | BE63: - | BF63: - | BG63: 1 | BH63: 2 | BI63: 3 | BJ63: - | BK63: 4 | BL63: - | BM63: - | BN63: 1 | BO63: 61.2 | BP63: 55.9 | BQ63: 69.6 | BR63: 6 | BS63: - | BT63: - | BU63: - | BV63: - | BW63: - | BX63: - | BY63: - | BZ63: - | CA63: 2 | CB63: 2 | CC63: - | CD63: 2 | CE63: - | CF63: - | CG63: - | CH63: 5 | CI63: - | CJ63: - | CK63: - | CL63: - | CM63: - | CN63: - | CO63: 2 | CP63: 1 | CQ63: - | CR63: 2 | CS63: - | CT63: - | CU63: - | DC63: 26 | DD63: 21 | DE63: 13 | DF63: 8 | DG63: - | DH63: 1 | DI63: - | DJ63: 4 | DK63: 6 | DL63: 2 | DM63: - | DN63: - | DO63: - | DP63: 2 | DQ63: 1 | DR63: - | DS63: - | DT63: - | DU63: - | DV63: 1 | DW63: - | DX63: - | DY63: - | DZ63: - | EA63: 6 | EB63: 562 | EC63: 209 | ED63: 353 | EE63: - | EF63: 12 | EG63: 11 | EH63: 8 | EI63: 3 | EJ63: - | EK63: - | EL63: - | EM63: 1 | EN63: 14 | EO63: 10 | EP63: 5 | EQ63: 5 | ER63: - | ES63: 1 | ET63: - | EU63: 3
A64: 群馬県 | B64: 前橋市 | C64: 芳賀村 | D64: 小坂子 | E64: 194 | F64: 115 | G64: 22 | H64: 22 | I64: 18 | J64: 10 | K64: 75 | L64: 79 | M64: 280 | N64: 3 | O64: 4 | P64: 6 | Q64: 8 | R64: 12 | S64: 13 | T64: 17 | U64: 25 | V64: 39 | W64: 30 | X64: 38 | Y64: 30 | Z64: 23 | AA64: 24 | AB64: 8 | AC64: 60.3 | AD64: 58.1 | AE64: 63.0 | AF64: 170 | AG64: 2 | AH64: 2 | AI64: 1 | AJ64: 1 | AK64: 3 | AL64: 3 | AM64: 9 | AN64: 6 | AO64: 13 | AP64: 16 | AQ64: 30 | AR64: 29 | AS64: 23 | AT64: 24 | AU64: 8 | AV64: 67.0 | AW64: 65.9 | AX64: 67.9 | AY64: 136 | AZ64: - | BA64: - | BB64: - | BC64: 1 | BD64: 2 | BE64: 1 | BF64: 9 | BG64: 5 | BH64: 12 | BI64: 12 | BJ64: 25 | BK64: 25 | BL64: 20 | BM64: 19 | BN64: 5 | BO64: 68.2 | BP64: 67.8 | BQ64: 68.6 | BR64: 115 | BS64: - | BT64: - | BU64: - | BV64: 1 | BW64: 2 | BX64: - | BY64: 8 | BZ64: 12 | CA64: 23 | CB64: 14 | CC64: 25 | CD64: 16 | CE64: 9 | CF64: 5 | CG64: - | CH64: 79 | CI64: - | CJ64: - | CK64: - | CL64: - | CM64: 6 | CN64: 10 | CO64: 13 | CP64: 9 | CQ64: 20 | CR64: 12 | CS64: 4 | CT64: 5 | CU64: - | DC64: 414 | DD64: 299 | DE64: 136 | DF64: 150 | DG64: 13 | DH64: 33 | DI64: 35 | DJ64: 47 | DK64: 83 | DL64: 31 | DM64: 1 | DN64: 1 | DO64: 1 | DP64: 25 | DQ64: 4 | DR64: - | DS64: 4 | DT64: - | DU64: 7 | DV64: 3 | DW64: 1 | DX64: 1 | DY64: 4 | DZ64: - | EA64: 115 | EB64: 12,261 | EC64: 4,368 | ED64: 7,388 | EE64: 505 | EF64: 212 | EG64: 176 | EH64: 73 | EI64: 93 | EJ64: 10 | EK64: - | EL64: 20 | EM64: 16 | EN64: 202 | EO64: 123 | EP64: 63 | EQ64: 57 | ER64: 3 | ES64: 33 | ET64: 15 | EU64: 31
A65: 群馬県 | B65: 前橋市 | C65: 芳賀村 | D65: 嶺 | E65: 111 | F65: 80 | G65: 22 | H65: 20 | I65: 16 | J65: 7 | K65: 42 | L65: 31 | M65: 199 | N65: 1 | O65: 3 | P65: 5 | Q65: 1 | R65: 4 | S65: 2 | T65: 13 | U65: 23 | V65: 16 | W65: 20 | X65: 24 | Y65: 29 | Z65: 33 | AA65: 15 | AB65: 10 | AC65: 64.4 | AD65: 63.4 | AE65: 65.6 | AF65: 153 | AG65: 1 | AH65: 1 | AI65: 2 | AJ65: - | AK65: 3 | AL65: 1 | AM65: 5 | AN65: 9 | AO65: 12 | AP65: 14 | AQ65: 21 | AR65: 27 | AS65: 32 | AT65: 15 | AU65: 10 | AV65: 68.3 | AW65: 67.9 | AX65: 68.7 | AY65: 141 | AZ65: - | BA65: 1 | BB65: 2 | BC65: - | BD65: 3 | BE65: 1 | BF65: 5 | BG65: 8 | BH65: 12 | BI65: 14 | BJ65: 20 | BK65: 26 | BL65: 32 | BM65: 10 | BN65: 7 | BO65: 67.8 | BP65: 67.9 | BQ65: 67.8 | BR65: 80 | BS65: - | BT65: - | BU65: - | BV65: - | BW65: - | BX65: - | BY65: 2 | BZ65: 7 | CA65: 7 | CB65: 10 | CC65: 14 | CD65: 15 | CE65: 17 | CF65: 3 | CG65: 5 | CH65: 56 | CI65: - | CJ65: - | CK65: - | CL65: - | CM65: 1 | CN65: 4 | CO65: 7 | CP65: 6 | CQ65: 10 | CR65: 10 | CS65: 12 | CT65: 2 | CU65: 4 | DC65: 286 | DD65: 236 | DE65: 141 | DF65: 90 | DG65: 5 | DH65: 10 | DI65: 15 | DJ65: 25 | DK65: 74 | DL65: 10 | DM65: - | DN65: - | DO65: - | DP65: 47 | DQ65: 1 | DR65: 4 | DS65: 2 | DT65: 1 | DU65: 8 | DV65: 1 | DW65: - | DX65: - | DY65: - | DZ65: - | EA65: 80 | EB65: 10,323 | EC65: 2,798 | ED65: 7,267 | EE65: 258 | EF65: 149 | EG65: 132 | EH65: 73 | EI65: 55 | EJ65: 4 | EK65: - | EL65: 9 | EM65: 8 | EN65: 137 | EO65: 104 | EP65: 68 | EQ65: 35 | ER65: 1 | ES65: 10 | ET65: 6 | EU65: 17
A66: 群馬県 | B66: 前橋市 | C66: 芳賀村 | D66: 金丸 | E66: 27 | F66: 23 | G66: 7 | H66: 7 | I66: 4 | J66: 3 | K66: 12 | L66: 4 | M66: 45 | N66: - | O66: - | P66: - | Q66: 3 | R66: - | S66: - | T66: 2 | U66: 2 | V66: 3 | W66: 12 | X66: 11 | Y66: 6 | Z66: 3 | AA66: 2 | AB66: 1 | AC66: 63.4 | AD66: 62.6 | AE66: 64.5 | AF66: 37 | AG66: - | AH66: - | AI66: - | AJ66: 2 | AK66: - | AL66: - | AM66: 2 | AN66: 2 | AO66: 1 | AP66: 9 | AQ66: 9 | AR66: 6 | AS66: 3 | AT66: 2 | AU66: 1 | AV66: 64.7 | AW66: 64.2 | AX66: 65.3 | AY66: 35 | AZ66: - | BA66: - | BB66: - | BC66: 2 | BD66: - | BE66: - | BF66: 2 | BG66: 2 | BH66: 1 | BI66: 8 | BJ66: 8 | BK66: 6 | BL66: 3 | BM66: 2 | BN66: 1 | BO66: 64.8 | BP66: 64.1 | BQ66: 65.6 | BR66: 23 | BS66: - | BT66: - | BU66: - | BV66: - | BW66: - | BX66: - | BY66: 1 | BZ66: 1 | CA66: 1 | CB66: 5 | CC66: 8 | CD66: 3 | CE66: 3 | CF66: 1 | CG66: - | CH66: 10 | CI66: - | CJ66: - | CK66: - | CL66: - | CM66: - | CN66: - | CO66: - | CP66: 3 | CQ66: 4 | CR66: - | CS66: 2 | CT66: 1 | CU66: - | DC66: 67 | DD66: 55 | DE66: 35 | DF66: 15 | DG66: 5 | DH66: 4 | DI66: 1 | DJ66: 7 | DK66: 21 | DL66: - | DM66: - | DN66: - | DO66: - | DP66: 1 | DQ66: - | DR66: 1 | DS66: 19 | DT66: - | DU66: - | DV66: - | DW66: - | DX66: - | DY66: - | DZ66: - | EA66: 23 | EB66: 2,603 | EC66: - | ED66: 413 | EE66: 2,190 | EF66: 35 | EG66: 33 | EH66: 19 | EI66: 11 | EJ66: 3 | EK66: - | EL66: - | EM66: 2 | EN66: 32 | EO66: 22 | EP66: 16 | EQ66: 4 | ER66: 2 | ES66: 4 | ET66: 1 | EU66: 5
A67: 群馬県 | B67: 前橋市 | C67: 芳賀村 | D67: 金丸就農 | E67: 24 | F67: 22 | G67: 15 | H67: 15 | I67: 3 | J67: 2 | K67: 4 | L67: 2 | M67: 57 | N67: - | O67: 2 | P67: 1 | Q67: 3 | R67: 1 | S67: 2 | T67: 2 | U67: 7 | V67: 14 | W67: 8 | X67: 3 | Y67: 1 | Z67: 2 | AA67: 11 | AB67: - | AC67: 58.8 | AD67: 56.0 | AE67: 63.2 | AF67: 47 | AG67: - | AH67: - | AI67: 1 | AJ67: 2 | AK67: 1 | AL67: 1 | AM67: 1 | AN67: 6 | AO67: 11 | AP67: 8 | AQ67: 3 | AR67: 1 | AS67: 2 | AT67: 10 | AU67: - | AV67: 61.4 | AW67: 60.1 | AX67: 63.2 | AY67: 46 | AZ67: - | BA67: - | BB67: 1 | BC67: 2 | BD67: 1 | BE67: 1 | BF67: 1 | BG67: 6 | BH67: 11 | BI67: 8 | BJ67: 3 | BK67: 1 | BL67: 2 | BM67: 9 | BN67: - | BO67: 61.0 | BP67: 60.1 | BQ67: 62.3 | BR67: 22 | BS67: - | BT67: - | BU67: - | BV67: - | BW67: - | BX67: - | BY67: - | BZ67: 3 | CA67: 9 | CB67: 4 | CC67: 2 | CD67: 1 | CE67: - | CF67: 3 | CG67: - | CH67: 16 | CI67: - | CJ67: - | CK67: - | CL67: - | CM67: - | CN67: 3 | CO67: 7 | CP67: 1 | CQ67: 1 | CR67: 1 | CS67: - | CT67: 3 | CU67: - | DC67: 81 | DD67: 64 | DE67: 46 | DF67: 14 | DG67: 4 | DH67: 4 | DI67: 7 | DJ67: 6 | DK67: 22 | DL67: - | DM67: - | DN67: - | DO67: - | DP67: 1 | DQ67: - | DR67: - | DS67: 21 | DT67: - | DU67: - | DV67: - | DW67: - | DX67: - | DY67: - | DZ67: - | EA67: 22 | EB67: 3,632 | EC67: 15 | ED67: 233 | EE67: 3,384 | EF67: 42 | EG67: 39 | EH67: 27 | EI67: 9 | EJ67: 3 | EK67: - | EL67: 3 | EM67: - | EN67: 39 | EO67: 25 | EP67: 19 | EQ67: 5 | ER67: 1 | ES67: 4 | ET67: 4 | EU67: 6
A68: 群馬県 | B68: 前橋市 | C68: 桂萓村 | E68: 603 | F68: 392 | G68: 57 | H68: 48 | I68: 70 | J68: 16 | K68: 265 | L68: 211 | M68: 1,012 | N68: 18 | O68: 19 | P68: 29 | Q68: 18 | R68: 35 | S68: 38 | T68: 64 | U68: 96 | V68: 143 | W68: 100 | X68: 84 | Y68: 115 | Z68: 141 | AA68: 83 | AB68: 29 | AC68: 60.7 | AD68: 59.5 | AE68: 62.1 | AF68: 584 | AG68: 6 | AH68: 4 | AI68: 4 | AJ68: 3 | AK68: 14 | AL68: 12 | AM68: 16 | AN68: 17 | AO68: 42 | AP68: 44 | AQ68: 73 | AR68: 106 | AS68: 137 | AT68: 78 | AU68: 28 | AV68: 68.6 | AW68: 68.4 | AX68: 68.8 | AY68: 467 | AZ68: 1 | BA68: - | BB68: 4 | BC68: 2 | BD68: 11 | BE68: 10 | BF68: 11 | BG68: 12 | BH68: 31 | BI68: 38 | BJ68: 64 | BK68: 97 | BL68: 118 | BM68: 53 | BN68: 15 | BO68: 69.1 | BP68: 68.8 | BQ68: 69.4 | BR68: 392 | BS68: - | BT68: - | BU68: 1 | BV68: 1 | BW68: 4 | BX68: 4 | BY68: 13 | BZ68: 33 | CA68: 58 | CB68: 55 | CC68: 43 | CD68: 57 | CE68: 76 | CF68: 32 | CG68: 15 | CH68: 294 | CI68: - | CJ68: - | CK68: - | CL68: 3 | CM68: 9 | CN68: 22 | CO68: 43 | CP68: 40 | CQ68: 32 | CR68: 40 | CS68: 62 | CT68: 28 | CU68: 15 | DC68: 1,406 | DD68: 1,018 | DE68: 467 | DF68: 498 | DG68: 53 | DH68: 123 | DI68: 100 | DJ68: 165 | DK68: 356 | DL68: 213 | DM68: 41 | DN68: - | DO68: - | DP68: 47 | DQ68: 22 | DR68: 8 | DS68: 1 | DT68: - | DU68: 14 | DV68: 2 | DW68: 6 | DX68: - | DY68: 2 | DZ68: - | EA68: 392 | EB68: 40,106 | EC68: 23,092 | ED68: 16,264 | EE68: 750 | EF68: 707 | EG68: 599 | EH68: 269 | EI68: 286 | EJ68: 44 | EK68: - | EL68: 57 | EM68: 51 | EN68: 699 | EO68: 419 | EP68: 198 | EQ68: 212 | ER68: 9 | ES68: 123 | ET68: 43 | EU68: 114
A69: 群馬県 | B69: 前橋市 | C69: 桂萓村 | D69: 三俣 | E69: 10 | F69: 3 | G69: - | H69: - | I69: - | J69: - | K69: 3 | L69: 7 | M69: 6 | N69: - | O69: - | P69: - | Q69: - | R69: - | S69: - | T69: 1 | U69: - | V69: - | W69: - | X69: - | Y69: 2 | Z69: 3 | AA69: - | AB69: - | AC69: 70.5 | AD69: 76.0 | AE69: 65.0 | AF69: 5 | AG69: - | AH69: - | AI69: - | AJ69: - | AK69: - | AL69: - | AM69: - | AN69: - | AO69: - | AP69: - | AQ69: - | AR69: 2 | AS69: 3 | AT69: - | AU69: - | AV69: 75.0 | AW69: 76.0 | AX69: 73.5 | AY69: 5 | AZ69: - | BA69: - | BB69: - | BC69: - | BD69: - | BE69: - | BF69: - | BG69: - | BH69: - | BI69: - | BJ69: - | BK69: 2 | BL69: 3 | BM69: - | BN69: - | BO69: 75.0 | BP69: 76.0 | BQ69: 73.5 | BR69: 3 | BS69: - | BT69: - | BU69: - | BV69: - | BW69: - | BX69: - | BY69: - | BZ69: - | CA69: - | CB69: - | CC69: - | CD69: 1 | CE69: 2 | CF69: - | CG69: - | CH69: 2 | CI69: - | CJ69: - | CK69: - | CL69: - | CM69: - | CN69: - | CO69: - | CP69: - | CQ69: - | CR69: 1 | CS69: 1 | CT69: - | CU69: - | DC69: 11 | DD69: 8 | DE69: 5 | DF69: 2 | DG69: 1 | DH69: 1 | DI69: 2 | DJ69: - | DK69: 2 | DL69: - | DM69: - | DN69: - | DO69: - | DP69: - | DQ69: 2 | DR69: - | DS69: - | DT69: - | DU69: - | DV69: - | DW69: - | DX69: - | DY69: - | DZ69: - | EA69: 3 | EB69: 146 | EC69: 126 | ED69: 20 | EE69: - | EF69: 5 | EG69: 4 | EH69: 3 | EI69: 1 | EJ69: - | EK69: - | EL69: 1 | EM69: - | EN69: 6 | EO69: 4 | EP69: 2 | EQ69: 1 | ER69: 1 | ES69: 1 | ET69: 1 | EU69: -
A70: 群馬県 | B70: 前橋市 | C70: 桂萓村 | D70: 幸塚 | E70: 30 | F70: 13 | G70: 2 | H70: 1 | I70: - | J70: - | K70: 11 | L70: 17 | M70: 29 | N70: - | O70: - | P70: - | Q70: - | R70: - | S70: 2 | T70: 1 | U70: 3 | V70: 5 | W70: 2 | X70: 1 | Y70: 4 | Z70: 9 | AA70: 2 | AB70: - | AC70: 65.5 | AD70: 66.5 | AE70: 64.4 | AF70: 15 | AG70: - | AH70: - | AI70: - | AJ70: - | AK70: - | AL70: - | AM70: - | AN70: - | AO70: 1 | AP70: 1 | AQ70: 1 | AR70: 3 | AS70: 8 | AT70: 1 | AU70: - | AV70: 72.7 | AW70: 73.0 | AX70: 72.5 | AY70: 12 | AZ70: - | BA70: - | BB70: - | BC70: - | BD70: - | BE70: - | BF70: - | BG70: - | BH70: 1 | BI70: 1 | BJ70: 1 | BK70: 3 | BL70: 6 | BM70: - | BN70: - | BO70: 71.3 | BP70: 73.0 | BQ70: 68.8 | BR70: 13 | BS70: - | BT70: - | BU70: - | BV70: - | BW70: - | BX70: - | BY70: 1 | BZ70: - | CA70: 2 | CB70: 2 | CC70: - | CD70: 1 | CE70: 6 | CF70: 1 | CG70: - | CH70: 8 | CI70: - | CJ70: - | CK70: - | CL70: - | CM70: 1 | CN70: - | CO70: 1 | CP70: 1 | CQ70: - | CR70: 1 | CS70: 4 | CT70: - | CU70: - | DC70: 37 | DD70: 28 | DE70: 12 | DF70: 12 | DG70: 4 | DH70: 6 | DI70: 2 | DJ70: 1 | DK70: 12 | DL70: 10 | DM70: - | DN70: - | DO70: - | DP70: - | DQ70: 2 | DR70: - | DS70: - | DT70: - | DU70: - | DV70: - | DW70: - | DX70: - | DY70: - | DZ70: - | EA70: 13 | EB70: 680 | EC70: 573 | ED70: 107 | EE70: - | EF70: 16 | EG70: 15 | EH70: 7 | EI70: 5 | EJ70: 3 | EK70: - | EL70: 1 | EM70: - | EN70: 21 | EO70: 13 | EP70: 5 | EQ70: 7 | ER70: 1 | ES70: 6 | ET70: 1 | EU70: 1
A71: 群馬県 | B71: 前橋市 | C71: 桂萓村 | D71: 上沖 | E71: 45 | F71: 29 | G71: 12 | H71: 12 | I71: 4 | J71: 2 | K71: 13 | L71: 16 | M71: 83 | N71: 2 | O71: 3 | P71: 7 | Q71: 2 | R71: 4 | S71: 2 | T71: 5 | U71: 4 | V71: 13 | W71: 14 | X71: 7 | Y71: 7 | Z71: 4 | AA71: 6 | AB71: 3 | AC71: 56.0 | AD71: 53.1 | AE71: 61.0 | AF71: 52 | AG71: 1 | AH71: - | AI71: 2 | AJ71: 1 | AK71: 3 | AL71: 2 | AM71: - | AN71: 2 | AO71: 7 | AP71: 9 | AQ71: 6 | AR71: 6 | AS71: 4 | AT71: 6 | AU71: 3 | AV71: 62.4 | AW71: 59.6 | AX71: 66.1 | AY71: 47 | AZ71: 1 | BA71: - | BB71: 2 | BC71: 1 | BD71: 3 | BE71: 2 | BF71: - | BG71: 2 | BH71: 7 | BI71: 8 | BJ71: 6 | BK71: 5 | BL71: 4 | BM71: 5 | BN71: 1 | BO71: 60.6 | BP71: 57.8 | BQ71: 64.8 | BR71: 29 | BS71: - | BT71: - | BU71: 1 | BV71: - | BW71: - | BX71: - | BY71: 2 | BZ71: 2 | CA71: 6 | CB71: 7 | CC71: 4 | CD71: 3 | CE71: - | CF71: 2 | CG71: 2 | CH71: 26 | CI71: - | CJ71: - | CK71: - | CL71: - | CM71: 2 | CN71: 2 | CO71: 6 | CP71: 5 | CQ71: 4 | CR71: 3 | CS71: - | CT71: 2 | CU71: 2 | DC71: 122 | DD71: 97 | DE71: 47 | DF71: 50 | DG71: - | DH71: 8 | DI71: 6 | DJ71: 11 | DK71: 24 | DL71: 8 | DM71: 2 | DN71: - | DO71: - | DP71: 5 | DQ71: 7 | DR71: - | DS71: - | DT71: - | DU71: 1 | DV71: 1 | DW71: - | DX71: - | DY71: - | DZ71: - | EA71: 29 | EB71: 3,462 | EC71: 2,017 | ED71: 1,445 | EE71: - | EF71: 66 | EG71: 60 | EH71: 28 | EI71: 32 | EJ71: - | EK71: - | EL71: 3 | EM71: 3 | EN71: 56 | EO71: 37 | EP71: 19 | EQ71: 18 | ER71: - | ES71: 8 | ET71: 3 | EU71: 8
A72: 群馬県 | B72: 前橋市 | C72: 桂萓村 | D72: 下沖 | E72: 32 | F72: 20 | G72: 1 | H72: 1 | I72: 3 | J72: 1 | K72: 16 | L72: 12 | M72: 49 | N72: 1 | O72: 1 | P72: - | Q72: 1 | R72: 3 | S72: - | T72: 2 | U72: 4 | V72: 7 | W72: 7 | X72: 5 | Y72: 2 | Z72: 6 | AA72: 8 | AB72: 2 | AC72: 63.1 | AD72: 59.9 | AE72: 68.7 | AF72: 22 | AG72: - | AH72: - | AI72: - | AJ72: - | AK72: - | AL72: - | AM72: - | AN72: - | AO72: 1 | AP72: 1 | AQ72: 4 | AR72: 2 | AS72: 6 | AT72: 6 | AU72: 2 | AV72: 75.7 | AW72: 75.3 | AX72: 76.3 | AY72: 18 | AZ72: - | BA72: - | BB72: - | BC72: - | BD72: - | BE72: - | BF72: - | BG72: - | BH72: 1 | BI72: 1 | BJ72: 3 | BK72: 2 | BL72: 5 | BM72: 4 | BN72: 2 | BO72: 75.4 | BP72: 75.3 | BQ72: 75.8 | BR72: 20 | BS72: - | BT72: - | BU72: - | BV72: - | BW72: - | BX72: - | BY72: 1 | BZ72: 1 | CA72: 2 | CB72: 2 | CC72: 4 | CD72: 1 | CE72: 3 | CF72: 4 | CG72: 2 | CH72: 12 | CI72: - | CJ72: - | CK72: - | CL72: - | CM72: 1 | CN72: 1 | CO72: 2 | CP72: - | CQ72: 2 | CR72: 1 | CS72: - | CT72: 3 | CU72: 2 | DC72: 68 | DD72: 45 | DE72: 18 | DF72: 24 | DG72: 3 | DH72: 7 | DI72: 6 | DJ72: 10 | DK72: 20 | DL72: 20 | DM72: - | DN72: - | DO72: - | DP72: - | DQ72: - | DR72: - | DS72: - | DT72: - | DU72: - | DV72: - | DW72: - | DX72: - | DY72: - | DZ72: - | EA72: 20 | EB72: 1,723 | EC72: 1,411 | ED72: 312 | EE72: - | EF72: 35 | EG72: 29 | EH72: 13 | EI72: 13 | EJ72: 3 | EK72: - | EL72: 4 | EM72: 2 | EN72: 33 | EO72: 16 | EP72: 5 | EQ72: 11 | ER72: - | ES72: 7 | ET72: 2 | EU72: 8
A73: 群馬県 | B73: 前橋市 | C73: 桂萓村 | D73: 西片貝 | E73: 61 | F73: 35 | G73: 4 | H73: 4 | I73: 6 | J73: 1 | K73: 25 | L73: 26 | M73: 102 | N73: 1 | O73: 2 | P73: 3 | Q73: 2 | R73: 3 | S73: 8 | T73: 4 | U73: 11 | V73: 13 | W73: 9 | X73: 10 | Y73: 9 | Z73: 16 | AA73: 9 | AB73: 2 | AC73: 60.8 | AD73: 60.6 | AE73: 61.0 | AF73: 59 | AG73: 1 | AH73: 1 | AI73: - | AJ73: 1 | AK73: 1 | AL73: 2 | AM73: 2 | AN73: 3 | AO73: 2 | AP73: 4 | AQ73: 8 | AR73: 9 | AS73: 15 | AT73: 9 | AU73: 1 | AV73: 67.4 | AW73: 69.2 | AX73: 65.7 | AY73: 40 | AZ73: - | BA73: - | BB73: - | BC73: - | BD73: 1 | BE73: 1 | BF73: 1 | BG73: 1 | BH73: 2 | BI73: 1 | BJ73: 6 | BK73: 8 | BL73: 12 | BM73: 6 | BN73: 1 | BO73: 70.9 | BP73: 71.0 | BQ73: 70.8 | BR73: 35 | BS73: - | BT73: - | BU73: - | BV73: - | BW73: 2 | BX73: - | BY73: - | BZ73: 3 | CA73: 4 | CB73: 3 | CC73: 6 | CD73: 4 | CE73: 9 | CF73: 4 | CG73: - | CH73: 28 | CI73: - | CJ73: - | CK73: - | CL73: - | CM73: - | CN73: 2 | CO73: 4 | CP73: 3 | CQ73: 5 | CR73: 4 | CS73: 7 | CT73: 3 | CU73: - | DC73: 137 | DD73: 91 | DE73: 40 | DF73: 45 | DG73: 6 | DH73: 18 | DI73: 9 | DJ73: 19 | DK73: 31 | DL73: 22 | DM73: 4 | DN73: - | DO73: - | DP73: 2 | DQ73: - | DR73: 1 | DS73: 1 | DT73: - | DU73: 1 | DV73: - | DW73: - | DX73: - | DY73: - | DZ73: - | EA73: 35 | EB73: 3,097 | EC73: 2,306 | ED73: 691 | EE73: 100 | EF73: 66 | EG73: 54 | EH73: 24 | EI73: 25 | EJ73: 5 | EK73: - | EL73: 7 | EM73: 5 | EN73: 71 | EO73: 37 | EP73: 16 | EQ73: 20 | ER73: 1 | ES73: 18 | ET73: 2 | EU73: 14
A74: 群馬県 | B74: 前橋市 | C74: 桂萓村 | D74: 東片貝 | E74: 25 | F74: 19 | G74: - | H74: - | I74: 6 | J74: 2 | K74: 13 | L74: 6 | M74: 61 | N74: 6 | O74: 1 | P74: 2 | Q74: 2 | R74: 1 | S74: 3 | T74: 2 | U74: 7 | V74: 8 | W74: 8 | X74: 2 | Y74: 6 | Z74: 10 | AA74: 1 | AB74: 2 | AC74: 55.9 | AD74: 53.5 | AE74: 58.3 | AF74: 25 | AG74: - | AH74: - | AI74: - | AJ74: - | AK74: - | AL74: 1 | AM74: - | AN74: 1 | AO74: 2 | AP74: 2 | AQ74: 1 | AR74: 6 | AS74: 9 | AT74: 1 | AU74: 2 | AV74: 71.2 | AW74: 71.1 | AX74: 71.3 | AY74: 16 | AZ74: - | BA74: - | BB74: - | BC74: - | BD74: - | BE74: - | BF74: - | BG74: 1 | BH74: - | BI74: 2 | BJ74: - | BK74: 6 | BL74: 6 | BM74: 1 | BN74: - | BO74: 71.9 | BP74: 71.1 | BQ74: 73.3 | BR74: 19 | BS74: - | BT74: - | BU74: - | BV74: - | BW74: - | BX74: 1 | BY74: - | BZ74: 2 | CA74: 3 | CB74: 4 | CC74: - | CD74: 2 | CE74: 7 | CF74: - | CG74: - | CH74: 17 | CI74: - | CJ74: - | CK74: - | CL74: 1 | CM74: - | CN74: 2 | CO74: 2 | CP74: 4 | CQ74: - | CR74: 1 | CS74: 7 | CT74: - | CU74: - | DC74: 86 | DD74: 56 | DE74: 16 | DF74: 37 | DG74: 3 | DH74: 8 | DI74: 13 | DJ74: 9 | DK74: 19 | DL74: 15 | DM74: 4 | DN74: - | DO74: - | DP74: - | DQ74: - | DR74: - | DS74: - | DT74: - | DU74: - | DV74: - | DW74: - | DX74: - | DY74: - | DZ74: - | EA74: 19 | EB74: 1,564 | EC74: 1,229 | ED74: 335 | EE74: - | EF74: 40 | EG74: 31 | EH74: 10 | EI74: 20 | EJ74: 1 | EK74: - | EL74: 6 | EM74: 3 | EN74: 46 | EO74: 25 | EP74: 6 | EQ74: 17 | ER74: 2 | ES74: 8 | ET74: 7 | EU74: 6
A75: 群馬県 | B75: 前橋市 | C75: 桂萓村 | D75: 東片貝東部 | E75: 12 | F75: 10 | G75: 2 | H75: 1 | I75: 4 | J75: - | K75: 4 | L75: 2 | M75: 29 | N75: 1 | O75: 1 | P75: 2 | Q75: 3 | R75: 2 | S75: - | T75: 2 | U75: 2 | V75: 6 | W75: 4 | X75: 2 | Y75: 1 | Z75: 1 | AA75: 2 | AB75: - | AC75: 51.9 | AD75: 53.2 | AE75: 50.0 | AF75: 11 | AG75: - | AH75: - | AI75: - | AJ75: - | AK75: - | AL75: - | AM75: 1 | AN75: - | AO75: 2 | AP75: 2 | AQ75: 2 | AR75: 1 | AS75: 1 | AT75: 2 | AU75: - | AV75: 67.0 | AW75: 70.7 | AX75: 62.6 | AY75: 9 | AZ75: - | BA75: - | BB75: - | BC75: - | BD75: - | BE75: - | BF75: - | BG75: - | BH75: 2 | BI75: 1 | BJ75: 2 | BK75: 1 | BL75: 1 | BM75: 2 | BN75: - | BO75: 69.4 | BP75: 70.7 | BQ75: 67.0 | BR75: 10 | BS75: - | BT75: - | BU75: - | BV75: - | BW75: - | BX75: - | BY75: - | BZ75: - | CA75: 5 | CB75: 1 | CC75: 2 | CD75: 1 | CE75: - | CF75: 1 | CG75: - | CH75: 8 | CI75: - | CJ75: - | CK75: - | CL75: - | CM75: - | CN75: - | CO75: 4 | CP75: 1 | CQ75: 1 | CR75: 1 | CS75: - | CT75: 1 | CU75: - | DC75: 37 | DD75: 27 | DE75: 9 | DF75: 18 | DG75: - | DH75: 5 | DI75: 2 | DJ75: 3 | DK75: 10 | DL75: 5 | DM75: 4 | DN75: - | DO75: - | DP75: - | DQ75: - | DR75: - | DS75: - | DT75: - | DU75: - | DV75: 1 | DW75: - | DX75: - | DY75: - | DZ75: - | EA75: 10 | EB75: 760 | EC75: 649 | ED75: 111 | EE75: - | EF75: 21 | EG75: 19 | EH75: 6 | EI75: 13 | EJ75: - | EK75: - | EL75: 2 | EM75: - | EN75: 16 | EO75: 8 | EP75: 3 | EQ75: 5 | ER75: - | ES75: 5 | ET75: - | EU75: 3
A76: 群馬県 | B76: 前橋市 | C76: 桂萓村 | D76: 上泉 | E76: 117 | F76: 81 | G76: 14 | H76: 10 | I76: 16 | J76: 4 | K76: 51 | L76: 36 | M76: 206 | N76: 3 | O76: 5 | P76: 4 | Q76: 1 | R76: 6 | S76: 8 | T76: 14 | U76: 17 | V76: 27 | W76: 10 | X76: 24 | Y76: 31 | Z76: 28 | AA76: 24 | AB76: 4 | AC76: 62.4 | AD76: 62.0 | AE76: 62.8 | AF76: 141 | AG76: 2 | AH76: 3 | AI76: 1 | AJ76: 1 | AK76: 3 | AL76: 3 | AM76: 4 | AN76: 5 | AO76: 6 | AP76: 6 | AQ76: 24 | AR76: 28 | AS76: 28 | AT76: 23 | AU76: 4 | AV76: 67.8 | AW76: 66.2 | AX76: 69.4 | AY76: 116 | AZ76: - | BA76: - | BB76: 1 | BC76: 1 | BD76: 3 | BE76: 3 | BF76: 4 | BG76: 4 | BH76: 4 | BI76: 6 | BJ76: 23 | BK76: 27 | BL76: 23 | BM76: 16 | BN76: 1 | BO76: 68.5 | BP76: 68.1 | BQ76: 68.8 | BR76: 81 | BS76: - | BT76: - | BU76: - | BV76: - | BW76: - | BX76: 1 | BY76: 4 | BZ76: 4 | CA76: 11 | CB76: 5 | CC76: 10 | CD76: 17 | CE76: 13 | CF76: 12 | CG76: 4 | CH76: 61 | CI76: - | CJ76: - | CK76: - | CL76: - | CM76: 3 | CN76: 2 | CO76: 8 | CP76: 3 | CQ76: 8 | CR76: 12 | CS76: 10 | CT76: 11 | CU76: 4 | DC76: 274 | DD76: 204 | DE76: 116 | DF76: 85 | DG76: 3 | DH76: 14 | DI76: 19 | DJ76: 37 | DK76: 78 | DL76: 45 | DM76: 3 | DN76: - | DO76: - | DP76: 16 | DQ76: 4 | DR76: 3 | DS76: - | DT76: - | DU76: 6 | DV76: - | DW76: 1 | DX76: - | DY76: - | DZ76: - | EA76: 81 | EB76: 9,054 | EC76: 4,879 | ED76: 4,015 | EE76: 160 | EF76: 138 | EG76: 110 | EH76: 62 | EI76: 46 | EJ76: 2 | EK76: - | EL76: 11 | EM76: 17 | EN76: 136 | EO76: 94 | EP76: 54 | EQ76: 39 | ER76: 1 | ES76: 14 | ET76: 8 | EU76: 20
A77: 群馬県 | B77: 前橋市 | C77: 桂萓村 | D77: 石関 | E77: 23 | F77: 8 | G77: 1 | H77: - | I77: 1 | J77: - | K77: 6 | L77: 15 | M77: 17 | N77: - | O77: - | P77: - | Q77: 1 | R77: - | S77: - | T77: - | U77: - | V77: 2 | W77: 3 | X77: 1 | Y77: 6 | Z77: 1 | AA77: 1 | AB77: 2 | AC77: 69.1 | AD77: 69.3 | AE77: 68.7 | AF77: 15 | AG77: - | AH77: - | AI77: - | AJ77: - | AK77: - | AL77: - | AM77: - | AN77: - | AO77: 2 | AP77: 2 | AQ77: 1 | AR77: 6 | AS77: 1 | AT77: 1 | AU77: 2 | AV77: 72.1 | AW77: 74.4 | AX77: 68.7 | AY77: 10 | AZ77: - | BA77: - | BB77: - | BC77: - | BD77: - | BE77: - | BF77: - | BG77: - | BH77: - | BI77: 2 | BJ77: 1 | BK77: 4 | BL77: 1 | BM77: - | BN77: 2 | BO77: 73.8 | BP77: 74.4 | BQ77: 68.0 | BR77: 8 | BS77: - | BT77: - | BU77: - | BV77: - | BW77: - | BX77: - | BY77: - | BZ77: - | CA77: - | CB77: 3 | CC77: - | CD77: 4 | CE77: 1 | CF77: - | CG77: - | CH77: 4 | CI77: - | CJ77: - | CK77: - | CL77: - | CM77: - | CN77: - | CO77: - | CP77: 2 | CQ77: - | CR77: 1 | CS77: 1 | CT77: - | CU77: - | DC77: 26 | DD77: 16 | DE77: 10 | DF77: 5 | DG77: 1 | DH77: 4 | DI77: 2 | DJ77: 4 | DK77: 8 | DL77: 7 | DM77: - | DN77: - | DO77: - | DP77: 1 | DQ77: - | DR77: - | DS77: - | DT77: - | DU77: - | DV77: - | DW77: - | DX77: - | DY77: - | DZ77: - | EA77: 8 | EB77: 676 | EC77: 422 | ED77: 254 | EE77: - | EF77: 13 | EG77: 12 | EH77: 9 | EI77: 2 | EJ77: 1 | EK77: - | EL77: - | EM77: 1 | EN77: 13 | EO77: 4 | EP77: 1 | EQ77: 3 | ER77: - | ES77: 4 | ET77: 2 | EU77: 3
A78: 群馬県 | B78: 前橋市 | C78: 桂萓村 | D78: 亀泉 | E78: 33 | F78: 23 | G78: 1 | H78: 1 | I78: 4 | J78: - | K78: 18 | L78: 10 | M78: 63 | N78: 2 | O78: 2 | P78: 4 | Q78: - | R78: 1 | S78: 2 | T78: 7 | U78: 9 | V78: 6 | W78: 2 | X78: 4 | Y78: 5 | Z78: 13 | AA78: 3 | AB78: 3 | AC78: 58.7 | AD78: 57.9 | AE78: 59.7 | AF78: 29 | AG78: - | AH78: - | AI78: - | AJ78: - | AK78: - | AL78: 1 | AM78: - | AN78: - | AO78: - | AP78: 1 | AQ78: 3 | AR78: 5 | AS78: 13 | AT78: 3 | AU78: 3 | AV78: 74.8 | AW78: 75.7 | AX78: 73.7 | AY78: 25 | AZ78: - | BA78: - | BB78: - | BC78: - | BD78: - | BE78: 1 | BF78: - | BG78: - | BH78: - | BI78: 1 | BJ78: 2 | BK78: 5 | BL78: 12 | BM78: 2 | BN78: 2 | BO78: 74.2 | BP78: 74.8 | BQ78: 73.5 | BR78: 23 | BS78: - | BT78: - | BU78: - | BV78: - | BW78: - | BX78: - | BY78: 1 | BZ78: 3 | CA78: 1 | CB78: 1 | CC78: 3 | CD78: 3 | CE78: 9 | CF78: - | CG78: 2 | CH78: 20 | CI78: - | CJ78: - | CK78: - | CL78: - | CM78: 1 | CN78: 3 | CO78: 1 | CP78: 1 | CQ78: 2 | CR78: 1 | CS78: 9 | CT78: - | CU78: 2 | DC78: 80 | DD78: 58 | DE78: 25 | DF78: 27 | DG78: 6 | DH78: 7 | DI78: 8 | DJ78: 7 | DK78: 21 | DL78: 19 | DM78: 1 | DN78: - | DO78: - | DP78: - | DQ78: - | DR78: 1 | DS78: - | DT78: - | DU78: - | DV78: - | DW78: - | DX78: - | DY78: - | DZ78: - | EA78: 23 | EB78: 2,675 | EC78: 1,766 | ED78: 894 | EE78: 15 | EF78: 44 | EG78: 36 | EH78: 13 | EI78: 18 | EJ78: 5 | EK78: - | EL78: 4 | EM78: 4 | EN78: 36 | EO78: 22 | EP78: 12 | EQ78: 9 | ER78: 1 | ES78: 7 | ET78: 4 | EU78: 3
A79: 群馬県 | B79: 前橋市 | C79: 桂萓村 | D79: 荻窪 | E79: 79 | F79: 52 | G79: 9 | H79: 8 | I79: 7 | J79: 1 | K79: 36 | L79: 27 | M79: 123 | N79: - | O79: - | P79: 2 | Q79: 1 | R79: 3 | S79: 7 | T79: 11 | U79: 9 | V79: 20 | W79: 10 | X79: 7 | Y79: 18 | Z79: 21 | AA79: 10 | AB79: 4 | AC79: 63.5 | AD79: 62.8 | AE79: 64.2 | AF79: 77 | AG79: - | AH79: - | AI79: - | AJ79: - | AK79: 2 | AL79: 2 | AM79: 3 | AN79: 1 | AO79: 11 | AP79: 2 | AQ79: 6 | AR79: 17 | AS79: 20 | AT79: 9 | AU79: 4 | AV79: 69.6 | AW79: 70.4 | AX79: 68.9 | AY79: 68 | AZ79: - | BA79: - | BB79: - | BC79: - | BD79: 1 | BE79: 2 | BF79: 3 | BG79: 1 | BH79: 9 | BI79: 2 | BJ79: 6 | BK79: 15 | BL79: 18 | BM79: 9 | BN79: 2 | BO79: 69.7 | BP79: 70.4 | BQ79: 68.8 | BR79: 52 | BS79: - | BT79: - | BU79: - | BV79: - | BW79: - | BX79: 2 | BY79: 2 | BZ79: 2 | CA79: 9 | CB79: 7 | CC79: 3 | CD79: 8 | CE79: 12 | CF79: 5 | CG79: 2 | CH79: 41 | CI79: - | CJ79: - | CK79: - | CL79: 2 | CM79: - | CN79: 2 | CO79: 5 | CP79: 6 | CQ79: 2 | CR79: 6 | CS79: 11 | CT79: 5 | CU79: 2 | DC79: 194 | DD79: 136 | DE79: 68 | DF79: 58 | DG79: 10 | DH79: 18 | DI79: 13 | DJ79: 27 | DK79: 40 | DL79: 19 | DM79: - | DN79: - | DO79: - | DP79: 10 | DQ79: 2 | DR79: 1 | DS79: - | DT79: - | DU79: 3 | DV79: - | DW79: 3 | DX79: - | DY79: 2 | DZ79: - | EA79: 52 | EB79: 6,163 | EC79: 2,109 | ED79: 3,786 | EE79: 268 | EF79: 89 | EG79: 79 | EH79: 38 | EI79: 33 | EJ79: 8 | EK79: - | EL79: 5 | EM79: 5 | EN79: 105 | EO79: 57 | EP79: 30 | EQ79: 25 | ER79: 2 | ES79: 18 | ET79: 8 | EU79: 22
A80: 群馬県 | B80: 前橋市 | C80: 桂萓村 | D80: 堀之下 | E80: 25 | F80: 17 | G80: 1 | H80: - | I80: 5 | J80: 3 | K80: 11 | L80: 8 | M80: 42 | N80: 1 | O80: 4 | P80: 3 | Q80: 2 | R80: 2 | S80: 1 | T80: 2 | U80: 6 | V80: 4 | W80: 3 | X80: 3 | Y80: 2 | Z80: 7 | AA80: 1 | AB80: 1 | AC80: 52.9 | AD80: 52.4 | AE80: 53.6 | AF80: 18 | AG80: 1 | AH80: - | AI80: - | AJ80: - | AK80: - | AL80: - | AM80: 1 | AN80: - | AO80: 1 | AP80: 2 | AQ80: 2 | AR80: 2 | AS80: 7 | AT80: 1 | AU80: 1 | AV80: 68.2 | AW80: 69.4 | AX80: 66.9 | AY80: 14 | AZ80: - | BA80: - | BB80: - | BC80: - | BD80: - | BE80: - | BF80: - | BG80: - | BH80: 1 | BI80: 2 | BJ80: 2 | BK80: 2 | BL80: 6 | BM80: 1 | BN80: - | BO80: 71.4 | BP80: 74.4 | BQ80: 68.3 | BR80: 17 | BS80: - | BT80: - | BU80: - | BV80: 1 | BW80: 1 | BX80: - | BY80: - | BZ80: 3 | CA80: 2 | CB80: 2 | CC80: 2 | CD80: 1 | CE80: 3 | CF80: 1 | CG80: 1 | CH80: 11 | CI80: - | CJ80: - | CK80: - | CL80: - | CM80: - | CN80: 2 | CO80: 2 | CP80: 1 | CQ80: 1 | CR80: 1 | CS80: 2 | CT80: 1 | CU80: 1 | DC80: 58 | DD80: 47 | DE80: 14 | DF80: 28 | DG80: 5 | DH80: 3 | DI80: 1 | DJ80: 7 | DK80: 13 | DL80: 5 | DM80: 5 | DN80: - | DO80: - | DP80: 3 | DQ80: - | DR80: - | DS80: - | DT80: - | DU80: - | DV80: - | DW80: - | DX80: - | DY80: - | DZ80: - | EA80: 17 | EB80: 1,358 | EC80: 861 | ED80: 497 | EE80: - | EF80: 32 | EG80: 29 | EH80: 7 | EI80: 17 | EJ80: 5 | EK80: - | EL80: 1 | EM80: 2 | EN80: 26 | EO80: 18 | EP80: 7 | EQ80: 11 | ER80: - | ES80: 3 | ET80: - | EU80: 5
A81: 群馬県 | B81: 前橋市 | C81: 桂萓村 | D81: 堤 | E81: 34 | F81: 26 | G81: 3 | H81: 3 | I81: 3 | J81: - | K81: 20 | L81: 8 | M81: 67 | N81: - | O81: - | P81: - | Q81: 1 | R81: 3 | S81: 2 | T81: 5 | U81: 9 | V81: 11 | W81: 10 | X81: 7 | Y81: 5 | Z81: 6 | AA81: 6 | AB81: 2 | AC81: 61.9 | AD81: 61.7 | AE81: 62.0 | AF81: 38 | AG81: - | AH81: - | AI81: - | AJ81: - | AK81: 2 | AL81: - | AM81: 1 | AN81: 1 | AO81: 4 | AP81: 5 | AQ81: 7 | AR81: 4 | AS81: 6 | AT81: 6 | AU81: 2 | AV81: 68.4 | AW81: 69.2 | AX81: 67.8 | AY81: 28 | AZ81: - | BA81: - | BB81: - | BC81: - | BD81: 1 | BE81: - | BF81: - | BG81: - | BH81: 3 | BI81: 4 | BJ81: 6 | BK81: 4 | BL81: 5 | BM81: 4 | BN81: 1 | BO81: 69.7 | BP81: 68.3 | BQ81: 71.6 | BR81: 26 | BS81: - | BT81: - | BU81: - | BV81: - | BW81: 1 | BX81: - | BY81: - | BZ81: 4 | CA81: 5 | CB81: 6 | CC81: 3 | CD81: 3 | CE81: 3 | CF81: - | CG81: 1 | CH81: 21 | CI81: - | CJ81: - | CK81: - | CL81: - | CM81: - | CN81: 3 | CO81: 3 | CP81: 5 | CQ81: 3 | CR81: 3 | CS81: 3 | CT81: - | CU81: 1 | DC81: 98 | DD81: 70 | DE81: 28 | DF81: 36 | DG81: 6 | DH81: 9 | DI81: 8 | DJ81: 11 | DK81: 23 | DL81: 13 | DM81: 1 | DN81: - | DO81: - | DP81: 5 | DQ81: 2 | DR81: - | DS81: - | DT81: - | DU81: 2 | DV81: - | DW81: - | DX81: - | DY81: - | DZ81: - | EA81: 26 | EB81: 2,343 | EC81: 1,091 | ED81: 1,202 | EE81: 50 | EF81: 50 | EG81: 41 | EH81: 16 | EI81: 19 | EJ81: 6 | EK81: - | EL81: 7 | EM81: 2 | EN81: 48 | EO81: 29 | EP81: 12 | EQ81: 17 | ER81: - | ES81: 9 | ET81: 1 | EU81: 9
A82: 群馬県 | B82: 前橋市 | C82: 桂萓村 | D82: 江木上 | E82: 40 | F82: 24 | G82: 2 | H82: 2 | I82: 5 | J82: 1 | K82: 17 | L82: 16 | M82: 63 | N82: - | O82: - | P82: 1 | Q82: 1 | R82: 6 | S82: - | T82: 4 | U82: 4 | V82: 8 | W82: 6 | X82: 6 | Y82: 10 | Z82: 10 | AA82: 5 | AB82: 2 | AC82: 63.0 | AD82: 59.3 | AE82: 67.3 | AF82: 40 | AG82: - | AH82: - | AI82: 1 | AJ82: - | AK82: 3 | AL82: - | AM82: 2 | AN82: 1 | AO82: 1 | AP82: 3 | AQ82: 4 | AR82: 8 | AS82: 10 | AT82: 5 | AU82: 2 | AV82: 67.9 | AW82: 66.3 | AX82: 69.4 | AY82: 30 | AZ82: - | BA82: - | BB82: 1 | BC82: - | BD82: 2 | BE82: - | BF82: 2 | BG82: - | BH82: - | BI82: 3 | BJ82: 3 | BK82: 6 | BL82: 10 | BM82: 1 | BN82: 2 | BO82: 67.7 | BP82: 65.4 | BQ82: 71.1 | BR82: 24 | BS82: - | BT82: - | BU82: - | BV82: - | BW82: - | BX82: - | BY82: 1 | BZ82: 1 | CA82: 2 | CB82: 4 | CC82: 4 | CD82: 4 | CE82: 6 | CF82: 1 | CG82: 1 | CH82: 19 | CI82: - | CJ82: - | CK82: - | CL82: - | CM82: 1 | CN82: - | CO82: 2 | CP82: 4 | CQ82: 3 | CR82: 2 | CS82: 5 | CT82: 1 | CU82: 1 | DC82: 84 | DD82: 67 | DE82: 30 | DF82: 37 | DG82: - | DH82: 7 | DI82: 4 | DJ82: 6 | DK82: 24 | DL82: 12 | DM82: 4 | DN82: - | DO82: - | DP82: 5 | DQ82: 1 | DR82: 1 | DS82: - | DT82: - | DU82: - | DV82: - | DW82: 1 | DX82: - | DY82: - | DZ82: - | EA82: 24 | EB82: 2,393 | EC82: 1,478 | ED82: 836 | EE82: 79 | EF82: 42 | EG82: 38 | EH82: 18 | EI82: 20 | EJ82: - | EK82: - | EL82: 2 | EM82: 2 | EN82: 42 | EO82: 29 | EP82: 12 | EQ82: 17 | ER82: - | ES82: 7 | ET82: 2 | EU82: 4
A83: 群馬県 | B83: 前橋市 | C83: 桂萓村 | D83: 江木下 | E83: 37 | F83: 32 | G83: 5 | H83: 5 | I83: 6 | J83: 1 | K83: 21 | L83: 5 | M83: 72 | N83: 1 | O83: - | P83: 1 | Q83: 1 | R83: 1 | S83: 3 | T83: 4 | U83: 11 | V83: 13 | W83: 12 | X83: 5 | Y83: 7 | Z83: 6 | AA83: 5 | AB83: 2 | AC83: 60.7 | AD83: 58.8 | AE83: 63.3 | AF83: 37 | AG83: 1 | AH83: - | AI83: - | AJ83: - | AK83: - | AL83: 1 | AM83: 2 | AN83: 3 | AO83: 2 | AP83: 4 | AQ83: 4 | AR83: 7 | AS83: 6 | AT83: 5 | AU83: 2 | AV83: 67.2 | AW83: 68.3 | AX83: 66.3 | AY83: 29 | AZ83: - | BA83: - | BB83: - | BC83: - | BD83: - | BE83: 1 | BF83: 1 | BG83: 3 | BH83: 1 | BI83: 4 | BJ83: 3 | BK83: 7 | BL83: 6 | BM83: 2 | BN83: 1 | BO83: 67.7 | BP83: 67.5 | BQ83: 67.9 | BR83: 32 | BS83: - | BT83: - | BU83: - | BV83: - | BW83: - | BX83: - | BY83: 1 | BZ83: 8 | CA83: 6 | CB83: 8 | CC83: 2 | CD83: 4 | CE83: 2 | CF83: 1 | CG83: - | CH83: 16 | CI83: - | CJ83: - | CK83: - | CL83: - | CM83: - | CN83: 3 | CO83: 3 | CP83: 4 | CQ83: 1 | CR83: 2 | CS83: 2 | CT83: 1 | CU83: - | DC83: 94 | DD83: 68 | DE83: 29 | DF83: 34 | DG83: 5 | DH83: 8 | DI83: 5 | DJ83: 13 | DK83: 31 | DL83: 13 | DM83: 13 | DN83: - | DO83: - | DP83: - | DQ83: 2 | DR83: 1 | DS83: - | DT83: - | DU83: 1 | DV83: - | DW83: 1 | DX83: - | DY83: - | DZ83: - | EA83: 32 | EB83: 4,012 | EC83: 2,175 | ED83: 1,759 | EE83: 78 | EF83: 50 | EG83: 42 | EH83: 15 | EI83: 22 | EJ83: 5 | EK83: - | EL83: 3 | EM83: 5 | EN83: 44 | EO83: 26 | EP83: 14 | EQ83: 12 | ER83: - | ES83: 8 | ET83: 2 | EU83: 8
A84: 群馬県 | B84: 前橋市 | C84: 東村（前橋市） | E84: 151 | F84: 70 | G84: 9 | H84: 7 | I84: 13 | J84: 1 | K84: 48 | L84: 81 | M84: 195 | N84: 6 | O84: 10 | P84: 3 | Q84: - | R84: 1 | S84: 12 | T84: 19 | U84: 16 | V84: 12 | W84: 21 | X84: 18 | Y84: 21 | Z84: 24 | AA84: 29 | AB84: 3 | AC84: 60.6 | AD84: 58.5 | AE84: 63.1 | AF84: 132 | AG84: 6 | AH84: 7 | AI84: - | AJ84: - | AK84: - | AL84: 2 | AM84: 4 | AN84: 8 | AO84: 6 | AP84: 11 | AQ84: 12 | AR84: 20 | AS84: 24 | AT84: 29 | AU84: 3 | AV84: 65.7 | AW84: 64.0 | AX84: 67.4 | AY84: 86 | AZ84: - | BA84: 1 | BB84: - | BC84: - | BD84: - | BE84: - | BF84: 2 | BG84: 5 | BH84: 3 | BI84: 7 | BJ84: 9 | BK84: 16 | BL84: 18 | BM84: 22 | BN84: 3 | BO84: 71.7 | BP84: 71.4 | BQ84: 72.2 | BR84: 70 | BS84: - | BT84: - | BU84: 1 | BV84: - | BW84: - | BX84: - | BY84: 3 | BZ84: 2 | CA84: 3 | CB84: 7 | CC84: 12 | CD84: 9 | CE84: 11 | CF84: 19 | CG84: 3 | CH84: 57 | CI84: - | CJ84: - | CK84: - | CL84: - | CM84: 1 | CN84: 2 | CO84: 3 | CP84: 5 | CQ84: 9 | CR84: 7 | CS84: 11 | CT84: 16 | CU84: 3 | DC84: 248 | DD84: 166 | DE84: 86 | DF84: 69 | DG84: 11 | DH84: 39 | DI84: 23 | DJ84: 20 | DK84: 54 | DL84: 51 | DM84: - | DN84: - | DO84: - | DP84: - | DQ84: 1 | DR84: - | DS84: 2 | DT84: - | DU84: - | DV84: - | DW84: - | DX84: - | DY84: - | DZ84: - | EA84: 70 | EB84: 4,128 | EC84: 2,914 | ED84: 1,214 | EE84: - | EF84: 125 | EG84: 101 | EH84: 51 | EI84: 42 | EJ84: 8 | EK84: - | EL84: 15 | EM84: 9 | EN84: 123 | EO84: 65 | EP84: 35 | EQ84: 27 | ER84: 3 | ES84: 39 | ET84: 8 | EU84: 11
A85: 群馬県 | B85: 前橋市 | C85: 東村（前橋市） | D85: 東箱田 | E85: 24 | F85: 15 | G85: 4 | H85: 3 | I85: 3 | J85: - | K85: 8 | L85: 9 | M85: 40 | N85: 1 | O85: - | P85: - | Q85: - | R85: - | S85: 1 | T85: 3 | U85: 5 | V85: 5 | W85: 4 | X85: 1 | Y85: 3 | Z85: 2 | AA85: 14 | AB85: 1 | AC85: 66.2 | AD85: 64.1 | AE85: 68.7 | AF85: 30 | AG85: 1 | AH85: - | AI85: - | AJ85: - | AK85: - | AL85: - | AM85: 1 | AN85: 4 | AO85: 2 | AP85: 2 | AQ85: 1 | AR85: 2 | AS85: 2 | AT85: 14 | AU85: 1 | AV85: 69.8 | AW85: 66.6 | AX85: 73.6 | AY85: 22 | AZ85: - | BA85: - | BB85: - | BC85: - | BD85: - | BE85: - | BF85: - | BG85: 4 | BH85: 2 | BI85: 1 | BJ85: 1 | BK85: 1 | BL85: 2 | BM85: 10 | BN85: 1 | BO85: 71.6 | BP85: 69.2 | BQ85: 75.9 | BR85: 15 | BS85: - | BT85: - | BU85: - | BV85: - | BW85: - | BX85: - | BY85: - | BZ85: 1 | CA85: 2 | CB85: 1 | CC85: 1 | CD85: 1 | CE85: - | CF85: 8 | CG85: 1 | CH85: 11 | CI85: - | CJ85: - | CK85: - | CL85: - | CM85: - | CN85: 1 | CO85: 2 | CP85: - | CQ85: - | CR85: - | CS85: - | CT85: 7 | CU85: 1 | DC85: 53 | DD85: 39 | DE85: 22 | DF85: 16 | DG85: 1 | DH85: 8 | DI85: 3 | DJ85: 3 | DK85: 12 | DL85: 11 | DM85: - | DN85: - | DO85: - | DP85: - | DQ85: - | DR85: - | DS85: 1 | DT85: - | DU85: - | DV85: - | DW85: - | DX85: - | DY85: - | DZ85: - | EA85: 15 | EB85: 935 | EC85: 567 | ED85: 368 | EE85: - | EF85: 27 | EG85: 23 | EH85: 14 | EI85: 8 | EJ85: 1 | EK85: - | EL85: 1 | EM85: 3 | EN85: 26 | EO85: 16 | EP85: 8 | EQ85: 8 | ER85: - | ES85: 8 | ET85: 2 | EU85: -
A86: 群馬県 | B86: 前橋市 | C86: 東村（前橋市） | D86: 西箱田 | E86: 12 | F86: 5 | G86: 1 | H86: 1 | I86: 1 | J86: - | K86: 3 | L86: 7 | M86: 12 | N86: - | O86: - | P86: - | Q86: - | R86: - | S86: - | T86: 1 | U86: 1 | V86: - | W86: 2 | X86: 2 | Y86: 1 | Z86: 3 | AA86: 1 | AB86: 1 | AC86: 69.2 | AD86: 69.3 | AE86: 69.0 | AF86: 9 | AG86: - | AH86: - | AI86: - | AJ86: - | AK86: - | AL86: - | AM86: - | AN86: - | AO86: - | AP86: 1 | AQ86: 2 | AR86: 1 | AS86: 3 | AT86: 1 | AU86: 1 | AV86: 74.3 | AW86: 78.6 | AX86: 69.0 | AY86: 8 | AZ86: - | BA86: - | BB86: - | BC86: - | BD86: - | BE86: - | BF86: - | BG86: - | BH86: - | BI86: 1 | BJ86: 1 | BK86: 1 | BL86: 3 | BM86: 1 | BN86: 1 | BO86: 75.4 | BP86: 78.6 | BQ86: 70.0 | BR86: 5 | BS86: - | BT86: - | BU86: - | BV86: - | BW86: - | BX86: - | BY86: - | BZ86: - | CA86: - | CB86: - | CC86: 1 | CD86: - | CE86: 2 | CF86: 1 | CG86: 1 | CH86: 5 | CI86: - | CJ86: - | CK86: - | CL86: - | CM86: - | CN86: - | CO86: - | CP86: - | CQ86: 1 | CR86: - | CS86: 2 | CT86: 1 | CU86: 1 | DC86: 20 | DD86: 13 | DE86: 8 | DF86: 5 | DG86: - | DH86: 4 | DI86: 1 | DJ86: 2 | DK86: 5 | DL86: 5 | DM86: - | DN86: - | DO86: - | DP86: - | DQ86: - | DR86: - | DS86: - | DT86: - | DU86: - | DV86: - | DW86: - | DX86: - | DY86: - | DZ86: - | EA86: 5 | EB86: 267 | EC86: 190 | ED86: 77 | EE86: - | EF86: 10 | EG86: 9 | EH86: 5 | EI86: 4 | EJ86: - | EK86: - | EL86: 1 | EM86: - | EN86: 10 | EO86: 4 | EP86: 3 | EQ86: 1 | ER86: - | ES86: 4 | ET86: - | EU86: 2
A87: 群馬県 | B87: 前橋市 | C87: 東村（前橋市） | D87: 前箱田 | E87: 12 | F87: 2 | G87: x | H87: x | I87: x | J87: x | K87: x | L87: 10 | M87: x | N87: x | O87: x | P87: x | Q87: x | R87: x | S87: x | T87: x | U87: x | V87: x | W87: x | X87: x | Y87: x | Z87: x | AA87: x | AB87: x | AC87: 55.2 | AD87: 49.7 | AE87: 63.5 | AF87: x | AG87: x | AH87: x | AI87: x | AJ87: x | AK87: x | AL87: x | AM87: x | AN87: x | AO87: x | AP87: x | AQ87: x | AR87: x | AS87: x | AT87: x | AU87: x | AV87: 77.5 | AW87: 78.0 | AX87: 77.0 | AY87: x | AZ87: x | BA87: x | BB87: x | BC87: x | BD87: x | BE87: x | BF87: x | BG87: x | BH87: x | BI87: x | BJ87: x | BK87: x | BL87: x | BM87: x | BN87: x | BO87: 77.5 | BP87: 78.0 | BQ87: 77.0 | BR87: 2 | BS87: - | BT87: - | BU87: - | BV87: - | BW87: - | BX87: - | BY87: 1 | BZ87: - | CA87: - | CB87: - | CC87: - | CD87: - | CE87: 1 | CF87: - | CG87: - | CH87: 1 | CI87: - | CJ87: - | CK87: - | CL87: - | CM87: - | CN87: - | CO87: - | CP87: - | CQ87: - | CR87: - | CS87: 1 | CT87: - | CU87: - | DC87: 6 | DD87: 5 | DE87: 2 | DF87: 3 | DG87: - | DH87: - | DI87: - | DJ87: 1 | DK87: 2 | DL87: 2 | DM87: - | DN87: - | DO87: - | DP87: - | DQ87: - | DR87: - | DS87: - | DT87: - | DU87: - | DV87: - | DW87: - | DX87: - | DY87: - | DZ87: - | EA87: 2 | EB87: 86 | EC87: 57 | ED87: 29 | EE87: - | EF87: 3 | EG87: 3 | EH87: 1 | EI87: 2 | EJ87: - | EK87: - | EL87: - | EM87: - | EN87: 3 | EO87: 2 | EP87: 1 | EQ87: 1 | ER87: - | ES87: - | ET87: - | EU87: 1
A88: 群馬県 | B88: 前橋市 | C88: 東村（前橋市） | D88: 川曲 | E88: 19 | F88: 12 | G88: 2 | H88: 1 | I88: 3 | J88: - | K88: 7 | L88: 7 | M88: 34 | N88: 1 | O88: 3 | P88: - | Q88: - | R88: 1 | S88: - | T88: 3 | U88: 4 | V88: 2 | W88: 2 | X88: 1 | Y88: 3 | Z88: 8 | AA88: 6 | AB88: - | AC88: 61.9 | AD88: 60.5 | AE88: 63.4 | AF88: 28 | AG88: 1 | AH88: 3 | AI88: - | AJ88: - | AK88: - | AL88: - | AM88: 1 | AN88: 2 | AO88: 2 | AP88: 1 | AQ88: 1 | AR88: 3 | AS88: 8 | AT88: 6 | AU88: - | AV88: 64.5 | AW88: 62.6 | AX88: 66.4 | AY88: 16 | AZ88: - | BA88: 1 | BB88: - | BC88: - | BD88: - | BE88: - | BF88: - | BG88: - | BH88: 1 | BI88: 1 | BJ88: 1 | BK88: 2 | BL88: 4 | BM88: 6 | BN88: - | BO88: 71.8 | BP88: 70.3 | BQ88: 74.2 | BR88: 12 | BS88: - | BT88: - | BU88: - | BV88: - | BW88: - | BX88: - | BY88: - | BZ88: 1 | CA88: - | CB88: 1 | CC88: 1 | CD88: - | CE88: 3 | CF88: 6 | CG88: - | CH88: 10 | CI88: - | CJ88: - | CK88: - | CL88: - | CM88: - | CN88: 1 | CO88: - | CP88: 1 | CQ88: - | CR88: - | CS88: 3 | CT88: 5 | CU88: - | DC88: 44 | DD88: 22 | DE88: 16 | DF88: 6 | DG88: - | DH88: 8 | DI88: 9 | DJ88: 5 | DK88: 11 | DL88: 10 | DM88: - | DN88: - | DO88: - | DP88: - | DQ88: 1 | DR88: - | DS88: - | DT88: - | DU88: - | DV88: - | DW88: - | DX88: - | DY88: - | DZ88: - | EA88: 12 | EB88: 845 | EC88: 684 | ED88: 161 | EE88: - | EF88: 23 | EG88: 14 | EH88: 10 | EI88: 4 | EJ88: - | EK88: - | EL88: 6 | EM88: 3 | EN88: 21 | EO88: 8 | EP88: 6 | EQ88: 2 | ER88: - | ES88: 8 | ET88: 3 | EU88: 2
A89: 群馬県 | B89: 前橋市 | C89: 東村（前橋市） | D89: 稲荷新田 | E89: 17 | F89: 3 | G89: x | H89: x | I89: x | J89: x | K89: x | L89: 14 | M89: x | N89: x | O89: x | P89: x | Q89: x | R89: x | S89: x | T89: x | U89: x | V89: x | W89: x | X89: x | Y89: x | Z89: x | AA89: x | AB89: x | AC89: 60.9 | AD89: 61.0 | AE89: 60.7 | AF89: x | AG89: x | AH89: x | AI89: x | AJ89: x | AK89: x | AL89: x | AM89: x | AN89: x | AO89: x | AP89: x | AQ89: x | AR89: x | AS89: x | AT89: x | AU89: x | AV89: 66.7 | AW89: 72.7 | AX89: 60.7 | AY89: x | AZ89: x | BA89: x | BB89: x | BC89: x | BD89: x | BE89: x | BF89: x | BG89: x | BH89: x | BI89: x | BJ89: x | BK89: x | BL89: x | BM89: x | BN89: x | BO89: 71.2 | BP89: 72.7 | BQ89: 69.0 | BR89: 3 | BS89: - | BT89: - | BU89: - | BV89: - | BW89: - | BX89: - | BY89: - | BZ89: - | CA89: - | CB89: - | CC89: - | CD89: 2 | CE89: 1 | CF89: - | CG89: - | CH89: 2 | CI89: - | CJ89: - | CK89: - | CL89: - | CM89: - | CN89: - | CO89: - | CP89: - | CQ89: - | CR89: 1 | CS89: 1 | CT89: - | CU89: - | DC89: 8 | DD89: 7 | DE89: 5 | DF89: 2 | DG89: - | DH89: 1 | DI89: - | DJ89: - | DK89: 3 | DL89: 3 | DM89: - | DN89: - | DO89: - | DP89: - | DQ89: - | DR89: - | DS89: - | DT89: - | DU89: - | DV89: - | DW89: - | DX89: - | DY89: - | DZ89: - | EA89: 3 | EB89: 147 | EC89: 96 | ED89: 51 | EE89: - | EF89: 5 | EG89: 5 | EH89: 3 | EI89: 2 | EJ89: - | EK89: - | EL89: - | EM89: - | EN89: 3 | EO89: 2 | EP89: 2 | EQ89: - | ER89: - | ES89: 1 | ET89: - | EU89: -
A90: 群馬県 | B90: 前橋市 | C90: 東村（前橋市） | D90: 下新田 | E90: 24 | F90: 11 | G90: - | H90: - | I90: - | J90: - | K90: 11 | L90: 13 | M90: 29 | N90: - | O90: 3 | P90: - | Q90: - | R90: - | S90: 3 | T90: 3 | U90: 1 | V90: 2 | W90: 4 | X90: 7 | Y90: 3 | Z90: 2 | AA90: 1 | AB90: - | AC90: 57.5 | AD90: 55.2 | AE90: 59.7 | AF90: 15 | AG90: - | AH90: 2 | AI90: - | AJ90: - | AK90: - | AL90: - | AM90: - | AN90: - | AO90: 2 | AP90: 2 | AQ90: 3 | AR90: 3 | AS90: 2 | AT90: 1 | AU90: - | AV90: 62.1 | AW90: 61.0 | AX90: 62.7 | AY90: 7 | AZ90: - | BA90: - | BB90: - | BC90: - | BD90: - | BE90: - | BF90: - | BG90: - | BH90: - | BI90: 1 | BJ90: 2 | BK90: 2 | BL90: 1 | BM90: 1 | BN90: - | BO90: 70.7 | BP90: 71.3 | BQ90: 70.0 | BR90: 11 | BS90: - | BT90: - | BU90: - | BV90: - | BW90: - | BX90: - | BY90: 1 | BZ90: - | CA90: - | CB90: 2 | CC90: 4 | CD90: 2 | CE90: - | CF90: 1 | CG90: 1 | CH90: 10 | CI90: - | CJ90: - | CK90: - | CL90: - | CM90: 1 | CN90: - | CO90: - | CP90: 2 | CQ90: 3 | CR90: 2 | CS90: - | CT90: 1 | CU90: 1 | DC90: 39 | DD90: 24 | DE90: 7 | DF90: 11 | DG90: 6 | DH90: 9 | DI90: 4 | DJ90: 2 | DK90: - | DL90: - | DM90: - | DN90: - | DO90: - | DP90: - | DQ90: - | DR90: - | DS90: - | DT90: - | DU90: - | DV90: - | DW90: - | DX90: - | DY90: - | DZ90: - | EA90: 11 | EB90: 482 | EC90: 243 | ED90: 239 | EE90: - | EF90: 20 | EG90: 16 | EH90: 4 | EI90: 8 | EJ90: 4 | EK90: - | EL90: 2 | EM90: 2 | EN90: 19 | EO90: 8 | EP90: 3 | EQ90: 3 | ER90: 2 | ES90: 9 | ET90: 2 | EU90: -
A91: 群馬県 | B91: 前橋市 | C91: 東村（前橋市） | D91: 上新田 | E91: 7 | F91: 6 | G91: - | H91: - | I91: 1 | J91: - | K91: 5 | L91: 1 | M91: 22 | N91: 1 | O91: 3 | P91: - | Q91: - | R91: - | S91: 4 | T91: 4 | U91: 1 | V91: - | W91: - | X91: 2 | Y91: 2 | Z91: 3 | AA91: 2 | AB91: - | AC91: 52.6 | AD91: 51.2 | AE91: 54.8 | AF91: 12 | AG91: 1 | AH91: 2 | AI91: - | AJ91: - | AK91: - | AL91: 1 | AM91: - | AN91: - | AO91: - | AP91: - | AQ91: 1 | AR91: 2 | AS91: 3 | AT91: 2 | AU91: - | AV91: 58.8 | AW91: 57.2 | AX91: 60.5 | AY91: 6 | AZ91: - | BA91: - | BB91: - | BC91: - | BD91: - | BE91: - | BF91: - | BG91: - | BH91: - | BI91: - | BJ91: - | BK91: 2 | BL91: 3 | BM91: 1 | BN91: - | BO91: 76.0 | BP91: 76.8 | BQ91: 74.5 | BR91: 6 | BS91: - | BT91: - | BU91: - | BV91: - | BW91: - | BX91: - | BY91: - | BZ91: - | CA91: - | CB91: - | CC91: 1 | CD91: 1 | CE91: 3 | CF91: 1 | CG91: - | CH91: 6 | CI91: - | CJ91: - | CK91: - | CL91: - | CM91: - | CN91: - | CO91: - | CP91: - | CQ91: 1 | CR91: 1 | CS91: 3 | CT91: 1 | CU91: - | DC91: 25 | DD91: 16 | DE91: 6 | DF91: 9 | DG91: 1 | DH91: 3 | DI91: 3 | DJ91: 3 | DK91: 6 | DL91: 6 | DM91: - | DN91: - | DO91: - | DP91: - | DQ91: - | DR91: - | DS91: - | DT91: - | DU91: - | DV91: - | DW91: - | DX91: - | DY91: - | DZ91: - | EA91: 6 | EB91: 340 | EC91: 302 | ED91: 38 | EE91: - | EF91: 13 | EG91: 11 | EH91: 4 | EI91: 6 | EJ91: 1 | EK91: - | EL91: 2 | EM91: - | EN91: 12 | EO91: 5 | EP91: 2 | EQ91: 3 | ER91: - | ES91: 3 | ET91: 1 | EU91: 3
A92: 群馬県 | B92: 前橋市 | C92: 東村（前橋市） | D92: 小相木 | E92: 8 | F92: 3 | G92: - | H92: - | I92: 2 | J92: - | K92: 1 | L92: 5 | M92: 6 | N92: - | O92: - | P92: 1 | Q92: - | R92: - | S92: - | T92: - | U92: - | V92: - | W92: 3 | X92: - | Y92: 2 | Z92: - | AA92: - | AB92: - | AC92: 59.7 | AD92: 54.7 | AE92: 64.7 | AF92: 4 | AG92: - | AH92: - | AI92: - | AJ92: - | AK92: - | AL92: - | AM92: - | AN92: - | AO92: - | AP92: 2 | AQ92: - | AR92: 2 | AS92: - | AT92: - | AU92: - | AV92: 67.3 | AW92: 68.5 | AX92: 66.0 | AY92: 4 | AZ92: - | BA92: - | BB92: - | BC92: - | BD92: - | BE92: - | BF92: - | BG92: - | BH92: - | BI92: 2 | BJ92: - | BK92: 2 | BL92: - | BM92: - | BN92: - | BO92: 67.3 | BP92: 68.5 | BQ92: 66.0 | BR92: 3 | BS92: - | BT92: - | BU92: 1 | BV92: - | BW92: - | BX92: - | BY92: - | BZ92: - | CA92: - | CB92: 1 | CC92: - | CD92: 1 | CE92: - | CF92: - | CG92: - | CH92: 1 | CI92: - | CJ92: - | CK92: - | CL92: - | CM92: - | CN92: - | CO92: - | CP92: - | CQ92: - | CR92: 1 | CS92: - | CT92: - | CU92: - | DC92: 10 | DD92: 8 | DE92: 4 | DF92: 4 | DG92: - | DH92: - | DI92: - | DJ92: 2 | DK92: 3 | DL92: 3 | DM92: - | DN92: - | DO92: - | DP92: - | DQ92: - | DR92: - | DS92: - | DT92: - | DU92: - | DV92: - | DW92: - | DX92: - | DY92: - | DZ92: - | EA92: 3 | EB92: 168 | EC92: 165 | ED92: 3 | EE92: - | EF92: 3 | EG92: 3 | EH92: 2 | EI92: 1 | EJ92: - | EK92: - | EL92: - | EM92: - | EN92: 7 | EO92: 5 | EP92: 2 | EQ92: 3 | ER92: - | ES92: - | ET92: - | EU92: 2
A93: 群馬県 | B93: 前橋市 | C93: 東村（前橋市） | D93: 古市 | E93: 1 | F93: - | G93: - | H93: - | I93: - | J93: - | K93: - | L93: 1 | M93: - | N93: - | O93: - | P93: - | Q93: - | R93: - | S93: - | T93: - | U93: - | V93: - | W93: - | X93: - | Y93: - | Z93: - | AA93: - | AB93: - | AC93: … | AD93: … | AE93: … | AF93: - | AG93: - | AH93: - | AI93: - | AJ93: - | AK93: - | AL93: - | AM93: - | AN93: - | AO93: - | AP93: - | AQ93: - | AR93: - | AS93: - | AT93: - | AU93: - | AV93: … | AW93: … | AX93: … | AY93: - | AZ93: - | BA93: - | BB93: - | BC93: - | BD93: - | BE93: - | BF93: - | BG93: - | BH93: - | BI93: - | BJ93: - | BK93: - | BL93: - | BM93: - | BN93: - | BO93: … | BP93: … | BQ93: … | BR93: - | BS93: - | BT93: - | BU93: - | BV93: - | BW93: - | BX93: - | BY93: - | BZ93: - | CA93: - | CB93: - | CC93: - | CD93: - | CE93: - | CF93: - | CG93: - | CH93: - | CI93: - | CJ93: - | CK93: - | CL93: - | CM93: - | CN93: - | CO93: - | CP93: - | CQ93: - | CR93: - | CS93: - | CT93: - | CU93: - | DC93: - | DD93: - | DE93: - | DF93: - | DG93: - | DH93: - | DI93: - | DJ93: - | DK93: - | DL93: - | DM93: - | DN93: - | DO93: - | DP93: - | DQ93: - | DR93: - | DS93: - | DT93: - | DU93: - | DV93: - | DW93: - | DX93: - | DY93: - | DZ93: - | EA93: - | EB93: - | EC93: - | ED93: - | EE93: - | EF93: - | EG93: - | EH93: - | EI93: - | EJ93: - | EK93: - | EL93: - | EM93: - | EN93: - | EO93: - | EP93: - | EQ93: - | ER93: - | ES93: - | ET93: - | EU93: -
A94: 群馬県 | B94: 前橋市 | C94: 東村（前橋市） | D94: 江田 | E94: 26 | F94: 13 | G94: 2 | H94: 2 | I94: 2 | J94: 1 | K94: 9 | L94: 13 | M94: 39 | N94: 3 | O94: 1 | P94: 1 | Q94: - | R94: - | S94: 2 | T94: 3 | U94: 3 | V94: 3 | W94: 6 | X94: 4 | Y94: 4 | Z94: 3 | AA94: 5 | AB94: 1 | AC94: 58.8 | AD94: 54.7 | AE94: 63.1 | AF94: 26 | AG94: 3 | AH94: - | AI94: - | AJ94: - | AK94: - | AL94: - | AM94: 2 | AN94: 2 | AO94: - | AP94: 3 | AQ94: 3 | AR94: 4 | AS94: 3 | AT94: 5 | AU94: 1 | AV94: 63.3 | AW94: 56.4 | AX94: 69.1 | AY94: 16 | AZ94: - | BA94: - | BB94: - | BC94: - | BD94: - | BE94: - | BF94: 2 | BG94: 1 | BH94: - | BI94: 1 | BJ94: 3 | BK94: 3 | BL94: 2 | BM94: 3 | BN94: 1 | BO94: 69.2 | BP94: 68.6 | BQ94: 69.8 | BR94: 13 | BS94: - | BT94: - | BU94: - | BV94: - | BW94: - | BX94: - | BY94: 1 | BZ94: - | CA94: 1 | CB94: 2 | CC94: 4 | CD94: 2 | CE94: 1 | CF94: 2 | CG94: - | CH94: 11 | CI94: - | CJ94: - | CK94: - | CL94: - | CM94: - | CN94: - | CO94: 1 | CP94: 2 | CQ94: 4 | CR94: 2 | CS94: 1 | CT94: 1 | CU94: - | DC94: 43 | DD94: 32 | DE94: 16 | DF94: 13 | DG94: 3 | DH94: 6 | DI94: 3 | DJ94: 2 | DK94: 12 | DL94: 11 | DM94: - | DN94: - | DO94: - | DP94: - | DQ94: - | DR94: - | DS94: 1 | DT94: - | DU94: - | DV94: - | DW94: - | DX94: - | DY94: - | DZ94: - | EA94: 13 | EB94: 858 | EC94: 610 | ED94: 248 | EE94: - | EF94: 21 | EG94: 17 | EH94: 8 | EI94: 7 | EJ94: 2 | EK94: - | EL94: 3 | EM94: 1 | EN94: 22 | EO94: 15 | EP94: 8 | EQ94: 6 | ER94: 1 | ES94: 6 | ET94: - | EU94: 1
A95: 群馬県 | B95: 前橋市 | C95: 元総社村 | E95: 57 | F95: 17 | G95: 1 | H95: 1 | I95: 1 | J95: 1 | K95: 15 | L95: 40 | M95: 38 | N95: - | O95: - | P95: 1 | Q95: 2 | R95: - | S95: - | T95: 3 | U95: 3 | V95: 5 | W95: 3 | X95: - | Y95: 4 | Z95: 7 | AA95: 8 | AB95: 2 | AC95: 66.1 | AD95: 63.2 | AE95: 69.7 | AF95: 28 | AG95: - | AH95: - | AI95: - | AJ95: - | AK95: - | AL95: - | AM95: 2 | AN95: - | AO95: 4 | AP95: 1 | AQ95: - | AR95: 4 | AS95: 7 | AT95: 8 | AU95: 2 | AV95: 72.7 | AW95: 77.3 | AX95: 69.7 | AY95: 20 | AZ95: - | BA95: - | BB95: - | BC95: - | BD95: - | BE95: - | BF95: - | BG95: - | BH95: 3 | BI95: 1 | BJ95: - | BK95: 3 | BL95: 6 | BM95: 6 | BN95: 1 | BO95: 74.4 | BP95: 77.3 | BQ95: 70.9 | BR95: 17 | BS95: - | BT95: - | BU95: - | BV95: 1 | BW95: - | BX95: - | BY95: 1 | BZ95: 1 | CA95: 1 | CB95: 2 | CC95: - | CD95: 1 | CE95: 3 | CF95: 5 | CG95: 2 | CH95: 10 | CI95: - | CJ95: - | CK95: - | CL95: - | CM95: 1 | CN95: - | CO95: 1 | CP95: 1 | CQ95: - | CR95: 1 | CS95: 1 | CT95: 4 | CU95: 1 | DC95: 50 | DD95: 32 | DE95: 20 | DF95: 10 | DG95: 2 | DH95: 9 | DI95: 2 | DJ95: 7 | DK95: 11 | DL95: 6 | DM95: - | DN95: - | DO95: - | DP95: 5 | DQ95: - | DR95: - | DS95: - | DT95: - | DU95: - | DV95: - | DW95: - | DX95: - | DY95: - | DZ95: - | EA95: 17 | EB95: 1,005 | EC95: 390 | ED95: 535 | EE95: 80 | EF95: 27 | EG95: 22 | EH95: 11 | EI95: 9 | EJ95: 2 | EK95: - | EL95: 1 | EM95: 4 | EN95: 23 | EO95: 10 | EP95: 9 | EQ95: 1 | ER95: - | ES95: 9 | ET95: 1 | EU95: 3
A96: 群馬県 | B96: 前橋市 | C96: 元総社村 | D96: 元総社第１区 | E96: 17 | F96: 8 | G96: 1 | H96: 1 | I96: 1 | J96: 1 | K96: 6 | L96: 9 | M96: 19 | N96: - | O96: - | P96: 1 | Q96: 1 | R96: - | S96: - | T96: - | U96: 1 | V96: 5 | W96: 1 | X96: - | Y96: 3 | Z96: 1 | AA96: 6 | AB96: - | AC96: 65.2 | AD96: 62.1 | AE96: 69.5 | AF96: 14 | AG96: - | AH96: - | AI96: - | AJ96: - | AK96: - | AL96: - | AM96: - | AN96: - | AO96: 4 | AP96: - | AQ96: - | AR96: 3 | AS96: 1 | AT96: 6 | AU96: - | AV96: 72.0 | AW96: 75.3 | AX96: 69.5 | AY96: 10 | AZ96: - | BA96: - | BB96: - | BC96: - | BD96: - | BE96: - | BF96: - | BG96: - | BH96: 3 | BI96: - | BJ96: - | BK96: 2 | BL96: - | BM96: 5 | BN96: - | BO96: 72.2 | BP96: 75.3 | BQ96: 67.5 | BR96: 8 | BS96: - | BT96: - | BU96: - | BV96: - | BW96: - | BX96: - | BY96: - | BZ96: - | CA96: 1 | CB96: 1 | CC96: - | CD96: 1 | CE96: - | CF96: 4 | CG96: 1 | CH96: 7 | CI96: - | CJ96: - | CK96: - | CL96: - | CM96: - | CN96: - | CO96: 1 | CP96: 1 | CQ96: - | CR96: 1 | CS96: - | CT96: 3 | CU96: 1 | DC96: 23 | DD96: 16 | DE96: 10 | DF96: 5 | DG96: 1 | DH96: 6 | DI96: - | DJ96: 1 | DK96: 7 | DL96: 3 | DM96: - | DN96: - | DO96: - | DP96: 4 | DQ96: - | DR96: - | DS96: - | DT96: - | DU96: - | DV96: - | DW96: - | DX96: - | DY96: - | DZ96: - | EA96: 8 | EB96: 489 | EC96: 189 | ED96: 300 | EE96: - | EF96: 12 | EG96: 11 | EH96: 6 | EI96: 4 | EJ96: 1 | EK96: - | EL96: - | EM96: 1 | EN96: 11 | EO96: 5 | EP96: 4 | EQ96: 1 | ER96: - | ES96: 6 | ET96: - | EU96: -
A97: 群馬県 | B97: 前橋市 | C97: 元総社村 | D97: 元総社第２区 | E97: 11 | F97: 4 | G97: - | H97: - | I97: - | J97: - | K97: 4 | L97: 7 | M97: 6 | N97: - | O97: - | P97: - | Q97: 1 | R97: - | S97: - | T97: 1 | U97: 1 | V97: - | W97: - | X97: - | Y97: - | Z97: 2 | AA97: - | AB97: 1 | AC97: 60.8 | AD97: 61.0 | AE97: 60.5 | AF97: 4 | AG97: - | AH97: - | AI97: - | AJ97: - | AK97: - | AL97: - | AM97: 1 | AN97: - | AO97: - | AP97: - | AQ97: - | AR97: - | AS97: 2 | AT97: - | AU97: 1 | AV97: 71.0 | AW97: 81.5 | AX97: 60.5 | AY97: 3 | AZ97: - | BA97: - | BB97: - | BC97: - | BD97: - | BE97: - | BF97: - | BG97: - | BH97: - | BI97: - | BJ97: - | BK97: - | BL97: 2 | BM97: - | BN97: 1 | BO97: 79.7 | BP97: 81.5 | BQ97: 76.0 | BR97: 4 | BS97: - | BT97: - | BU97: - | BV97: 1 | BW97: - | BX97: - | BY97: - | BZ97: 1 | CA97: - | CB97: - | CC97: - | CD97: - | CE97: 1 | CF97: - | CG97: 1 | CH97: - | CI97: - | CJ97: - | CK97: - | CL97: - | CM97: - | CN97: - | CO97: - | CP97: - | CQ97: - | CR97: - | CS97: - | CT97: - | CU97: - | DC97: 10 | DD97: 5 | DE97: 3 | DF97: 2 | DG97: - | DH97: 1 | DI97: - | DJ97: 4 | DK97: 2 | DL97: 2 | DM97: - | DN97: - | DO97: - | DP97: - | DQ97: - | DR97: - | DS97: - | DT97: - | DU97: - | DV97: - | DW97: - | DX97: - | DY97: - | DZ97: - | EA97: 4 | EB97: 177 | EC97: 112 | ED97: 65 | EE97: - | EF97: 6 | EG97: 4 | EH97: 2 | EI97: 2 | EJ97: - | EK97: - | EL97: - | EM97: 2 | EN97: 4 | EO97: 1 | EP97: 1 | EQ97: - | ER97: - | ES97: 1 | ET97: - | EU97: 2
A98: 群馬県 | B98: 前橋市 | C98: 元総社村 | D98: 元総社第３区 | E98: 13 | F98: 3 | G98: x | H98: x | I98: x | J98: x | K98: x | L98: 10 | M98: x | N98: x | O98: x | P98: x | Q98: x | R98: x | S98: x | T98: x | U98: x | V98: x | W98: x | X98: x | Y98: x | Z98: x | AA98: x | AB98: x | AC98: 66.7 | AD98: 61.3 | AE98: 71.0 | AF98: x | AG98: x | AH98: x | AI98: x | AJ98: x | AK98: x | AL98: x | AM98: x | AN98: x | AO98: x | AP98: x | AQ98: x | AR98: x | AS98: x | AT98: x | AU98: x | AV98: 72.5 | AW98: 80.0 | AX98: 71.0 | AY98: x | AZ98: x | BA98: x | BB98: x | BC98: x | BD98: x | BE98: x | BF98: x | BG98: x | BH98: x | BI98: x | BJ98: x | BK98: x | BL98: x | BM98: x | BN98: x | BO98: 73.0 | BP98: 80.0 | BQ98: 69.5 | BR98: 3 | BS98: - | BT98: - | BU98: - | BV98: - | BW98: - | BX98: - | BY98: 1 | BZ98: - | CA98: - | CB98: 1 | CC98: - | CD98: - | CE98: - | CF98: 1 | CG98: - | CH98: 2 | CI98: - | CJ98: - | CK98: - | CL98: - | CM98: 1 | CN98: - | CO98: - | CP98: - | CQ98: - | CR98: - | CS98: - | CT98: 1 | CU98: - | DC98: 12 | DD98: 7 | DE98: 3 | DF98: 3 | DG98: 1 | DH98: 2 | DI98: 2 | DJ98: 1 | DK98: 1 | DL98: 1 | DM98: - | DN98: - | DO98: - | DP98: - | DQ98: - | DR98: - | DS98: - | DT98: - | DU98: - | DV98: - | DW98: - | DX98: - | DY98: - | DZ98: - | EA98: 3 | EB98: 148 | EC98: 33 | ED98: 35 | EE98: 80 | EF98: 6 | EG98: 5 | EH98: 1 | EI98: 3 | EJ98: 1 | EK98: - | EL98: 1 | EM98: - | EN98: 6 | EO98: 2 | EP98: 2 | EQ98: - | ER98: - | ES98: 2 | ET98: 1 | EU98: 1
A99: 群馬県 | B99: 前橋市 | C99: 元総社村 | D99: 元総社第４区 | E99: 8 | F99: 2 | G99: x | H99: x | I99: x | J99: x | K99: x | L99: 6 | M99: x | N99: x | O99: x | P99: x | Q99: x | R99: x | S99: x | T99: x | U99: x | V99: x | W99: x | X99: x | Y99: x | Z99: x | AA99: x | AB99: x | AC99: 77.0 | AD99: 77.5 | AE99: 76.5 | AF99: x | AG99: x | AH99: x | AI99: x | AJ99: x | AK99: x | AL99: x | AM99: x | AN99: x | AO99: x | AP99: x | AQ99: x | AR99: x | AS99: x | AT99: x | AU99: x | AV99: 77.0 | AW99: 77.5 | AX99: 76.5 | AY99: x | AZ99: x | BA99: x | BB99: x | BC99: x | BD99: x | BE99: x | BF99: x | BG99: x | BH99: x | BI99: x | BJ99: x | BK99: x | BL99: x | BM99: x | BN99: x | BO99: 77.0 | BP99: 77.5 | BQ99: 76.5 | BR99: 2 | BS99: - | BT99: - | BU99: - | BV99: - | BW99: - | BX99: - | BY99: - | BZ99: - | CA99: - | CB99: - | CC99: - | CD99: - | CE99: 2 | CF99: - | CG99: - | CH99: 1 | CI99: - | CJ99: - | CK99: - | CL99: - | CM99: - | CN99: - | CO99: - | CP99: - | CQ99: - | CR99: - | CS99: 1 | CT99: - | CU99: - | DC99: 5 | DD99: 4 | DE99: 4 | DF99: - | DG99: - | DH99: - | DI99: - | DJ99: 1 | DK99: 1 | DL99: - | DM99: - | DN99: - | DO99: - | DP99: 1 | DQ99: - | DR99: - | DS99: - | DT99: - | DU99: - | DV99: - | DW99: - | DX99: - | DY99: - | DZ99: - | EA99: 2 | EB99: 191 | EC99: 56 | ED99: 135 | EE99: - | EF99: 3 | EG99: 2 | EH99: 2 | EI99: - | EJ99: - | EK99: - | EL99: - | EM99: 1 | EN99: 2 | EO99: 2 | EP99: 2 | EQ99: - | ER99: - | ES99: - | ET99: - | EU99: -
A100: 群馬県 | B100: 前橋市 | C100: 元総社村 | D100: 大友 | E100: 4 | F100: - | G100: - | H100: - | I100: - | J100: - | K100: - | L100: 4 | M100: - | N100: - | O100: - | P100: - | Q100: - | R100: - | S100: - | T100: - | U100: - | V100: - | W100: - | X100: - | Y100: - | Z100: - | AA100: - | AB100: - | AC100: … | AD100: … | AE100: … | AF100: - | AG100: - | AH100: - | AI100: - | AJ100: - | AK100: - | AL100: - | AM100: - | AN100: - | AO100: - | AP100: - | AQ100: - | AR100: - | AS100: - | AT100: - | AU100: - | AV100: … | AW100: … | AX100: … | AY100: - | AZ100: - | BA100: - | BB100: - | BC100: - | BD100: - | BE100: - | BF100: - | BG100: - | BH100: - | BI100: - | BJ100: - | BK100: - | BL100: - | BM100: - | BN100: - | BO100: … | BP100: … | BQ100: … | BR100: - | BS100: - | BT100: - | BU100: - | BV100: - | BW100: - | BX100: - | BY100: - | BZ100: - | CA100: - | CB100: - | CC100: - | CD100: - | CE100: - | CF100: - | CG100: - | CH100: - | CI100: - | CJ100: - | CK100: - | CL100: - | CM100: - | CN100: - | CO100: - | CP100: - | CQ100: - | CR100: - | CS100: - | CT100: - | CU100: - | DC100: - | DD100: - | DE100: - | DF100: - | DG100: - | DH100: - | DI100: - | DJ100: - | DK100: - | DL100: - | DM100: - | DN100: - | DO100: - | DP100: - | DQ100: - | DR100: - | DS100: - | DT100: - | DU100: - | DV100: - | DW100: - | DX100: - | DY100: - | DZ100: - | EA100: - | EB100: - | EC100: - | ED100: - | EE100: - | EF100: - | EG100: - | EH100: - | EI100: - | EJ100: - | EK100: - | EL100: - | EM100: - | EN100: - | EO100: - | EP100: - | EQ100: - | ER100: - | ES100: - | ET100: - | EU100: -
A101: 群馬県 | B101: 前橋市 | C101: 元総社村 | D101: 大渡 | E101: - | F101: - | G101: - | H101: - | I101: - | J101: - | K101: - | L101: - | M101: - | N101: - | O101: - | P101: - | Q101: - | R101: - | S101: - | T101: - | U101: - | V101: - | W101: - | X101: - | Y101: - | Z101: - | AA101: - | AB101: - | AC101: … | AD101: … | AE101: … | AF101: - | AG101: - | AH101: - | AI101: - | AJ101: - | AK101: - | AL101: - | AM101: - | AN101: - | AO101: - | AP101: - | AQ101: - | AR101: - | AS101: - | AT101: - | AU101: - | AV101: … | AW101: … | AX101: … | AY101: - | AZ101: - | BA101: - | BB101: - | BC101: - | BD101: - | BE101: - | BF101: - | BG101: - | BH101: - | BI101: - | BJ101: - | BK101: - | BL101: - | BM101: - | BN101: - | BO101: … | BP101: … | BQ101: … | BR101: - | BS101: - | BT101: - | BU101: - | BV101: - | BW101: - | BX101: - | BY101: - | BZ101: - | CA101: - | CB101: - | CC101: - | CD101: - | CE101: - | CF101: - | CG101: - | CH101: - | CI101: - | CJ101: - | CK101: - | CL101: - | CM101: - | CN101: - | CO101: - | CP101: - | CQ101: - | CR101: - | CS101: - | CT101: - | CU101: - | DC101: - | DD101: - | DE101: - | DF101: - | DG101: - | DH101: - | DI101: - | DJ101: - | DK101: - | DL101: - | DM101: - | DN101: - | DO101: - | DP101: - | DQ101: - | DR101: - | DS101: - | DT101: - | DU101: - | DV101: - | DW101: - | DX101: - | DY101: - | DZ101: - | EA101: - | EB101: - | EC101: - | ED101: - | EE101: - | EF101: - | EG101: - | EH101: - | EI101: - | EJ101: - | EK101: - | EL101: - | EM101: - | EN101: - | EO101: - | EP101: - | EQ101: - | ER101: - | ES101: - | ET101: - | EU101: -
A102: 群馬県 | B102: 前橋市 | C102: 元総社村 | D102: 石倉北部 | E102: 3 | F102: - | G102: - | H102: - | I102: - | J102: - | K102: - | L102: 3 | M102: - | N102: - | O102: - | P102: - | Q102: - | R102: - | S102: - | T102: - | U102: - | V102: - | W102: - | X102: - | Y102: - | Z102: - | AA102: - | AB102: - | AC102: … | AD102: … | AE102: … | AF102: - | AG102: - | AH102: - | AI102: - | AJ102: - | AK102: - | AL102: - | AM102: - | AN102: - | AO102: - | AP102: - | AQ102: - | AR102: - | AS102: - | AT102: - | AU102: - | AV102: … | AW102: … | AX102: … | AY102: - | AZ102: - | BA102: - | BB102: - | BC102: - | BD102: - | BE102: - | BF102: - | BG102: - | BH102: - | BI102: - | BJ102: - | BK102: - | BL102: - | BM102: - | BN102: - | BO102: … | BP102: … | BQ102: … | BR102: - | BS102: - | BT102: - | BU102: - | BV102: - | BW102: - | BX102: - | BY102: - | BZ102: - | CA102: - | CB102: - | CC102: - | CD102: - | CE102: - | CF102: - | CG102: - | CH102: - | CI102: - | CJ102: - | CK102: - | CL102: - | CM102: - | CN102: - | CO102: - | CP102: - | CQ102: - | CR102: - | CS102: - | CT102: - | CU102: - | DC102: - | DD102: - | DE102: - | DF102: - | DG102: - | DH102: - | DI102: - | DJ102: - | DK102: - | DL102: - | DM102: - | DN102: - | DO102: - | DP102: - | DQ102: - | DR102: - | DS102: - | DT102: - | DU102: - | DV102: - | DW102: - | DX102: - | DY102: - | DZ102: - | EA102: - | EB102: - | EC102: - | ED102: - | EE102: - | EF102: - | EG102: - | EH102: - | EI102: - | EJ102: - | EK102: - | EL102: - | EM102: - | EN102: - | EO102: - | EP102: - | EQ102: - | ER102: - | ES102: - | ET102: - | EU102: -
A103: 群馬県 | B103: 前橋市 | C103: 元総社村 | D103: 石倉中部 | E103: - | F103: - | G103: - | H103: - | I103: - | J103: - | K103: - | L103: - | M103: - | N103: - | O103: - | P103: - | Q103: - | R103: - | S103: - | T103: - | U103: - | V103: - | W103: - | X103: - | Y103: - | Z103: - | AA103: - | AB103: - | AC103: … | AD103: … | AE103: … | AF103: - | AG103: - | AH103: - | AI103: - | AJ103: - | AK103: - | AL103: - | AM103: - | AN103: - | AO103: - | AP103: - | AQ103: - | AR103: - | AS103: - | AT103: - | AU103: - | AV103: … | AW103: … | AX103: … | AY103: - | AZ103: - | BA103: - | BB103: - | BC103: - | BD103: - | BE103: - | BF103: - | BG103: - | BH103: - | BI103: - | BJ103: - | BK103: - | BL103: - | BM103: - | BN103: - | BO103: … | BP103: … | BQ103: … | BR103: - | BS103: - | BT103: - | BU103: - | BV103: - | BW103: - | BX103: - | BY103: - | BZ103: - | CA103: - | CB103: - | CC103: - | CD103: - | CE103: - | CF103: - | CG103: - | CH103: - | CI103: - | CJ103: - | CK103: - | CL103: - | CM103: - | CN103: - | CO103: - | CP103: - | CQ103: - | CR103: - | CS103: - | CT103: - | CU103: - | DC103: - | DD103: - | DE103: - | DF103: - | DG103: - | DH103: - | DI103: - | DJ103: - | DK103: - | DL103: - | DM103: - | DN103: - | DO103: - | DP103: - | DQ103: - | DR103: - | DS103: - | DT103: - | DU103: - | DV103: - | DW103: - | DX103: - | DY103: - | DZ103: - | EA103: - | EB103: - | EC103: - | ED103: - | EE103: - | EF103: - | EG103: - | EH103: - | EI103: - | EJ103: - | EK103: - | EL103: - | EM103: - | EN103: - | EO103: - | EP103: - | EQ103: - | ER103: - | ES103: - | ET103: - | EU103: -
A104: 群馬県 | B104: 前橋市 | C104: 元総社村 | D104: 石倉南部 | E104: 2 | F104: - | G104: - | H104: - | I104: - | J104: - | K104: - | L104: 2 | M104: - | N104: - | O104: - | P104: - | Q104: - | R104: - | S104: - | T104: - | U104: - | V104: - | W104: - | X104: - | Y104: - | Z104: - | AA104: - | AB104: - | AC104: … | AD104: … | AE104: … | AF104: - | AG104: - | AH104: - | AI104: - | AJ104: - | AK104: - | AL104: - | AM104: - | AN104: - | AO104: - | AP104: - | AQ104: - | AR104: - | AS104: - | AT104: - | AU104: - | AV104: … | AW104: … | AX104: … | AY104: - | AZ104: - | BA104: - | BB104: - | BC104: - | BD104: - | BE104: - | BF104: - | BG104: - | BH104: - | BI104: - | BJ104: - | BK104: - | BL104: - | BM104: - | BN104: - | BO104: … | BP104: … | BQ104: … | BR104: - | BS104: - | BT104: - | BU104: - | BV104: - | BW104: - | BX104: - | BY104: - | BZ104: - | CA104: - | CB104: - | CC104: - | CD104: - | CE104: - | CF104: - | CG104: - | CH104: - | CI104: - | CJ104: - | CK104: - | CL104: - | CM104: - | CN104: - | CO104: - | CP104: - | CQ104: - | CR104: - | CS104: - | CT104: - | CU104: - | DC104: - | DD104: - | DE104: - | DF104: - | DG104: - | DH104: - | DI104: - | DJ104: - | DK104: - | DL104: - | DM104: - | DN104: - | DO104: - | DP104: - | DQ104: - | DR104: - | DS104: - | DT104: - | DU104: - | DV104: - | DW104: - | DX104: - | DY104: - | DZ104: - | EA104: - | EB104: - | EC104: - | ED104: - | EE104: - | EF104: - | EG104: - | EH104: - | EI104: - | EJ104: - | EK104: - | EL104: - | EM104: - | EN104: - | EO104: - | EP104: - | EQ104: - | ER104: - | ES104: - | ET104: - | EU104: -
A105: 群馬県 | B105: 前橋市 | C105: 総社町 | E105: 94 | F105: 29 | G105: 5 | H105: 5 | I105: 7 | J105: 3 | K105: 17 | L105: 65 | M105: 77 | N105: 1 | O105: 4 | P105: 5 | Q105: 2 | R105: - | S105: 3 | T105: 1 | U105: 8 | V105: 8 | W105: 7 | X105: 7 | Y105: 7 | Z105: 10 | AA105: 10 | AB105: 4 | AC105: 61.0 | AD105: 61.2 | AE105: 60.8 | AF105: 57 | AG105: 1 | AH105: 3 | AI105: 2 | AJ105: 1 | AK105: - | AL105: 1 | AM105: - | AN105: 4 | AO105: 3 | AP105: 5 | AQ105: 6 | AR105: 7 | AS105: 10 | AT105: 10 | AU105: 4 | AV105: 65.8 | AW105: 66.4 | AX105: 65.2 | AY105: 40 | AZ105: - | BA105: - | BB105: 1 | BC105: - | BD105: - | BE105: 1 | BF105: - | BG105: 3 | BH105: 1 | BI105: 4 | BJ105: 5 | BK105: 4 | BL105: 9 | BM105: 9 | BN105: 3 | BO105: 71.4 | BP105: 71.0 | BQ105: 72.1 | BR105: 29 | BS105: - | BT105: - | BU105: - | BV105: - | BW105: - | BX105: 1 | BY105: - | BZ105: 3 | CA105: 2 | CB105: 4 | CC105: 3 | CD105: 2 | CE105: 7 | CF105: 5 | CG105: 2 | CH105: 21 | CI105: - | CJ105: - | CK105: - | CL105: - | CM105: - | CN105: 1 | CO105: 2 | CP105: 3 | CQ105: 2 | CR105: 1 | CS105: 5 | CT105: 5 | CU105: 2 | DC105: 106 | DD105: 69 | DE105: 40 | DF105: 25 | DG105: 4 | DH105: 16 | DI105: 10 | DJ105: 11 | DK105: 28 | DL105: 5 | DM105: - | DN105: - | DO105: - | DP105: 22 | DQ105: 1 | DR105: - | DS105: - | DT105: - | DU105: - | DV105: - | DW105: - | DX105: - | DY105: - | DZ105: - | EA105: 29 | EB105: 1,948 | EC105: 431 | ED105: 1,517 | EE105: - | EF105: 50 | EG105: 42 | EH105: 25 | EI105: 15 | EJ105: 2 | EK105: 1 | EL105: 4 | EM105: 3 | EN105: 56 | EO105: 27 | EP105: 15 | EQ105: 10 | ER105: 2 | ES105: 15 | ET105: 6 | EU105: 8
A106: 群馬県 | B106: 前橋市 | C106: 総社町 | D106: 粟島 | E106: 5 | F106: - | G106: - | H106: - | I106: - | J106: - | K106: - | L106: 5 | M106: - | N106: - | O106: - | P106: - | Q106: - | R106: - | S106: - | T106: - | U106: - | V106: - | W106: - | X106: - | Y106: - | Z106: - | AA106: - | AB106: - | AC106: … | AD106: … | AE106: … | AF106: - | AG106: - | AH106: - | AI106: - | AJ106: - | AK106: - | AL106: - | AM106: - | AN106: - | AO106: - | AP106: - | AQ106: - | AR106: - | AS106: - | AT106: - | AU106: - | AV106: … | AW106: … | AX106: … | AY106: - | AZ106: - | BA106: - | BB106: - | BC106: - | BD106: - | BE106: - | BF106: - | BG106: - | BH106: - | BI106: - | BJ106: - | BK106: - | BL106: - | BM106: - | BN106: - | BO106: … | BP106: … | BQ106: … | BR106: - | BS106: - | BT106: - | BU106: - | BV106: - | BW106: - | BX106: - | BY106: - | BZ106: - | CA106: - | CB106: - | CC106: - | CD106: - | CE106: - | CF106: - | CG106: - | CH106: - | CI106: - | CJ106: - | CK106: - | CL106: - | CM106: - | CN106: - | CO106: - | CP106: - | CQ106: - | CR106: - | CS106: - | CT106: - | CU106: - | DC106: - | DD106: - | DE106: - | DF106: - | DG106: - | DH106: - | DI106: - | DJ106: - | DK106: - | DL106: - | DM106: - | DN106: - | DO106: - | DP106: - | DQ106: - | DR106: - | DS106: - | DT106: - | DU106: - | DV106: - | DW106: - | DX106: - | DY106: - | DZ106: - | EA106: - | EB106: - | EC106: - | ED106: - | EE106: - | EF106: - | EG106: - | EH106: - | EI106: - | EJ106: - | EK106: - | EL106: - | EM106: - | EN106: - | EO106: - | EP106: - | EQ106: - | ER106: - | ES106: - | ET106: - | EU106: -
A107: 群馬県 | B107: 前橋市 | C107: 総社町 | D107: 大屋敷 | E107: 6 | F107: 1 | G107: x | H107: x | I107: x | J107: x | K107: x | L107: 5 | M107: x | N107: x | O107: x | P107: x | Q107: x | R107: x | S107: x | T107: x | U107: x | V107: x | W107: x | X107: x | Y107: x | Z107: x | AA107: x | AB107: x | AC107: 73.0 | AD107: 76.0 | AE107: 70.0 | AF107: x | AG107: x | AH107: x | AI107: x | AJ107: x | AK107: x | AL107: x | AM107: x | AN107: x | AO107: x | AP107: x | AQ107: x | AR107: x | AS107: x | AT107: x | AU107: x | AV107: 73.0 | AW107: 76.0 | AX107: 70.0 | AY107: x | AZ107: x | BA107: x | BB107: x | BC107: x | BD107: x | BE107: x | BF107: x | BG107: x | BH107: x | BI107: x | BJ107: x | BK107: x | BL107: x | BM107: x | BN107: x | BO107: 76.0 | BP107: 76.0 | BQ107: … | BR107: 1 | BS107: - | BT107: - | BU107: - | BV107: - | BW107: - | BX107: - | BY107: - | BZ107: - | CA107: - | CB107: - | CC107: - | CD107: - | CE107: 1 | CF107: - | CG107: - | CH107: 1 | CI107: - | CJ107: - | CK107: - | CL107: - | CM107: - | CN107: - | CO107: - | CP107: - | CQ107: - | CR107: - | CS107: 1 | CT107: - | CU107: - | DC107: 2 | DD107: 1 | DE107: 1 | DF107: - | DG107: - | DH107: 1 | DI107: - | DJ107: - | DK107: 1 | DL107: 1 | DM107: - | DN107: - | DO107: - | DP107: - | DQ107: - | DR107: - | DS107: - | DT107: - | DU107: - | DV107: - | DW107: - | DX107: - | DY107: - | DZ107: - | EA107: 1 | EB107: 33 | EC107: 24 | ED107: 9 | EE107: - | EF107: 1 | EG107: 1 | EH107: 1 | EI107: - | EJ107: - | EK107: - | EL107: - | EM107: - | EN107: 1 | EO107: - | EP107: - | EQ107: - | ER107: - | ES107: 1 | ET107: - | EU107: -
A108: 群馬県 | B108: 前橋市 | C108: 総社町 | D108: 山王 | E108: 29 | F108: 12 | G108: 3 | H108: 3 | I108: 3 | J108: 1 | K108: 6 | L108: 17 | M108: 36 | N108: 1 | O108: 2 | P108: 4 | Q108: 1 | R108: - | S108: 1 | T108: 1 | U108: 5 | V108: 4 | W108: 2 | X108: 2 | Y108: 2 | Z108: 4 | AA108: 5 | AB108: 2 | AC108: 57.7 | AD108: 56.4 | AE108: 59.1 | AF108: 25 | AG108: 1 | AH108: 1 | AI108: 2 | AJ108: - | AK108: - | AL108: 1 | AM108: - | AN108: 2 | AO108: 2 | AP108: 1 | AQ108: 2 | AR108: 2 | AS108: 4 | AT108: 5 | AU108: 2 | AV108: 63.6 | AW108: 61.2 | AX108: 66.3 | AY108: 19 | AZ108: - | BA108: - | BB108: 1 | BC108: - | BD108: - | BE108: 1 | BF108: - | BG108: 2 | BH108: 1 | BI108: 1 | BJ108: 2 | BK108: 2 | BL108: 4 | BM108: 4 | BN108: 1 | BO108: 68.4 | BP108: 66.9 | BQ108: 70.0 | BR108: 12 | BS108: - | BT108: - | BU108: - | BV108: - | BW108: - | BX108: - | BY108: - | BZ108: 1 | CA108: 1 | CB108: 2 | CC108: 1 | CD108: - | CE108: 3 | CF108: 3 | CG108: 1 | CH108: 9 | CI108: - | CJ108: - | CK108: - | CL108: - | CM108: - | CN108: - | CO108: 1 | CP108: 1 | CQ108: 1 | CR108: - | CS108: 2 | CT108: 3 | CU108: 1 | DC108: 50 | DD108: 33 | DE108: 19 | DF108: 12 | DG108: 2 | DH108: 7 | DI108: 5 | DJ108: 5 | DK108: 12 | DL108: 2 | DM108: - | DN108: - | DO108: - | DP108: 10 | DQ108: - | DR108: - | DS108: - | DT108: - | DU108: - | DV108: - | DW108: - | DX108: - | DY108: - | DZ108: - | EA108: 12 | EB108: 1,086 | EC108: 300 | ED108: 786 | EE108: - | EF108: 22 | EG108: 17 | EH108: 10 | EI108: 6 | EJ108: 1 | EK108: 1 | EL108: 2 | EM108: 2 | EN108: 28 | EO108: 16 | EP108: 9 | EQ108: 6 | ER108: 1 | ES108: 6 | ET108: 3 | EU108: 3
A109: 群馬県 | B109: 前橋市 | C109: 総社町 | D109: 新田 | E109: 8 | F109: 2 | G109: x | H109: x | I109: x | J109: x | K109: x | L109: 6 | M109: x | N109: x | O109: x | P109: x | Q109: x | R109: x | S109: x | T109: x | U109: x | V109: x | W109: x | X109: x | Y109: x | Z109: x | AA109: x | AB109: x | AC109: 72.0 | AD109: 72.7 | AE109: 70.0 | AF109: x | AG109: x | AH109: x | AI109: x | AJ109: x | AK109: x | AL109: x | AM109: x | AN109: x | AO109: x | AP109: x | AQ109: x | AR109: x | AS109: x | AT109: x | AU109: x | AV109: 72.0 | AW109: 72.7 | AX109: 70.0 | AY109: x | AZ109: x | BA109: x | BB109: x | BC109: x | BD109: x | BE109: x | BF109: x | BG109: x | BH109: x | BI109: x | BJ109: x | BK109: x | BL109: x | BM109: x | BN109: x | BO109: 72.7 | BP109: 72.7 | BQ109: … | BR109: 2 | BS109: - | BT109: - | BU109: - | BV109: - | BW109: - | BX109: - | BY109: - | BZ109: - | CA109: - | CB109: - | CC109: - | CD109: 1 | CE109: - | CF109: 1 | CG109: - | CH109: 1 | CI109: - | CJ109: - | CK109: - | CL109: - | CM109: - | CN109: - | CO109: - | CP109: - | CQ109: - | CR109: - | CS109: - | CT109: 1 | CU109: - | DC109: 9 | DD109: 4 | DE109: 3 | DF109: 1 | DG109: - | DH109: 2 | DI109: 2 | DJ109: 1 | DK109: 2 | DL109: - | DM109: - | DN109: - | DO109: - | DP109: 2 | DQ109: - | DR109: - | DS109: - | DT109: - | DU109: - | DV109: - | DW109: - | DX109: - | DY109: - | DZ109: - | EA109: 2 | EB109: 83 | EC109: 8 | ED109: 75 | EE109: - | EF109: 4 | EG109: 4 | EH109: 3 | EI109: 1 | EJ109: - | EK109: - | EL109: - | EM109: - | EN109: 5 | EO109: - | EP109: - | EQ109: - | ER109: - | ES109: 2 | ET109: 2 | EU109: 1
A110: 群馬県 | B110: 前橋市 | C110: 総社町 | D110: 植野 | E110: 22 | F110: 10 | G110: 1 | H110: 1 | I110: 3 | J110: 1 | K110: 6 | L110: 12 | M110: 25 | N110: - | O110: - | P110: 1 | Q110: 1 | R110: - | S110: 2 | T110: - | U110: 2 | V110: 3 | W110: 3 | X110: 4 | Y110: 2 | Z110: 2 | AA110: 4 | AB110: 1 | AC110: 63.3 | AD110: 63.0 | AE110: 63.5 | AF110: 17 | AG110: - | AH110: - | AI110: - | AJ110: 1 | AK110: - | AL110: - | AM110: - | AN110: 1 | AO110: 1 | AP110: 2 | AQ110: 3 | AR110: 2 | AS110: 2 | AT110: 4 | AU110: 1 | AV110: 69.1 | AW110: 71.9 | AX110: 67.2 | AY110: 13 | AZ110: - | BA110: - | BB110: - | BC110: - | BD110: - | BE110: - | BF110: - | BG110: 1 | BH110: - | BI110: 1 | BJ110: 3 | BK110: 1 | BL110: 2 | BM110: 4 | BN110: 1 | BO110: 73.4 | BP110: 71.9 | BQ110: 75.2 | BR110: 10 | BS110: - | BT110: - | BU110: - | BV110: - | BW110: - | BX110: 1 | BY110: - | BZ110: 2 | CA110: 1 | CB110: 1 | CC110: 2 | CD110: 1 | CE110: 1 | CF110: 1 | CG110: - | CH110: 7 | CI110: - | CJ110: - | CK110: - | CL110: - | CM110: - | CN110: 1 | CO110: 1 | CP110: 1 | CQ110: 1 | CR110: 1 | CS110: 1 | CT110: 1 | CU110: - | DC110: 33 | DD110: 26 | DE110: 13 | DF110: 11 | DG110: 2 | DH110: 3 | DI110: 1 | DJ110: 3 | DK110: 10 | DL110: 1 | DM110: - | DN110: - | DO110: - | DP110: 8 | DQ110: 1 | DR110: - | DS110: - | DT110: - | DU110: - | DV110: - | DW110: - | DX110: - | DY110: - | DZ110: - | EA110: 10 | EB110: 573 | EC110: 69 | ED110: 504 | EE110: - | EF110: 17 | EG110: 15 | EH110: 7 | EI110: 7 | EJ110: 1 | EK110: - | EL110: 1 | EM110: 1 | EN110: 16 | EO110: 11 | EP110: 6 | EQ110: 4 | ER110: 1 | ES110: 3 | ET110: - | EU110: 2
A111: 群馬県 | B111: 前橋市 | C111: 総社町 | D111: 高井 | E111: 15 | F111: 1 | G111: x | H111: x | I111: x | J111: x | K111: x | L111: 14 | M111: x | N111: x | O111: x | P111: x | Q111: x | R111: x | S111: x | T111: x | U111: x | V111: x | W111: x | X111: x | Y111: x | Z111: x | AA111: x | AB111: x | AC111: 65.0 | AD111: 63.0 | AE111: 67.0 | AF111: x | AG111: x | AH111: x | AI111: x | AJ111: x | AK111: x | AL111: x | AM111: x | AN111: x | AO111: x | AP111: x | AQ111: x | AR111: x | AS111: x | AT111: x | AU111: x | AV111: 65.0 | AW111: 63.0 | AX111: 67.0 | AY111: x | AZ111: x | BA111: x | BB111: x | BC111: x | BD111: x | BE111: x | BF111: x | BG111: x | BH111: x | BI111: x | BJ111: x | BK111: x | BL111: x | BM111: x | BN111: x | BO111: 63.0 | BP111: 63.0 | BQ111: … | BR111: 1 | BS111: - | BT111: - | BU111: - | BV111: - | BW111: - | BX111: - | BY111: - | BZ111: - | CA111: - | CB111: 1 | CC111: - | CD111: - | CE111: - | CF111: - | CG111: - | CH111: 1 | CI111: - | CJ111: - | CK111: - | CL111: - | CM111: - | CN111: - | CO111: - | CP111: 1 | CQ111: - | CR111: - | CS111: - | CT111: - | CU111: - | DC111: 2 | DD111: 1 | DE111: 1 | DF111: - | DG111: - | DH111: 1 | DI111: - | DJ111: - | DK111: - | DL111: - | DM111: - | DN111: - | DO111: - | DP111: - | DQ111: - | DR111: - | DS111: - | DT111: - | DU111: - | DV111: - | DW111: - | DX111: - | DY111: - | DZ111: - | EA111: 1 | EB111: 34 | EC111: - | ED111: 34 | EE111: - | EF111: 1 | EG111: 1 | EH111: 1 | EI111: - | EJ111: - | EK111: - | EL111: - | EM111: - | EN111: 1 | EO111: - | EP111: - | EQ111: - | ER111: - | ES111: 1 | ET111: - | EU111: -
A112: 群馬県 | B112: 前橋市 | C112: 総社町 | D112: 野馬、大渡、巣鳥、鍛治町 | E112: 9 | F112: 3 | G112: - | H112: - | I112: - | J112: - | K112: 3 | L112: 6 | M112: 8 | N112: - | O112: 2 | P112: - | Q112: - | R112: - | S112: - | T112: - | U112: 1 | V112: 1 | W112: - | X112: - | Y112: - | Z112: 3 | AA112: - | AB112: 1 | AC112: 59.6 | AD112: 65.2 | AE112: 50.3 | AF112: 7 | AG112: - | AH112: 2 | AI112: - | AJ112: - | AK112: - | AL112: - | AM112: - | AN112: 1 | AO112: - | AP112: - | AQ112: - | AR112: - | AS112: 3 | AT112: - | AU112: 1 | AV112: 60.1 | AW112: 67.5 | AX112: 50.3 | AY112: 3 | AZ112: - | BA112: - | BB112: - | BC112: - | BD112: - | BE112: - | BF112: - | BG112: - | BH112: - | BI112: - | BJ112: - | BK112: - | BL112: 2 | BM112: - | BN112: 1 | BO112: 82.0 | BP112: 82.0 | BQ112: … | BR112: 3 | BS112: - | BT112: - | BU112: - | BV112: - | BW112: - | BX112: - | BY112: - | BZ112: - | CA112: - | CB112: - | CC112: - | CD112: - | CE112: 2 | CF112: - | CG112: 1 | CH112: 2 | CI112: - | CJ112: - | CK112: - | CL112: - | CM112: - | CN112: - | CO112: - | CP112: - | CQ112: - | CR112: - | CS112: 1 | CT112: - | CU112: 1 | DC112: 10 | DD112: 4 | DE112: 3 | DF112: 1 | DG112: - | DH112: 2 | DI112: 2 | DJ112: 2 | DK112: 3 | DL112: 1 | DM112: - | DN112: - | DO112: - | DP112: 2 | DQ112: - | DR112: - | DS112: - | DT112: - | DU112: - | DV112: - | DW112: - | DX112: - | DY112: - | DZ112: - | EA112: 3 | EB112: 139 | EC112: 30 | ED112: 109 | EE112: - | EF112: 5 | EG112: 4 | EH112: 3 | EI112: 1 | EJ112: - | EK112: - | EL112: 1 | EM112: - | EN112: 5 | EO112: - | EP112: - | EQ112: - | ER112: - | ES112: 2 | ET112: 1 | EU112: 2
A113: 群馬県 | B113: 前橋市 | C113: 清里村 | E113: 174 | F113: 119 | G113: 24 | H113: 21 | I113: 27 | J113: 14 | K113: 68 | L113: 55 | M113: 298 | N113: 2 | O113: 2 | P113: 4 | Q113: 4 | R113: 4 | S113: 10 | T113: 21 | U113: 20 | V113: 44 | W113: 35 | X113: 25 | Y113: 36 | Z113: 38 | AA113: 41 | AB113: 12 | AC113: 64.4 | AD113: 63.9 | AE113: 65.0 | AF113: 222 | AG113: 2 | AH113: 1 | AI113: 2 | AJ113: 1 | AK113: 1 | AL113: 3 | AM113: 3 | AN113: 5 | AO113: 28 | AP113: 28 | AQ113: 24 | AR113: 34 | AS113: 37 | AT113: 41 | AU113: 12 | AV113: 69.2 | AW113: 71.7 | AX113: 67.0 | AY113: 183 | AZ113: - | BA113: - | BB113: 1 | BC113: - | BD113: - | BE113: 1 | BF113: 1 | BG113: 5 | BH113: 25 | BI113: 24 | BJ113: 22 | BK113: 30 | BL113: 31 | BM113: 35 | BN113: 8 | BO113: 70.4 | BP113: 71.2 | BQ113: 69.6 | BR113: 119 | BS113: - | BT113: - | BU113: - | BV113: - | BW113: - | BX113: 3 | BY113: 3 | BZ113: 6 | CA113: 24 | CB113: 23 | CC113: 9 | CD113: 22 | CE113: 14 | CF113: 11 | CG113: 4 | CH113: 68 | CI113: - | CJ113: - | CK113: - | CL113: - | CM113: 2 | CN113: 2 | CO113: 13 | CP113: 12 | CQ113: 6 | CR113: 13 | CS113: 8 | CT113: 9 | CU113: 3 | DC113: 416 | DD113: 309 | DE113: 183 | DF113: 111 | DG113: 15 | DH113: 32 | DI113: 31 | DJ113: 44 | DK113: 107 | DL113: 7 | DM113: - | DN113: 1 | DO113: - | DP113: 82 | DQ113: 1 | DR113: 3 | DS113: 3 | DT113: - | DU113: 4 | DV113: 4 | DW113: 2 | DX113: - | DY113: - | DZ113: - | EA113: 119 | EB113: 12,513 | EC113: 3,589 | ED113: 8,742 | EE113: 182 | EF113: 210 | EG113: 177 | EH113: 95 | EI113: 72 | EJ113: 10 | EK113: - | EL113: 16 | EM113: 17 | EN113: 206 | EO113: 132 | EP113: 88 | EQ113: 39 | ER113: 5 | ES113: 32 | ET113: 15 | EU113: 27
A114: 群馬県 | B114: 前橋市 | C114: 清里村 | D114: 池端 | E114: 36 | F114: 19 | G114: x | H114: x | I114: x | J114: x | K114: x | L114: 17 | M114: x | N114: x | O114: x | P114: x | Q114: x | R114: x | S114: x | T114: x | U114: x | V114: x | W114: x | X114: x | Y114: x | Z114: x | AA114: x | AB114: x | AC114: 62.0 | AD114: 62.3 | AE114: 61.6 | AF114: x | AG114: x | AH114: x | AI114: x | AJ114: x | AK114: x | AL114: x | AM114: x | AN114: x | AO114: x | AP114: x | AQ114: x | AR114: x | AS114: x | AT114: x | AU114: x | AV114: 65.6 | AW114: 69.1 | AX114: 63.1 | AY114: x | AZ114: x | BA114: x | BB114: x | BC114: x | BD114: x | BE114: x | BF114: x | BG114: x | BH114: x | BI114: x | BJ114: x | BK114: x | BL114: x | BM114: x | BN114: x | BO114: 66.9 | BP114: 68.4 | BQ114: 65.6 | BR114: 19 | BS114: - | BT114: - | BU114: - | BV114: - | BW114: - | BX114: 1 | BY114: 1 | BZ114: - | CA114: 4 | CB114: 6 | CC114: 1 | CD114: 6 | CE114: - | CF114: - | CG114: - | CH114: 11 | CI114: - | CJ114: - | CK114: - | CL114: - | CM114: 1 | CN114: - | CO114: 3 | CP114: 4 | CQ114: - | CR114: 3 | CS114: - | CT114: - | CU114: - | DC114: 70 | DD114: 53 | DE114: 34 | DF114: 18 | DG114: 1 | DH114: 5 | DI114: 5 | DJ114: 7 | DK114: 19 | DL114: - | DM114: - | DN114: - | DO114: - | DP114: 17 | DQ114: 1 | DR114: - | DS114: - | DT114: - | DU114: - | DV114: 1 | DW114: - | DX114: - | DY114: - | DZ114: - | EA114: 19 | EB114: 1,984 | EC114: 510 | ED114: 1,474 | EE114: - | EF114: 36 | EG114: 31 | EH114: 16 | EI114: 14 | EJ114: 1 | EK114: - | EL114: 2 | EM114: 3 | EN114: 34 | EO114: 22 | EP114: 18 | EQ114: 4 | ER114: - | ES114: 5 | ET114: 3 | EU114: 4
A115: 群馬県 | B115: 前橋市 | C115: 清里村 | D115: 清野 | E115: 9 | F115: 2 | G115: x | H115: x | I115: x | J115: x | K115: x | L115: 7 | M115: x | N115: x | O115: x | P115: x | Q115: x | R115: x | S115: x | T115: x | U115: x | V115: x | W115: x | X115: x | Y115: x | Z115: x | AA115: x | AB115: x | AC115: 70.0 | AD115: 68.5 | AE115: 73.0 | AF115: x | AG115: x | AH115: x | AI115: x | AJ115: x | AK115: x | AL115: x | AM115: x | AN115: x | AO115: x | AP115: x | AQ115: x | AR115: x | AS115: x | AT115: x | AU115: x | AV115: 70.0 | AW115: 68.5 | AX115: 73.0 | AY115: x | AZ115: x | BA115: x | BB115: x | BC115: x | BD115: x | BE115: x | BF115: x | BG115: x | BH115: x | BI115: x | BJ115: x | BK115: x | BL115: x | BM115: x | BN115: x | BO115: 68.5 | BP115: 68.5 | BQ115: … | BR115: 2 | BS115: - | BT115: - | BU115: - | BV115: - | BW115: - | BX115: - | BY115: - | BZ115: - | CA115: - | CB115: 1 | CC115: - | CD115: - | CE115: 1 | CF115: - | CG115: - | CH115: 1 | CI115: - | CJ115: - | CK115: - | CL115: - | CM115: - | CN115: - | CO115: - | CP115: 1 | CQ115: - | CR115: - | CS115: - | CT115: - | CU115: - | DC115: 7 | DD115: 4 | DE115: 2 | DF115: 2 | DG115: - | DH115: 2 | DI115: - | DJ115: 1 | DK115: 2 | DL115: - | DM115: - | DN115: - | DO115: - | DP115: 2 | DQ115: - | DR115: - | DS115: - | DT115: - | DU115: - | DV115: - | DW115: - | DX115: - | DY115: - | DZ115: - | EA115: 2 | EB115: 155 | EC115: 48 | ED115: 107 | EE115: - | EF115: 4 | EG115: 3 | EH115: 2 | EI115: 1 | EJ115: - | EK115: - | EL115: - | EM115: 1 | EN115: 3 | EO115: 1 | EP115: - | EQ115: 1 | ER115: - | ES115: 2 | ET115: - | EU115: -
A116: 群馬県 | B116: 前橋市 | C116: 清里村 | D116: 上青梨子 | E116: 36 | F116: 27 | G116: 5 | H116: 3 | I116: 9 | J116: 4 | K116: 13 | L116: 9 | M116: 73 | N116: 1 | O116: - | P116: 1 | Q116: - | R116: 1 | S116: 2 | T116: 8 | U116: 6 | V116: 8 | W116: 9 | X116: 5 | Y116: 12 | Z116: 10 | AA116: 5 | AB116: 5 | AC116: 64.1 | AD116: 65.1 | AE116: 62.8 | AF116: 51 | AG116: 1 | AH116: - | AI116: 1 | AJ116: - | AK116: - | AL116: - | AM116: 1 | AN116: - | AO116: 6 | AP116: 6 | AQ116: 4 | AR116: 12 | AS116: 10 | AT116: 5 | AU116: 5 | AV116: 69.6 | AW116: 74.5 | AX116: 65.3 | AY116: 42 | AZ116: - | BA116: - | BB116: - | BC116: - | BD116: - | BE116: - | BF116: - | BG116: - | BH116: 5 | BI116: 5 | BJ116: 3 | BK116: 11 | BL116: 9 | BM116: 5 | BN116: 4 | BO116: 72.4 | BP116: 74.6 | BQ116: 69.8 | BR116: 27 | BS116: - | BT116: - | BU116: - | BV116: - | BW116: - | BX116: 1 | BY116: 1 | BZ116: - | CA116: 2 | CB116: 6 | CC116: 1 | CD116: 7 | CE116: 3 | CF116: 4 | CG116: 2 | CH116: 14 | CI116: - | CJ116: - | CK116: - | CL116: - | CM116: 1 | CN116: - | CO116: - | CP116: 2 | CQ116: 1 | CR116: 4 | CS116: 2 | CT116: 2 | CU116: 2 | DC116: 90 | DD116: 72 | DE116: 42 | DF116: 26 | DG116: 4 | DH116: 6 | DI116: 5 | DJ116: 7 | DK116: 25 | DL116: 1 | DM116: - | DN116: 1 | DO116: - | DP116: 14 | DQ116: - | DR116: 2 | DS116: 2 | DT116: - | DU116: 2 | DV116: 2 | DW116: 1 | DX116: - | DY116: - | DZ116: - | EA116: 27 | EB116: 2,938 | EC116: 1,076 | ED116: 1,742 | EE116: 120 | EF116: 48 | EG116: 44 | EH116: 23 | EI116: 18 | EJ116: 3 | EK116: - | EL116: 2 | EM116: 2 | EN116: 42 | EO116: 28 | EP116: 19 | EQ116: 8 | ER116: 1 | ES116: 6 | ET116: 3 | EU116: 5
A117: 群馬県 | B117: 前橋市 | C117: 清里村 | D117: 青梨子 | E117: 45 | F117: 34 | G117: 8 | H117: 8 | I117: 8 | J117: 5 | K117: 18 | L117: 11 | M117: 74 | N117: - | O117: 1 | P117: 2 | Q117: 1 | R117: 1 | S117: - | T117: - | U117: 8 | V117: 11 | W117: 10 | X117: 6 | Y117: 7 | Z117: 10 | AA117: 15 | AB117: 2 | AC117: 66.2 | AD117: 64.9 | AE117: 67.8 | AF117: 64 | AG117: - | AH117: 1 | AI117: 1 | AJ117: - | AK117: - | AL117: - | AM117: - | AN117: 4 | AO117: 11 | AP117: 9 | AQ117: 6 | AR117: 5 | AS117: 10 | AT117: 15 | AU117: 2 | AV117: 68.6 | AW117: 69.1 | AX117: 68.2 | AY117: 59 | AZ117: - | BA117: - | BB117: 1 | BC117: - | BD117: - | BE117: - | BF117: - | BG117: 4 | BH117: 11 | BI117: 8 | BJ117: 6 | BK117: 4 | BL117: 9 | BM117: 15 | BN117: 1 | BO117: 69.0 | BP117: 69.1 | BQ117: 68.8 | BR117: 34 | BS117: - | BT117: - | BU117: - | BV117: - | BW117: - | BX117: - | BY117: - | BZ117: 4 | CA117: 7 | CB117: 7 | CC117: 2 | CD117: 5 | CE117: 2 | CF117: 5 | CG117: 2 | CH117: 21 | CI117: - | CJ117: - | CK117: - | CL117: - | CM117: - | CN117: 1 | CO117: 4 | CP117: 4 | CQ117: 2 | CR117: 3 | CS117: 1 | CT117: 5 | CU117: 1 | DC117: 111 | DD117: 85 | DE117: 59 | DF117: 26 | DG117: - | DH117: 4 | DI117: 6 | DJ117: 16 | DK117: 29 | DL117: 2 | DM117: - | DN117: - | DO117: - | DP117: 25 | DQ117: - | DR117: - | DS117: 1 | DT117: - | DU117: - | DV117: - | DW117: 1 | DX117: - | DY117: - | DZ117: - | EA117: 34 | EB117: 4,060 | EC117: 1,361 | ED117: 2,678 | EE117: 21 | EF117: 53 | EG117: 45 | EH117: 32 | EI117: 13 | EJ117: - | EK117: - | EL117: 3 | EM117: 5 | EN117: 58 | EO117: 40 | EP117: 27 | EQ117: 13 | ER117: - | ES117: 4 | ET117: 3 | EU117: 11
A118: 群馬県 | B118: 前橋市 | C118: 清里村 | D118: 前原 | E118: 48 | F118: 37 | G118: 5 | H118: 4 | I118: 3 | J118: - | K118: 29 | L118: 11 | M118: 96 | N118: 1 | O118: 1 | P118: - | Q118: 1 | R118: 1 | S118: 5 | T118: 9 | U118: 5 | V118: 18 | W118: 4 | X118: 9 | Y118: 8 | Z118: 15 | AA118: 16 | AB118: 3 | AC118: 64.4 | AD118: 62.8 | AE118: 66.1 | AF118: 63 | AG118: 1 | AH118: - | AI118: - | AJ118: - | AK118: 1 | AL118: 1 | AM118: - | AN118: - | AO118: 6 | AP118: 4 | AQ118: 9 | AR118: 8 | AS118: 14 | AT118: 16 | AU118: 3 | AV118: 71.6 | AW118: 74.4 | AX118: 69.6 | AY118: 46 | AZ118: - | BA118: - | BB118: - | BC118: - | BD118: - | BE118: - | BF118: - | BG118: - | BH118: 4 | BI118: 3 | BJ118: 9 | BK118: 7 | BL118: 10 | BM118: 11 | BN118: 2 | BO118: 73.0 | BP118: 72.9 | BQ118: 73.2 | BR118: 37 | BS118: - | BT118: - | BU118: - | BV118: - | BW118: - | BX118: 1 | BY118: 1 | BZ118: 2 | CA118: 11 | CB118: 3 | CC118: 5 | CD118: 4 | CE118: 8 | CF118: 2 | CG118: - | CH118: 21 | CI118: - | CJ118: - | CK118: - | CL118: - | CM118: - | CN118: 1 | CO118: 6 | CP118: 1 | CQ118: 3 | CR118: 3 | CS118: 5 | CT118: 2 | CU118: - | DC118: 138 | DD118: 95 | DE118: 46 | DF118: 39 | DG118: 10 | DH118: 15 | DI118: 15 | DJ118: 13 | DK118: 32 | DL118: 4 | DM118: - | DN118: - | DO118: - | DP118: 24 | DQ118: - | DR118: 1 | DS118: - | DT118: - | DU118: 2 | DV118: 1 | DW118: - | DX118: - | DY118: - | DZ118: - | EA118: 37 | EB118: 3,376 | EC118: 594 | ED118: 2,741 | EE118: 41 | EF118: 69 | EG118: 54 | EH118: 22 | EI118: 26 | EJ118: 6 | EK118: - | EL118: 9 | EM118: 6 | EN118: 69 | EO118: 41 | EP118: 24 | EQ118: 13 | ER118: 4 | ES118: 15 | ET118: 6 | EU118: 7
A119: 群馬県 | B119: 前橋市 | C119: 新高尾村２－２ | E119: 1 | F119: - | G119: - | H119: - | I119: - | J119: - | K119: - | L119: 1 | M119: - | N119: - | O119: - | P119: - | Q119: - | R119: - | S119: - | T119: - | U119: - | V119: - | W119: - | X119: - | Y119: - | Z119: - | AA119: - | AB119: - | AC119: - | AD119: - | AE119: - | AF119: - | AG119: - | AH119: - | AI119: - | AJ119: - | AK119: - | AL119: - | AM119: - | AN119: - | AO119: - | AP119: - | AQ119: - | AR119: - | AS119: - | AT119: - | AU119: - | AV119: - | AW119: - | AX119: - | AY119: - | AZ119: - | BA119: - | BB119: - | BC119: - | BD119: - | BE119: - | BF119: - | BG119: - | BH119: - | BI119: - | BJ119: - | BK119: - | BL119: - | BM119: - | BN119: - | BO119: - | BP119: - | BQ119: - | BR119: - | BS119: - | BT119: - | BU119: - | BV119: - | BW119: - | BX119: - | BY119: - | BZ119: - | CA119: - | CB119: - | CC119: - | CD119: - | CE119: - | CF119: - | CG119: - | CH119: - | CI119: - | CJ119: - | CK119: - | CL119: - | CM119: - | CN119: - | CO119: - | CP119: - | CQ119: - | CR119: - | CS119: - | CT119: - | CU119: - | DC119: - | DD119: - | DE119: - | DF119: - | DG119: - | DH119: - | DI119: - | DJ119: - | DK119: - | DL119: - | DM119: - | DN119: - | DO119: - | DP119: - | DQ119: - | DR119: - | DS119: - | DT119: - | DU119: - | DV119: - | DW119: - | DX119: - | DY119: - | DZ119: - | EA119: - | EB119: - | EC119: - | ED119: - | EE119: - | EF119: - | EG119: - | EH119: - | EI119: - | EJ119: - | EK119: - | EL119: - | EM119: - | EN119: - | EO119: - | EP119: - | EQ119: - | ER119: - | ES119: - | ET119: - | EU119: -
A120: 群馬県 | B120: 前橋市 | C120: 新高尾村２－２ | D120: 鳥羽 | E120: 1 | F120: - | G120: - | H120: - | I120: - | J120: - | K120: - | L120: 1 | M120: - | N120: - | O120: - | P120: - | Q120: - | R120: - | S120: - | T120: - | U120: - | V120: - | W120: - | X120: - | Y120: - | Z120: - | AA120: - | AB120: - | AC120: … | AD120: … | AE120: … | AF120: - | AG120: - | AH120: - | AI120: - | AJ120: - | AK120: - | AL120: - | AM120: - | AN120: - | AO120: - | AP120: - | AQ120: - | AR120: - | AS120: - | AT120: - | AU120: - | AV120: … | AW120: … | AX120: … | AY120: - | AZ120: - | BA120: - | BB120: - | BC120: - | BD120: - | BE120: - | BF120: - | BG120: - | BH120: - | BI120: - | BJ120: - | BK120: - | BL120: - | BM120: - | BN120: - | BO120: … | BP120: … | BQ120: … | BR120: - | BS120: - | BT120: - | BU120: - | BV120: - | BW120: - | BX120: - | BY120: - | BZ120: - | CA120: - | CB120: - | CC120: - | CD120: - | CE120: - | CF120: - | CG120: - | CH120: - | CI120: - | CJ120: - | CK120: - | CL120: - | CM120: - | CN120: - | CO120: - | CP120: - | CQ120: - | CR120: - | CS120: - | CT120: - | CU120: - | DC120: - | DD120: - | DE120: - | DF120: - | DG120: - | DH120: - | DI120: - | DJ120: - | DK120: - | DL120: - | DM120: - | DN120: - | DO120: - | DP120: - | DQ120: - | DR120: - | DS120: - | DT120: - | DU120: - | DV120: - | DW120: - | DX120: - | DY120: - | DZ120: - | EA120: - | EB120: - | EC120: - | ED120: - | EE120: - | EF120: - | EG120: - | EH120: - | EI120: - | EJ120: - | EK120: - | EL120: - | EM120: - | EN120: - | EO120: - | EP120: - | EQ120: - | ER120: - | ES120: - | ET120: - | EU120: -
A121: 群馬県 | B121: 前橋市 | C121: 木瀬村 | E121: 649 | F121: 394 | G121: 75 | H121: 63 | I121: 63 | J121: 26 | K121: 256 | L121: 255 | M121: 988 | N121: 10 | O121: 19 | P121: 26 | Q121: 20 | R121: 24 | S121: 50 | T121: 58 | U121: 82 | V121: 108 | W121: 95 | X121: 103 | Y121: 124 | Z121: 145 | AA121: 92 | AB121: 32 | AC121: 62.0 | AD121: 61.4 | AE121: 62.6 | AF121: 654 | AG121: 3 | AH121: 2 | AI121: 5 | AJ121: 4 | AK121: 13 | AL121: 20 | AM121: 18 | AN121: 27 | AO121: 36 | AP121: 66 | AQ121: 83 | AR121: 114 | AS121: 141 | AT121: 91 | AU121: 31 | AV121: 68.6 | AW121: 68.6 | AX121: 68.6 | AY121: 535 | AZ121: - | BA121: 1 | BB121: 2 | BC121: 2 | BD121: 11 | BE121: 15 | BF121: 14 | BG121: 21 | BH121: 31 | BI121: 58 | BJ121: 71 | BK121: 104 | BL121: 120 | BM121: 69 | BN121: 16 | BO121: 68.8 | BP121: 68.9 | BQ121: 68.6 | BR121: 394 | BS121: - | BT121: - | BU121: 1 | BV121: - | BW121: 2 | BX121: 5 | BY121: 15 | BZ121: 28 | CA121: 44 | CB121: 57 | CC121: 47 | CD121: 61 | CE121: 79 | CF121: 47 | CG121: 8 | CH121: 215 | CI121: - | CJ121: - | CK121: - | CL121: - | CM121: 2 | CN121: 6 | CO121: 15 | CP121: 24 | CQ121: 33 | CR121: 32 | CS121: 63 | CT121: 34 | CU121: 6 | DC121: 1,394 | DD121: 1,018 | DE121: 535 | DF121: 443 | DG121: 40 | DH121: 123 | DI121: 113 | DJ121: 140 | DK121: 374 | DL121: 180 | DM121: 23 | DN121: - | DO121: 1 | DP121: 37 | DQ121: 40 | DR121: 72 | DS121: 9 | DT121: - | DU121: 10 | DV121: 1 | DW121: - | DX121: - | DY121: - | DZ121: 1 | EA121: 394 | EB121: 41,932 | EC121: 27,665 | ED121: 10,724 | EE121: 3,543 | EF121: 700 | EG121: 587 | EH121: 300 | EI121: 262 | EJ121: 25 | EK121: 1 | EL121: 63 | EM121: 49 | EN121: 694 | EO121: 431 | EP121: 235 | EQ121: 181 | ER121: 15 | ES121: 122 | ET121: 50 | EU121: 91
A122: 群馬県 | B122: 前橋市 | C122: 木瀬村 | D122: 天川大島 | E122: 15 | F122: 4 | G122: - | H122: - | I122: 1 | J122: 1 | K122: 3 | L122: 11 | M122: 14 | N122: - | O122: - | P122: - | Q122: 2 | R122: - | S122: 2 | T122: - | U122: 2 | V122: 1 | W122: 2 | X122: - | Y122: - | Z122: 4 | AA122: 1 | AB122: - | AC122: 58.4 | AD122: 60.3 | AE122: 56.0 | AF122: 7 | AG122: - | AH122: - | AI122: - | AJ122: - | AK122: - | AL122: - | AM122: - | AN122: - | AO122: - | AP122: 2 | AQ122: - | AR122: - | AS122: 4 | AT122: 1 | AU122: - | AV122: 73.3 | AW122: 74.8 | AX122: 71.3 | AY122: 6 | AZ122: - | BA122: - | BB122: - | BC122: - | BD122: - | BE122: - | BF122: - | BG122: - | BH122: - | BI122: 2 | BJ122: - | BK122: - | BL122: 3 | BM122: 1 | BN122: - | BO122: 72.3 | BP122: 74.8 | BQ122: 67.5 | BR122: 4 | BS122: - | BT122: - | BU122: - | BV122: - | BW122: - | BX122: - | BY122: - | BZ122: - | CA122: - | CB122: 1 | CC122: - | CD122: - | CE122: 2 | CF122: 1 | CG122: - | CH122: 4 | CI122: - | CJ122: - | CK122: - | CL122: - | CM122: - | CN122: - | CO122: - | CP122: 1 | CQ122: - | CR122: - | CS122: 2 | CT122: 1 | CU122: - | DC122: 17 | DD122: 10 | DE122: 6 | DF122: 4 | DG122: - | DH122: 5 | DI122: 1 | DJ122: 1 | DK122: 4 | DL122: 1 | DM122: - | DN122: - | DO122: - | DP122: - | DQ122: - | DR122: 3 | DS122: - | DT122: - | DU122: - | DV122: - | DW122: - | DX122: - | DY122: - | DZ122: - | EA122: 4 | EB122: 346 | EC122: 125 | ED122: 111 | EE122: 110 | EF122: 10 | EG122: 8 | EH122: 4 | EI122: 4 | EJ122: - | EK122: - | EL122: 1 | EM122: 1 | EN122: 7 | EO122: 2 | EP122: 2 | EQ122: - | ER122: - | ES122: 5 | ET122: - | EU122: -
A123: 群馬県 | B123: 前橋市 | C123: 木瀬村 | D123: 野中 | E123: 42 | F123: 30 | G123: 9 | H123: 9 | I123: 5 | J123: 1 | K123: 16 | L123: 12 | M123: 84 | N123: 1 | O123: 1 | P123: 3 | Q123: - | R123: 4 | S123: 5 | T123: 4 | U123: 7 | V123: 9 | W123: 8 | X123: 10 | Y123: 9 | Z123: 10 | AA123: 6 | AB123: 7 | AC123: 61.8 | AD123: 60.4 | AE123: 63.4 | AF123: 59 | AG123: - | AH123: - | AI123: - | AJ123: - | AK123: 2 | AL123: 2 | AM123: 3 | AN123: 2 | AO123: 2 | AP123: 7 | AQ123: 9 | AR123: 9 | AS123: 10 | AT123: 6 | AU123: 7 | AV123: 68.8 | AW123: 68.2 | AX123: 69.4 | AY123: 45 | AZ123: - | BA123: - | BB123: - | BC123: - | BD123: 1 | BE123: 1 | BF123: 1 | BG123: 2 | BH123: 2 | BI123: 6 | BJ123: 8 | BK123: 7 | BL123: 9 | BM123: 5 | BN123: 3 | BO123: 68.8 | BP123: 67.5 | BQ123: 70.8 | BR123: 30 | BS123: - | BT123: - | BU123: - | BV123: - | BW123: - | BX123: - | BY123: - | BZ123: 1 | CA123: 7 | CB123: 4 | CC123: 4 | CD123: 4 | CE123: 6 | CF123: 3 | CG123: 1 | CH123: 22 | CI123: - | CJ123: - | CK123: - | CL123: - | CM123: - | CN123: - | CO123: 4 | CP123: 3 | CQ123: 4 | CR123: 3 | CS123: 5 | CT123: 2 | CU123: 1 | DC123: 101 | DD123: 71 | DE123: 45 | DF123: 24 | DG123: 2 | DH123: 14 | DI123: 7 | DJ123: 9 | DK123: 28 | DL123: 13 | DM123: 1 | DN123: - | DO123: - | DP123: 12 | DQ123: 1 | DR123: - | DS123: - | DT123: - | DU123: - | DV123: - | DW123: - | DX123: - | DY123: - | DZ123: 1 | EA123: 30 | EB123: 4,260 | EC123: 3,242 | ED123: 1,001 | EE123: 17 | EF123: 52 | EG123: 45 | EH123: 27 | EI123: 16 | EJ123: 2 | EK123: - | EL123: 4 | EM123: 3 | EN123: 49 | EO123: 26 | EP123: 18 | EQ123: 8 | ER123: - | ES123: 14 | ET123: 3 | EU123: 6
A124: 群馬県 | B124: 前橋市 | C124: 木瀬村 | D124: 上大島 | E124: 56 | F124: 30 | G124: 7 | H124: 6 | I124: 6 | J124: 4 | K124: 17 | L124: 26 | M124: 84 | N124: 3 | O124: 2 | P124: 2 | Q124: 4 | R124: 2 | S124: 4 | T124: 8 | U124: 3 | V124: 11 | W124: 8 | X124: 6 | Y124: 8 | Z124: 10 | AA124: 12 | AB124: 1 | AC124: 59.4 | AD124: 60.3 | AE124: 58.7 | AF124: 49 | AG124: 2 | AH124: - | AI124: - | AJ124: - | AK124: - | AL124: 2 | AM124: 1 | AN124: 3 | AO124: 2 | AP124: 5 | AQ124: 5 | AR124: 6 | AS124: 10 | AT124: 12 | AU124: 1 | AV124: 68.6 | AW124: 66.8 | AX124: 70.5 | AY124: 39 | AZ124: - | BA124: - | BB124: - | BC124: - | BD124: - | BE124: 2 | BF124: 1 | BG124: 2 | BH124: 2 | BI124: 4 | BJ124: 4 | BK124: 6 | BL124: 9 | BM124: 9 | BN124: - | BO124: 70.1 | BP124: 67.5 | BQ124: 73.4 | BR124: 30 | BS124: - | BT124: - | BU124: - | BV124: - | BW124: - | BX124: - | BY124: 4 | BZ124: - | CA124: 3 | CB124: 5 | CC124: 3 | CD124: 3 | CE124: 6 | CF124: 5 | CG124: 1 | CH124: 10 | CI124: - | CJ124: - | CK124: - | CL124: - | CM124: - | CN124: - | CO124: - | CP124: 3 | CQ124: 2 | CR124: 1 | CS124: 2 | CT124: 2 | CU124: - | DC124: 117 | DD124: 80 | DE124: 39 | DF124: 33 | DG124: 8 | DH124: 13 | DI124: 7 | DJ124: 17 | DK124: 28 | DL124: 11 | DM124: 2 | DN124: - | DO124: - | DP124: 2 | DQ124: - | DR124: 13 | DS124: - | DT124: - | DU124: - | DV124: - | DW124: - | DX124: - | DY124: - | DZ124: - | EA124: 30 | EB124: 1,892 | EC124: 871 | ED124: 485 | EE124: 536 | EF124: 51 | EG124: 41 | EH124: 22 | EI124: 14 | EJ124: 5 | EK124: - | EL124: 1 | EM124: 9 | EN124: 66 | EO124: 39 | EP124: 17 | EQ124: 19 | ER124: 3 | ES124: 13 | ET124: 6 | EU124: 8
A125: 群馬県 | B125: 前橋市 | C125: 木瀬村 | D125: 上長磯 | E125: 30 | F125: 18 | G125: 4 | H125: 3 | I125: 3 | J125: 1 | K125: 11 | L125: 12 | M125: 45 | N125: 1 | O125: 2 | P125: - | Q125: 1 | R125: 1 | S125: 1 | T125: 1 | U125: 4 | V125: 10 | W125: 4 | X125: 1 | Y125: 5 | Z125: 6 | AA125: 6 | AB125: 2 | AC125: 62.5 | AD125: 61.6 | AE125: 63.6 | AF125: 29 | AG125: - | AH125: - | AI125: - | AJ125: - | AK125: - | AL125: - | AM125: - | AN125: 4 | AO125: 4 | AP125: 2 | AQ125: 1 | AR125: 5 | AS125: 5 | AT125: 6 | AU125: 2 | AV125: 70.8 | AW125: 71.2 | AX125: 70.3 | AY125: 21 | AZ125: - | BA125: - | BB125: - | BC125: - | BD125: - | BE125: - | BF125: - | BG125: 2 | BH125: 3 | BI125: 2 | BJ125: 1 | BK125: 4 | BL125: 4 | BM125: 3 | BN125: 2 | BO125: 71.0 | BP125: 72.4 | BQ125: 68.1 | BR125: 18 | BS125: - | BT125: - | BU125: - | BV125: - | BW125: - | BX125: - | BY125: - | BZ125: 1 | CA125: 5 | CB125: 3 | CC125: - | CD125: 3 | CE125: 3 | CF125: 2 | CG125: 1 | CH125: 7 | CI125: - | CJ125: - | CK125: - | CL125: - | CM125: - | CN125: - | CO125: 1 | CP125: 1 | CQ125: - | CR125: 1 | CS125: 3 | CT125: 1 | CU125: - | DC125: 56 | DD125: 35 | DE125: 21 | DF125: 14 | DG125: - | DH125: 8 | DI125: 5 | DJ125: 8 | DK125: 17 | DL125: 12 | DM125: 3 | DN125: - | DO125: - | DP125: - | DQ125: - | DR125: - | DS125: 1 | DT125: - | DU125: 1 | DV125: - | DW125: - | DX125: - | DY125: - | DZ125: - | EA125: 18 | EB125: 3,222 | EC125: 2,610 | ED125: 548 | EE125: 64 | EF125: 31 | EG125: 23 | EH125: 14 | EI125: 9 | EJ125: - | EK125: - | EL125: 4 | EM125: 4 | EN125: 25 | EO125: 12 | EP125: 7 | EQ125: 5 | ER125: - | ES125: 8 | ET125: 1 | EU125: 4
A126: 群馬県 | B126: 前橋市 | C126: 木瀬村 | D126: 下長磯 | E126: 39 | F126: 26 | G126: 3 | H126: 3 | I126: 5 | J126: 2 | K126: 18 | L126: 13 | M126: 71 | N126: 2 | O126: 2 | P126: 1 | Q126: 1 | R126: 1 | S126: 4 | T126: 6 | U126: 7 | V126: 6 | W126: 4 | X126: 6 | Y126: 9 | Z126: 13 | AA126: 5 | AB126: 4 | AC126: 61.7 | AD126: 58.7 | AE126: 65.6 | AF126: 46 | AG126: - | AH126: 1 | AI126: - | AJ126: - | AK126: 1 | AL126: - | AM126: 3 | AN126: 3 | AO126: 2 | AP126: 1 | AQ126: 4 | AR126: 9 | AS126: 13 | AT126: 5 | AU126: 4 | AV126: 69.7 | AW126: 68.8 | AX126: 70.4 | AY126: 36 | AZ126: - | BA126: - | BB126: - | BC126: - | BD126: 1 | BE126: - | BF126: 2 | BG126: 3 | BH126: 2 | BI126: 1 | BJ126: 3 | BK126: 8 | BL126: 10 | BM126: 4 | BN126: 2 | BO126: 69.7 | BP126: 71.1 | BQ126: 67.9 | BR126: 26 | BS126: - | BT126: - | BU126: - | BV126: - | BW126: 1 | BX126: - | BY126: 1 | BZ126: 3 | CA126: 2 | CB126: 3 | CC126: 3 | CD126: 4 | CE126: 7 | CF126: 1 | CG126: 1 | CH126: 11 | CI126: - | CJ126: - | CK126: - | CL126: - | CM126: - | CN126: - | CO126: 1 | CP126: - | CQ126: 2 | CR126: 1 | CS126: 5 | CT126: 1 | CU126: 1 | DC126: 103 | DD126: 71 | DE126: 36 | DF126: 34 | DG126: 1 | DH126: 10 | DI126: 13 | DJ126: 9 | DK126: 24 | DL126: 15 | DM126: 1 | DN126: - | DO126: - | DP126: 2 | DQ126: 2 | DR126: 2 | DS126: - | DT126: - | DU126: 2 | DV126: - | DW126: - | DX126: - | DY126: - | DZ126: - | EA126: 26 | EB126: 3,002 | EC126: 2,119 | ED126: 825 | EE126: 58 | EF126: 53 | EG126: 42 | EH126: 20 | EI126: 21 | EJ126: 1 | EK126: - | EL126: 11 | EM126: - | EN126: 50 | EO126: 29 | EP126: 16 | EQ126: 13 | ER126: - | ES126: 10 | ET126: 2 | EU126: 9
A127: 群馬県 | B127: 前橋市 | C127: 木瀬村 | D127: 女屋 | E127: 18 | F127: 16 | G127: 2 | H127: 1 | I127: 2 | J127: 1 | K127: 12 | L127: 2 | M127: 29 | N127: - | O127: - | P127: 1 | Q127: - | R127: - | S127: 1 | T127: 1 | U127: 2 | V127: 1 | W127: 4 | X127: 3 | Y127: 6 | Z127: 6 | AA127: 4 | AB127: - | AC127: 67.1 | AD127: 69.6 | AE127: 63.6 | AF127: 25 | AG127: - | AH127: - | AI127: - | AJ127: - | AK127: - | AL127: 1 | AM127: - | AN127: 1 | AO127: - | AP127: 4 | AQ127: 3 | AR127: 6 | AS127: 6 | AT127: 4 | AU127: - | AV127: 70.4 | AW127: 73.1 | AX127: 67.0 | AY127: 21 | AZ127: - | BA127: - | BB127: - | BC127: - | BD127: - | BE127: - | BF127: - | BG127: 1 | BH127: - | BI127: 3 | BJ127: 3 | BK127: 6 | BL127: 5 | BM127: 3 | BN127: - | BO127: 71.1 | BP127: 72.4 | BQ127: 69.0 | BR127: 16 | BS127: - | BT127: - | BU127: - | BV127: - | BW127: - | BX127: - | BY127: 1 | BZ127: 1 | CA127: 1 | CB127: 2 | CC127: 2 | CD127: 3 | CE127: 4 | CF127: 2 | CG127: - | CH127: 11 | CI127: - | CJ127: - | CK127: - | CL127: - | CM127: - | CN127: - | CO127: 1 | CP127: 2 | CQ127: 2 | CR127: 2 | CS127: 3 | CT127: 1 | CU127: - | DC127: 54 | DD127: 39 | DE127: 21 | DF127: 18 | DG127: - | DH127: 7 | DI127: 6 | DJ127: 2 | DK127: 16 | DL127: 10 | DM127: 1 | DN127: - | DO127: - | DP127: 1 | DQ127: - | DR127: 3 | DS127: - | DT127: - | DU127: 1 | DV127: - | DW127: - | DX127: - | DY127: - | DZ127: - | EA127: 16 | EB127: 2,637 | EC127: 1,679 | ED127: 710 | EE127: 248 | EF127: 27 | EG127: 23 | EH127: 13 | EI127: 10 | EJ127: - | EK127: - | EL127: 3 | EM127: 1 | EN127: 27 | EO127: 16 | EP127: 8 | EQ127: 8 | ER127: - | ES127: 7 | ET127: 3 | EU127: 1
A128: 群馬県 | B128: 前橋市 | C128: 木瀬村 | D128: 小島田 | E128: 24 | F128: 7 | G128: 1 | H128: 1 | I128: 1 | J128: - | K128: 5 | L128: 17 | M128: 21 | N128: - | O128: 2 | P128: 1 | Q128: 1 | R128: 1 | S128: 1 | T128: - | U128: 1 | V128: 2 | W128: 1 | X128: 5 | Y128: 4 | Z128: - | AA128: 1 | AB128: 1 | AC128: 57.8 | AD128: 53.5 | AE128: 62.4 | AF128: 13 | AG128: - | AH128: - | AI128: - | AJ128: 1 | AK128: 1 | AL128: - | AM128: - | AN128: - | AO128: - | AP128: 1 | AQ128: 4 | AR128: 4 | AS128: - | AT128: 1 | AU128: 1 | AV128: 66.6 | AW128: 64.0 | AX128: 68.3 | AY128: 10 | AZ128: - | BA128: - | BB128: - | BC128: - | BD128: 1 | BE128: - | BF128: - | BG128: - | BH128: - | BI128: 1 | BJ128: 3 | BK128: 4 | BL128: - | BM128: 1 | BN128: - | BO128: 66.8 | BP128: 64.0 | BQ128: 69.6 | BR128: 7 | BS128: - | BT128: - | BU128: - | BV128: - | BW128: 1 | BX128: - | BY128: - | BZ128: - | CA128: 2 | CB128: - | CC128: 1 | CD128: 3 | CE128: - | CF128: - | CG128: - | CH128: 3 | CI128: - | CJ128: - | CK128: - | CL128: - | CM128: - | CN128: - | CO128: 1 | CP128: - | CQ128: 1 | CR128: 1 | CS128: - | CT128: - | CU128: - | DC128: 22 | DD128: 15 | DE128: 10 | DF128: 3 | DG128: 2 | DH128: 3 | DI128: - | DJ128: 4 | DK128: 7 | DL128: 1 | DM128: 2 | DN128: - | DO128: - | DP128: 2 | DQ128: 1 | DR128: 1 | DS128: - | DT128: - | DU128: - | DV128: - | DW128: - | DX128: - | DY128: - | DZ128: - | EA128: 7 | EB128: 1,171 | EC128: 803 | ED128: 308 | EE128: 60 | EF128: 11 | EG128: 10 | EH128: 5 | EI128: 3 | EJ128: 2 | EK128: - | EL128: - | EM128: 1 | EN128: 11 | EO128: 5 | EP128: 5 | EQ128: - | ER128: - | ES128: 3 | ET128: - | EU128: 3
A129: 群馬県 | B129: 前橋市 | C129: 木瀬村 | D129: 東上野 | E129: 28 | F129: 10 | G129: 4 | H129: 3 | I129: - | J129: - | K129: 6 | L129: 18 | M129: 29 | N129: - | O129: - | P129: - | Q129: - | R129: 2 | S129: - | T129: 2 | U129: 7 | V129: - | W129: 1 | X129: 3 | Y129: 2 | Z129: 9 | AA129: 3 | AB129: - | AC129: 65.1 | AD129: 65.3 | AE129: 64.9 | AF129: 21 | AG129: - | AH129: - | AI129: - | AJ129: - | AK129: 1 | AL129: - | AM129: - | AN129: 2 | AO129: - | AP129: 1 | AQ129: 3 | AR129: 2 | AS129: 9 | AT129: 3 | AU129: - | AV129: 71.1 | AW129: 70.2 | AX129: 72.1 | AY129: 19 | AZ129: - | BA129: - | BB129: - | BC129: - | BD129: 1 | BE129: - | BF129: - | BG129: 1 | BH129: - | BI129: 1 | BJ129: 3 | BK129: 2 | BL129: 8 | BM129: 3 | BN129: - | BO129: 71.8 | BP129: 70.2 | BQ129: 74.0 | BR129: 10 | BS129: - | BT129: - | BU129: - | BV129: - | BW129: - | BX129: - | BY129: - | BZ129: 2 | CA129: - | CB129: - | CC129: 2 | CD129: 1 | CE129: 3 | CF129: 2 | CG129: - | CH129: 6 | CI129: - | CJ129: - | CK129: - | CL129: - | CM129: - | CN129: - | CO129: - | CP129: - | CQ129: 1 | CR129: - | CS129: 3 | CT129: 2 | CU129: - | DC129: 43 | DD129: 33 | DE129: 19 | DF129: 14 | DG129: - | DH129: 2 | DI129: 5 | DJ129: 3 | DK129: 10 | DL129: 1 | DM129: - | DN129: - | DO129: 1 | DP129: - | DQ129: 1 | DR129: 1 | DS129: 5 | DT129: - | DU129: 1 | DV129: - | DW129: - | DX129: - | DY129: - | DZ129: - | EA129: 10 | EB129: 616 | EC129: 188 | ED129: 386 | EE129: 42 | EF129: 21 | EG129: 19 | EH129: 11 | EI129: 8 | EJ129: - | EK129: - | EL129: 2 | EM129: - | EN129: 22 | EO129: 14 | EP129: 8 | EQ129: 6 | ER129: - | ES129: 2 | ET129: 3 | EU129: 3
A130: 群馬県 | B130: 前橋市 | C130: 木瀬村 | D130: 駒形 | E130: 28 | F130: 5 | G130: - | H130: - | I130: - | J130: - | K130: 5 | L130: 23 | M130: 13 | N130: - | O130: 1 | P130: - | Q130: 1 | R130: - | S130: - | T130: 2 | U130: 2 | V130: - | W130: - | X130: 4 | Y130: 3 | Z130: - | AA130: - | AB130: - | AC130: 56.7 | AD130: 54.4 | AE130: 60.4 | AF130: 3 | AG130: - | AH130: - | AI130: - | AJ130: - | AK130: - | AL130: - | AM130: - | AN130: - | AO130: - | AP130: - | AQ130: 2 | AR130: 1 | AS130: - | AT130: - | AU130: - | AV130: 68.0 | AW130: 68.0 | AX130: … | AY130: 3 | AZ130: - | BA130: - | BB130: - | BC130: - | BD130: - | BE130: - | BF130: - | BG130: - | BH130: - | BI130: - | BJ130: 2 | BK130: 1 | BL130: - | BM130: - | BN130: - | BO130: 68.0 | BP130: 68.0 | BQ130: … | BR130: 5 | BS130: - | BT130: - | BU130: - | BV130: - | BW130: - | BX130: - | BY130: - | BZ130: 1 | CA130: - | CB130: - | CC130: 2 | CD130: 2 | CE130: - | CF130: - | CG130: - | CH130: 3 | CI130: - | CJ130: - | CK130: - | CL130: - | CM130: - | CN130: - | CO130: - | CP130: - | CQ130: 2 | CR130: 1 | CS130: - | CT130: - | CU130: - | DC130: 16 | DD130: 13 | DE130: 3 | DF130: 7 | DG130: 3 | DH130: - | DI130: 1 | DJ130: 2 | DK130: 4 | DL130: 3 | DM130: - | DN130: - | DO130: - | DP130: 1 | DQ130: - | DR130: - | DS130: - | DT130: - | DU130: - | DV130: - | DW130: - | DX130: - | DY130: - | DZ130: - | EA130: 5 | EB130: 317 | EC130: 286 | ED130: 31 | EE130: - | EF130: 9 | EG130: 8 | EH130: 3 | EI130: 4 | EJ130: 1 | EK130: - | EL130: - | EM130: 1 | EN130: 7 | EO130: 5 | EP130: - | EQ130: 3 | ER130: 2 | ES130: - | ET130: 1 | EU130: 1
A131: 群馬県 | B131: 前橋市 | C131: 木瀬村 | D131: 笂井 | E131: 76 | F131: 47 | G131: 5 | H131: 3 | I131: 6 | J131: 1 | K131: 36 | L131: 29 | M131: 100 | N131: - | O131: - | P131: 2 | Q131: - | R131: - | S131: 1 | T131: 8 | U131: 10 | V131: 13 | W131: 8 | X131: 12 | Y131: 16 | Z131: 20 | AA131: 7 | AB131: 3 | AC131: 65.3 | AD131: 64.5 | AE131: 66.3 | AF131: 63 | AG131: - | AH131: - | AI131: - | AJ131: - | AK131: - | AL131: 1 | AM131: 1 | AN131: 2 | AO131: 5 | AP131: 3 | AQ131: 8 | AR131: 15 | AS131: 18 | AT131: 7 | AU131: 3 | AV131: 71.1 | AW131: 71.9 | AX131: 70.3 | AY131: 52 | AZ131: - | BA131: - | BB131: - | BC131: - | BD131: - | BE131: 1 | BF131: - | BG131: 2 | BH131: 2 | BI131: 3 | BJ131: 7 | BK131: 13 | BL131: 17 | BM131: 4 | BN131: 3 | BO131: 71.8 | BP131: 72.4 | BQ131: 71.1 | BR131: 47 | BS131: - | BT131: - | BU131: - | BV131: - | BW131: - | BX131: - | BY131: 2 | BZ131: 4 | CA131: 4 | CB131: 6 | CC131: 7 | CD131: 6 | CE131: 13 | CF131: 4 | CG131: 1 | CH131: 19 | CI131: - | CJ131: - | CK131: - | CL131: - | CM131: - | CN131: - | CO131: - | CP131: - | CQ131: 3 | CR131: 3 | CS131: 10 | CT131: 2 | CU131: 1 | DC131: 147 | DD131: 116 | DE131: 52 | DF131: 59 | DG131: 5 | DH131: 9 | DI131: 5 | DJ131: 17 | DK131: 47 | DL131: 32 | DM131: 7 | DN131: - | DO131: - | DP131: 2 | DQ131: 6 | DR131: - | DS131: - | DT131: - | DU131: - | DV131: - | DW131: - | DX131: - | DY131: - | DZ131: - | EA131: 47 | EB131: 5,764 | EC131: 4,592 | ED131: 1,172 | EE131: - | EF131: 74 | EG131: 66 | EH131: 28 | EI131: 35 | EJ131: 3 | EK131: 1 | EL131: 3 | EM131: 4 | EN131: 73 | EO131: 50 | EP131: 24 | EQ131: 24 | ER131: 2 | ES131: 8 | ET131: 2 | EU131: 13
A132: 群馬県 | B132: 前橋市 | C132: 木瀬村 | D132: 小屋原 | E132: 72 | F132: 29 | G132: 4 | H132: 3 | I132: 3 | J132: - | K132: 22 | L132: 43 | M132: 66 | N132: 1 | O132: 1 | P132: 3 | Q132: - | R132: 2 | S132: 4 | T132: 3 | U132: 6 | V132: 2 | W132: 9 | X132: 13 | Y132: 6 | Z132: 7 | AA132: 7 | AB132: 2 | AC132: 61.7 | AD132: 61.1 | AE132: 62.6 | AF132: 46 | AG132: - | AH132: - | AI132: 1 | AJ132: - | AK132: 1 | AL132: 2 | AM132: - | AN132: 1 | AO132: - | AP132: 6 | AQ132: 13 | AR132: 6 | AS132: 7 | AT132: 7 | AU132: 2 | AV132: 68.5 | AW132: 69.1 | AX132: 67.9 | AY132: 37 | AZ132: - | BA132: - | BB132: 1 | BC132: - | BD132: 1 | BE132: 1 | BF132: - | BG132: - | BH132: - | BI132: 4 | BJ132: 10 | BK132: 6 | BL132: 7 | BM132: 6 | BN132: 1 | BO132: 69.3 | BP132: 68.4 | BQ132: 70.8 | BR132: 29 | BS132: - | BT132: - | BU132: - | BV132: - | BW132: - | BX132: 2 | BY132: 1 | BZ132: 1 | CA132: 1 | CB132: 5 | CC132: 6 | CD132: 4 | CE132: 3 | CF132: 5 | CG132: 1 | CH132: 24 | CI132: - | CJ132: - | CK132: - | CL132: - | CM132: 1 | CN132: - | CO132: - | CP132: 5 | CQ132: 6 | CR132: 3 | CS132: 3 | CT132: 5 | CU132: 1 | DC132: 78 | DD132: 59 | DE132: 37 | DF132: 21 | DG132: 1 | DH132: 9 | DI132: 3 | DJ132: 7 | DK132: 27 | DL132: 19 | DM132: 1 | DN132: - | DO132: - | DP132: 2 | DQ132: 3 | DR132: - | DS132: 1 | DT132: - | DU132: 1 | DV132: - | DW132: - | DX132: - | DY132: - | DZ132: - | EA132: 29 | EB132: 3,272 | EC132: 2,452 | ED132: 766 | EE132: 54 | EF132: 45 | EG132: 40 | EH132: 24 | EI132: 15 | EJ132: 1 | EK132: - | EL132: 2 | EM132: 3 | EN132: 33 | EO132: 19 | EP132: 13 | EQ132: 6 | ER132: - | ES132: 9 | ET132: 1 | EU132: 4
A133: 群馬県 | B133: 前橋市 | C133: 木瀬村 | D133: 上増田 | E133: 106 | F133: 90 | G133: 15 | H133: 13 | I133: 9 | J133: 3 | K133: 66 | L133: 16 | M133: 209 | N133: 1 | O133: 2 | P133: 3 | Q133: 1 | R133: 3 | S133: 15 | T133: 14 | U133: 21 | V133: 23 | W133: 13 | X133: 24 | Y133: 25 | Z133: 35 | AA133: 21 | AB133: 8 | AC133: 63.8 | AD133: 63.4 | AE133: 64.2 | AF133: 144 | AG133: - | AH133: 1 | AI133: - | AJ133: - | AK133: 3 | AL133: 7 | AM133: 6 | AN133: 6 | AO133: 7 | AP133: 9 | AQ133: 18 | AR133: 25 | AS133: 34 | AT133: 20 | AU133: 8 | AV133: 69.2 | AW133: 69.1 | AX133: 69.3 | AY133: 115 | AZ133: - | BA133: 1 | BB133: - | BC133: - | BD133: 3 | BE133: 7 | BF133: 6 | BG133: 5 | BH133: 7 | BI133: 7 | BJ133: 16 | BK133: 22 | BL133: 24 | BM133: 14 | BN133: 3 | BO133: 67.3 | BP133: 68.0 | BQ133: 66.4 | BR133: 90 | BS133: - | BT133: - | BU133: - | BV133: - | BW133: - | BX133: 2 | BY133: 5 | BZ133: 9 | CA133: 12 | CB133: 8 | CC133: 11 | CD133: 11 | CE133: 20 | CF133: 10 | CG133: 2 | CH133: 59 | CI133: - | CJ133: - | CK133: - | CL133: - | CM133: 1 | CN133: 4 | CO133: 5 | CP133: 5 | CQ133: 6 | CR133: 9 | CS133: 20 | CT133: 7 | CU133: 2 | DC133: 334 | DD133: 240 | DE133: 115 | DF133: 116 | DG133: 9 | DH133: 27 | DI133: 35 | DJ133: 32 | DK133: 83 | DL133: 51 | DM133: 1 | DN133: - | DO133: - | DP133: 10 | DQ133: 15 | DR133: 1 | DS133: 2 | DT133: - | DU133: 2 | DV133: 1 | DW133: - | DX133: - | DY133: - | DZ133: - | EA133: 90 | EB133: 7,844 | EC133: 5,133 | ED133: 2,594 | EE133: 117 | EF133: 174 | EG133: 143 | EH133: 64 | EI133: 72 | EJ133: 7 | EK133: - | EL133: 20 | EM133: 11 | EN133: 160 | EO133: 97 | EP133: 51 | EQ133: 44 | ER133: 2 | ES133: 27 | ET133: 15 | EU133: 21
A134: 群馬県 | B134: 前橋市 | C134: 木瀬村 | D134: 下増田 | E134: 60 | F134: 33 | G134: 6 | H134: 6 | I134: 6 | J134: 3 | K134: 21 | L134: 27 | M134: 83 | N134: 1 | O134: 1 | P134: 3 | Q134: 3 | R134: 1 | S134: 2 | T134: 1 | U134: 3 | V134: 10 | W134: 12 | X134: 4 | Y134: 20 | Z134: 13 | AA134: 7 | AB134: 2 | AC134: 64.0 | AD134: 63.6 | AE134: 64.4 | AF134: 60 | AG134: 1 | AH134: - | AI134: - | AJ134: 2 | AK134: 1 | AL134: 1 | AM134: - | AN134: 1 | AO134: 5 | AP134: 8 | AQ134: 4 | AR134: 16 | AS134: 13 | AT134: 7 | AU134: 1 | AV134: 68.0 | AW134: 66.5 | AX134: 69.8 | AY134: 53 | AZ134: - | BA134: - | BB134: - | BC134: 2 | BD134: 1 | BE134: 1 | BF134: - | BG134: 1 | BH134: 4 | BI134: 8 | BJ134: 4 | BK134: 15 | BL134: 12 | BM134: 5 | BN134: - | BO134: 67.8 | BP134: 67.9 | BQ134: 67.8 | BR134: 33 | BS134: - | BT134: - | BU134: - | BV134: - | BW134: - | BX134: - | BY134: - | BZ134: 2 | CA134: 2 | CB134: 7 | CC134: 1 | CD134: 9 | CE134: 8 | CF134: 4 | CG134: - | CH134: 16 | CI134: - | CJ134: - | CK134: - | CL134: - | CM134: - | CN134: 1 | CO134: - | CP134: 2 | CQ134: 1 | CR134: 3 | CS134: 5 | CT134: 4 | CU134: - | DC134: 122 | DD134: 94 | DE134: 53 | DF134: 39 | DG134: 2 | DH134: 4 | DI134: 8 | DJ134: 16 | DK134: 30 | DL134: 11 | DM134: 3 | DN134: - | DO134: - | DP134: 3 | DQ134: 11 | DR134: - | DS134: - | DT134: - | DU134: 2 | DV134: - | DW134: - | DX134: - | DY134: - | DZ134: - | EA134: 33 | EB134: 5,182 | EC134: 3,395 | ED134: 1,733 | EE134: 54 | EF134: 59 | EG134: 50 | EH134: 31 | EI134: 18 | EJ134: 1 | EK134: - | EL134: 5 | EM134: 4 | EN134: 63 | EO134: 44 | EP134: 22 | EQ134: 21 | ER134: 1 | ES134: 4 | ET134: 3 | EU134: 12
A135: 群馬県 | B135: 前橋市 | C135: 木瀬村 | D135: 下大島 | E135: 55 | F135: 49 | G135: 15 | H135: 12 | I135: 16 | J135: 9 | K135: 18 | L135: 6 | M135: 140 | N135: - | O135: 5 | P135: 7 | Q135: 6 | R135: 7 | S135: 10 | T135: 8 | U135: 7 | V135: 20 | W135: 21 | X135: 12 | Y135: 11 | Z135: 12 | AA135: 12 | AB135: 2 | AC135: 57.2 | AD135: 56.5 | AE135: 57.9 | AF135: 89 | AG135: - | AH135: - | AI135: 4 | AJ135: 1 | AK135: 3 | AL135: 4 | AM135: 4 | AN135: 2 | AO135: 9 | AP135: 17 | AQ135: 9 | AR135: 10 | AS135: 12 | AT135: 12 | AU135: 2 | AV135: 63.8 | AW135: 64.5 | AX135: 63.4 | AY135: 78 | AZ135: - | BA135: - | BB135: 1 | BC135: - | BD135: 2 | BE135: 2 | BF135: 4 | BG135: 2 | BH135: 9 | BI135: 16 | BJ135: 7 | BK135: 10 | BL135: 12 | BM135: 11 | BN135: 2 | BO135: 66.3 | BP135: 66.6 | BQ135: 66.0 | BR135: 49 | BS135: - | BT135: - | BU135: 1 | BV135: - | BW135: - | BX135: 1 | BY135: 1 | BZ135: 3 | CA135: 5 | CB135: 13 | CC135: 5 | CD135: 8 | CE135: 4 | CF135: 8 | CG135: - | CH135: 20 | CI135: - | CJ135: - | CK135: - | CL135: - | CM135: - | CN135: 1 | CO135: 2 | CP135: 2 | CQ135: 3 | CR135: 4 | CS135: 2 | CT135: 6 | CU135: - | DC135: 184 | DD135: 142 | DE135: 78 | DF135: 57 | DG135: 7 | DH135: 12 | DI135: 17 | DJ135: 13 | DK135: 49 | DL135: - | DM135: 1 | DN135: - | DO135: - | DP135: - | DQ135: - | DR135: 48 | DS135: - | DT135: - | DU135: - | DV135: - | DW135: - | DX135: - | DY135: - | DZ135: - | EA135: 49 | EB135: 2,407 | EC135: 170 | ED135: 54 | EE135: 2,183 | EF135: 83 | EG135: 69 | EH135: 34 | EI135: 33 | EJ135: 2 | EK135: - | EL135: 7 | EM135: 7 | EN135: 101 | EO135: 73 | EP135: 44 | EQ135: 24 | ER135: 5 | ES135: 12 | ET135: 10 | EU135: 6
A136: 群馬県 | B136: 前橋市 | C136: 上陽村２－２ | E136: 104 | F136: 54 | G136: 9 | H136: 7 | I136: 7 | J136: 1 | K136: 38 | L136: 50 | M136: 141 | N136: - | O136: 1 | P136: 1 | Q136: 5 | R136: 6 | S136: 7 | T136: 11 | U136: 12 | V136: 11 | W136: 12 | X136: 10 | Y136: 28 | Z136: 18 | AA136: 15 | AB136: 4 | AC136: 62.8 | AD136: 62.4 | AE136: 63.3 | AF136: 100 | AG136: - | AH136: - | AI136: - | AJ136: 1 | AK136: 5 | AL136: 1 | AM136: 4 | AN136: 1 | AO136: 5 | AP136: 9 | AQ136: 10 | AR136: 27 | AS136: 18 | AT136: 15 | AU136: 4 | AV136: 68.9 | AW136: 69.4 | AX136: 68.4 | AY136: 83 | AZ136: - | BA136: - | BB136: - | BC136: 1 | BD136: 5 | BE136: 1 | BF136: 2 | BG136: 1 | BH136: 4 | BI136: 7 | BJ136: 8 | BK136: 24 | BL136: 14 | BM136: 12 | BN136: 4 | BO136: 69.1 | BP136: 68.8 | BQ136: 69.5 | BR136: 54 | BS136: - | BT136: - | BU136: - | BV136: 1 | BW136: 3 | BX136: 3 | BY136: 2 | BZ136: 6 | CA136: 2 | CB136: 4 | CC136: 4 | CD136: 12 | CE136: 7 | CF136: 9 | CG136: 1 | CH136: 23 | CI136: - | CJ136: - | CK136: - | CL136: - | CM136: 1 | CN136: 2 | CO136: 1 | CP136: 3 | CQ136: 4 | CR136: 4 | CS136: 2 | CT136: 6 | CU136: - | DC136: 190 | DD136: 138 | DE136: 83 | DF136: 53 | DG136: 2 | DH136: 17 | DI136: 15 | DJ136: 20 | DK136: 54 | DL136: 19 | DM136: 26 | DN136: - | DO136: - | DP136: 2 | DQ136: 2 | DR136: - | DS136: 2 | DT136: - | DU136: 3 | DV136: - | DW136: - | DX136: - | DY136: - | DZ136: - | EA136: 54 | EB136: 7,416 | EC136: 5,878 | ED136: 1,529 | EE136: 9 | EF136: 95 | EG136: 77 | EH136: 48 | EI136: 27 | EJ136: 2 | EK136: - | EL136: 9 | EM136: 9 | EN136: 95 | EO136: 61 | EP136: 35 | EQ136: 26 | ER136: - | ES136: 17 | ET136: 6 | EU136: 11
A137: 群馬県 | B137: 前橋市 | C137: 上陽村２－２ | D137: 中内 | E137: 21 | F137: 18 | G137: 1 | H137: - | I137: 2 | J137: 1 | K137: 15 | L137: 3 | M137: 46 | N137: - | O137: 1 | P137: - | Q137: 1 | R137: 1 | S137: 1 | T137: 4 | U137: 3 | V137: 4 | W137: 6 | X137: 7 | Y137: 5 | Z137: 6 | AA137: 4 | AB137: 3 | AC137: 63.7 | AD137: 63.4 | AE137: 64.2 | AF137: 30 | AG137: - | AH137: - | AI137: - | AJ137: - | AK137: - | AL137: - | AM137: 1 | AN137: - | AO137: 1 | AP137: 4 | AQ137: 7 | AR137: 4 | AS137: 6 | AT137: 4 | AU137: 3 | AV137: 71.5 | AW137: 71.5 | AX137: 71.4 | AY137: 24 | AZ137: - | BA137: - | BB137: - | BC137: - | BD137: - | BE137: - | BF137: 1 | BG137: - | BH137: 1 | BI137: 3 | BJ137: 5 | BK137: 4 | BL137: 5 | BM137: 2 | BN137: 3 | BO137: 71.5 | BP137: 71.5 | BQ137: 71.3 | BR137: 18 | BS137: - | BT137: - | BU137: - | BV137: - | BW137: - | BX137: - | BY137: 1 | BZ137: 1 | CA137: 1 | CB137: 3 | CC137: 3 | CD137: 3 | CE137: 2 | CF137: 3 | CG137: 1 | CH137: 10 | CI137: - | CJ137: - | CK137: - | CL137: - | CM137: 1 | CN137: - | CO137: 1 | CP137: 2 | CQ137: 3 | CR137: - | CS137: - | CT137: 3 | CU137: - | DC137: 69 | DD137: 43 | DE137: 24 | DF137: 18 | DG137: 1 | DH137: 7 | DI137: 9 | DJ137: 10 | DK137: 18 | DL137: 5 | DM137: 13 | DN137: - | DO137: - | DP137: - | DQ137: - | DR137: - | DS137: - | DT137: - | DU137: - | DV137: - | DW137: - | DX137: - | DY137: - | DZ137: - | EA137: 18 | EB137: 2,692 | EC137: 2,160 | ED137: 525 | EE137: 7 | EF137: 34 | EG137: 25 | EH137: 15 | EI137: 9 | EJ137: 1 | EK137: - | EL137: 5 | EM137: 4 | EN137: 35 | EO137: 18 | EP137: 9 | EQ137: 9 | ER137: - | ES137: 7 | ET137: 4 | EU137: 6
A138: 群馬県 | B138: 前橋市 | C138: 上陽村２－２ | D138: 東善 | E138: 15 | F138: 7 | G138: 1 | H138: - | I138: - | J138: - | K138: 6 | L138: 8 | M138: 14 | N138: - | O138: - | P138: - | Q138: - | R138: - | S138: 1 | T138: - | U138: 1 | V138: 1 | W138: - | X138: 3 | Y138: 4 | Z138: 2 | AA138: 2 | AB138: - | AC138: 68.4 | AD138: 65.3 | AE138: 72.7 | AF138: 12 | AG138: - | AH138: - | AI138: - | AJ138: - | AK138: - | AL138: - | AM138: - | AN138: - | AO138: 1 | AP138: - | AQ138: 3 | AR138: 4 | AS138: 2 | AT138: 2 | AU138: - | AV138: 72.1 | AW138: 71.5 | AX138: 72.7 | AY138: 12 | AZ138: - | BA138: - | BB138: - | BC138: - | BD138: - | BE138: - | BF138: - | BG138: - | BH138: 1 | BI138: - | BJ138: 3 | BK138: 4 | BL138: 2 | BM138: 2 | BN138: - | BO138: 72.1 | BP138: 71.5 | BQ138: 72.7 | BR138: 7 | BS138: - | BT138: - | BU138: - | BV138: - | BW138: - | BX138: 1 | BY138: - | BZ138: 1 | CA138: - | CB138: - | CC138: 1 | CD138: 2 | CE138: 1 | CF138: 1 | CG138: - | CH138: 3 | CI138: - | CJ138: - | CK138: - | CL138: - | CM138: - | CN138: - | CO138: - | CP138: - | CQ138: 1 | CR138: 1 | CS138: - | CT138: 1 | CU138: - | DC138: 16 | DD138: 16 | DE138: 12 | DF138: 4 | DG138: - | DH138: - | DI138: - | DJ138: - | DK138: 7 | DL138: 4 | DM138: 3 | DN138: - | DO138: - | DP138: - | DQ138: - | DR138: - | DS138: - | DT138: - | DU138: - | DV138: - | DW138: - | DX138: - | DY138: - | DZ138: - | EA138: 7 | EB138: 549 | EC138: 443 | ED138: 106 | EE138: - | EF138: 8 | EG138: 8 | EH138: 6 | EI138: 2 | EJ138: - | EK138: - | EL138: - | EM138: - | EN138: 8 | EO138: 8 | EP138: 6 | EQ138: 2 | ER138: - | ES138: - | ET138: - | EU138: -
A139: 群馬県 | B139: 前橋市 | C139: 上陽村２－２ | D139: 山王 | E139: 19 | F139: 15 | G139: 2 | H139: 2 | I139: 3 | J139: - | K139: 10 | L139: 4 | M139: 41 | N139: - | O139: - | P139: 1 | Q139: 2 | R139: 1 | S139: 3 | T139: 3 | U139: 5 | V139: 3 | W139: 3 | X139: - | Y139: 10 | Z139: 4 | AA139: 6 | AB139: - | AC139: 61.7 | AD139: 62.1 | AE139: 61.2 | AF139: 26 | AG139: - | AH139: - | AI139: - | AJ139: - | AK139: 1 | AL139: - | AM139: 1 | AN139: 1 | AO139: 1 | AP139: 2 | AQ139: - | AR139: 10 | AS139: 4 | AT139: 6 | AU139: - | AV139: 70.4 | AW139: 72.0 | AX139: 68.2 | AY139: 21 | AZ139: - | BA139: - | BB139: - | BC139: - | BD139: 1 | BE139: - | BF139: - | BG139: 1 | BH139: - | BI139: 1 | BJ139: - | BK139: 8 | BL139: 4 | BM139: 6 | BN139: - | BO139: 72.5 | BP139: 72.0 | BQ139: 73.8 | BR139: 15 | BS139: - | BT139: - | BU139: - | BV139: - | BW139: 1 | BX139: - | BY139: 1 | BZ139: 1 | CA139: - | CB139: 1 | CC139: - | CD139: 4 | CE139: 2 | CF139: 5 | CG139: - | CH139: 8 | CI139: - | CJ139: - | CK139: - | CL139: - | CM139: - | CN139: 1 | CO139: - | CP139: 1 | CQ139: - | CR139: 2 | CS139: 2 | CT139: 2 | CU139: - | DC139: 54 | DD139: 43 | DE139: 21 | DF139: 22 | DG139: - | DH139: 6 | DI139: 2 | DJ139: 3 | DK139: 15 | DL139: 3 | DM139: 10 | DN139: - | DO139: - | DP139: 2 | DQ139: - | DR139: - | DS139: - | DT139: - | DU139: - | DV139: - | DW139: - | DX139: - | DY139: - | DZ139: - | EA139: 15 | EB139: 2,062 | EC139: 1,726 | ED139: 336 | EE139: - | EF139: 28 | EG139: 26 | EH139: 15 | EI139: 11 | EJ139: - | EK139: - | EL139: 2 | EM139: - | EN139: 26 | EO139: 17 | EP139: 6 | EQ139: 11 | ER139: - | ES139: 6 | ET139: - | EU139: 3
A140: 群馬県 | B140: 前橋市 | C140: 上陽村２－２ | D140: 両家 | E140: 25 | F140: 7 | G140: 4 | H140: 4 | I140: - | J140: - | K140: 3 | L140: 18 | M140: 21 | N140: - | O140: - | P140: - | Q140: 2 | R140: 2 | S140: 1 | T140: 1 | U140: 1 | V140: 3 | W140: 3 | X140: - | Y140: 4 | Z140: 1 | AA140: 2 | AB140: 1 | AC140: 59.6 | AD140: 58.5 | AE140: 60.7 | AF140: 18 | AG140: - | AH140: - | AI140: - | AJ140: 1 | AK140: 2 | AL140: 1 | AM140: 1 | AN140: - | AO140: 2 | AP140: 3 | AQ140: - | AR140: 4 | AS140: 1 | AT140: 2 | AU140: 1 | AV140: 61.7 | AW140: 59.4 | AX140: 63.9 | AY140: 17 | AZ140: - | BA140: - | BB140: - | BC140: 1 | BD140: 2 | BE140: 1 | BF140: 1 | BG140: - | BH140: 2 | BI140: 3 | BJ140: - | BK140: 4 | BL140: - | BM140: 2 | BN140: 1 | BO140: 60.7 | BP140: 57.1 | BQ140: 63.9 | BR140: 7 | BS140: - | BT140: - | BU140: - | BV140: 1 | BW140: 1 | BX140: 1 | BY140: - | BZ140: 1 | CA140: 1 | CB140: - | CC140: - | CD140: 1 | CE140: 1 | CF140: - | CG140: - | CH140: - | CI140: - | CJ140: - | CK140: - | CL140: - | CM140: - | CN140: - | CO140: - | CP140: - | CQ140: - | CR140: - | CS140: - | CT140: - | CU140: - | DC140: 25 | DD140: 20 | DE140: 17 | DF140: 3 | DG140: - | DH140: - | DI140: 1 | DJ140: 4 | DK140: 7 | DL140: 2 | DM140: - | DN140: - | DO140: - | DP140: - | DQ140: 1 | DR140: - | DS140: 2 | DT140: - | DU140: 2 | DV140: - | DW140: - | DX140: - | DY140: - | DZ140: - | EA140: 7 | EB140: 1,323 | EC140: 950 | ED140: 371 | EE140: 2 | EF140: 13 | EG140: 10 | EH140: 8 | EI140: 2 | EJ140: - | EK140: - | EL140: 1 | EM140: 2 | EN140: 12 | EO140: 10 | EP140: 9 | EQ140: 1 | ER140: - | ES140: - | ET140: - | EU140: 2
A141: 群馬県 | B141: 前橋市 | C141: 上陽村２－２ | D141: 矢田 | E141: 15 | F141: 5 | G141: x | H141: x | I141: x | J141: x | K141: x | L141: 10 | M141: x | N141: x | O141: x | P141: x | Q141: x | R141: x | S141: x | T141: x | U141: x | V141: x | W141: x | X141: x | Y141: x | Z141: x | AA141: x | AB141: x | AC141: 61.2 | AD141: 60.7 | AE141: 61.7 | AF141: x | AG141: x | AH141: x | AI141: x | AJ141: x | AK141: x | AL141: x | AM141: x | AN141: x | AO141: x | AP141: x | AQ141: x | AR141: x | AS141: x | AT141: x | AU141: x | AV141: 66.9 | AW141: 67.2 | AX141: 66.6 | AY141: x | AZ141: x | BA141: x | BB141: x | BC141: x | BD141: x | BE141: x | BF141: x | BG141: x | BH141: x | BI141: x | BJ141: x | BK141: x | BL141: x | BM141: x | BN141: x | BO141: 64.9 | BP141: 65.3 | BQ141: 64.5 | BR141: 5 | BS141: - | BT141: - | BU141: - | BV141: - | BW141: 1 | BX141: 1 | BY141: - | BZ141: 1 | CA141: - | CB141: - | CC141: - | CD141: 1 | CE141: 1 | CF141: - | CG141: - | CH141: 2 | CI141: - | CJ141: - | CK141: - | CL141: - | CM141: - | CN141: 1 | CO141: - | CP141: - | CQ141: - | CR141: 1 | CS141: - | CT141: - | CU141: - | DC141: 19 | DD141: 14 | DE141: 8 | DF141: 5 | DG141: 1 | DH141: 2 | DI141: 2 | DJ141: 1 | DK141: 5 | DL141: 4 | DM141: - | DN141: - | DO141: - | DP141: - | DQ141: 1 | DR141: - | DS141: - | DT141: - | DU141: - | DV141: - | DW141: - | DX141: - | DY141: - | DZ141: - | EA141: 5 | EB141: 533 | EC141: 421 | ED141: 112 | EE141: - | EF141: 9 | EG141: 7 | EH141: 4 | EI141: 2 | EJ141: 1 | EK141: - | EL141: 1 | EM141: 1 | EN141: 10 | EO141: 7 | EP141: 4 | EQ141: 3 | ER141: - | ES141: 2 | ET141: 1 | EU141: -
A142: 群馬県 | B142: 前橋市 | C142: 上陽村２－２ | D142: 西善 | E142: 9 | F142: 2 | G142: x | H142: x | I142: x | J142: x | K142: x | L142: 7 | M142: x | N142: x | O142: x | P142: x | Q142: x | R142: x | S142: x | T142: x | U142: x | V142: x | W142: x | X142: x | Y142: x | Z142: x | AA142: x | AB142: x | AC142: 65.2 | AD142: 66.7 | AE142: 63.0 | AF142: x | AG142: x | AH142: x | AI142: x | AJ142: x | AK142: x | AL142: x | AM142: x | AN142: x | AO142: x | AP142: x | AQ142: x | AR142: x | AS142: x | AT142: x | AU142: x | AV142: 69.0 | AW142: 75.0 | AX142: 63.0 | AY142: x | AZ142: x | BA142: x | BB142: x | BC142: x | BD142: x | BE142: x | BF142: x | BG142: x | BH142: x | BI142: x | BJ142: x | BK142: x | BL142: x | BM142: x | BN142: x | BO142: 79.0 | BP142: … | BQ142: 79.0 | BR142: 2 | BS142: - | BT142: - | BU142: - | BV142: - | BW142: - | BX142: - | BY142: - | BZ142: 1 | CA142: - | CB142: - | CC142: - | CD142: 1 | CE142: - | CF142: - | CG142: - | CH142: - | CI142: - | CJ142: - | CK142: - | CL142: - | CM142: - | CN142: - | CO142: - | CP142: - | CQ142: - | CR142: - | CS142: - | CT142: - | CU142: - | DC142: 7 | DD142: 2 | DE142: 1 | DF142: 1 | DG142: - | DH142: 2 | DI142: 1 | DJ142: 2 | DK142: 2 | DL142: 1 | DM142: - | DN142: - | DO142: - | DP142: - | DQ142: - | DR142: - | DS142: - | DT142: - | DU142: 1 | DV142: - | DW142: - | DX142: - | DY142: - | DZ142: - | EA142: 2 | EB142: 257 | EC142: 178 | ED142: 79 | EE142: - | EF142: 3 | EG142: 1 | EH142: - | EI142: 1 | EJ142: - | EK142: - | EL142: - | EM142: 2 | EN142: 4 | EO142: 1 | EP142: 1 | EQ142: - | ER142: - | ES142: 2 | ET142: 1 | EU142: -
A143: 群馬県 | B143: 前橋市 | C143: 荒砥村 | E143: 899 | F143: 681 | G143: 187 | H143: 175 | I143: 152 | J143: 45 | K143: 342 | L143: 218 | M143: 1,847 | N143: 13 | O143: 37 | P143: 56 | Q143: 74 | R143: 65 | S143: 76 | T143: 114 | U143: 194 | V143: 272 | W143: 221 | X143: 138 | Y143: 201 | Z143: 179 | AA143: 138 | AB143: 69 | AC143: 59.6 | AD143: 59.1 | AE143: 60.1 | AF143: 1,232 | AG143: 12 | AH143: 19 | AI143: 21 | AJ143: 27 | AK143: 35 | AL143: 28 | AM143: 43 | AN143: 73 | AO143: 126 | AP143: 158 | AQ143: 114 | AR143: 193 | AS143: 178 | AT143: 136 | AU143: 69 | AV143: 64.7 | AW143: 65.3 | AX143: 64.1 | AY143: 929 | AZ143: - | BA143: 1 | BB143: 13 | BC143: 19 | BD143: 23 | BE143: 18 | BF143: 33 | BG143: 55 | BH143: 105 | BI143: 140 | BJ143: 94 | BK143: 168 | BL143: 140 | BM143: 91 | BN143: 29 | BO143: 65.5 | BP143: 65.6 | BQ143: 65.3 | BR143: 681 | BS143: - | BT143: 3 | BU143: 1 | BV143: 3 | BW143: 6 | BX143: 16 | BY143: 40 | BZ143: 76 | CA143: 133 | CB143: 121 | CC143: 69 | CD143: 95 | CE143: 65 | CF143: 33 | CG143: 20 | CH143: 434 | CI143: - | CJ143: 1 | CK143: - | CL143: 5 | CM143: 22 | CN143: 38 | CO143: 90 | CP143: 79 | CQ143: 37 | CR143: 68 | CS143: 52 | CT143: 25 | CU143: 17 | DC143: 2,520 | DD143: 1,824 | DE143: 929 | DF143: 848 | DG143: 47 | DH143: 230 | DI143: 205 | DJ143: 261 | DK143: 620 | DL143: 310 | DM143: 65 | DN143: 4 | DO143: 1 | DP143: 64 | DQ143: 82 | DR143: 12 | DS143: 13 | DT143: 8 | DU143: 28 | DV143: 10 | DW143: 12 | DX143: 3 | DY143: 8 | DZ143: - | EA143: 681 | EB143: 94,156 | EC143: 50,148 | ED143: 41,670 | EE143: 2,338 | EF143: 1,277 | EG143: 1,046 | EH143: 531 | EI143: 485 | EJ143: 30 | EK143: 3 | EL143: 105 | EM143: 123 | EN143: 1,243 | EO143: 778 | EP143: 398 | EQ143: 363 | ER143: 17 | ES143: 227 | ET143: 100 | EU143: 138
A144: 群馬県 | B144: 前橋市 | C144: 荒砥村 | D144: 下大屋 | E144: 57 | F144: 48 | G144: 17 | H144: 15 | I144: 7 | J144: 3 | K144: 24 | L144: 9 | M144: 130 | N144: 1 | O144: 3 | P144: 3 | Q144: 2 | R144: 1 | S144: 6 | T144: 6 | U144: 20 | V144: 20 | W144: 13 | X144: 4 | Y144: 16 | Z144: 17 | AA144: 13 | AB144: 5 | AC144: 61.8 | AD144: 61.5 | AE144: 62.1 | AF144: 92 | AG144: 1 | AH144: 1 | AI144: 1 | AJ144: - | AK144: - | AL144: 1 | AM144: 1 | AN144: 10 | AO144: 10 | AP144: 12 | AQ144: 4 | AR144: 16 | AS144: 17 | AT144: 13 | AU144: 5 | AV144: 67.6 | AW144: 69.8 | AX144: 65.5 | AY144: 78 | AZ144: - | BA144: - | BB144: 1 | BC144: - | BD144: - | BE144: 1 | BF144: - | BG144: 10 | BH144: 8 | BI144: 11 | BJ144: 4 | BK144: 14 | BL144: 14 | BM144: 12 | BN144: 3 | BO144: 68.2 | BP144: 68.9 | BQ144: 67.4 | BR144: 48 | BS144: - | BT144: - | BU144: - | BV144: - | BW144: - | BX144: 3 | BY144: 3 | BZ144: 11 | CA144: 10 | CB144: 8 | CC144: 2 | CD144: 3 | CE144: 4 | CF144: 4 | CG144: - | CH144: 23 | CI144: - | CJ144: - | CK144: - | CL144: 2 | CM144: 1 | CN144: 2 | CO144: 5 | CP144: 4 | CQ144: 1 | CR144: 2 | CS144: 4 | CT144: 2 | CU144: - | DC144: 175 | DD144: 137 | DE144: 78 | DF144: 56 | DG144: 3 | DH144: 10 | DI144: 7 | DJ144: 21 | DK144: 43 | DL144: 23 | DM144: 3 | DN144: - | DO144: - | DP144: 5 | DQ144: 8 | DR144: 2 | DS144: - | DT144: 1 | DU144: - | DV144: 1 | DW144: - | DX144: - | DY144: - | DZ144: - | EA144: 48 | EB144: 6,617 | EC144: 3,918 | ED144: 2,535 | EE144: 164 | EF144: 90 | EG144: 77 | EH144: 41 | EI144: 35 | EJ144: 1 | EK144: - | EL144: 2 | EM144: 11 | EN144: 85 | EO144: 60 | EP144: 37 | EQ144: 21 | ER144: 2 | ES144: 10 | ET144: 5 | EU144: 10
A145: 群馬県 | B145: 前橋市 | C145: 荒砥村 | D145: 泉沢 | E145: 76 | F145: 47 | G145: 16 | H145: 16 | I145: 7 | J145: 3 | K145: 24 | L145: 29 | M145: 143 | N145: 1 | O145: 3 | P145: 9 | Q145: 10 | R145: 3 | S145: 9 | T145: 8 | U145: 17 | V145: 17 | W145: 18 | X145: 6 | Y145: 15 | Z145: 12 | AA145: 11 | AB145: 4 | AC145: 57.1 | AD145: 57.3 | AE145: 56.8 | AF145: 92 | AG145: 1 | AH145: 2 | AI145: 2 | AJ145: 3 | AK145: 3 | AL145: 2 | AM145: 4 | AN145: 5 | AO145: 11 | AP145: 12 | AQ145: 6 | AR145: 15 | AS145: 12 | AT145: 10 | AU145: 4 | AV145: 63.1 | AW145: 64.2 | AX145: 62.0 | AY145: 68 | AZ145: - | BA145: - | BB145: 2 | BC145: 2 | BD145: 2 | BE145: 2 | BF145: 3 | BG145: 5 | BH145: 10 | BI145: 12 | BJ145: 6 | BK145: 9 | BL145: 9 | BM145: 6 | BN145: - | BO145: 62.4 | BP145: 63.1 | BQ145: 61.4 | BR145: 47 | BS145: - | BT145: - | BU145: - | BV145: - | BW145: 1 | BX145: 1 | BY145: 3 | BZ145: 5 | CA145: 8 | CB145: 12 | CC145: 1 | CD145: 8 | CE145: 4 | CF145: 3 | CG145: 1 | CH145: 31 | CI145: - | CJ145: - | CK145: - | CL145: - | CM145: 2 | CN145: 4 | CO145: 5 | CP145: 9 | CQ145: 1 | CR145: 4 | CS145: 3 | CT145: 3 | CU145: - | DC145: 173 | DD145: 131 | DE145: 68 | DF145: 58 | DG145: 5 | DH145: 11 | DI145: 13 | DJ145: 18 | DK145: 43 | DL145: 22 | DM145: 1 | DN145: - | DO145: - | DP145: 3 | DQ145: - | DR145: - | DS145: - | DT145: 1 | DU145: 10 | DV145: 2 | DW145: 3 | DX145: - | DY145: 1 | DZ145: - | EA145: 47 | EB145: 8,607 | EC145: 3,402 | ED145: 5,121 | EE145: 84 | EF145: 88 | EG145: 75 | EH145: 38 | EI145: 35 | EJ145: 2 | EK145: - | EL145: 6 | EM145: 7 | EN145: 85 | EO145: 56 | EP145: 30 | EQ145: 23 | ER145: 3 | ES145: 11 | ET145: 7 | EU145: 11
A146: 群馬県 | B146: 前橋市 | C146: 荒砥村 | D146: 富田 | E146: 134 | F146: 107 | G146: 39 | H146: 37 | I146: 26 | J146: 9 | K146: 42 | L146: 27 | M146: 310 | N146: 4 | O146: 5 | P146: 6 | Q146: 13 | R146: 19 | S146: 15 | T146: 28 | U146: 22 | V146: 38 | W146: 47 | X146: 24 | Y146: 39 | Z146: 23 | AA146: 16 | AB146: 11 | AC146: 58.4 | AD146: 57.1 | AE146: 59.9 | AF146: 223 | AG146: 4 | AH146: 2 | AI146: 3 | AJ146: 6 | AK146: 11 | AL146: 10 | AM146: 14 | AN146: 9 | AO146: 19 | AP146: 36 | AQ146: 21 | AR146: 38 | AS146: 23 | AT146: 16 | AU146: 11 | AV146: 62.2 | AW146: 61.7 | AX146: 62.7 | AY146: 181 | AZ146: - | BA146: 1 | BB146: 1 | BC146: 4 | BD146: 9 | BE146: 7 | BF146: 11 | BG146: 7 | BH146: 17 | BI146: 31 | BJ146: 18 | BK146: 36 | BL146: 22 | BM146: 13 | BN146: 4 | BO146: 63.5 | BP146: 63.0 | BQ146: 64.2 | BR146: 107 | BS146: - | BT146: - | BU146: - | BV146: - | BW146: 1 | BX146: 1 | BY146: 7 | BZ146: 10 | CA146: 18 | CB146: 26 | CC146: 13 | CD146: 18 | CE146: 10 | CF146: 1 | CG146: 2 | CH146: 81 | CI146: - | CJ146: - | CK146: - | CL146: 1 | CM146: 4 | CN146: 5 | CO146: 15 | CP146: 21 | CQ146: 7 | CR146: 15 | CS146: 10 | CT146: 1 | CU146: 2 | DC146: 411 | DD146: 310 | DE146: 181 | DF146: 126 | DG146: 3 | DH146: 33 | DI146: 35 | DJ146: 33 | DK146: 97 | DL146: 39 | DM146: 3 | DN146: 1 | DO146: 1 | DP146: 18 | DQ146: 15 | DR146: 2 | DS146: 5 | DT146: - | DU146: 6 | DV146: 4 | DW146: 2 | DX146: 1 | DY146: - | DZ146: - | EA146: 107 | EB146: 13,820 | EC146: 6,516 | ED146: 6,918 | EE146: 386 | EF146: 205 | EG146: 174 | EH146: 100 | EI146: 72 | EJ146: 2 | EK146: - | EL146: 21 | EM146: 10 | EN146: 206 | EO146: 136 | EP146: 81 | EQ146: 54 | ER146: 1 | ES146: 33 | ET146: 14 | EU146: 23
A147: 群馬県 | B147: 前橋市 | C147: 荒砥村 | D147: 荒口 | E147: 50 | F147: 39 | G147: 10 | H147: 10 | I147: 10 | J147: 2 | K147: 19 | L147: 11 | M147: 105 | N147: - | O147: 1 | P147: 1 | Q147: 7 | R147: 6 | S147: 2 | T147: 8 | U147: 9 | V147: 10 | W147: 20 | X147: 7 | Y147: 17 | Z147: 8 | AA147: 7 | AB147: 2 | AC147: 59.6 | AD147: 59.1 | AE147: 60.2 | AF147: 75 | AG147: - | AH147: 1 | AI147: 1 | AJ147: 4 | AK147: 4 | AL147: 1 | AM147: 3 | AN147: 1 | AO147: 5 | AP147: 15 | AQ147: 7 | AR147: 16 | AS147: 8 | AT147: 7 | AU147: 2 | AV147: 63.3 | AW147: 63.8 | AX147: 62.7 | AY147: 61 | AZ147: - | BA147: - | BB147: - | BC147: 4 | BD147: 2 | BE147: 1 | BF147: 3 | BG147: - | BH147: 4 | BI147: 14 | BJ147: 5 | BK147: 15 | BL147: 6 | BM147: 6 | BN147: 1 | BO147: 64.5 | BP147: 64.5 | BQ147: 64.5 | BR147: 39 | BS147: - | BT147: - | BU147: - | BV147: - | BW147: - | BX147: - | BY147: 2 | BZ147: 3 | CA147: 4 | CB147: 10 | CC147: 3 | CD147: 11 | CE147: 3 | CF147: 2 | CG147: 1 | CH147: 32 | CI147: - | CJ147: - | CK147: - | CL147: - | CM147: 1 | CN147: 1 | CO147: 4 | CP147: 8 | CQ147: 2 | CR147: 10 | CS147: 3 | CT147: 2 | CU147: 1 | DC147: 145 | DD147: 109 | DE147: 61 | DF147: 46 | DG147: 2 | DH147: 12 | DI147: 10 | DJ147: 14 | DK147: 34 | DL147: 14 | DM147: 7 | DN147: 2 | DO147: - | DP147: 2 | DQ147: 4 | DR147: - | DS147: - | DT147: 2 | DU147: 3 | DV147: - | DW147: - | DX147: - | DY147: - | DZ147: - | EA147: 39 | EB147: 6,862 | EC147: 3,056 | ED147: 3,756 | EE147: 50 | EF147: 79 | EG147: 69 | EH147: 37 | EI147: 30 | EJ147: 2 | EK147: - | EL147: 5 | EM147: 5 | EN147: 66 | EO147: 40 | EP147: 24 | EQ147: 16 | ER147: - | ES147: 12 | ET147: 5 | EU147: 9
A148: 群馬県 | B148: 前橋市 | C148: 荒砥村 | D148: 荒子 | E148: 95 | F148: 70 | G148: 10 | H148: 10 | I148: 21 | J148: 4 | K148: 39 | L148: 25 | M148: 197 | N148: - | O148: 4 | P148: 7 | Q148: 12 | R148: 5 | S148: 12 | T148: 12 | U148: 22 | V148: 30 | W148: 19 | X148: 14 | Y148: 21 | Z148: 21 | AA148: 12 | AB148: 6 | AC148: 58.5 | AD148: 58.4 | AE148: 58.6 | AF148: 112 | AG148: - | AH148: 2 | AI148: 2 | AJ148: 3 | AK148: 2 | AL148: 4 | AM148: 3 | AN148: 7 | AO148: 12 | AP148: 11 | AQ148: 9 | AR148: 19 | AS148: 21 | AT148: 11 | AU148: 6 | AV148: 65.3 | AW148: 66.3 | AX148: 64.5 | AY148: 80 | AZ148: - | BA148: - | BB148: 1 | BC148: 2 | BD148: - | BE148: 1 | BF148: 3 | BG148: 5 | BH148: 10 | BI148: 8 | BJ148: 7 | BK148: 16 | BL148: 16 | BM148: 9 | BN148: 2 | BO148: 67.0 | BP148: 68.2 | BQ148: 65.5 | BR148: 70 | BS148: - | BT148: - | BU148: - | BV148: 1 | BW148: - | BX148: 1 | BY148: 3 | BZ148: 8 | CA148: 14 | CB148: 7 | CC148: 9 | CD148: 12 | CE148: 9 | CF148: 4 | CG148: 2 | CH148: 48 | CI148: - | CJ148: - | CK148: - | CL148: 1 | CM148: 1 | CN148: 5 | CO148: 9 | CP148: 4 | CQ148: 5 | CR148: 9 | CS148: 8 | CT148: 4 | CU148: 2 | DC148: 275 | DD148: 197 | DE148: 80 | DF148: 113 | DG148: 4 | DH148: 25 | DI148: 24 | DJ148: 29 | DK148: 59 | DL148: 39 | DM148: 3 | DN148: - | DO148: - | DP148: 5 | DQ148: 5 | DR148: 1 | DS148: - | DT148: - | DU148: 1 | DV148: 1 | DW148: 2 | DX148: - | DY148: 2 | DZ148: - | EA148: 70 | EB148: 12,230 | EC148: 6,889 | ED148: 5,082 | EE148: 259 | EF148: 136 | EG148: 107 | EH148: 44 | EI148: 61 | EJ148: 2 | EK148: 1 | EL148: 13 | EM148: 15 | EN148: 139 | EO148: 90 | EP148: 36 | EQ148: 52 | ER148: 2 | ES148: 24 | ET148: 11 | EU148: 14
A149: 群馬県 | B149: 前橋市 | C149: 荒砥村 | D149: 西大室 | E149: 132 | F149: 93 | G149: 25 | H149: 22 | I149: 20 | J149: 7 | K149: 48 | L149: 39 | M149: 256 | N149: 4 | O149: 5 | P149: 9 | Q149: 6 | R149: 7 | S149: 15 | T149: 10 | U149: 28 | V149: 39 | W149: 21 | X149: 21 | Y149: 29 | Z149: 33 | AA149: 20 | AB149: 9 | AC149: 60.2 | AD149: 60.3 | AE149: 60.1 | AF149: 182 | AG149: 4 | AH149: 4 | AI149: 4 | AJ149: 2 | AK149: 2 | AL149: 5 | AM149: 5 | AN149: 15 | AO149: 18 | AP149: 15 | AQ149: 18 | AR149: 29 | AS149: 32 | AT149: 20 | AU149: 9 | AV149: 64.6 | AW149: 66.4 | AX149: 63.0 | AY149: 133 | AZ149: - | BA149: - | BB149: 2 | BC149: 2 | BD149: - | BE149: 4 | BF149: 4 | BG149: 8 | BH149: 15 | BI149: 14 | BJ149: 16 | BK149: 26 | BL149: 24 | BM149: 13 | BN149: 5 | BO149: 66.9 | BP149: 67.1 | BQ149: 66.5 | BR149: 93 | BS149: - | BT149: - | BU149: - | BV149: 1 | BW149: - | BX149: 3 | BY149: 5 | BZ149: 8 | CA149: 19 | CB149: 12 | CC149: 9 | CD149: 12 | CE149: 13 | CF149: 5 | CG149: 6 | CH149: 60 | CI149: - | CJ149: 1 | CK149: - | CL149: - | CM149: 3 | CN149: 4 | CO149: 12 | CP149: 7 | CQ149: 6 | CR149: 10 | CS149: 9 | CT149: 3 | CU149: 5 | DC149: 331 | DD149: 239 | DE149: 133 | DF149: 100 | DG149: 6 | DH149: 32 | DI149: 28 | DJ149: 32 | DK149: 86 | DL149: 32 | DM149: 15 | DN149: 1 | DO149: - | DP149: 16 | DQ149: 10 | DR149: 1 | DS149: 1 | DT149: - | DU149: 1 | DV149: - | DW149: 3 | DX149: 2 | DY149: 4 | DZ149: - | EA149: 93 | EB149: 13,441 | EC149: 7,717 | ED149: 5,252 | EE149: 472 | EF149: 168 | EG149: 142 | EH149: 78 | EI149: 59 | EJ149: 5 | EK149: - | EL149: 10 | EM149: 16 | EN149: 163 | EO149: 97 | EP149: 55 | EQ149: 41 | ER149: 1 | ES149: 32 | ET149: 18 | EU149: 16
A150: 群馬県 | B150: 前橋市 | C150: 荒砥村 | D150: 東大室 | E150: 68 | F150: 42 | G150: 9 | H150: 8 | I150: 11 | J150: 3 | K150: 22 | L150: 26 | M150: 103 | N150: - | O150: 4 | P150: 3 | Q150: 1 | R150: 4 | S150: 4 | T150: 6 | U150: 7 | V150: 15 | W150: 15 | X150: 7 | Y150: 12 | Z150: 10 | AA150: 12 | AB150: 3 | AC150: 61.2 | AD150: 59.6 | AE150: 63.3 | AF150: 68 | AG150: - | AH150: 1 | AI150: 1 | AJ150: 1 | AK150: 2 | AL150: 2 | AM150: 3 | AN150: 1 | AO150: 6 | AP150: 9 | AQ150: 6 | AR150: 11 | AS150: 10 | AT150: 12 | AU150: 3 | AV150: 66.8 | AW150: 67.1 | AX150: 66.5 | AY150: 50 | AZ150: - | BA150: - | BB150: 1 | BC150: 1 | BD150: - | BE150: - | BF150: 3 | BG150: 1 | BH150: 6 | BI150: 9 | BJ150: 3 | BK150: 10 | BL150: 9 | BM150: 5 | BN150: 2 | BO150: 67.0 | BP150: 66.8 | BQ150: 67.2 | BR150: 42 | BS150: - | BT150: - | BU150: - | BV150: 1 | BW150: - | BX150: - | BY150: 4 | BZ150: 6 | CA150: 6 | CB150: 8 | CC150: 5 | CD150: 6 | CE150: 2 | CF150: 3 | CG150: 1 | CH150: 21 | CI150: - | CJ150: - | CK150: - | CL150: - | CM150: 2 | CN150: 2 | CO150: 3 | CP150: 5 | CQ150: 3 | CR150: 2 | CS150: 2 | CT150: 1 | CU150: 1 | DC150: 145 | DD150: 106 | DE150: 50 | DF150: 51 | DG150: 5 | DH150: 12 | DI150: 14 | DJ150: 13 | DK150: 35 | DL150: 26 | DM150: - | DN150: - | DO150: - | DP150: 1 | DQ150: 1 | DR150: - | DS150: 6 | DT150: - | DU150: - | DV150: - | DW150: - | DX150: - | DY150: 1 | DZ150: - | EA150: 42 | EB150: 5,346 | EC150: 3,125 | ED150: 1,906 | EE150: 315 | EF150: 74 | EG150: 59 | EH150: 30 | EI150: 27 | EJ150: 2 | EK150: - | EL150: 8 | EM150: 7 | EN150: 71 | EO150: 47 | EP150: 20 | EQ150: 24 | ER150: 3 | ES150: 12 | ET150: 6 | EU150: 6
A151: 群馬県 | B151: 前橋市 | C151: 荒砥村 | D151: 飯土井 | E151: 70 | F151: 57 | G151: 14 | H151: 13 | I151: 12 | J151: 2 | K151: 31 | L151: 13 | M151: 137 | N151: - | O151: 3 | P151: 1 | Q151: 8 | R151: 6 | S151: 3 | T151: 4 | U151: 17 | V151: 24 | W151: 11 | X151: 12 | Y151: 17 | Z151: 16 | AA151: 9 | AB151: 6 | AC151: 60.9 | AD151: 60.0 | AE151: 62.3 | AF151: 94 | AG151: - | AH151: 1 | AI151: 1 | AJ151: 3 | AK151: 3 | AL151: - | AM151: 1 | AN151: 8 | AO151: 11 | AP151: 10 | AQ151: 10 | AR151: 15 | AS151: 16 | AT151: 9 | AU151: 6 | AV151: 66.0 | AW151: 67.6 | AX151: 64.4 | AY151: 63 | AZ151: - | BA151: - | BB151: - | BC151: 1 | BD151: 3 | BE151: - | BF151: 1 | BG151: 5 | BH151: 7 | BI151: 9 | BJ151: 7 | BK151: 11 | BL151: 12 | BM151: 5 | BN151: 2 | BO151: 66.2 | BP151: 66.9 | BQ151: 65.0 | BR151: 57 | BS151: - | BT151: 2 | BU151: - | BV151: - | BW151: 3 | BX151: 2 | BY151: 1 | BZ151: 5 | CA151: 14 | CB151: 5 | CC151: 5 | CD151: 7 | CE151: 7 | CF151: 3 | CG151: 3 | CH151: 32 | CI151: - | CJ151: - | CK151: - | CL151: - | CM151: 1 | CN151: 2 | CO151: 8 | CP151: 1 | CQ151: 3 | CR151: 6 | CS151: 5 | CT151: 3 | CU151: 3 | DC151: 198 | DD151: 132 | DE151: 63 | DF151: 61 | DG151: 8 | DH151: 29 | DI151: 12 | DJ151: 25 | DK151: 55 | DL151: 30 | DM151: 11 | DN151: - | DO151: - | DP151: 3 | DQ151: 6 | DR151: 1 | DS151: 1 | DT151: - | DU151: 3 | DV151: - | DW151: - | DX151: - | DY151: - | DZ151: - | EA151: 57 | EB151: 6,706 | EC151: 3,685 | ED151: 2,954 | EE151: 67 | EF151: 107 | EG151: 87 | EH151: 41 | EI151: 39 | EJ151: 7 | EK151: 1 | EL151: 8 | EM151: 11 | EN151: 91 | EO151: 45 | EP151: 22 | EQ151: 22 | ER151: 1 | ES151: 28 | ET151: 4 | EU151: 14
A152: 群馬県 | B152: 前橋市 | C152: 荒砥村 | D152: 新井 | E152: 13 | F152: 8 | G152: - | H152: - | I152: 1 | J152: - | K152: 7 | L152: 5 | M152: 26 | N152: - | O152: 1 | P152: - | Q152: 2 | R152: 1 | S152: 1 | T152: - | U152: 6 | V152: 5 | W152: - | X152: 3 | Y152: 2 | Z152: 1 | AA152: 4 | AB152: - | AC152: 58.0 | AD152: 55.0 | AE152: 61.0 | AF152: 12 | AG152: - | AH152: 1 | AI152: - | AJ152: 1 | AK152: - | AL152: - | AM152: - | AN152: - | AO152: - | AP152: - | AQ152: 3 | AR152: 2 | AS152: 1 | AT152: 4 | AU152: - | AV152: 66.7 | AW152: 63.4 | AX152: 69.0 | AY152: 4 | AZ152: - | BA152: - | BB152: - | BC152: - | BD152: - | BE152: - | BF152: - | BG152: - | BH152: - | BI152: - | BJ152: 2 | BK152: 1 | BL152: 1 | BM152: - | BN152: - | BO152: 70.3 | BP152: 71.0 | BQ152: 68.0 | BR152: 8 | BS152: - | BT152: - | BU152: - | BV152: - | BW152: - | BX152: - | BY152: - | BZ152: 1 | CA152: 3 | CB152: - | CC152: 1 | CD152: 1 | CE152: 1 | CF152: 1 | CG152: - | CH152: 5 | CI152: - | CJ152: - | CK152: - | CL152: - | CM152: - | CN152: - | CO152: 2 | CP152: - | CQ152: 1 | CR152: - | CS152: 1 | CT152: 1 | CU152: - | DC152: 35 | DD152: 19 | DE152: 4 | DF152: 15 | DG152: - | DH152: 7 | DI152: 6 | DJ152: 3 | DK152: 7 | DL152: 5 | DM152: 1 | DN152: - | DO152: - | DP152: - | DQ152: - | DR152: 1 | DS152: - | DT152: - | DU152: - | DV152: - | DW152: - | DX152: - | DY152: - | DZ152: - | EA152: 8 | EB152: 701 | EC152: 374 | ED152: 282 | EE152: 45 | EF152: 13 | EG152: 11 | EH152: 3 | EI152: 8 | EJ152: - | EK152: - | EL152: - | EM152: 2 | EN152: 22 | EO152: 8 | EP152: 1 | EQ152: 7 | ER152: - | ES152: 7 | ET152: 6 | EU152: 1
A153: 群馬県 | B153: 前橋市 | C153: 荒砥村 | D153: 二之宮 | E153: 150 | F153: 129 | G153: 33 | H153: 31 | I153: 28 | J153: 9 | K153: 68 | L153: 21 | M153: 327 | N153: 2 | O153: 6 | P153: 11 | Q153: 9 | R153: 11 | S153: 6 | T153: 21 | U153: 38 | V153: 54 | W153: 46 | X153: 30 | Y153: 26 | Z153: 32 | AA153: 19 | AB153: 16 | AC153: 60.0 | AD153: 59.9 | AE153: 60.2 | AF153: 196 | AG153: 1 | AH153: 3 | AI153: 3 | AJ153: 3 | AK153: 6 | AL153: 1 | AM153: 4 | AN153: 13 | AO153: 18 | AP153: 30 | AQ153: 22 | AR153: 25 | AS153: 32 | AT153: 19 | AU153: 16 | AV153: 66.2 | AW153: 65.8 | AX153: 66.6 | AY153: 148 | AZ153: - | BA153: - | BB153: 2 | BC153: 2 | BD153: 5 | BE153: - | BF153: 2 | BG153: 11 | BH153: 15 | BI153: 26 | BJ153: 19 | BK153: 24 | BL153: 24 | BM153: 11 | BN153: 7 | BO153: 66.3 | BP153: 65.8 | BQ153: 67.0 | BR153: 129 | BS153: - | BT153: - | BU153: 1 | BV153: - | BW153: 1 | BX153: 3 | BY153: 8 | BZ153: 15 | CA153: 28 | CB153: 27 | CC153: 16 | CD153: 15 | CE153: 9 | CF153: 3 | CG153: 3 | CH153: 77 | CI153: - | CJ153: - | CK153: - | CL153: - | CM153: 5 | CN153: 11 | CO153: 18 | CP153: 18 | CQ153: 7 | CR153: 9 | CS153: 5 | CT153: 2 | CU153: 2 | DC153: 464 | DD153: 333 | DE153: 148 | DF153: 174 | DG153: 11 | DH153: 43 | DI153: 36 | DJ153: 52 | DK153: 122 | DL153: 61 | DM153: 18 | DN153: - | DO153: - | DP153: 8 | DQ153: 22 | DR153: 4 | DS153: - | DT153: 4 | DU153: 2 | DV153: 2 | DW153: 1 | DX153: - | DY153: - | DZ153: - | EA153: 129 | EB153: 14,653 | EC153: 8,156 | ED153: 6,063 | EE153: 434 | EF153: 230 | EG153: 182 | EH153: 84 | EI153: 91 | EJ153: 7 | EK153: 1 | EL153: 22 | EM153: 25 | EN153: 234 | EO153: 151 | EP153: 64 | EQ153: 83 | ER153: 4 | ES153: 42 | ET153: 14 | EU153: 27
A154: 群馬県 | B154: 前橋市 | C154: 荒砥村 | D154: 今井 | E154: 54 | F154: 41 | G154: 14 | H154: 13 | I154: 9 | J154: 3 | K154: 18 | L154: 13 | M154: 113 | N154: 1 | O154: 2 | P154: 6 | Q154: 4 | R154: 2 | S154: 3 | T154: 11 | U154: 8 | V154: 20 | W154: 11 | X154: 10 | Y154: 7 | Z154: 6 | AA154: 15 | AB154: 7 | AC154: 60.0 | AD154: 59.9 | AE154: 60.1 | AF154: 86 | AG154: 1 | AH154: 1 | AI154: 3 | AJ154: 1 | AK154: 2 | AL154: 2 | AM154: 5 | AN154: 4 | AO154: 16 | AP154: 8 | AQ154: 8 | AR154: 7 | AS154: 6 | AT154: 15 | AU154: 7 | AV154: 63.9 | AW154: 64.4 | AX154: 63.4 | AY154: 63 | AZ154: - | BA154: - | BB154: 3 | BC154: 1 | BD154: 2 | BE154: 2 | BF154: 3 | BG154: 3 | BH154: 13 | BI154: 6 | BJ154: 7 | BK154: 6 | BL154: 3 | BM154: 11 | BN154: 3 | BO154: 63.0 | BP154: 63.0 | BQ154: 62.9 | BR154: 41 | BS154: - | BT154: 1 | BU154: - | BV154: - | BW154: - | BX154: 2 | BY154: 4 | BZ154: 4 | CA154: 9 | CB154: 6 | CC154: 5 | CD154: 2 | CE154: 3 | CF154: 4 | CG154: 1 | CH154: 24 | CI154: - | CJ154: - | CK154: - | CL154: 1 | CM154: 2 | CN154: 2 | CO154: 9 | CP154: 2 | CQ154: 1 | CR154: 1 | CS154: 2 | CT154: 3 | CU154: 1 | DC154: 168 | DD154: 111 | DE154: 63 | DF154: 48 | DG154: - | DH154: 16 | DI154: 20 | DJ154: 21 | DK154: 39 | DL154: 19 | DM154: 3 | DN154: - | DO154: - | DP154: 3 | DQ154: 11 | DR154: - | DS154: - | DT154: - | DU154: 2 | DV154: - | DW154: 1 | DX154: - | DY154: - | DZ154: - | EA154: 41 | EB154: 5,173 | EC154: 3,310 | ED154: 1,801 | EE154: 62 | EF154: 87 | EG154: 63 | EH154: 35 | EI154: 28 | EJ154: - | EK154: - | EL154: 10 | EM154: 14 | EN154: 81 | EO154: 48 | EP154: 28 | EQ154: 20 | ER154: - | ES154: 16 | ET154: 10 | EU154: 7
A155: 群馬県 | B155: 前橋市 | C155: 大胡町 | E155: 570 | F155: 342 | G155: 103 | H155: 94 | I155: 66 | J155: 29 | K155: 173 | L155: 228 | M155: 982 | N155: 13 | O155: 28 | P155: 24 | Q155: 40 | R155: 40 | S155: 37 | T155: 73 | U155: 89 | V155: 129 | W155: 100 | X155: 92 | Y155: 99 | Z155: 92 | AA155: 88 | AB155: 38 | AC155: 59.4 | AD155: 57.8 | AE155: 61.3 | AF155: 676 | AG155: 6 | AH155: 7 | AI155: 9 | AJ155: 21 | AK155: 16 | AL155: 17 | AM155: 23 | AN155: 38 | AO155: 77 | AP155: 71 | AQ155: 78 | AR155: 97 | AS155: 92 | AT155: 86 | AU155: 38 | AV155: 65.1 | AW155: 64.2 | AX155: 66.0 | AY155: 600 | AZ155: 1 | BA155: 2 | BB155: 7 | BC155: 18 | BD155: 10 | BE155: 15 | BF155: 23 | BG155: 35 | BH155: 69 | BI155: 69 | BJ155: 72 | BK155: 90 | BL155: 87 | BM155: 71 | BN155: 31 | BO155: 65.7 | BP155: 65.0 | BQ155: 66.7 | BR155: 342 | BS155: - | BT155: - | BU155: - | BV155: - | BW155: 1 | BX155: 9 | BY155: 22 | BZ155: 34 | CA155: 56 | CB155: 47 | CC155: 46 | CD155: 52 | CE155: 30 | CF155: 31 | CG155: 14 | CH155: 184 | CI155: - | CJ155: - | CK155: - | CL155: 2 | CM155: 5 | CN155: 14 | CO155: 24 | CP155: 27 | CQ155: 28 | CR155: 27 | CS155: 20 | CT155: 26 | CU155: 11 | DC155: 1,342 | DD155: 1,060 | DE155: 600 | DF155: 429 | DG155: 31 | DH155: 71 | DI155: 93 | DJ155: 118 | DK155: 297 | DL155: 81 | DM155: - | DN155: 4 | DO155: - | DP155: 109 | DQ155: 22 | DR155: 4 | DS155: 12 | DT155: 8 | DU155: 18 | DV155: 9 | DW155: 14 | DX155: 2 | DY155: 14 | DZ155: - | EA155: 337 | EB155: 51,027 | EC155: 17,397 | ED155: 30,778 | EE155: 2,852 | EF155: 682 | EG155: 592 | EH155: 326 | EI155: 243 | EJ155: 23 | EK155: - | EL155: 45 | EM155: 45 | EN155: 660 | EO155: 468 | EP155: 274 | EQ155: 186 | ER155: 8 | ES155: 71 | ET155: 48 | EU155: 73
A156: 群馬県 | B156: 前橋市 | C156: 大胡町 | D156: 河原浜 | E156: 66 | F156: 37 | G156: 11 | H156: 9 | I156: 12 | J156: 6 | K156: 14 | L156: 29 | M156: 111 | N156: 1 | O156: 1 | P156: 2 | Q156: 5 | R156: 5 | S156: 3 | T156: 8 | U156: 12 | V156: 9 | W156: 18 | X156: 10 | Y156: 7 | Z156: 15 | AA156: 10 | AB156: 5 | AC156: 60.8 | AD156: 59.5 | AE156: 62.3 | AF156: 83 | AG156: 1 | AH156: 1 | AI156: 2 | AJ156: 2 | AK156: 2 | AL156: 1 | AM156: 3 | AN156: 8 | AO156: 6 | AP156: 12 | AQ156: 8 | AR156: 7 | AS156: 15 | AT156: 10 | AU156: 5 | AV156: 64.4 | AW156: 63.0 | AX156: 66.2 | AY156: 72 | AZ156: 1 | BA156: - | BB156: 1 | BC156: 2 | BD156: 1 | BE156: - | BF156: 3 | BG156: 7 | BH156: 5 | BI156: 12 | BJ156: 7 | BK156: 7 | BL156: 15 | BM156: 7 | BN156: 4 | BO156: 65.4 | BP156: 64.3 | BQ156: 67.1 | BR156: 37 | BS156: - | BT156: - | BU156: - | BV156: - | BW156: - | BX156: - | BY156: 3 | BZ156: 5 | CA156: 2 | CB156: 7 | CC156: 8 | CD156: 4 | CE156: 4 | CF156: 2 | CG156: 2 | CH156: 24 | CI156: - | CJ156: - | CK156: - | CL156: - | CM156: 2 | CN156: 2 | CO156: 1 | CP156: 4 | CQ156: 6 | CR156: 3 | CS156: 3 | CT156: 2 | CU156: 1 | DC156: 146 | DD156: 117 | DE156: 72 | DF156: 41 | DG156: 4 | DH156: 14 | DI156: 5 | DJ156: 10 | DK156: 35 | DL156: 16 | DM156: - | DN156: 1 | DO156: - | DP156: 2 | DQ156: 4 | DR156: - | DS156: 2 | DT156: 1 | DU156: 3 | DV156: 1 | DW156: - | DX156: 1 | DY156: 4 | DZ156: - | EA156: 37 | EB156: 6,994 | EC156: 3,921 | ED156: 2,605 | EE156: 468 | EF156: 77 | EG156: 69 | EH156: 43 | EI156: 23 | EJ156: 3 | EK156: - | EL156: 3 | EM156: 5 | EN156: 69 | EO156: 48 | EP156: 29 | EQ156: 18 | ER156: 1 | ES156: 14 | ET156: 2 | EU156: 5
A157: 群馬県 | B157: 前橋市 | C157: 大胡町 | D157: 樋越 | E157: 22 | F157: 12 | G157: x | H157: x | I157: x | J157: x | K157: x | L157: 10 | M157: x | N157: x | O157: x | P157: x | Q157: x | R157: x | S157: x | T157: x | U157: x | V157: x | W157: x | X157: x | Y157: x | Z157: x | AA157: x | AB157: x | AC157: 59.8 | AD157: 57.8 | AE157: 62.6 | AF157: x | AG157: x | AH157: x | AI157: x | AJ157: x | AK157: x | AL157: x | AM157: x | AN157: x | AO157: x | AP157: x | AQ157: x | AR157: x | AS157: x | AT157: x | AU157: x | AV157: 71.3 | AW157: 72.8 | AX157: 69.9 | AY157: x | AZ157: x | BA157: x | BB157: x | BC157: x | BD157: x | BE157: x | BF157: x | BG157: x | BH157: x | BI157: x | BJ157: x | BK157: x | BL157: x | BM157: x | BN157: x | BO157: 72.8 | BP157: 72.8 | BQ157: 72.8 | BR157: 12 | BS157: - | BT157: - | BU157: - | BV157: - | BW157: - | BX157: - | BY157: - | BZ157: 1 | CA157: 2 | CB157: 2 | CC157: 1 | CD157: 3 | CE157: 1 | CF157: 1 | CG157: 1 | CH157: 7 | CI157: - | CJ157: - | CK157: - | CL157: - | CM157: - | CN157: - | CO157: 1 | CP157: 1 | CQ157: - | CR157: 2 | CS157: 1 | CT157: 1 | CU157: 1 | DC157: 48 | DD157: 40 | DE157: 13 | DF157: 27 | DG157: - | DH157: 5 | DI157: 1 | DJ157: 2 | DK157: 9 | DL157: 7 | DM157: - | DN157: - | DO157: - | DP157: 2 | DQ157: - | DR157: - | DS157: - | DT157: - | DU157: - | DV157: - | DW157: - | DX157: - | DY157: - | DZ157: - | EA157: 12 | EB157: 1,055 | EC157: 470 | ED157: 543 | EE157: 42 | EF157: 24 | EG157: 23 | EH157: 8 | EI157: 15 | EJ157: - | EK157: - | EL157: 1 | EM157: - | EN157: 24 | EO157: 17 | EP157: 5 | EQ157: 12 | ER157: - | ES157: 5 | ET157: - | EU157: 2
A158: 群馬県 | B158: 前橋市 | C158: 大胡町 | D158: 上大屋 | E158: 32 | F158: 22 | G158: 13 | H158: 11 | I158: 1 | J158: - | K158: 8 | L158: 10 | M158: 67 | N158: 1 | O158: 2 | P158: 2 | Q158: 1 | R158: 4 | S158: 1 | T158: 2 | U158: 5 | V158: 11 | W158: 9 | X158: 8 | Y158: 7 | Z158: 3 | AA158: 6 | AB158: 5 | AC158: 60.9 | AD158: 60.3 | AE158: 61.5 | AF158: 47 | AG158: - | AH158: - | AI158: 1 | AJ158: - | AK158: 1 | AL158: 1 | AM158: 1 | AN158: 2 | AO158: 8 | AP158: 8 | AQ158: 6 | AR158: 5 | AS158: 3 | AT158: 6 | AU158: 5 | AV158: 66.6 | AW158: 65.7 | AX158: 67.8 | AY158: 45 | AZ158: - | BA158: - | BB158: 1 | BC158: - | BD158: 1 | BE158: 1 | BF158: 1 | BG158: 2 | BH158: 8 | BI158: 8 | BJ158: 6 | BK158: 4 | BL158: 3 | BM158: 6 | BN158: 4 | BO158: 66.1 | BP158: 65.7 | BQ158: 66.5 | BR158: 22 | BS158: - | BT158: - | BU158: - | BV158: - | BW158: - | BX158: 1 | BY158: - | BZ158: - | CA158: 6 | CB158: 3 | CC158: 4 | CD158: 5 | CE158: 2 | CF158: - | CG158: 1 | CH158: 6 | CI158: - | CJ158: - | CK158: - | CL158: - | CM158: - | CN158: - | CO158: 1 | CP158: - | CQ158: 2 | CR158: 1 | CS158: 2 | CT158: - | CU158: - | DC158: 78 | DD158: 68 | DE158: 45 | DF158: 23 | DG158: - | DH158: 3 | DI158: 3 | DJ158: 4 | DK158: 20 | DL158: 7 | DM158: - | DN158: - | DO158: - | DP158: 4 | DQ158: 7 | DR158: - | DS158: 1 | DT158: - | DU158: 1 | DV158: - | DW158: - | DX158: - | DY158: - | DZ158: - | EA158: 22 | EB158: 3,193 | EC158: 686 | ED158: 2,507 | EE158: - | EF158: 39 | EG158: 37 | EH158: 26 | EI158: 11 | EJ158: - | EK158: - | EL158: 1 | EM158: 1 | EN158: 39 | EO158: 31 | EP158: 19 | EQ158: 12 | ER158: - | ES158: 3 | ET158: 2 | EU158: 3
A159: 群馬県 | B159: 前橋市 | C159: 大胡町 | D159: 茂木 | E159: 44 | F159: 28 | G159: 8 | H159: 8 | I159: 5 | J159: 3 | K159: 15 | L159: 16 | M159: 84 | N159: 2 | O159: 4 | P159: 3 | Q159: 1 | R159: 2 | S159: 6 | T159: 2 | U159: 6 | V159: 16 | W159: 7 | X159: 8 | Y159: 11 | Z159: 4 | AA159: 9 | AB159: 3 | AC159: 58.9 | AD159: 58.6 | AE159: 59.2 | AF159: 53 | AG159: - | AH159: - | AI159: 1 | AJ159: - | AK159: - | AL159: 1 | AM159: - | AN159: 2 | AO159: 11 | AP159: 5 | AQ159: 6 | AR159: 11 | AS159: 4 | AT159: 9 | AU159: 3 | AV159: 68.0 | AW159: 67.8 | AX159: 68.2 | AY159: 48 | AZ159: - | BA159: - | BB159: 1 | BC159: - | BD159: - | BE159: 1 | BF159: - | BG159: 2 | BH159: 11 | BI159: 4 | BJ159: 6 | BK159: 11 | BL159: 4 | BM159: 6 | BN159: 2 | BO159: 67.0 | BP159: 67.0 | BQ159: 66.9 | BR159: 28 | BS159: - | BT159: - | BU159: - | BV159: - | BW159: - | BX159: 2 | BY159: - | BZ159: 3 | CA159: 9 | CB159: 3 | CC159: 3 | CD159: 5 | CE159: 1 | CF159: 1 | CG159: 1 | CH159: 13 | CI159: - | CJ159: - | CK159: - | CL159: - | CM159: - | CN159: 2 | CO159: 4 | CP159: 1 | CQ159: 1 | CR159: 3 | CS159: - | CT159: 1 | CU159: 1 | DC159: 108 | DD159: 84 | DE159: 48 | DF159: 33 | DG159: 3 | DH159: 6 | DI159: 7 | DJ159: 11 | DK159: 23 | DL159: 6 | DM159: - | DN159: - | DO159: - | DP159: 10 | DQ159: 2 | DR159: 1 | DS159: - | DT159: - | DU159: 2 | DV159: 2 | DW159: - | DX159: - | DY159: - | DZ159: - | EA159: 28 | EB159: 3,980 | EC159: 1,213 | ED159: 2,738 | EE159: 29 | EF159: 55 | EG159: 48 | EH159: 27 | EI159: 20 | EJ159: 1 | EK159: - | EL159: 3 | EM159: 4 | EN159: 53 | EO159: 36 | EP159: 21 | EQ159: 13 | ER159: 2 | ES159: 6 | ET159: 4 | EU159: 7
A160: 群馬県 | B160: 前橋市 | C160: 大胡町 | D160: 足軽町 | E160: 63 | F160: 42 | G160: 10 | H160: 10 | I160: 6 | J160: 3 | K160: 26 | L160: 21 | M160: 112 | N160: - | O160: 2 | P160: 1 | Q160: 3 | R160: 5 | S160: 3 | T160: 9 | U160: 15 | V160: 17 | W160: 6 | X160: 9 | Y160: 17 | Z160: 13 | AA160: 11 | AB160: 1 | AC160: 61.1 | AD160: 59.0 | AE160: 63.8 | AF160: 76 | AG160: - | AH160: 1 | AI160: - | AJ160: 2 | AK160: 1 | AL160: 1 | AM160: 2 | AN160: 5 | AO160: 10 | AP160: 5 | AQ160: 9 | AR160: 17 | AS160: 13 | AT160: 9 | AU160: 1 | AV160: 66.7 | AW160: 65.9 | AX160: 67.6 | AY160: 65 | AZ160: - | BA160: - | BB160: - | BC160: 1 | BD160: 1 | BE160: 1 | BF160: 2 | BG160: 4 | BH160: 8 | BI160: 4 | BJ160: 8 | BK160: 17 | BL160: 12 | BM160: 6 | BN160: 1 | BO160: 67.6 | BP160: 66.8 | BQ160: 68.6 | BR160: 42 | BS160: - | BT160: - | BU160: - | BV160: - | BW160: - | BX160: 1 | BY160: 2 | BZ160: 5 | CA160: 7 | CB160: 3 | CC160: 2 | CD160: 9 | CE160: 7 | CF160: 4 | CG160: 2 | CH160: 20 | CI160: - | CJ160: - | CK160: - | CL160: - | CM160: - | CN160: 2 | CO160: 4 | CP160: 1 | CQ160: 1 | CR160: 5 | CS160: 4 | CT160: 2 | CU160: 1 | DC160: 156 | DD160: 120 | DE160: 65 | DF160: 55 | DG160: - | DH160: 6 | DI160: 13 | DJ160: 17 | DK160: 38 | DL160: 15 | DM160: - | DN160: - | DO160: - | DP160: 8 | DQ160: 3 | DR160: - | DS160: 1 | DT160: - | DU160: 2 | DV160: - | DW160: 1 | DX160: - | DY160: 8 | DZ160: - | EA160: 41 | EB160: 6,521 | EC160: 1,661 | ED160: 4,010 | EE160: 850 | EF160: 79 | EG160: 66 | EH160: 36 | EI160: 30 | EJ160: - | EK160: - | EL160: 7 | EM160: 6 | EN160: 77 | EO160: 54 | EP160: 29 | EQ160: 25 | ER160: - | ES160: 6 | ET160: 6 | EU160: 11
A161: 群馬県 | B161: 前橋市 | C161: 大胡町 | D161: 横沢 | E161: 50 | F161: 26 | G161: 4 | H161: 3 | I161: 1 | J161: - | K161: 21 | L161: 24 | M161: 62 | N161: - | O161: 2 | P161: - | Q161: 1 | R161: - | S161: 1 | T161: 7 | U161: 6 | V161: 4 | W161: 2 | X161: 4 | Y161: 6 | Z161: 14 | AA161: 12 | AB161: 3 | AC161: 66.8 | AD161: 64.7 | AE161: 70.5 | AF161: 48 | AG161: - | AH161: 2 | AI161: - | AJ161: - | AK161: - | AL161: - | AM161: 3 | AN161: 2 | AO161: 1 | AP161: 1 | AQ161: 4 | AR161: 6 | AS161: 14 | AT161: 12 | AU161: 3 | AV161: 71.7 | AW161: 70.3 | AX161: 73.8 | AY161: 46 | AZ161: - | BA161: 1 | BB161: - | BC161: - | BD161: - | BE161: - | BF161: 3 | BG161: 2 | BH161: 1 | BI161: 1 | BJ161: 4 | BK161: 6 | BL161: 13 | BM161: 12 | BN161: 3 | BO161: 72.6 | BP161: 72.0 | BQ161: 73.6 | BR161: 26 | BS161: - | BT161: - | BU161: - | BV161: - | BW161: - | BX161: - | BY161: 1 | BZ161: 4 | CA161: - | CB161: 2 | CC161: 3 | CD161: 2 | CE161: 3 | CF161: 8 | CG161: 3 | CH161: 20 | CI161: - | CJ161: - | CK161: - | CL161: - | CM161: 1 | CN161: 2 | CO161: - | CP161: 2 | CQ161: 1 | CR161: 1 | CS161: 2 | CT161: 8 | CU161: 3 | DC161: 108 | DD161: 84 | DE161: 46 | DF161: 34 | DG161: 4 | DH161: 3 | DI161: 11 | DJ161: 10 | DK161: 22 | DL161: 4 | DM161: - | DN161: - | DO161: - | DP161: 14 | DQ161: 1 | DR161: - | DS161: - | DT161: - | DU161: 1 | DV161: 1 | DW161: - | DX161: - | DY161: 1 | DZ161: - | EA161: 26 | EB161: 3,154 | EC161: 672 | ED161: 2,412 | EE161: 70 | EF161: 56 | EG161: 48 | EH161: 28 | EI161: 17 | EJ161: 3 | EK161: - | EL161: 6 | EM161: 2 | EN161: 52 | EO161: 36 | EP161: 18 | EQ161: 17 | ER161: 1 | ES161: 3 | ET161: 5 | EU161: 8
A162: 群馬県 | B162: 前橋市 | C162: 大胡町 | D162: 東金丸 | E162: 39 | F162: 26 | G162: 13 | H162: 13 | I162: 7 | J162: 5 | K162: 6 | L162: 13 | M162: 80 | N162: - | O162: 4 | P162: 2 | Q162: 7 | R162: 2 | S162: 6 | T162: 11 | U162: 5 | V162: 9 | W162: 7 | X162: 5 | Y162: 4 | Z162: 10 | AA162: 7 | AB162: 1 | AC162: 55.8 | AD162: 53.9 | AE162: 58.1 | AF162: 61 | AG162: - | AH162: 1 | AI162: 1 | AJ162: 6 | AK162: 2 | AL162: 5 | AM162: 5 | AN162: 3 | AO162: 6 | AP162: 5 | AQ162: 5 | AR162: 4 | AS162: 10 | AT162: 7 | AU162: 1 | AV162: 59.3 | AW162: 57.2 | AX162: 61.6 | AY162: 59 | AZ162: - | BA162: 1 | BB162: 1 | BC162: 6 | BD162: 2 | BE162: 5 | BF162: 5 | BG162: 3 | BH162: 6 | BI162: 5 | BJ162: 5 | BK162: 3 | BL162: 9 | BM162: 7 | BN162: 1 | BO162: 58.8 | BP162: 56.8 | BQ162: 61.0 | BR162: 26 | BS162: - | BT162: - | BU162: - | BV162: - | BW162: 1 | BX162: 2 | BY162: 6 | BZ162: 1 | CA162: 6 | CB162: 2 | CC162: 1 | CD162: 2 | CE162: 3 | CF162: 2 | CG162: - | CH162: 11 | CI162: - | CJ162: - | CK162: - | CL162: - | CM162: 1 | CN162: - | CO162: 4 | CP162: 2 | CQ162: 1 | CR162: 1 | CS162: 1 | CT162: 1 | CU162: - | DC162: 114 | DD162: 87 | DE162: 59 | DF162: 27 | DG162: 1 | DH162: 6 | DI162: 10 | DJ162: 11 | DK162: 26 | DL162: - | DM162: - | DN162: 1 | DO162: - | DP162: 9 | DQ162: 1 | DR162: 1 | DS162: 3 | DT162: 4 | DU162: 3 | DV162: 3 | DW162: 1 | DX162: - | DY162: - | DZ162: - | EA162: 26 | EB162: 4,838 | EC162: 41 | ED162: 4,072 | EE162: 725 | EF162: 55 | EG162: 47 | EH162: 31 | EI162: 15 | EJ162: 1 | EK162: - | EL162: 2 | EM162: 6 | EN162: 59 | EO162: 40 | EP162: 28 | EQ162: 12 | ER162: - | ES162: 6 | ET162: 8 | EU162: 5
A163: 群馬県 | B163: 前橋市 | C163: 大胡町 | D163: 滝窪 | E163: 136 | F163: 78 | G163: 23 | H163: 22 | I163: 19 | J163: 7 | K163: 36 | L163: 58 | M163: 232 | N163: 4 | O163: 11 | P163: 9 | Q163: 17 | R163: 10 | S163: 6 | T163: 14 | U163: 21 | V163: 32 | W163: 25 | X163: 23 | Y163: 19 | Z163: 19 | AA163: 11 | AB163: 11 | AC163: 56.4 | AD163: 54.7 | AE163: 58.3 | AF163: 148 | AG163: 2 | AH163: 1 | AI163: 3 | AJ163: 10 | AK163: 7 | AL163: 3 | AM163: 4 | AN163: 9 | AO163: 13 | AP163: 20 | AQ163: 16 | AR163: 19 | AS163: 19 | AT163: 11 | AU163: 11 | AV163: 62.4 | AW163: 62.1 | AX163: 62.7 | AY163: 131 | AZ163: - | BA163: - | BB163: 2 | BC163: 8 | BD163: 5 | BE163: 3 | BF163: 4 | BG163: 8 | BH163: 12 | BI163: 20 | BJ163: 15 | BK163: 17 | BL163: 18 | BM163: 9 | BN163: 10 | BO163: 63.8 | BP163: 61.6 | BQ163: 66.2 | BR163: 78 | BS163: - | BT163: - | BU163: - | BV163: - | BW163: - | BX163: 1 | BY163: 4 | BZ163: 10 | CA163: 13 | CB163: 14 | CC163: 12 | CD163: 11 | CE163: 6 | CF163: 5 | CG163: 2 | CH163: 44 | CI163: - | CJ163: - | CK163: - | CL163: - | CM163: - | CN163: 5 | CO163: 5 | CP163: 9 | CQ163: 9 | CR163: 5 | CS163: 5 | CT163: 4 | CU163: 2 | DC163: 319 | DD163: 257 | DE163: 131 | DF163: 110 | DG163: 16 | DH163: 14 | DI163: 23 | DJ163: 25 | DK163: 70 | DL163: 9 | DM163: - | DN163: 1 | DO163: - | DP163: 41 | DQ163: 1 | DR163: - | DS163: 4 | DT163: - | DU163: 2 | DV163: 2 | DW163: 8 | DX163: 1 | DY163: 1 | DZ163: - | EA163: 75 | EB163: 9,683 | EC163: 2,297 | ED163: 6,866 | EE163: 520 | EF163: 162 | EG163: 140 | EH163: 67 | EI163: 61 | EJ163: 12 | EK163: - | EL163: 12 | EM163: 10 | EN163: 157 | EO163: 117 | EP163: 64 | EQ163: 49 | ER163: 4 | ES163: 14 | ET163: 11 | EU163: 15
A164: 群馬県 | B164: 前橋市 | C164: 大胡町 | D164: 堀越 | E164: 96 | F164: 57 | G164: 18 | H164: 15 | I164: 10 | J164: 4 | K164: 29 | L164: 39 | M164: 166 | N164: 4 | O164: 2 | P164: 5 | Q164: 4 | R164: 9 | S164: 8 | T164: 13 | U164: 12 | V164: 20 | W164: 19 | X164: 16 | Y164: 21 | Z164: 11 | AA164: 16 | AB164: 6 | AC164: 59.4 | AD164: 56.7 | AE164: 62.6 | AF164: 119 | AG164: 3 | AH164: 1 | AI164: 1 | AJ164: 1 | AK164: 3 | AL164: 4 | AM164: 2 | AN164: 6 | AO164: 16 | AP164: 12 | AQ164: 16 | AR164: 21 | AS164: 11 | AT164: 16 | AU164: 6 | AV164: 65.0 | AW164: 63.1 | AX164: 66.7 | AY164: 99 | AZ164: - | BA164: - | BB164: 1 | BC164: 1 | BD164: - | BE164: 4 | BF164: 2 | BG164: 6 | BH164: 15 | BI164: 12 | BJ164: 14 | BK164: 18 | BL164: 10 | BM164: 13 | BN164: 3 | BO164: 66.2 | BP164: 66.7 | BQ164: 65.6 | BR164: 57 | BS164: - | BT164: - | BU164: - | BV164: - | BW164: - | BX164: 2 | BY164: 5 | BZ164: 4 | CA164: 9 | CB164: 11 | CC164: 8 | CD164: 9 | CE164: 3 | CF164: 6 | CG164: - | CH164: 34 | CI164: - | CJ164: - | CK164: - | CL164: 2 | CM164: 1 | CN164: 1 | CO164: 4 | CP164: 7 | CQ164: 5 | CR164: 6 | CS164: 2 | CT164: 6 | CU164: - | DC164: 226 | DD164: 170 | DE164: 99 | DF164: 68 | DG164: 3 | DH164: 12 | DI164: 20 | DJ164: 24 | DK164: 45 | DL164: 16 | DM164: - | DN164: - | DO164: - | DP164: 14 | DQ164: 2 | DR164: 2 | DS164: 1 | DT164: 3 | DU164: 4 | DV164: - | DW164: 3 | DX164: - | DY164: - | DZ164: - | EA164: 56 | EB164: 10,197 | EC164: 5,896 | ED164: 4,156 | EE164: 145 | EF164: 115 | EG164: 96 | EH164: 50 | EI164: 43 | EJ164: 3 | EK164: - | EL164: 10 | EM164: 9 | EN164: 111 | EO164: 74 | EP164: 49 | EQ164: 25 | ER164: - | ES164: 12 | ET164: 10 | EU164: 15
A165: 群馬県 | B165: 前橋市 | C165: 大胡町 | D165: 堀下 | E165: 19 | F165: 13 | G165: 2 | H165: 2 | I165: 1 | J165: 1 | K165: 10 | L165: 6 | M165: 31 | N165: - | O165: - | P165: - | Q165: - | R165: 2 | S165: 2 | T165: 2 | U165: 4 | V165: 5 | W165: 2 | X165: 6 | Y165: 3 | Z165: 1 | AA165: 2 | AB165: 2 | AC165: 62.0 | AD165: 60.8 | AE165: 63.3 | AF165: 21 | AG165: - | AH165: - | AI165: - | AJ165: - | AK165: - | AL165: 1 | AM165: 1 | AN165: 1 | AO165: 4 | AP165: - | AQ165: 6 | AR165: 3 | AS165: 1 | AT165: 2 | AU165: 2 | AV165: 67.4 | AW165: 68.0 | AX165: 66.9 | AY165: 18 | AZ165: - | BA165: - | BB165: - | BC165: - | BD165: - | BE165: - | BF165: 1 | BG165: 1 | BH165: 3 | BI165: - | BJ165: 5 | BK165: 3 | BL165: 1 | BM165: 2 | BN165: 2 | BO165: 69.2 | BP165: 67.9 | BQ165: 70.3 | BR165: 13 | BS165: - | BT165: - | BU165: - | BV165: - | BW165: - | BX165: - | BY165: - | BZ165: 1 | CA165: 2 | CB165: - | CC165: 4 | CD165: 2 | CE165: - | CF165: 2 | CG165: 2 | CH165: 5 | CI165: - | CJ165: - | CK165: - | CL165: - | CM165: - | CN165: - | CO165: - | CP165: - | CQ165: 2 | CR165: - | CS165: - | CT165: 1 | CU165: 2 | DC165: 35 | DD165: 29 | DE165: 18 | DF165: 11 | DG165: - | DH165: 2 | DI165: - | DJ165: 4 | DK165: 8 | DL165: 1 | DM165: - | DN165: 1 | DO165: - | DP165: 5 | DQ165: - | DR165: - | DS165: - | DT165: - | DU165: - | DV165: - | DW165: 1 | DX165: - | DY165: - | DZ165: - | EA165: 13 | EB165: 1,283 | EC165: 472 | ED165: 808 | EE165: 3 | EF165: 18 | EG165: 16 | EH165: 8 | EI165: 8 | EJ165: - | EK165: - | EL165: - | EM165: 2 | EN165: 17 | EO165: 13 | EP165: 10 | EQ165: 3 | ER165: - | ES165: 2 | ET165: - | EU165: 2
A166: 群馬県 | B166: 前橋市 | C166: 大胡町 | D166: 大胡 | E166: 3 | F166: 1 | G166: x | H166: x | I166: x | J166: x | K166: x | L166: 2 | M166: x | N166: x | O166: x | P166: x | Q166: x | R166: x | S166: x | T166: x | U166: x | V166: x | W166: x | X166: x | Y166: x | Z166: x | AA166: x | AB166: x | AC166: 60.0 | AD166: 60.5 | AE166: 59.5 | AF166: x | AG166: x | AH166: x | AI166: x | AJ166: x | AK166: x | AL166: x | AM166: x | AN166: x | AO166: x | AP166: x | AQ166: x | AR166: x | AS166: x | AT166: x | AU166: x | AV166: 60.0 | AW166: 60.5 | AX166: 59.5 | AY166: x | AZ166: x | BA166: x | BB166: x | BC166: x | BD166: x | BE166: x | BF166: x | BG166: x | BH166: x | BI166: x | BJ166: x | BK166: x | BL166: x | BM166: x | BN166: x | BO166: 60.0 | BP166: 60.5 | BQ166: 59.5 | BR166: 1 | BS166: - | BT166: - | BU166: - | BV166: - | BW166: - | BX166: - | BY166: 1 | BZ166: - | CA166: - | CB166: - | CC166: - | CD166: - | CE166: - | CF166: - | CG166: - | CH166: - | CI166: - | CJ166: - | CK166: - | CL166: - | CM166: - | CN166: - | CO166: - | CP166: - | CQ166: - | CR166: - | CS166: - | CT166: - | CU166: - | DC166: 4 | DD166: 4 | DE166: 4 | DF166: - | DG166: - | DH166: - | DI166: - | DJ166: - | DK166: 1 | DL166: - | DM166: - | DN166: - | DO166: - | DP166: - | DQ166: 1 | DR166: - | DS166: - | DT166: - | DU166: - | DV166: - | DW166: - | DX166: - | DY166: - | DZ166: - | EA166: 1 | EB166: 129 | EC166: 68 | ED166: 61 | EE166: - | EF166: 2 | EG166: 2 | EH166: 2 | EI166: - | EJ166: - | EK166: - | EL166: - | EM166: - | EN166: 2 | EO166: 2 | EP166: 2 | EQ166: - | ER166: - | ES166: - | ET166: - | EU166: -
A167: 群馬県 | B167: 前橋市 | C167: 宮城村 | E167: 777 | F167: 527 | G167: 160 | H167: 154 | I167: 102 | J167: 37 | K167: 265 | L167: 250 | M167: 1,555 | N167: 24 | O167: 32 | P167: 57 | Q167: 60 | R167: 65 | S167: 80 | T167: 95 | U167: 163 | V167: 204 | W167: 156 | X167: 138 | Y167: 140 | Z167: 148 | AA167: 141 | AB167: 52 | AC167: 58.8 | AD167: 57.2 | AE167: 60.7 | AF167: 974 | AG167: 11 | AH167: 5 | AI167: 26 | AJ167: 20 | AK167: 21 | AL167: 31 | AM167: 31 | AN167: 57 | AO167: 96 | AP167: 103 | AQ167: 115 | AR167: 131 | AS167: 141 | AT167: 134 | AU167: 52 | AV167: 65.3 | AW167: 63.9 | AX167: 66.8 | AY167: 801 | AZ167: - | BA167: 3 | BB167: 22 | BC167: 16 | BD167: 15 | BE167: 25 | BF167: 25 | BG167: 51 | BH167: 92 | BI167: 92 | BJ167: 104 | BK167: 116 | BL167: 120 | BM167: 95 | BN167: 25 | BO167: 65.1 | BP167: 64.3 | BQ167: 66.1 | BR167: 527 | BS167: - | BT167: - | BU167: 3 | BV167: 3 | BW167: 7 | BX167: 20 | BY167: 31 | BZ167: 57 | CA167: 104 | CB167: 77 | CC167: 74 | CD167: 52 | CE167: 51 | CF167: 44 | CG167: 4 | CH167: 400 | CI167: - | CJ167: - | CK167: 1 | CL167: 9 | CM167: 22 | CN167: 44 | CO167: 85 | CP167: 56 | CQ167: 62 | CR167: 37 | CS167: 42 | CT167: 38 | CU167: 4 | DC167: 2,112 | DD167: 1,589 | DE167: 801 | DF167: 725 | DG167: 63 | DH167: 135 | DI167: 154 | DJ167: 234 | DK167: 453 | DL167: 190 | DM167: 2 | DN167: 2 | DO167: - | DP167: 79 | DQ167: 37 | DR167: 14 | DS167: 29 | DT167: 6 | DU167: 35 | DV167: 28 | DW167: 24 | DX167: 1 | DY167: 6 | DZ167: - | EA167: 518 | EB167: 75,182 | EC167: 32,993 | ED167: 36,016 | EE167: 6,173 | EF167: 1,050 | EG167: 885 | EH167: 460 | EI167: 384 | EJ167: 41 | EK167: - | EL167: 80 | EM167: 85 | EN167: 1,062 | EO167: 704 | EP167: 341 | EQ167: 341 | ER167: 22 | ES167: 135 | ET167: 74 | EU167: 149
A168: 群馬県 | B168: 前橋市 | C168: 宮城村 | D168: 柏倉 | E168: 208 | F168: 131 | G168: 38 | H168: 38 | I168: 28 | J168: 9 | K168: 65 | L168: 77 | M168: 400 | N168: 6 | O168: 4 | P168: 18 | Q168: 12 | R168: 18 | S168: 27 | T168: 20 | U168: 44 | V168: 48 | W168: 34 | X168: 36 | Y168: 48 | Z168: 28 | AA168: 42 | AB168: 15 | AC168: 59.2 | AD168: 57.4 | AE168: 61.4 | AF168: 248 | AG168: 4 | AH168: 1 | AI168: 6 | AJ168: 2 | AK168: 7 | AL168: 9 | AM168: 7 | AN168: 15 | AO168: 21 | AP168: 22 | AQ168: 26 | AR168: 45 | AS168: 27 | AT168: 41 | AU168: 15 | AV168: 65.9 | AW168: 64.0 | AX168: 67.9 | AY168: 201 | AZ168: - | BA168: 1 | BB168: 5 | BC168: 2 | BD168: 6 | BE168: 8 | BF168: 6 | BG168: 13 | BH168: 21 | BI168: 20 | BJ168: 23 | BK168: 38 | BL168: 23 | BM168: 29 | BN168: 6 | BO168: 65.2 | BP168: 64.3 | BQ168: 66.4 | BR168: 131 | BS168: - | BT168: - | BU168: - | BV168: - | BW168: 3 | BX168: 7 | BY168: 6 | BZ168: 18 | CA168: 24 | CB168: 15 | CC168: 20 | CD168: 15 | CE168: 8 | CF168: 15 | CG168: - | CH168: 94 | CI168: - | CJ168: - | CK168: 1 | CL168: 4 | CM168: 5 | CN168: 12 | CO168: 21 | CP168: 8 | CQ168: 16 | CR168: 8 | CS168: 8 | CT168: 11 | CU168: - | DC168: 534 | DD168: 399 | DE168: 201 | DF168: 182 | DG168: 16 | DH168: 37 | DI168: 36 | DJ168: 62 | DK168: 112 | DL168: 52 | DM168: - | DN168: - | DO168: - | DP168: 16 | DQ168: 5 | DR168: 3 | DS168: 5 | DT168: 2 | DU168: 8 | DV168: 14 | DW168: 5 | DX168: - | DY168: 2 | DZ168: - | EA168: 129 | EB168: 18,280 | EC168: 7,038 | ED168: 10,303 | EE168: 939 | EF168: 266 | EG168: 224 | EH168: 116 | EI168: 97 | EJ168: 11 | EK168: - | EL168: 20 | EM168: 22 | EN168: 268 | EO168: 175 | EP168: 85 | EQ168: 85 | ER168: 5 | ES168: 37 | ET168: 16 | EU168: 40
A169: 群馬県 | B169: 前橋市 | C169: 宮城村 | D169: 三夜澤 | E169: 20 | F169: 11 | G169: 2 | H169: 2 | I169: 1 | J169: - | K169: 8 | L169: 9 | M169: 28 | N169: - | O169: - | P169: - | Q169: - | R169: 2 | S169: 2 | T169: 2 | U169: 2 | V169: - | W169: 3 | X169: 4 | Y169: 1 | Z169: 9 | AA169: 2 | AB169: 1 | AC169: 65.0 | AD169: 63.1 | AE169: 67.5 | AF169: 21 | AG169: - | AH169: - | AI169: - | AJ169: - | AK169: 2 | AL169: - | AM169: 1 | AN169: 2 | AO169: - | AP169: 1 | AQ169: 2 | AR169: 1 | AS169: 9 | AT169: 2 | AU169: 1 | AV169: 68.1 | AW169: 68.2 | AX169: 68.1 | AY169: 17 | AZ169: - | BA169: - | BB169: - | BC169: - | BD169: - | BE169: - | BF169: - | BG169: 2 | BH169: - | BI169: 1 | BJ169: 2 | BK169: 1 | BL169: 9 | BM169: 2 | BN169: - | BO169: 71.9 | BP169: 69.6 | BQ169: 74.5 | BR169: 11 | BS169: - | BT169: - | BU169: - | BV169: - | BW169: - | BX169: 1 | BY169: 1 | BZ169: 2 | CA169: - | CB169: 1 | CC169: 2 | CD169: 1 | CE169: 3 | CF169: - | CG169: - | CH169: 5 | CI169: - | CJ169: - | CK169: - | CL169: - | CM169: - | CN169: - | CO169: - | CP169: 1 | CQ169: 2 | CR169: 1 | CS169: 1 | CT169: - | CU169: - | DC169: 33 | DD169: 25 | DE169: 17 | DF169: 8 | DG169: - | DH169: 4 | DI169: - | DJ169: 4 | DK169: 11 | DL169: 4 | DM169: - | DN169: - | DO169: - | DP169: 5 | DQ169: - | DR169: - | DS169: - | DT169: 1 | DU169: 1 | DV169: - | DW169: - | DX169: - | DY169: - | DZ169: - | EA169: 11 | EB169: 2,501 | EC169: 577 | ED169: 694 | EE169: 1,230 | EF169: 18 | EG169: 15 | EH169: 9 | EI169: 6 | EJ169: - | EK169: - | EL169: - | EM169: 3 | EN169: 15 | EO169: 10 | EP169: 8 | EQ169: 2 | ER169: - | ES169: 4 | ET169: - | EU169: 1
A170: 群馬県 | B170: 前橋市 | C170: 宮城村 | D170: 苗ケ島 | E170: 137 | F170: 102 | G170: 37 | H170: 35 | I170: 16 | J170: 10 | K170: 49 | L170: 35 | M170: 297 | N170: 5 | O170: 7 | P170: 8 | Q170: 10 | R170: 12 | S170: 18 | T170: 21 | U170: 32 | V170: 35 | W170: 31 | X170: 32 | Y170: 21 | Z170: 22 | AA170: 29 | AB170: 14 | AC170: 59.0 | AD170: 57.2 | AE170: 61.2 | AF170: 194 | AG170: 2 | AH170: 1 | AI170: 3 | AJ170: 5 | AK170: 3 | AL170: 8 | AM170: 8 | AN170: 11 | AO170: 20 | AP170: 24 | AQ170: 26 | AR170: 19 | AS170: 22 | AT170: 28 | AU170: 14 | AV170: 65.2 | AW170: 64.3 | AX170: 66.1 | AY170: 155 | AZ170: - | BA170: - | BB170: 3 | BC170: 4 | BD170: 2 | BE170: 6 | BF170: 7 | BG170: 8 | BH170: 19 | BI170: 21 | BJ170: 24 | BK170: 17 | BL170: 20 | BM170: 19 | BN170: 5 | BO170: 64.8 | BP170: 64.5 | BQ170: 65.1 | BR170: 102 | BS170: - | BT170: - | BU170: 1 | BV170: - | BW170: 1 | BX170: 4 | BY170: 7 | BZ170: 13 | CA170: 19 | CB170: 13 | CC170: 17 | CD170: 7 | CE170: 10 | CF170: 7 | CG170: 3 | CH170: 81 | CI170: - | CJ170: - | CK170: - | CL170: 1 | CM170: 6 | CN170: 12 | CO170: 15 | CP170: 10 | CQ170: 16 | CR170: 6 | CS170: 6 | CT170: 6 | CU170: 3 | DC170: 421 | DD170: 299 | DE170: 155 | DF170: 138 | DG170: 6 | DH170: 30 | DI170: 38 | DJ170: 54 | DK170: 91 | DL170: 31 | DM170: - | DN170: 1 | DO170: - | DP170: 18 | DQ170: 7 | DR170: 4 | DS170: 13 | DT170: 1 | DU170: 3 | DV170: 5 | DW170: 6 | DX170: - | DY170: 2 | DZ170: - | EA170: 100 | EB170: 14,308 | EC170: 6,454 | ED170: 5,261 | EE170: 2,593 | EF170: 208 | EG170: 173 | EH170: 89 | EI170: 80 | EJ170: 4 | EK170: - | EL170: 16 | EM170: 19 | EN170: 213 | EO170: 126 | EP170: 66 | EQ170: 58 | ER170: 2 | ES170: 30 | ET170: 22 | EU170: 35
A171: 群馬県 | B171: 前橋市 | C171: 宮城村 | D171: 馬場 | E171: 52 | F171: 37 | G171: 16 | H171: 15 | I171: 6 | J171: 1 | K171: 15 | L171: 15 | M171: 97 | N171: 1 | O171: 4 | P171: 6 | Q171: 2 | R171: 5 | S171: 3 | T171: 2 | U171: 11 | V171: 15 | W171: 12 | X171: 10 | Y171: 7 | Z171: 12 | AA171: 5 | AB171: 2 | AC171: 57.8 | AD171: 57.4 | AE171: 58.2 | AF171: 64 | AG171: 1 | AH171: - | AI171: 5 | AJ171: - | AK171: 2 | AL171: - | AM171: 1 | AN171: 4 | AO171: 7 | AP171: 11 | AQ171: 9 | AR171: 6 | AS171: 11 | AT171: 5 | AU171: 2 | AV171: 63.3 | AW171: 61.6 | AX171: 65.3 | AY171: 57 | AZ171: - | BA171: - | BB171: 4 | BC171: - | BD171: 2 | BE171: - | BF171: 1 | BG171: 4 | BH171: 7 | BI171: 10 | BJ171: 9 | BK171: 6 | BL171: 9 | BM171: 4 | BN171: 1 | BO171: 63.5 | BP171: 63.5 | BQ171: 63.5 | BR171: 37 | BS171: - | BT171: - | BU171: - | BV171: - | BW171: - | BX171: - | BY171: - | BZ171: 4 | CA171: 11 | CB171: 5 | CC171: 6 | CD171: 5 | CE171: 3 | CF171: 3 | CG171: - | CH171: 32 | CI171: - | CJ171: - | CK171: - | CL171: - | CM171: - | CN171: 3 | CO171: 9 | CP171: 4 | CQ171: 6 | CR171: 4 | CS171: 3 | CT171: 3 | CU171: - | DC171: 143 | DD171: 108 | DE171: 57 | DF171: 47 | DG171: 4 | DH171: 8 | DI171: 11 | DJ171: 16 | DK171: 36 | DL171: 15 | DM171: - | DN171: - | DO171: - | DP171: 4 | DQ171: 7 | DR171: 1 | DS171: 4 | DT171: - | DU171: 2 | DV171: - | DW171: 3 | DX171: - | DY171: - | DZ171: - | EA171: 37 | EB171: 4,233 | EC171: 2,463 | ED171: 1,491 | EE171: 279 | EF171: 69 | EG171: 58 | EH171: 32 | EI171: 23 | EJ171: 3 | EK171: - | EL171: 5 | EM171: 6 | EN171: 74 | EO171: 50 | EP171: 25 | EQ171: 24 | ER171: 1 | ES171: 8 | ET171: 6 | EU171: 10
A172: 群馬県 | B172: 前橋市 | C172: 宮城村 | D172: 大前田 | E172: 97 | F172: 68 | G172: 13 | H172: 13 | I172: 21 | J172: 9 | K172: 34 | L172: 29 | M172: 206 | N172: 3 | O172: 4 | P172: 6 | Q172: 10 | R172: 7 | S172: 11 | T172: 19 | U172: 16 | V172: 28 | W172: 22 | X172: 15 | Y172: 18 | Z172: 29 | AA172: 16 | AB172: 2 | AC172: 58.4 | AD172: 57.1 | AE172: 59.9 | AF172: 122 | AG172: 2 | AH172: 1 | AI172: 1 | AJ172: 3 | AK172: - | AL172: 7 | AM172: 3 | AN172: 4 | AO172: 14 | AP172: 14 | AQ172: 12 | AR172: 17 | AS172: 29 | AT172: 13 | AU172: 2 | AV172: 65.5 | AW172: 64.3 | AX172: 66.8 | AY172: 99 | AZ172: - | BA172: - | BB172: 1 | BC172: 2 | BD172: - | BE172: 6 | BF172: 3 | BG172: 4 | BH172: 12 | BI172: 13 | BJ172: 9 | BK172: 15 | BL172: 24 | BM172: 8 | BN172: 2 | BO172: 66.0 | BP172: 65.5 | BQ172: 66.6 | BR172: 68 | BS172: - | BT172: - | BU172: - | BV172: - | BW172: 1 | BX172: 4 | BY172: 7 | BZ172: 2 | CA172: 11 | CB172: 15 | CC172: 7 | CD172: 6 | CE172: 10 | CF172: 5 | CG172: - | CH172: 56 | CI172: - | CJ172: - | CK172: - | CL172: 3 | CM172: 6 | CN172: 1 | CO172: 8 | CP172: 13 | CQ172: 6 | CR172: 5 | CS172: 9 | CT172: 5 | CU172: - | DC172: 280 | DD172: 212 | DE172: 99 | DF172: 98 | DG172: 15 | DH172: 19 | DI172: 19 | DJ172: 30 | DK172: 59 | DL172: 32 | DM172: 2 | DN172: - | DO172: - | DP172: 7 | DQ172: 4 | DR172: 1 | DS172: 3 | DT172: - | DU172: 5 | DV172: 1 | DW172: 4 | DX172: - | DY172: - | DZ172: - | EA172: 67 | EB172: 11,525 | EC172: 5,441 | ED172: 5,645 | EE172: 439 | EF172: 143 | EG172: 121 | EH172: 58 | EI172: 56 | EJ172: 7 | EK172: - | EL172: 11 | EM172: 11 | EN172: 137 | EO172: 91 | EP172: 41 | EQ172: 42 | ER172: 8 | ES172: 19 | ET172: 8 | EU172: 19
A173: 群馬県 | B173: 前橋市 | C173: 宮城村 | D173: 鼻毛石 | E173: 157 | F173: 105 | G173: 30 | H173: 29 | I173: 20 | J173: 5 | K173: 55 | L173: 52 | M173: 299 | N173: 2 | O173: 5 | P173: 9 | Q173: 11 | R173: 14 | S173: 14 | T173: 17 | U173: 35 | V173: 45 | W173: 32 | X173: 28 | Y173: 21 | Z173: 30 | AA173: 24 | AB173: 12 | AC173: 59.5 | AD173: 58.5 | AE173: 60.6 | AF173: 178 | AG173: 1 | AH173: - | AI173: 5 | AJ173: 4 | AK173: 6 | AL173: 4 | AM173: 5 | AN173: 11 | AO173: 16 | AP173: 19 | AQ173: 28 | AR173: 19 | AS173: 26 | AT173: 22 | AU173: 12 | AV173: 65.8 | AW173: 65.1 | AX173: 66.6 | AY173: 143 | AZ173: - | BA173: - | BB173: 4 | BC173: 2 | BD173: 5 | BE173: 2 | BF173: 4 | BG173: 10 | BH173: 16 | BI173: 15 | BJ173: 26 | BK173: 15 | BL173: 19 | BM173: 18 | BN173: 7 | BO173: 65.7 | BP173: 64.6 | BQ173: 67.2 | BR173: 105 | BS173: - | BT173: - | BU173: 1 | BV173: 2 | BW173: 2 | BX173: 2 | BY173: 5 | BZ173: 13 | CA173: 22 | CB173: 17 | CC173: 13 | CD173: 8 | CE173: 10 | CF173: 9 | CG173: 1 | CH173: 74 | CI173: - | CJ173: - | CK173: - | CL173: 1 | CM173: 3 | CN173: 11 | CO173: 16 | CP173: 10 | CQ173: 9 | CR173: 7 | CS173: 8 | CT173: 8 | CU173: 1 | DC173: 419 | DD173: 317 | DE173: 143 | DF173: 156 | DG173: 18 | DH173: 24 | DI173: 30 | DJ173: 48 | DK173: 83 | DL173: 33 | DM173: - | DN173: - | DO173: - | DP173: 25 | DQ173: 5 | DR173: 3 | DS173: 3 | DT173: 1 | DU173: 9 | DV173: 2 | DW173: 1 | DX173: 1 | DY173: - | DZ173: - | EA173: 104 | EB173: 14,702 | EC173: 6,580 | ED173: 7,777 | EE173: 345 | EF173: 205 | EG173: 171 | EH173: 82 | EI173: 77 | EJ173: 12 | EK173: - | EL173: 17 | EM173: 17 | EN173: 214 | EO173: 146 | EP173: 61 | EQ173: 79 | ER173: 6 | ES173: 24 | ET173: 13 | EU173: 31
A174: 群馬県 | B174: 前橋市 | C174: 宮城村 | D174: 市之関 | E174: 106 | F174: 73 | G174: 24 | H174: 22 | I174: 10 | J174: 3 | K174: 39 | L174: 33 | M174: 228 | N174: 7 | O174: 8 | P174: 10 | Q174: 15 | R174: 7 | S174: 5 | T174: 14 | U174: 23 | V174: 33 | W174: 22 | X174: 13 | Y174: 24 | Z174: 18 | AA174: 23 | AB174: 6 | AC174: 57.1 | AD174: 54.8 | AE174: 59.9 | AF174: 147 | AG174: 1 | AH174: 2 | AI174: 6 | AJ174: 6 | AK174: 1 | AL174: 3 | AM174: 6 | AN174: 10 | AO174: 18 | AP174: 12 | AQ174: 12 | AR174: 24 | AS174: 17 | AT174: 23 | AU174: 6 | AV174: 64.0 | AW174: 62.1 | AX174: 66.2 | AY174: 129 | AZ174: - | BA174: 2 | BB174: 5 | BC174: 6 | BD174: - | BE174: 3 | BF174: 4 | BG174: 10 | BH174: 17 | BI174: 12 | BJ174: 11 | BK174: 24 | BL174: 16 | BM174: 15 | BN174: 4 | BO174: 63.5 | BP174: 62.4 | BQ174: 65.0 | BR174: 73 | BS174: - | BT174: - | BU174: 1 | BV174: 1 | BW174: - | BX174: 2 | BY174: 5 | BZ174: 5 | CA174: 17 | CB174: 11 | CC174: 9 | CD174: 10 | CE174: 7 | CF174: 5 | CG174: - | CH174: 58 | CI174: - | CJ174: - | CK174: - | CL174: - | CM174: 2 | CN174: 5 | CO174: 16 | CP174: 10 | CQ174: 7 | CR174: 6 | CS174: 7 | CT174: 5 | CU174: - | DC174: 282 | DD174: 229 | DE174: 129 | DF174: 96 | DG174: 4 | DH174: 13 | DI174: 20 | DJ174: 20 | DK174: 61 | DL174: 23 | DM174: - | DN174: 1 | DO174: - | DP174: 4 | DQ174: 9 | DR174: 2 | DS174: 1 | DT174: 1 | DU174: 7 | DV174: 6 | DW174: 5 | DX174: - | DY174: 2 | DZ174: - | EA174: 70 | EB174: 9,633 | EC174: 4,440 | ED174: 4,845 | EE174: 348 | EF174: 141 | EG174: 123 | EH174: 74 | EI174: 45 | EJ174: 4 | EK174: - | EL174: 11 | EM174: 7 | EN174: 141 | EO174: 106 | EP174: 55 | EQ174: 51 | ER174: - | ES174: 13 | ET174: 9 | EU174: 13
A175: 群馬県 | B175: 前橋市 | C175: 粕川村 | E175: 719 | F175: 476 | G175: 93 | H175: 84 | I175: 91 | J175: 30 | K175: 292 | L175: 243 | M175: 1,279 | N175: 18 | O175: 28 | P175: 26 | Q175: 41 | R175: 46 | S175: 66 | T175: 81 | U175: 121 | V175: 136 | W175: 139 | X175: 142 | Y175: 141 | Z175: 134 | AA175: 125 | AB175: 35 | AC175: 60.3 | AD175: 58.7 | AE175: 62.3 | AF175: 795 | AG175: 12 | AH175: 7 | AI175: 7 | AJ175: 16 | AK175: 13 | AL175: 15 | AM175: 18 | AN175: 36 | AO175: 60 | AP175: 85 | AQ175: 115 | AR175: 129 | AS175: 128 | AT175: 119 | AU175: 35 | AV175: 66.9 | AW175: 66.6 | AX175: 67.2 | AY175: 657 | AZ175: - | BA175: 3 | BB175: 6 | BC175: 11 | BD175: 10 | BE175: 11 | BF175: 16 | BG175: 33 | BH175: 55 | BI175: 73 | BJ175: 101 | BK175: 117 | BL175: 113 | BM175: 85 | BN175: 23 | BO175: 67.5 | BP175: 67.7 | BQ175: 67.4 | BR175: 476 | BS175: - | BT175: - | BU175: - | BV175: 2 | BW175: 2 | BX175: 14 | BY175: 23 | BZ175: 35 | CA175: 72 | CB175: 80 | CC175: 64 | CD175: 70 | CE175: 56 | CF175: 49 | CG175: 9 | CH175: 276 | CI175: - | CJ175: - | CK175: - | CL175: 2 | CM175: 6 | CN175: 17 | CO175: 34 | CP175: 46 | CQ175: 42 | CR175: 43 | CS175: 38 | CT175: 39 | CU175: 9 | DC175: 1,808 | DD175: 1,354 | DE175: 657 | DF175: 630 | DG175: 67 | DH175: 153 | DI175: 128 | DJ175: 173 | DK175: 394 | DL175: 178 | DM175: 10 | DN175: 9 | DO175: - | DP175: 90 | DQ175: 53 | DR175: 11 | DS175: 13 | DT175: 1 | DU175: 12 | DV175: 6 | DW175: 8 | DX175: 3 | DY175: - | DZ175: - | EA175: 473 | EB175: 60,987 | EC175: 32,623 | ED175: 27,094 | EE175: 1,270 | EF175: 902 | EG175: 779 | EH175: 364 | EI175: 371 | EJ175: 44 | EK175: - | EL175: 63 | EM175: 60 | EN175: 906 | EO175: 575 | EP175: 293 | EQ175: 259 | ER175: 23 | ES175: 153 | ET175: 65 | EU175: 113
A176: 群馬県 | B176: 前橋市 | C176: 粕川村 | D176: 中之沢 | E176: 25 | F176: 9 | G176: 7 | H176: 6 | I176: 1 | J176: - | K176: 1 | L176: 16 | M176: 24 | N176: 1 | O176: - | P176: - | Q176: - | R176: - | S176: 1 | T176: 4 | U176: 3 | V176: 4 | W176: 2 | X176: 2 | Y176: 2 | Z176: 2 | AA176: 3 | AB176: - | AC176: 59.5 | AD176: 57.9 | AE176: 61.1 | AF176: 21 | AG176: 1 | AH176: - | AI176: - | AJ176: - | AK176: - | AL176: 1 | AM176: 4 | AN176: 3 | AO176: 3 | AP176: 1 | AQ176: 2 | AR176: 2 | AS176: 2 | AT176: 2 | AU176: - | AV176: 58.5 | AW176: 57.9 | AX176: 59.2 | AY176: 18 | AZ176: - | BA176: - | BB176: - | BC176: - | BD176: - | BE176: 1 | BF176: 4 | BG176: 3 | BH176: 3 | BI176: 1 | BJ176: 2 | BK176: 2 | BL176: 1 | BM176: 1 | BN176: - | BO176: 58.6 | BP176: 60.3 | BQ176: 56.5 | BR176: 9 | BS176: - | BT176: - | BU176: - | BV176: - | BW176: - | BX176: - | BY176: 2 | BZ176: 1 | CA176: 3 | CB176: 1 | CC176: 1 | CD176: - | CE176: - | CF176: 1 | CG176: - | CH176: 2 | CI176: - | CJ176: - | CK176: - | CL176: - | CM176: - | CN176: - | CO176: - | CP176: - | CQ176: 1 | CR176: - | CS176: - | CT176: 1 | CU176: - | DC176: 29 | DD176: 21 | DE176: 18 | DF176: 3 | DG176: - | DH176: 1 | DI176: 4 | DJ176: 3 | DK176: 9 | DL176: - | DM176: - | DN176: - | DO176: - | DP176: 1 | DQ176: 1 | DR176: 1 | DS176: 1 | DT176: - | DU176: 4 | DV176: - | DW176: 1 | DX176: - | DY176: - | DZ176: - | EA176: 9 | EB176: 2,546 | EC176: 20 | ED176: 2,428 | EE176: 98 | EF176: 15 | EG176: 11 | EH176: 10 | EI176: 1 | EJ176: - | EK176: - | EL176: 3 | EM176: 1 | EN176: 14 | EO176: 10 | EP176: 8 | EQ176: 2 | ER176: - | ES176: 1 | ET176: 1 | EU176: 2
A177: 群馬県 | B177: 前橋市 | C177: 粕川村 | D177: 室沢 | E177: 57 | F177: 40 | G177: 7 | H177: 7 | I177: 6 | J177: 3 | K177: 27 | L177: 17 | M177: 112 | N177: - | O177: 6 | P177: 3 | Q177: 6 | R177: 3 | S177: 3 | T177: 8 | U177: 13 | V177: 11 | W177: 10 | X177: 12 | Y177: 13 | Z177: 16 | AA177: 5 | AB177: 3 | AC177: 58.7 | AD177: 56.6 | AE177: 61.3 | AF177: 66 | AG177: - | AH177: 3 | AI177: 1 | AJ177: 1 | AK177: 1 | AL177: - | AM177: 2 | AN177: 5 | AO177: 2 | AP177: 8 | AQ177: 9 | AR177: 12 | AS177: 14 | AT177: 5 | AU177: 3 | AV177: 65.6 | AW177: 65.7 | AX177: 65.5 | AY177: 60 | AZ177: - | BA177: 3 | BB177: 1 | BC177: 1 | BD177: 1 | BE177: - | BF177: 2 | BG177: 5 | BH177: 2 | BI177: 8 | BJ177: 9 | BK177: 10 | BL177: 11 | BM177: 5 | BN177: 2 | BO177: 64.5 | BP177: 64.7 | BQ177: 64.3 | BR177: 40 | BS177: - | BT177: - | BU177: - | BV177: - | BW177: - | BX177: - | BY177: 2 | BZ177: 6 | CA177: 7 | CB177: 6 | CC177: 6 | CD177: 6 | CE177: 7 | CF177: - | CG177: - | CH177: 20 | CI177: - | CJ177: - | CK177: - | CL177: - | CM177: - | CN177: 4 | CO177: 3 | CP177: 6 | CQ177: 3 | CR177: 2 | CS177: 2 | CT177: - | CU177: - | DC177: 148 | DD177: 115 | DE177: 60 | DF177: 51 | DG177: 4 | DH177: 13 | DI177: 7 | DJ177: 13 | DK177: 34 | DL177: 14 | DM177: 2 | DN177: - | DO177: - | DP177: 5 | DQ177: 9 | DR177: - | DS177: 1 | DT177: - | DU177: - | DV177: 1 | DW177: 1 | DX177: 1 | DY177: - | DZ177: - | EA177: 40 | EB177: 4,591 | EC177: 2,486 | ED177: 2,000 | EE177: 105 | EF177: 74 | EG177: 69 | EH177: 32 | EI177: 34 | EJ177: 3 | EK177: - | EL177: 1 | EM177: 4 | EN177: 74 | EO177: 46 | EP177: 28 | EQ177: 17 | ER177: 1 | ES177: 13 | ET177: 6 | EU177: 9
A178: 群馬県 | B178: 前橋市 | C178: 粕川村 | D178: 月田 | E178: 138 | F178: 104 | G178: 17 | H178: 16 | I178: 20 | J178: 10 | K178: 67 | L178: 34 | M178: 267 | N178: 2 | O178: 5 | P178: 4 | Q178: 7 | R178: 11 | S178: 10 | T178: 16 | U178: 25 | V178: 26 | W178: 28 | X178: 34 | Y178: 29 | Z178: 29 | AA178: 36 | AB178: 5 | AC178: 62.0 | AD178: 60.1 | AE178: 64.5 | AF178: 175 | AG178: - | AH178: - | AI178: 1 | AJ178: 3 | AK178: 3 | AL178: 2 | AM178: 4 | AN178: 10 | AO178: 11 | AP178: 18 | AQ178: 26 | AR178: 29 | AS178: 28 | AT178: 35 | AU178: 5 | AV178: 68.9 | AW178: 68.9 | AX178: 69.0 | AY178: 153 | AZ178: - | BA178: - | BB178: 1 | BC178: 2 | BD178: 3 | BE178: 2 | BF178: 4 | BG178: 9 | BH178: 10 | BI178: 16 | BJ178: 22 | BK178: 27 | BL178: 28 | BM178: 27 | BN178: 2 | BO178: 68.4 | BP178: 68.2 | BQ178: 68.6 | BR178: 104 | BS178: - | BT178: - | BU178: - | BV178: 1 | BW178: - | BX178: 4 | BY178: 3 | BZ178: 8 | CA178: 11 | CB178: 15 | CC178: 17 | CD178: 13 | CE178: 11 | CF178: 19 | CG178: 2 | CH178: 53 | CI178: - | CJ178: - | CK178: - | CL178: - | CM178: 2 | CN178: 2 | CO178: 4 | CP178: 3 | CQ178: 10 | CR178: 6 | CS178: 9 | CT178: 15 | CU178: 2 | DC178: 402 | DD178: 319 | DE178: 153 | DF178: 156 | DG178: 10 | DH178: 25 | DI178: 28 | DJ178: 30 | DK178: 90 | DL178: 33 | DM178: - | DN178: - | DO178: - | DP178: 28 | DQ178: 11 | DR178: 3 | DS178: 5 | DT178: 1 | DU178: 4 | DV178: 2 | DW178: 2 | DX178: 1 | DY178: - | DZ178: - | EA178: 104 | EB178: 12,506 | EC178: 5,515 | ED178: 6,632 | EE178: 359 | EF178: 199 | EG178: 175 | EH178: 83 | EI178: 84 | EJ178: 8 | EK178: - | EL178: 15 | EM178: 9 | EN178: 203 | EO178: 144 | EP178: 70 | EQ178: 72 | ER178: 2 | ES178: 25 | ET178: 13 | EU178: 21
A179: 群馬県 | B179: 前橋市 | C179: 粕川村 | D179: 稲里 | E179: 30 | F179: 18 | G179: 5 | H179: 4 | I179: 4 | J179: 1 | K179: 9 | L179: 12 | M179: 51 | N179: - | O179: 4 | P179: 3 | Q179: 1 | R179: - | S179: 4 | T179: 1 | U179: 4 | V179: 10 | W179: 4 | X179: 1 | Y179: 5 | Z179: 9 | AA179: 4 | AB179: 1 | AC179: 57.9 | AD179: 56.1 | AE179: 60.9 | AF179: 29 | AG179: - | AH179: - | AI179: 1 | AJ179: 1 | AK179: - | AL179: 3 | AM179: - | AN179: 1 | AO179: 4 | AP179: 2 | AQ179: 1 | AR179: 3 | AS179: 8 | AT179: 4 | AU179: 1 | AV179: 65.1 | AW179: 64.5 | AX179: 65.8 | AY179: 26 | AZ179: - | BA179: - | BB179: 1 | BC179: 1 | BD179: - | BE179: 2 | BF179: - | BG179: 1 | BH179: 4 | BI179: 1 | BJ179: 1 | BK179: 3 | BL179: 7 | BM179: 4 | BN179: 1 | BO179: 65.7 | BP179: 64.5 | BQ179: 67.5 | BR179: 18 | BS179: - | BT179: - | BU179: - | BV179: - | BW179: - | BX179: 1 | BY179: - | BZ179: 1 | CA179: 7 | CB179: 2 | CC179: - | CD179: 2 | CE179: 4 | CF179: 1 | CG179: - | CH179: 10 | CI179: - | CJ179: - | CK179: - | CL179: - | CM179: - | CN179: 1 | CO179: 4 | CP179: 2 | CQ179: - | CR179: 1 | CS179: 1 | CT179: 1 | CU179: - | DC179: 71 | DD179: 55 | DE179: 26 | DF179: 27 | DG179: 2 | DH179: 4 | DI179: 6 | DJ179: 6 | DK179: 17 | DL179: 12 | DM179: - | DN179: - | DO179: - | DP179: 2 | DQ179: 1 | DR179: - | DS179: - | DT179: - | DU179: - | DV179: - | DW179: 2 | DX179: - | DY179: - | DZ179: - | EA179: 17 | EB179: 2,064 | EC179: 1,422 | ED179: 642 | EE179: - | EF179: 39 | EG179: 34 | EH179: 16 | EI179: 17 | EJ179: 1 | EK179: - | EL179: 4 | EM179: 1 | EN179: 32 | EO179: 21 | EP179: 10 | EQ179: 10 | ER179: 1 | ES179: 4 | ET179: 2 | EU179: 5
